Workbook

Sheet Definitions
C1: http://baseballguru.com
C3: PITCHING
C4: throws | D4: Pitching Arm
C5: teamid | D5: Team
C6: LG | D6: League
C7: yearp | D7: Year of prediction
C8: age | D8: Age at year of prediction
C9: POS | D9: SP=Starters / LP=Long Relief, Swing / JP=Junk Starters / EP=Elite Relief Pitchers / DP=Decent RP / BP=Bad RP/ AP=Avoid RP
C10: reliability | D10: Percent of forecast based on players own stats
C11: play | D11: Played last year (I.e. 2025 forecast, played in 2024)
C12: mIP | D12: Forecasted innings pitched
C13: mW | D13: Forecasted wins
C14: mGP | D14: Forecasted games pitched
C15: mGS | D15: Forecasted games started
C16: mCG | D16: Forecasted complete games
C17: mSHO | D17: Forecasted shut outs
C18: mSV | D18: Forecasted saves
C19: mGF | D19: Forecasted games finished
C20: mBFP | D20: Forecasted batters faced
C21: mHRA | D21: Forecasted home runs allowed
C22: mBBA | D22: Forecasted walks allowed
C23: mIBBA | D23: Forecasted intentional walks
C24: mSOA | D24: Forecasted strike outs allowed
C25: mIPouts | D25: Forecasted IP outs
C26: mHA | D26: Forecasted hits allowed
C27: mER | D27: Forecasted earned runs allowed
C28: mWP | D28: Forecasted wild pitches
C29: mHPBA | D29: Forecasted hit batters
C30: mBK | D30: Forecasted balks
C31: mRA | D31: Forecasted runs allowed
C32: mDERA | D32: Forecasted Earned Run Average.
C33: mLOB | D33: Forecasted left on base, mha+mbba-mer
C34: mloba | D34: Forecasted LOB per IP
C35: mCMD | D35: Forecasted Command: Strike out to walk ratio
C36: mDOM | D36: Forecasted Dominance: Strike outs per 9 IP
C37: mCTL | D37: Forecasted Control: Walks per 9 IP
C38: mHR9 | D38: Forecasted home runs allowed per 9 IP
C39: mBABIP | D39: Forecasted bases allowed per 9 IP, (mha-mhra)/(mip*3-msoa-mhra)
C40: mWHIP | D40: Forecasted walks+hits per IP, (mbba+mha)/mip
C41: mWRIP | D41: Forecasted walks+hrs*10 per IP, (mbba+10*mhra)/mip
C42: mHRBIB | D42: Forecasted home runs allowed per bases allowed, mhra/(mip*3-mhra-msoa)
C43: mSTUFF | D43: Forecasted STUFF. This is NOT the same definition as PECOTA's. The formula is: mDOM*6- 1.333*(mDERA+ mDERA)- 3*mCTL -5*mHR9; if mSTUFF<1 then mSTUFF=1;mSTUFF=mSTUFF*mSTUFF/10;
C44: ERAi | D44: Forecasted Indexed ERA, where 100 is average and 80 is 20% lower than average
C45: mGURU | D45: Forecasted Pitching Value (note the formula changed beginning with the 2013 forecasts to be more in line with batters)
C46: mVORP | D46: Value (runs allowed) Over Replacement Player at same position. It is (mDERA-xDERA)*mIP. xDERA ranges from 6 for someone who only starts to 5 for somone never starts.
C47: mROTO | D47: Dollar value, based on 5x5 Rotisserie: ERA, Wins, SV, WHIP, Strike outs
C48: POS2 | D48: 2 year projection
C49: mIP2 | D49: 2 year projected Innings pitched
C50: mDERA2 | D50: 2 year projected ERA
C51: ERAi2 | D51: 2 year projected Indexed ERA
C52: mGURU2 | D52: 2 year projected mGURU
C53: POS3 | D53: 3 year projected
C54: mIP3 | D54: 3 year projected Innings pitched
C55: mDERA3 | D55: 3 year projected ERA
C56: ERAi3 | D56: 3 year projected Indexed ERA
C57: mGURU3 | D57: 3 year projected mGURU
C58: Year | D58: Last Year
C59: IP | D59: 2020 IP for 60 games, PROJECTED for the last 102 games
C60: ERA | D60: 2020 ERA for 60 games, PROJECTED for the last 102 games
C61: DERA | D61: 2020 "Dips" ERA for 60 games, PROJECTED for the last 102 games
C62: GURU | D62: 2020 GURU player value for 60 games, PROJECTED for the last 102 games
C63: DIF | D63: mDERA-ERA (forecasted era minus era from year before)
C64: gurud | D64: Difference between forecasted value and last years value. The higher the number the bigger value, the lower the number the more overpriced, mguru-guru
C65: Value | D65: S=Sleeper, R=Regular, O=Overpriced
C66: DIF_IP3 | D66: mIP3-ip
C67: traj | D67: mDERA3-ERA-dif
C68: lrank | D68: League Rank (I.e. among AL or NL)
C69: prank | D69: Position League Rank (I.e. mSN mLN mJN mEN mDN mBN mAN mSA mLA mJA mEA mDA mBA mAA)
C70: playerID | D70: Sean Lahman's playerid from baseball1.com and baseball-databank.org - most match baseball-reference.com bbrefid
C71: MLBAN_ID | D71: MLB ID
C72: Match1 | D72: Most Similar Player
C73: Match2 | D73: Second Most Similar Player
C74: Match3 | D74: Third Most Similar Player
C76: BATTING
C77: yearp | D77: Year of prediction
C78: age | D78: Age at year of prediction
C79: teamID | D79: Team
C80: lg | D80: League
C81: pos | D81: Primary position
C82: pos2 | D82: Second position with at least 20 games played last year
C83: pos3 | D83: Third position with at least 20 games played last year
C84: reliability | D84: Percent of forecast based on players own stats
C85: xwOBA | D85: eXpected mwOBA for someone at his position and playing time
C86: xGURU | D86: eXpected mGURU for someone at his position and playing time
C87: play | D87: Played last year
C88: mG | D88: Predicted games
C89: mTAP | D89: Predicted Times at Plate
C90: mAB | D90: Predicted at bats
C91: mR | D91: Predicted runs
C92: mH | D92: Predicted hits
C93: mDB | D93: Predicted doubles
C94: mTR | D94: Predicted triples
C95: mHR | D95: Predicted home runs
C96: mRBI | D96: Predicted runs batted in
C97: mSB | D97: Predicted stolen bases
C98: mCS | D98: Predicted times caught stealing
C99: mBB | D99: Predicted walks
C100: mSO | D100: Predicted strike outs
C101: mIBB | D101: Predicted intentional walks
C102: mHPB | D102: Predicted hit by pitch
C103: mSH | D103: Predicted sacrifice hits
C104: mSF | D104: Predicted sacrifice flies
C105: mGIDP | D105: Predicted ground into double play
C106: mAVG | D106: Predicted batting average
C107: mOBP | D107: Predicted on base percentage
C108: mSLG | D108: Predicted slugging average
C109: mwOBA | D109: Predicted rate of performace, like OPS but more accurate. Based on Tom Tango's "The Book"
C110: mPRO | D110: Predicted production, like linear weights. It is wOBA * mTAP
C111: mGURU | D111: Forecasted batting value, based on weighting between m WOBA and mPRO
C112: mGURUwt | D112: Forecasted batting value, where mGURU is weighted by positional scarcity
C113: mROTO | D113: Dollar value, based on 5x5 Rotisserie: Avg, HR, SB, RBI, R
C114: mROTOwt | D114: Dollar value, based on 5x5: Avg, HR, SB, RBI, R. Weighted by positional scarcity
C115: mVORP | D115: Value (runs contributed) Over Replacement Player at same position. It is (mwOBA-xwOBA)*mTAP. Uses xwOBA of non-starters.
C116: prank | D116: Forecasted position rank
C117: rank | D117: Forecasted rank overall among batters
C118: plrank | D118: Forecasted position league rank
C119: mstarter | D119: Predicted playing time, Y=Starter, N=Not Full time Starter or Inj risk or Performance Risk, B=Bench
C120: wOBAd | D120: Difference between forecasted performace rate and last years. Positive numbers are sleepers, mwOBA-wOBA
C121: gurud | D121: Difference between forecasted value and last years value. The higher the number the bigger value, the lower the number the more overpriced, mguru-guru
C122: Value | D122: S=Sleeper, R=Regular, O=Overpriced
C123: year | D123: Last year
C124: tap | D124: Times at plate or place appearances
C125: avg | D125: Batting average
C126: obp | D126: On base percentage
C127: slg | D127: Slugging average
C128: wOBA | D128: Rate of performace, like OPS but more accurate. Based on Tom Tango's "The Book"
C129: PRO | D129: Production, like linear weights. It is wOBA * mTAP
C130: GURU | D130: Batting value, based on weighting between m WOBA and mPRO
C131: playerID | D131: Sean Lahman's playerid from baseball1.com and baseball-databank.org - most match baseball-reference.com bbrefid
C132: MLBAN_ID | D132: MLB ID
C133: Description | D133: Description of Player for predicted season
C134: Match1 | D134: Most Similar Player
C135: Match2 | D135: Second Most Similar Player
C136: Match3 | D136: Third Most Similar Player
C137: Advice | D137: AI generated words to the wise

Sheet DEMO
B1: ="http://www.baseball-reference.com/players/"&LEFT(VLOOKUP(choice,stats!$A$2:$DV$785,126),1)&"/"&VLOOKUP(choice,stats!$A$2:$DV$785,126)&".shtml" -> http://www.baseball-reference.com/players/c/carroco02.shtml | C1: http://www.baseball-reference.com/players/c/carroco02.shtml | D1: ="https://www.mlb.com/search?playerId="&VLOOKUP(choice,stats!$A$2:$DV$785,5) -> https://www.mlb.com/search?playerId=682998 | E1: https://www.mlb.com/search?playerId=682998 | O1: FALSE | P1: =IF(allow_news_feed=TRUE,"http://mlb.mlb.com/images/players/mugshot/ph_"&VLOOKUP(choice,stats!$A$2:$DV$785,5)&".jpg","http://baseballguru.com/bbguru.jpg") -> http://baseballguru.com/bbguru.jpg | Q1: http://mlb.mlb.com/images/players/mugshot/ph_542583.jpg
C2: 129 | F2: ="FANTASY ADVICE: "&VLOOKUP(VLOOKUP((choice-1)*5+$A7,stacked_bats!$A$2:$H$3922,8),stats!$A$1:$BV$785,11)&". "&VLOOKUP(VLOOKUP((choice-1)*5+$A7,stacked_bats!$A$2:$H$3922,8),stats!$A$1:$BW$785,75)&" " -> FANTASY ADVICE: Young Fantasy Star. Best years are still be ahead, even if last year was less than expected. Will outperform last year, assuming regular playing time. Future superstar in the making.
I3: =IF(AND($D$8="DNP",$H$7>37),"Given that he didn't play last year and based on his age, he might be retired. ",IF($D$8="DNP",batter&" didn't play last year, so take forecasts with a grain of salt.",IF(AND(D9="DNP",I8<131),batter&" doesn't have enough MLB experience to produce reliable forecasts.",""))&IF($H$8<23,batter&" might have decent upside, given age of MLB debut. ","")) -> 
A5: 5 | B5: =VLOOKUP(VLOOKUP((choice-1)*5+$A7,stacked_bats!$A$2:$H$3922,8),stats!$A$1:$BV$785,4)&" "&VLOOKUP(VLOOKUP((choice-1)*5+$A7,stacked_bats!$A$2:$H$3922,8),stats!$A$1:$BV$785,3) -> Corbin Carroll | I5: Times at Plate | J5: Home runs | K5: Stolen bases | L5: Walk Rate | M5: Strike Out Rate | N5: Batting avg | O5: On base pct | P5: Slugging pct | Q5: Rate of production | R5: Production | S5: Batting value | T5: Positional Scarcity | U5: 5x5 Rotisserie | W5: Value Over Replacement Player
B6: League | C6: Year | D6: Team | E6: Pos | F6: Bats | G6: CORR | H6: Age | I6: TAP | J6: HR | K6: SB | L6: mBB% | M6: mSO% | N6: AVG | O6: OBP | P6: SLG | Q6: WOBA | R6: PRO | S6: GURU | T6: GURUwt | U6: ROTO | V6: Cluster | W6: VORP | X6: Description
A7: 1 | B7: =VLOOKUP(VLOOKUP((choice-1)*5+$A$7,stacked_bats!$A$2:$H$3922,8),stats!$A$1:$DU$785,77) -> NL | C7: =BAT2025forecast!$D$3&"p" -> 2025p | D7: =IF(VLOOKUP(VLOOKUP((choice-1)*5+$A$7,stacked_bats!$A$2:$H$3922,8),stats!$A$1:$DU$785,76)=0,"",VLOOKUP(VLOOKUP((choice-1)*5+$A$7,stacked_bats!$A$2:$H$3922,8),stats!$A$1:$DU$785,76)) -> ARI | E7: =VLOOKUP(VLOOKUP((choice-1)*5+$A$7,stacked_bats!$A$2:$H$3922,8),stats!$A$1:$BV$785,6)&IF(VLOOKUP(VLOOKUP((choice-1)*5+$A$7,stacked_bats!$A$2:$H$3922,8),stats!$A$1:$BV$785,7)=0,"","-"&VLOOKUP(VLOOKUP((choice-1)*5+$A$7,stacked_bats!$A$2:$H$3922,8),stats!$A$1:$BV$785,7))&IF(VLOOKUP(VLOOKUP((choice-1)*5+$A$7,stacked_bats!$A$2:$H$3922,8),stats!$A$1:$BV$785,8)=0,"","-"&VLOOKUP(VLOOKUP((choice-1)*5+$A$7,stacked_bats!$A$2:$H$3922,8),stats!$A$1:$BV$785,8)) -> OF | F7: =VLOOKUP(VLOOKUP((choice-1)*5+$A$7,stacked_bats!$A$2:$H$3922,8),stats!$A$1:$BV$785,9) -> L | G7: =ROUND(VLOOKUP((choice-1)*5+$A$7,stacked_bats!$A$2:$G$3922,3),3) -> 1 | H7: =VLOOKUP(VLOOKUP((choice-1)*5+$A$7,stacked_bats!$A$2:$H$3922,8),stats!$A$1:$BV$785,24) -> 24 | I7: =VLOOKUP(VLOOKUP((choice-1)*5+$A$7,stacked_bats!$A$2:$H$3922,8),stats!$A$1:$BV$785,25) -> 564 | J7: =VLOOKUP(VLOOKUP((choice-1)*5+$A$7,stacked_bats!$A$2:$H$3922,8),stats!$A$1:$BV$785,26) -> 19 | K7: =VLOOKUP(VLOOKUP((choice-1)*5+$A$7,stacked_bats!$A$2:$H$3922,8),stats!$A$1:$BV$785,27) -> 36 | L7: =VLOOKUP(VLOOKUP((choice-1)*5+$A$7,stacked_bats!$A$2:$H$3922,8),stats!$A$1:$BV$785,42) -> 0.110480791 | M7: =VLOOKUP(VLOOKUP((choice-1)*5+$A$7,stacked_bats!$A$2:$H$3922,8),stats!$A$1:$BV$785,43) -> 0.1914737329 | N7: =VLOOKUP(VLOOKUP((choice-1)*5+$A$7,stacked_bats!$A$2:$H$3922,8),stats!$A$1:$BV$785,28) -> 0.248 | O7: =VLOOKUP(VLOOKUP((choice-1)*5+$A$7,stacked_bats!$A$2:$H$3922,8),stats!$A$1:$BV$785,29) -> 0.338 | P7: =VLOOKUP(VLOOKUP((choice-1)*5+$A$7,stacked_bats!$A$2:$H$3922,8),stats!$A$1:$BV$785,30) -> 0.469 | Q7: =VLOOKUP(VLOOKUP((choice-1)*5+$A$7,stacked_bats!$A$2:$H$3922,8),stats!$A$1:$BV$785,31) -> 0.347 | R7: =Q7*I7 -> 195.708 | S7: =VLOOKUP(VLOOKUP((choice-1)*5+$A$7,stacked_bats!$A$2:$H$3922,8),stats!$A$1:$BV$785,32) -> 65 | T7: =VLOOKUP(VLOOKUP((choice-1)*5+$A$7,stacked_bats!$A$2:$H$3922,8),stats!$A$1:$BV$785,33) -> 59 | U7: =VLOOKUP(VLOOKUP((choice-1)*5+$A$7,stacked_bats!$A$2:$H$3922,8),stats!$A$1:$BV$785,34) -> 29 | V7: =VLOOKUP(VLOOKUP((choice-1)*5+$A$7,stacked_bats!$A$2:$H$3922,8),stats!$A$1:$BV$785,10)&" " -> 29 | W7: =VLOOKUP(VLOOKUP((choice-1)*5+$A$7,stacked_bats!$A$2:$H$3922,8),stats!$A$1:$BV$785,35) -> 25 | X7: =" "&VLOOKUP(VLOOKUP((choice-1)*5+$A$7,stacked_bats!$A$2:$H$3922,8),stats!$A$1:$BV$785,11)&" " -> Young Fantasy Star
A8: =IF(VLOOKUP(VLOOKUP((choice-1)*5+$A$7,stacked_bats!$A$2:$H$3922,8),stats!$A$1:$DU$785,84)=0,"",1) -> 1 | B8: =VLOOKUP(D8,clusters!$A$93:$B$123,2) -> NL | C8: =BAT2025forecast!$D$3-1 -> 2024 | D8: =IF($A8="","DNP",VLOOKUP(VLOOKUP((choice-1)*5+$A$7,stacked_bats!$A$2:$H$3922,8),stats!$A$1:$DU$785,78)) -> ARI | E8: =IF($A8="","",VLOOKUP(VLOOKUP((choice-1)*5+$A$7,stacked_bats!$A$2:$H$3922,8),stats!$A$1:$DU$785,92)) -> OF | F8: =IF($A8="","",F$7) -> L | G8: =ROUND(VLOOKUP((choice-1)*5+$A$7,stacked_bats!$A$2:$G$3922,3),3) -> 1 | H8: =IF($A8="","",H$7-1) -> 23 | I8: =IF($A8="","",VLOOKUP(VLOOKUP((choice-1)*5+$A$7,stacked_bats!$A$2:$H$3922,8),stats!$A$1:$DU$785,84)) -> 684 | J8: =IF($A8="","",VLOOKUP(VLOOKUP((choice-1)*5+$A$7,stacked_bats!$A$2:$H$3922,8),stats!$A$1:$DU$785,81)) -> 22 | K8: =IF($A8="","",VLOOKUP(VLOOKUP((choice-1)*5+$A$7,stacked_bats!$A$2:$H$3922,8),stats!$A$1:$DU$785,82)) -> 35 | N8: =IF($A8="","",VLOOKUP(VLOOKUP((choice-1)*5+$A$7,stacked_bats!$A$2:$H$3922,8),stats!$A$1:$DU$785,85)) -> 0.231 | O8: =IF($A8="","",VLOOKUP(VLOOKUP((choice-1)*5+$A$7,stacked_bats!$A$2:$H$3922,8),stats!$A$1:$DU$785,89)) -> 0.325 | P8: =IF($A8="","",VLOOKUP(VLOOKUP((choice-1)*5+$A$7,stacked_bats!$A$2:$H$3922,8),stats!$A$1:$DU$785,87)) -> 0.428 | Q8: =IF($A8="","",VLOOKUP(VLOOKUP((choice-1)*5+$A$7,stacked_bats!$A$2:$H$3922,8),stats!$A$1:$DU$785,89)) -> 0.325 | R8: =IF($A8="","",Q8*I8) -> 222.3 | S8: =IF($A8="","",VLOOKUP(VLOOKUP((choice-1)*5+$A$7,stacked_bats!$A$2:$H$3922,8),stats!$A$1:$DU$785,90)) -> 57 | U8: =IF($A8="","",VLOOKUP(VLOOKUP((choice-1)*5+$A$7,stacked_bats!$A$2:$H$3922,8),stats!$A$1:$DU$785,91)) -> 30
A9: =IF(VLOOKUP(VLOOKUP((choice-1)*5+$A$7,stacked_bats!$A$2:$H$3922,8),stats!$A$1:$DU$785,100)=0,"",1) -> 1 | B9: =VLOOKUP(D9,clusters!$A$93:$B$123,2) -> NL | C9: =BAT2025forecast!$D$3-2 -> 2023 | D9: =IF($A$9="","DNP",VLOOKUP(VLOOKUP((choice-1)*5+$A$7,stacked_bats!$A$2:$H$3922,8),stats!$A$1:$DU$785,94)) -> ARI | E9: =IF($A9="","",VLOOKUP(VLOOKUP((choice-1)*5+$A$7,stacked_bats!$A$2:$H$3922,8),stats!$A$1:$DU$785,108)) -> OF | F9: =IF($A9="","",F$7) -> L | G9: =ROUND(VLOOKUP((choice-1)*5+$A$7,stacked_bats!$A$2:$G$3922,3),3) -> 1 | H9: =IF($A9="","",H$7-2) -> 22 | I9: =IF($A9="","",VLOOKUP(VLOOKUP((choice-1)*5+$A$7,stacked_bats!$A$2:$H$3922,8),stats!$A$1:$DU$785,100)) -> 645 | J9: =IF($A9="","",VLOOKUP(VLOOKUP((choice-1)*5+$A$7,stacked_bats!$A$2:$H$3922,8),stats!$A$1:$DU$785,97)) -> 25 | K9: =IF($A9="","",VLOOKUP(VLOOKUP((choice-1)*5+$A$7,stacked_bats!$A$2:$H$3922,8),stats!$A$1:$DU$785,98)) -> 54 | N9: =IF($A9="","",VLOOKUP(VLOOKUP((choice-1)*5+$A$7,stacked_bats!$A$2:$H$3922,8),stats!$A$1:$DU$785,101)) -> 0.285 | O9: =IF($A9="","",VLOOKUP(VLOOKUP((choice-1)*5+$A$7,stacked_bats!$A$2:$H$3922,8),stats!$A$1:$DU$785,105)) -> 0.37 | P9: =IF($A9="","",VLOOKUP(VLOOKUP((choice-1)*5+$A$7,stacked_bats!$A$2:$H$3922,8),stats!$A$1:$DU$785,103)) -> 0.506 | Q9: =IF($A9="","",VLOOKUP(VLOOKUP((choice-1)*5+$A$7,stacked_bats!$A$2:$H$3922,8),stats!$A$1:$DU$785,105)) -> 0.37 | R9: =IF($A9="","",Q9*I9) -> 238.65 | S9: =IF($A9="","",VLOOKUP(VLOOKUP((choice-1)*5+$A$7,stacked_bats!$A$2:$H$3922,8),stats!$A$1:$DU$785,106)) -> 89 | U9: =IF($A9="","",VLOOKUP(VLOOKUP((choice-1)*5+$A$7,stacked_bats!$A$2:$H$3922,8),stats!$A$1:$DU$785,107)) -> 47
A10: =IF(VLOOKUP(VLOOKUP((choice-1)*5+$A$7,stacked_bats!$A$2:$H$3922,8),stats!$A$1:$DU$785,116)=0,"",1) -> 1 | B10: =VLOOKUP(D10,clusters!$A$93:$B$123,2) -> NL | C10: =BAT2025forecast!$D$3-3 -> 2022 | D10: =IF($A$10="","DNP",VLOOKUP(VLOOKUP((choice-1)*5+$A$7,stacked_bats!$A$2:$H$3922,8),stats!$A$1:$DU$785,110)) -> ARI | E10: =IF($A10="","",VLOOKUP(VLOOKUP((choice-1)*5+$A$7,stacked_bats!$A$2:$H$3922,8),stats!$A$1:$DU$785,124)) -> OF | F10: =IF($A10="","",F$7) -> L | G10: =ROUND(VLOOKUP((choice-1)*5+$A$7,stacked_bats!$A$2:$G$3922,3),3) -> 1 | H10: =IF($A10="","",H$7-3) -> 21 | I10: =IF($A10="","",VLOOKUP(VLOOKUP((choice-1)*5+$A$7,stacked_bats!$A$2:$H$3922,8),stats!$A$1:$DU$785,116)) -> 115 | J10: =IF($A10="","",VLOOKUP(VLOOKUP((choice-1)*5+$A$7,stacked_bats!$A$2:$H$3922,8),stats!$A$1:$DU$785,113)) -> 4 | K10: =IF($A10="","",VLOOKUP(VLOOKUP((choice-1)*5+$A$7,stacked_bats!$A$2:$H$3922,8),stats!$A$1:$DU$785,114)) -> 2 | N10: =IF($A10="","",VLOOKUP(VLOOKUP((choice-1)*5+$A$7,stacked_bats!$A$2:$H$3922,8),stats!$A$1:$DU$785,117)) -> 0.26 | O10: =IF($A10="","",VLOOKUP(VLOOKUP((choice-1)*5+$A$7,stacked_bats!$A$2:$H$3922,8),stats!$A$1:$DU$785,121)) -> 0.356 | P10: =IF($A10="","",VLOOKUP(VLOOKUP((choice-1)*5+$A$7,stacked_bats!$A$2:$H$3922,8),stats!$A$1:$DU$785,119)) -> 0.5 | Q10: =IF($A10="","",VLOOKUP(VLOOKUP((choice-1)*5+$A$7,stacked_bats!$A$2:$H$3922,8),stats!$A$1:$DU$785,121)) -> 0.356 | R10: =IF($A10="","",Q10*I10) -> 40.94 | S10: =IF($A10="","",VLOOKUP(VLOOKUP((choice-1)*5+$A$7,stacked_bats!$A$2:$H$3922,8),stats!$A$1:$DU$785,122)) -> 25 | U10: =IF($A10="","",VLOOKUP(VLOOKUP((choice-1)*5+$A$7,stacked_bats!$A$2:$H$3922,8),stats!$A$1:$DU$785,123)) -> 4
B11: Comparables | D11: ="(based on "&BAT2025forecast!D3&" projections below)" -> (based on 2025 projections below)
A12: 2 | B12: =" "&VLOOKUP((choice-1)*5+$A12,stacked_bats!$A$2:$G$3922,6)&", "&VLOOKUP((choice-1)*5+$A12,stacked_bats!$A$2:$G$3922,7) -> Meadows, Parker | D12: =VLOOKUP(VLOOKUP((choice-1)*5+$A12,stacked_bats!$A$2:$H$3922,8),stats!$A$1:$DU$785,76) -> DET | E12: =VLOOKUP(VLOOKUP((choice-1)*5+$A12,stacked_bats!$A$2:$H$3922,8),stats!$A$1:$BV$785,6)&IF(VLOOKUP(VLOOKUP((choice-1)*5+$A12,stacked_bats!$A$2:$H$3922,8),stats!$A$1:$BV$785,7)=0,"","-"&VLOOKUP(VLOOKUP((choice-1)*5+$A12,stacked_bats!$A$2:$H$3922,8),stats!$A$1:$BV$785,7))&IF(VLOOKUP(VLOOKUP((choice-1)*5+$A12,stacked_bats!$A$2:$H$3922,8),stats!$A$1:$BV$785,8)=0,"","-"&VLOOKUP(VLOOKUP((choice-1)*5+$A12,stacked_bats!$A$2:$H$3922,8),stats!$A$1:$BV$785,8)) -> OF | F12: =VLOOKUP(VLOOKUP((choice-1)*5+$A12,stacked_bats!$A$2:$H$3922,8),stats!$A$1:$BV$785,9) -> L | G12: =ROUND(VLOOKUP((choice-1)*5+$A12,stacked_bats!$A$2:$G$3922,3),3) -> 0.901 | H12: =VLOOKUP(VLOOKUP((choice-1)*5+$A12,stacked_bats!$A$2:$H$3922,8),stats!$A$1:$BV$785,24) -> 25 | I12: =VLOOKUP(VLOOKUP((choice-1)*5+$A12,stacked_bats!$A$2:$H$3922,8),stats!$A$1:$BV$785,25) -> 297 | J12: =VLOOKUP(VLOOKUP((choice-1)*5+$A12,stacked_bats!$A$2:$H$3922,8),stats!$A$1:$BV$785,26) -> 7 | K12: =VLOOKUP(VLOOKUP((choice-1)*5+$A12,stacked_bats!$A$2:$H$3922,8),stats!$A$1:$BV$785,27) -> 11 | L12: =VLOOKUP(VLOOKUP((choice-1)*5+$A12,stacked_bats!$A$2:$H$3922,8),stats!$A$1:$BV$785,42) -> 0.0924700521 | M12: =VLOOKUP(VLOOKUP((choice-1)*5+$A12,stacked_bats!$A$2:$H$3922,8),stats!$A$1:$BV$785,43) -> 0.2409442726 | N12: =VLOOKUP(VLOOKUP((choice-1)*5+$A12,stacked_bats!$A$2:$H$3922,8),stats!$A$1:$BV$785,28) -> 0.228 | O12: =VLOOKUP(VLOOKUP((choice-1)*5+$A12,stacked_bats!$A$2:$H$3922,8),stats!$A$1:$BV$785,29) -> 0.305 | P12: =VLOOKUP(VLOOKUP((choice-1)*5+$A12,stacked_bats!$A$2:$H$3922,8),stats!$A$1:$BV$785,30) -> 0.392 | Q12: =VLOOKUP(VLOOKUP((choice-1)*5+$A12,stacked_bats!$A$2:$H$3922,8),stats!$A$1:$BV$785,31) -> 0.306 | R12: =Q12*I12 -> 90.882 | S12: =VLOOKUP(VLOOKUP((choice-1)*5+$A12,stacked_bats!$A$2:$H$3922,8),stats!$A$1:$BV$785,32) -> 27 | T12: =VLOOKUP(VLOOKUP((choice-1)*5+$A12,stacked_bats!$A$2:$H$3922,8),stats!$A$1:$BV$785,33) -> 25 | U12: =VLOOKUP(VLOOKUP((choice-1)*5+$A12,stacked_bats!$A$2:$H$3922,8),stats!$A$1:$BV$785,34) -> 9 | V12: =VLOOKUP(VLOOKUP((choice-1)*5+$A12,stacked_bats!$A$2:$H$3922,8),stats!$A$1:$BV$785,10)&" " -> 29 | W12: =VLOOKUP(VLOOKUP((choice-1)*5+$A12,stacked_bats!$A$2:$H$3922,8),stats!$A$1:$BV$785,35) -> 1 | X12: =" "&VLOOKUP(VLOOKUP((choice-1)*5+$A12,stacked_bats!$A$2:$H$3922,8),stats!$A$1:$BV$785,11)&" " -> Young Gap Power
A13: 3 | B13: =" "&VLOOKUP((choice-1)*5+$A13,stacked_bats!$A$2:$G$3922,6)&", "&VLOOKUP((choice-1)*5+$A13,stacked_bats!$A$2:$G$3922,7) -> Deluca, Jonny | D13: =VLOOKUP(VLOOKUP((choice-1)*5+$A13,stacked_bats!$A$2:$H$3922,8),stats!$A$1:$DU$785,76) -> TBA | E13: =VLOOKUP(VLOOKUP((choice-1)*5+$A13,stacked_bats!$A$2:$H$3922,8),stats!$A$1:$BV$785,6)&IF(VLOOKUP(VLOOKUP((choice-1)*5+$A13,stacked_bats!$A$2:$H$3922,8),stats!$A$1:$BV$785,7)=0,"","-"&VLOOKUP(VLOOKUP((choice-1)*5+$A13,stacked_bats!$A$2:$H$3922,8),stats!$A$1:$BV$785,7))&IF(VLOOKUP(VLOOKUP((choice-1)*5+$A13,stacked_bats!$A$2:$H$3922,8),stats!$A$1:$BV$785,8)=0,"","-"&VLOOKUP(VLOOKUP((choice-1)*5+$A13,stacked_bats!$A$2:$H$3922,8),stats!$A$1:$BV$785,8)) -> OF | F13: =VLOOKUP(VLOOKUP((choice-1)*5+$A13,stacked_bats!$A$2:$H$3922,8),stats!$A$1:$BV$785,9) -> R | G13: =ROUND(VLOOKUP((choice-1)*5+$A13,stacked_bats!$A$2:$G$3922,3),3) -> 0.875 | H13: =VLOOKUP(VLOOKUP((choice-1)*5+$A13,stacked_bats!$A$2:$H$3922,8),stats!$A$1:$BV$785,24) -> 26 | I13: =VLOOKUP(VLOOKUP((choice-1)*5+$A13,stacked_bats!$A$2:$H$3922,8),stats!$A$1:$BV$785,25) -> 291 | J13: =VLOOKUP(VLOOKUP((choice-1)*5+$A13,stacked_bats!$A$2:$H$3922,8),stats!$A$1:$BV$785,26) -> 6 | K13: =VLOOKUP(VLOOKUP((choice-1)*5+$A13,stacked_bats!$A$2:$H$3922,8),stats!$A$1:$BV$785,27) -> 10 | L13: =VLOOKUP(VLOOKUP((choice-1)*5+$A13,stacked_bats!$A$2:$H$3922,8),stats!$A$1:$BV$785,42) -> 0.0746377031 | M13: =VLOOKUP(VLOOKUP((choice-1)*5+$A13,stacked_bats!$A$2:$H$3922,8),stats!$A$1:$BV$785,43) -> 0.2154825438 | N13: =VLOOKUP(VLOOKUP((choice-1)*5+$A13,stacked_bats!$A$2:$H$3922,8),stats!$A$1:$BV$785,28) -> 0.222 | O13: =VLOOKUP(VLOOKUP((choice-1)*5+$A13,stacked_bats!$A$2:$H$3922,8),stats!$A$1:$BV$785,29) -> 0.286 | P13: =VLOOKUP(VLOOKUP((choice-1)*5+$A13,stacked_bats!$A$2:$H$3922,8),stats!$A$1:$BV$785,30) -> 0.355 | Q13: =VLOOKUP(VLOOKUP((choice-1)*5+$A13,stacked_bats!$A$2:$H$3922,8),stats!$A$1:$BV$785,31) -> 0.284 | R13: =Q13*I13 -> 82.644 | S13: =VLOOKUP(VLOOKUP((choice-1)*5+$A13,stacked_bats!$A$2:$H$3922,8),stats!$A$1:$BV$785,32) -> 20 | T13: =VLOOKUP(VLOOKUP((choice-1)*5+$A13,stacked_bats!$A$2:$H$3922,8),stats!$A$1:$BV$785,33) -> 19 | U13: =VLOOKUP(VLOOKUP((choice-1)*5+$A13,stacked_bats!$A$2:$H$3922,8),stats!$A$1:$BV$785,34) -> 7 | V13: =VLOOKUP(VLOOKUP((choice-1)*5+$A13,stacked_bats!$A$2:$H$3922,8),stats!$A$1:$BV$785,10)&" " -> 29 | W13: =VLOOKUP(VLOOKUP((choice-1)*5+$A13,stacked_bats!$A$2:$H$3922,8),stats!$A$1:$BV$785,35) -> -5 | X13: =" "&VLOOKUP(VLOOKUP((choice-1)*5+$A13,stacked_bats!$A$2:$H$3922,8),stats!$A$1:$BV$785,11)&" " -> Playing Time Risk
A14: 4 | B14: =" "&VLOOKUP((choice-1)*5+$A14,stacked_bats!$A$2:$G$3922,6)&", "&VLOOKUP((choice-1)*5+$A14,stacked_bats!$A$2:$G$3922,7) -> Pérez, Wenceel | D14: =VLOOKUP(VLOOKUP((choice-1)*5+$A14,stacked_bats!$A$2:$H$3922,8),stats!$A$1:$DU$785,76) -> DET | E14: =VLOOKUP(VLOOKUP((choice-1)*5+$A14,stacked_bats!$A$2:$H$3922,8),stats!$A$1:$BV$785,6)&IF(VLOOKUP(VLOOKUP((choice-1)*5+$A14,stacked_bats!$A$2:$H$3922,8),stats!$A$1:$BV$785,7)=0,"","-"&VLOOKUP(VLOOKUP((choice-1)*5+$A14,stacked_bats!$A$2:$H$3922,8),stats!$A$1:$BV$785,7))&IF(VLOOKUP(VLOOKUP((choice-1)*5+$A14,stacked_bats!$A$2:$H$3922,8),stats!$A$1:$BV$785,8)=0,"","-"&VLOOKUP(VLOOKUP((choice-1)*5+$A14,stacked_bats!$A$2:$H$3922,8),stats!$A$1:$BV$785,8)) -> OF | F14: =VLOOKUP(VLOOKUP((choice-1)*5+$A14,stacked_bats!$A$2:$H$3922,8),stats!$A$1:$BV$785,9) -> B | G14: =ROUND(VLOOKUP((choice-1)*5+$A14,stacked_bats!$A$2:$G$3922,3),3) -> 0.837 | H14: =VLOOKUP(VLOOKUP((choice-1)*5+$A14,stacked_bats!$A$2:$H$3922,8),stats!$A$1:$BV$785,24) -> 25 | I14: =VLOOKUP(VLOOKUP((choice-1)*5+$A14,stacked_bats!$A$2:$H$3922,8),stats!$A$1:$BV$785,25) -> 345 | J14: =VLOOKUP(VLOOKUP((choice-1)*5+$A14,stacked_bats!$A$2:$H$3922,8),stats!$A$1:$BV$785,26) -> 7 | K14: =VLOOKUP(VLOOKUP((choice-1)*5+$A14,stacked_bats!$A$2:$H$3922,8),stats!$A$1:$BV$785,27) -> 8 | L14: =VLOOKUP(VLOOKUP((choice-1)*5+$A14,stacked_bats!$A$2:$H$3922,8),stats!$A$1:$BV$785,42) -> 0.0792275718 | M14: =VLOOKUP(VLOOKUP((choice-1)*5+$A14,stacked_bats!$A$2:$H$3922,8),stats!$A$1:$BV$785,43) -> 0.2142651821 | N14: =VLOOKUP(VLOOKUP((choice-1)*5+$A14,stacked_bats!$A$2:$H$3922,8),stats!$A$1:$BV$785,28) -> 0.233 | O14: =VLOOKUP(VLOOKUP((choice-1)*5+$A14,stacked_bats!$A$2:$H$3922,8),stats!$A$1:$BV$785,29) -> 0.295 | P14: =VLOOKUP(VLOOKUP((choice-1)*5+$A14,stacked_bats!$A$2:$H$3922,8),stats!$A$1:$BV$785,30) -> 0.373 | Q14: =VLOOKUP(VLOOKUP((choice-1)*5+$A14,stacked_bats!$A$2:$H$3922,8),stats!$A$1:$BV$785,31) -> 0.294 | R14: =Q14*I14 -> 101.43 | S14: =VLOOKUP(VLOOKUP((choice-1)*5+$A14,stacked_bats!$A$2:$H$3922,8),stats!$A$1:$BV$785,32) -> 26 | T14: =VLOOKUP(VLOOKUP((choice-1)*5+$A14,stacked_bats!$A$2:$H$3922,8),stats!$A$1:$BV$785,33) -> 24 | U14: =VLOOKUP(VLOOKUP((choice-1)*5+$A14,stacked_bats!$A$2:$H$3922,8),stats!$A$1:$BV$785,34) -> 8 | V14: =VLOOKUP(VLOOKUP((choice-1)*5+$A14,stacked_bats!$A$2:$H$3922,8),stats!$A$1:$BV$785,10)&" " -> 29 | W14: =VLOOKUP(VLOOKUP((choice-1)*5+$A14,stacked_bats!$A$2:$H$3922,8),stats!$A$1:$BV$785,35) -> -3 | X14: =" "&VLOOKUP(VLOOKUP((choice-1)*5+$A14,stacked_bats!$A$2:$H$3922,8),stats!$A$1:$BV$785,11)&" " -> Young
A15: 5 | B15: =" "&VLOOKUP((choice-1)*5+$A15,stacked_bats!$A$2:$G$3922,6)&", "&VLOOKUP((choice-1)*5+$A15,stacked_bats!$A$2:$G$3922,7) -> Castro, Willi | D15: =VLOOKUP(VLOOKUP((choice-1)*5+$A15,stacked_bats!$A$2:$H$3922,8),stats!$A$1:$DU$785,76) -> MIN | E15: =VLOOKUP(VLOOKUP((choice-1)*5+$A15,stacked_bats!$A$2:$H$3922,8),stats!$A$1:$BV$785,6)&IF(VLOOKUP(VLOOKUP((choice-1)*5+$A15,stacked_bats!$A$2:$H$3922,8),stats!$A$1:$BV$785,7)=0,"","-"&VLOOKUP(VLOOKUP((choice-1)*5+$A15,stacked_bats!$A$2:$H$3922,8),stats!$A$1:$BV$785,7))&IF(VLOOKUP(VLOOKUP((choice-1)*5+$A15,stacked_bats!$A$2:$H$3922,8),stats!$A$1:$BV$785,8)=0,"","-"&VLOOKUP(VLOOKUP((choice-1)*5+$A15,stacked_bats!$A$2:$H$3922,8),stats!$A$1:$BV$785,8)) -> OF-SS-2B | F15: =VLOOKUP(VLOOKUP((choice-1)*5+$A15,stacked_bats!$A$2:$H$3922,8),stats!$A$1:$BV$785,9) -> B | G15: =ROUND(VLOOKUP((choice-1)*5+$A15,stacked_bats!$A$2:$G$3922,3),3) -> 0.828 | H15: =VLOOKUP(VLOOKUP((choice-1)*5+$A15,stacked_bats!$A$2:$H$3922,8),stats!$A$1:$BV$785,24) -> 27 | I15: =VLOOKUP(VLOOKUP((choice-1)*5+$A15,stacked_bats!$A$2:$H$3922,8),stats!$A$1:$BV$785,25) -> 489 | J15: =VLOOKUP(VLOOKUP((choice-1)*5+$A15,stacked_bats!$A$2:$H$3922,8),stats!$A$1:$BV$785,26) -> 12 | K15: =VLOOKUP(VLOOKUP((choice-1)*5+$A15,stacked_bats!$A$2:$H$3922,8),stats!$A$1:$BV$785,27) -> 16 | L15: =VLOOKUP(VLOOKUP((choice-1)*5+$A15,stacked_bats!$A$2:$H$3922,8),stats!$A$1:$BV$785,42) -> 0.078119895 | M15: =VLOOKUP(VLOOKUP((choice-1)*5+$A15,stacked_bats!$A$2:$H$3922,8),stats!$A$1:$BV$785,43) -> 0.2246388606 | N15: =VLOOKUP(VLOOKUP((choice-1)*5+$A15,stacked_bats!$A$2:$H$3922,8),stats!$A$1:$BV$785,28) -> 0.238 | O15: =VLOOKUP(VLOOKUP((choice-1)*5+$A15,stacked_bats!$A$2:$H$3922,8),stats!$A$1:$BV$785,29) -> 0.315 | P15: =VLOOKUP(VLOOKUP((choice-1)*5+$A15,stacked_bats!$A$2:$H$3922,8),stats!$A$1:$BV$785,30) -> 0.401 | Q15: =VLOOKUP(VLOOKUP((choice-1)*5+$A15,stacked_bats!$A$2:$H$3922,8),stats!$A$1:$BV$785,31) -> 0.315 | R15: =Q15*I15 -> 154.035 | S15: =VLOOKUP(VLOOKUP((choice-1)*5+$A15,stacked_bats!$A$2:$H$3922,8),stats!$A$1:$BV$785,32) -> 41 | T15: =VLOOKUP(VLOOKUP((choice-1)*5+$A15,stacked_bats!$A$2:$H$3922,8),stats!$A$1:$BV$785,33) -> 38 | U15: =VLOOKUP(VLOOKUP((choice-1)*5+$A15,stacked_bats!$A$2:$H$3922,8),stats!$A$1:$BV$785,34) -> 15 | V15: =VLOOKUP(VLOOKUP((choice-1)*5+$A15,stacked_bats!$A$2:$H$3922,8),stats!$A$1:$BV$785,10)&" " -> 29 | W15: =VLOOKUP(VLOOKUP((choice-1)*5+$A15,stacked_bats!$A$2:$H$3922,8),stats!$A$1:$BV$785,35) -> 6 | X15: =" "&VLOOKUP(VLOOKUP((choice-1)*5+$A15,stacked_bats!$A$2:$H$3922,8),stats!$A$1:$BV$785,11)&" " -> Agile Capable Hitter
B31: =" "&VLOOKUP((choice-1)*5+$A7,stacked_bats!$A$2:$F$3922,6)&" also leans towards "&VLOOKUP(VALUE(V7),clusters!$A$2:$B$75,2)&" ("&ROUND(100*VLOOKUP(VALUE(V7),clusters!$A$2:$C$75,3)/clusters!C$2,1)&"% of players)" -> Carroll also leans towards Young Speedy Capable Hitter (1.9% of players)
B32: http://baseballguru.com/bbinside4.html

Sheet PITCH2025forecast
A1: http://baseballguru.com | C1: FORECAST AS OF 2/24/2025 | H1: SP=Starters / LP=Long Relief, Swing / JP=Junk Starters / EP=Elite RP / DP=Decent RP / BP=Bad RP/ AP=Avoid RP | I1: Percent of forecast based on players own stats | J1: Played last year | K1: Innings pitched | L1: Wins | M1: Games pitched | N1: Games started | O1: Complete games | P1: Shut outs | Q1: Saves | R1: Games finished | S1: Batters faced | T1: Home runs allowed | U1: Walks allowed | V1: Intentional walks | W1: Strike outs allowed | X1: IP outs | Y1: Hits allowed | Z1: Earned runs allowed | AA1: Wild pitches | AB1: Hit batters | AC1: Balks | AD1: Runs allowed | AE1: Earned Run Average | AF1: Left on base | AG1: LOB per IP | AH1: Command: Strike out to walk ratio | AI1: Dominance: Strike outs per 9 IP | AJ1: Control: Walks per 9 IP | AK1: Home runs allowed per 9 IP | AL1: Bases allowed per 9 IP | AM1: walks+hits per IP | AN1: walks+hrs*10 per IP | AO1: Home runs allowed per bases allowed | AP1: STUFF: Upside based on power and control | AQ1: Indexed ERA, (100 is average. 80 is 20% lower than average) | AR1: Pitching Value | AS1: Value (runs allowed) Over Replacement Player at same position | AT1: Dollar value, based on 5x5 Rotisserie: ERA, Wins, SV, WHIP, Strike outs | AU1: League Rank | AV1: Position League Rank | AW1: mDERA3-ERA-dif | AX1: 2 year projection | AY1: 2 year projected Innings pitched | AZ1: 2 year projected ERA | BA1: 2 year projected Indexed ERA | BB1: 2 year projected mGURU | BC1: 3 year projected | BD1: 3 year projected Innings pitched | BE1: 3 year projected ERA | BF1: 3 year projected Indexed ERA | BG1: 3 year projected mGURU | BH1: Last Years IP | BI1: Last Years ERA | BJ1: Last Years "Dips" ERA | BK1: Last Years GURU player value | BL1: mDERA-ERA (forecasted era minus era from year before) | BM1: Difference between forecast and last years value. Sleepers have high values. | BN1: Draft Value: S=Sleeper, R=Regular, O=Overpriced | BO1: mIP3-ip | BP1: Lahman PlayerID | BQ1: MLB ID | BR1: Description of player for predicted season | BS1: Most Similar Player | BT1: Second Most Similar Player | BU1: Third Most Similar Player | BV1: Words to the wise
A2: nameLast | B2: nameFirst | C2: throws | D2: yearp | E2: age | F2: teamID | G2: LG | H2: POS | I2: reliability | J2: play | K2: mIP | L2: mW | M2: mGP | N2: mGS | O2: mCG | P2: mSHO | Q2: mSV | R2: mGF | S2: mBFP | T2: mHRA | U2: mBBA | V2: mIBBA | W2: mSOA | X2: mIPouts | Y2: mHA | Z2: mER | AA2: mWP | AB2: mHPBA | AC2: mBK | AD2: mRA | AE2: mDERA | AF2: mLOB | AG2: mloba | AH2: mCMD | AI2: mDOM | AJ2: mCTL | AK2: mHR9 | AL2: mBABIP | AM2: mWHIP | AN2: mWRIP | AO2: mHRBIB | AP2: mSTUFF | AQ2: ERAi | AR2: mGURU | AS2: mVORP | AT2: mROTO | AU2: lrank | AV2: prank | AW2: traj | AX2: POS2 | AY2: mIP2 | AZ2: mDERA2 | BA2: ERAi2 | BB2: mGURU2 | BC2: POS3 | BD2: mIP3 | BE2: mDERA3 | BF2: ERAi3 | BG2: mGURU3 | BH2: IP_2024 | BI2: ERA_2024 | BJ2: DERA_2024 | BK2: GURU_2024 | BL2: DIF | BM2: gurud | BN2: value | BO2: DIF_IP3 | BP2: playerID | BQ2: MLBAM_ID | BR2: Description | BS2: match1 | BT2: match2 | BU2: match3 | BV2: advice
A3: Sale | B3: Chris | C3: L | D3: 2025 | E3: 36 | F3: ATL | G3: NL | H3: SP | I3: 0.71 | J3: Y | K3: 159.7 | L3: 11 | M3: 25 | N3: 25 | O3: 0 | P3: 0 | Q3: 0 | R3: 0 | S3: 578 | T3: 13 | U3: 38 | V3: 0 | W3: 157 | X3: 427 | Y3: 119 | Z3: 28 | AA3: 23 | AB3: 7 | AC3: 1 | AD3: 53 | AE3: 3.15 | AF3: 107 | AG3: 6.7 | AH3: 4.1 | AI3: 9.8 | AJ3: 2.4 | AK3: 0.82 | AL3: 0.281 | AM3: 1.1 | AN3: 1.18 | AO3: 0.05 | AP3: 154 | AQ3: 76 | AR3: 105 | AS3: 45 | AT3: 34.03 | AU3: 1 | AV3: 1 | AW3: 0.07 | AX3: SP | AY3: 129.4 | AZ3: 3.08 | BA3: 58 | BB3: 107 | BC3: SP | BD3: 106.2 | BE3: 3.21 | BF3: 66 | BG3: 85 | BH3: 177.7 | BI3: 2.38 | BJ3: 2.2 | BK3: 353 | BL3: 0.77 | BM3: -248 | BN3: R | BO3: -71 | BP3: salech01 | BQ3: 519242 | BR3: Aging Lefty Commanding Swing Starter | BS3: Yusei Kikuchi | BT3: Tarik Skubal | BU3: Sonny Gray | BV3: Should perform close to forecast. Expected to play regularly. CY Young candidate.
A4: Skenes | B4: Paul | C4: R | D4: 2025 | E4: 23 | F4: PIT | G4: NL | H4: SP | I4: 0.73 | J4: Y | K4: 159.7 | L4: 10 | M4: 21 | N4: 21 | O4: 0 | P4: 0 | Q4: 0 | R4: 0 | S4: 505 | T4: 12 | U4: 33 | V4: 0 | W4: 160 | X4: 384 | Y4: 98 | Z4: 28 | AA4: 2 | AB4: 6 | AC4: 1 | AD4: 38 | AE4: 3.11 | AF4: 97 | AG4: 7 | AH4: 4.8 | AI4: 11.5 | AJ4: 2.4 | AK4: 0.84 | AL4: 0.284 | AM4: 1.05 | AN4: 1.21 | AO4: 0.06 | AP4: 242 | AQ4: 75 | AR4: 102 | AS4: 40 | AT4: 32.43 | AU4: 2 | AV4: 2 | AW4: 0.03 | AX4: SP | AY4: 127 | AZ4: 2.95 | BA4: 55 | BB4: 121 | BC4: SP | BD4: 106.1 | BE4: 3.14 | BF4: 65 | BG4: 91 | BH4: 133 | BI4: 1.96 | BJ4: 2.46 | BK4: 222 | BL4: 1.15 | BM4: -120 | BN4: R | BO4: -27 | BP4: skenepa01 | BQ4: 694973 | BR4: Young Commanding Starter | BS4: Yoshinobu Yamamoto | BT4: Spencer Schwellenbach | BU4: Tanner Bibee | BV4: Should perform close to forecast. Expected to play regularly. CY Young candidate.
A5: Glasnow | B5: Tyler | C5: R | D5: 2025 | E5: 31 | F5: LAN | G5: NL | H5: SP | I5: 0.68 | J5: Y | K5: 139 | L5: 8 | M5: 19 | N5: 19 | O5: 0 | P5: 0 | Q5: 0 | R5: 0 | S5: 452 | T5: 13 | U5: 33 | V5: 0 | W5: 131 | X5: 336 | Y5: 98 | Z5: 30 | AA5: 27 | AB5: 2 | AC5: 1 | AD5: 54 | AE5: 3.37 | AF5: 86 | AG5: 6.9 | AH5: 3.9 | AI5: 10.5 | AJ5: 2.7 | AK5: 1.06 | AL5: 0.258 | AM5: 1.08 | AN5: 1.47 | AO5: 0.07 | AP5: 167 | AQ5: 82 | AR5: 79 | AS5: 36 | AT5: 28.95 | AU5: 8 | AV5: 3 | AW5: 0.06 | AX5: SP | AY5: 109.9 | AZ5: 3.27 | BA5: 61 | BB5: 82 | BC5: SP | BD5: 89.1 | BE5: 3.44 | BF5: 71 | BG5: 63 | BH5: 134 | BI5: 3.49 | BJ5: 2.86 | BK5: 136 | BL5: -0.12 | BM5: -57 | BN5: R | BO5: -45 | BP5: glasnty01 | BQ5: 607192 | BR5: Righty Commanding Swing Starter | BS5: Luis Castillo | BT5: Jack Flaherty | BU5: Corbin Burnes | BV5: In prime. Expected to play regularly. Star player, must have.
A6: Wheeler | B6: Zack | C6: R | D6: 2025 | E6: 35 | F6: PHI | G6: NL | H6: SP | I6: 0.79 | J6: Y | K6: 161.8 | L6: 12 | M6: 29 | N6: 29 | O6: 0 | P6: 0 | Q6: 0 | R6: 1 | S6: 619 | T6: 17 | U6: 43 | V6: 0 | W6: 170 | X6: 499 | Y6: 132 | Z6: 32 | AA6: 28 | AB6: 6 | AC6: 0 | AD6: 60 | AE6: 3.56 | AF6: 116 | AG6: 6.5 | AH6: 4 | AI6: 9.5 | AJ6: 2.4 | AK6: 0.98 | AL6: 0.273 | AM6: 1.1 | AN6: 1.36 | AO6: 0.06 | AP6: 126 | AQ6: 86 | AR6: 77 | AS6: 43 | AT6: 37.45 | AU6: 9 | AV6: 4 | AW6: -0.17 | AX6: SP | AY6: 133.6 | AZ6: 3.33 | BA6: 63 | BB6: 85 | BC6: SP | BD6: 110.9 | BE6: 3.39 | BF6: 70 | BG6: 73 | BH6: 200 | BI6: 2.57 | BJ6: 3.11 | BK6: 131 | BL6: 0.99 | BM6: -54 | BN6: R | BO6: -89 | BP6: wheelza01 | BQ6: 554430 | BR6: Aging Commanding Starter | BS6: Sonny Gray | BT6: Luis Castillo | BU6: Tyler Glasnow | BV6: Should perform close to forecast. Expected to play regularly. Building case for HOF.
A7: Gray | B7: Sonny | C7: R | D7: 2025 | E7: 35 | F7: SLN | G7: NL | H7: SP | I7: 0.77 | J7: Y | K7: 151.1 | L7: 10 | M7: 26 | N7: 25 | O7: 0 | P7: 0 | Q7: 0 | R7: 0 | S7: 545 | T7: 14 | U7: 39 | V7: 0 | W7: 141 | X7: 415 | Y7: 125 | Z7: 32 | AA7: 22 | AB7: 4 | AC7: 1 | AD7: 59 | AE7: 3.52 | AF7: 111 | AG7: 7.3 | AH7: 3.6 | AI7: 9.3 | AJ7: 2.6 | AK7: 0.91 | AL7: 0.279 | AM7: 1.16 | AN7: 1.3 | AO7: 0.05 | AP7: 115 | AQ7: 85 | AR7: 75 | AS7: 38 | AT7: 31.06 | AU7: 11 | AV7: 5 | AW7: -0.05 | AX7: SP | AY7: 123.1 | AZ7: 3.3 | BA7: 62 | BB7: 84 | BC7: SP | BD7: 101.3 | BE7: 3.47 | BF7: 72 | BG7: 65 | BH7: 166.3 | BI7: 3.84 | BJ7: 3.07 | BK7: 122 | BL7: -0.32 | BM7: -48 | BN7: R | BO7: -65 | BP7: grayso01 | BQ7: 543243 | BR7: Aging Commanding Starter | BS7: Zack Wheeler | BT7: Luis Castillo | BU7: Reynaldo Lopez | BV7: Should perform close to forecast. Expected to play regularly. Star player, must have.
A8: Cease | B8: Dylan | C8: R | D8: 2025 | E8: 29 | F8: SDN | G8: NL | H8: SP | I8: 0.79 | J8: Y | K8: 160.8 | L8: 11 | M8: 30 | N8: 29 | O8: 1 | P8: 1 | Q8: 0 | R8: 1 | S8: 600 | T8: 17 | U8: 61 | V8: 1 | W8: 190 | X8: 497 | Y8: 136 | Z8: 32 | AA8: 33 | AB8: 4 | AC8: 0 | AD8: 68 | AE8: 3.61 | AF8: 130 | AG8: 7.5 | AH8: 3.1 | AI8: 11 | AJ8: 3.6 | AK8: 1 | AL8: 0.302 | AM8: 1.27 | AN8: 1.5 | AO8: 0.07 | AP8: 164 | AQ8: 87 | AR8: 73 | AS8: 41 | AT8: 33.6 | AU8: 12 | AV8: 6 | AW8: -0.19 | AX8: SP | AY8: 134.7 | AZ8: 3.41 | BA8: 64 | BB8: 80 | BC8: SP | BD8: 113.2 | BE8: 3.42 | BF8: 71 | BG8: 72 | BH8: 189.3 | BI8: 3.47 | BJ8: 3.1 | BK8: 128 | BL8: 0.14 | BM8: -55 | BN8: R | BO8: -76 | BP8: ceasedy01 | BQ8: 656302 | BR8: Righty Serious Heat Top Starter | BS8: Mitch Keller | BT8: Zac Gallen | BU8: Kevin Gausman | BV8: Approaching his prime years. Expected to play regularly. Star player, must have.
A9: Imanaga | B9: Shota | C9: L | D9: 2025 | E9: 31 | F9: CHN | G9: NL | H9: SP | I9: 0.78 | J9: Y | K9: 148 | L9: 10 | M9: 26 | N9: 26 | O9: 0 | P9: 0 | Q9: 0 | R9: 0 | S9: 602 | T9: 22 | U9: 29 | V9: 0 | W9: 146 | X9: 448 | Y9: 120 | Z9: 33 | AA9: 3 | AB9: 3 | AC9: 0 | AD9: 54 | AE9: 3.65 | AF9: 97 | AG9: 5.9 | AH9: 5.1 | AI9: 8.8 | AJ9: 1.8 | AK9: 1.34 | AL9: 0.268 | AM9: 1.07 | AN9: 1.69 | AO9: 0.08 | AP9: 98 | AQ9: 88 | AR9: 66 | AS9: 36 | AT9: 31.91 | AU9: 15 | AV9: 7 | AW9: 0.16 | AX9: SP | AY9: 126.5 | AZ9: 3.73 | BA9: 70 | BB9: 59 | BC9: SP | BD9: 108.5 | BE9: 3.81 | BF9: 79 | BG9: 50 | BH9: 173.3 | BI9: 2.91 | BJ9: 3.66 | BK9: 75 | BL9: 0.74 | BM9: -9 | BN9: R | BO9: -65 | BP9: imanash01 | BQ9: 684007 | BR9: Lefty Commanding Starter | BS9: Nestor Cortes Jr. | BT9: Tarik Skubal | BU9: Zach Eflin | BV9: In prime. Expected to play regularly. All-star, health permitting.
A10: Webb | B10: Logan | C10: R | D10: 2025 | E10: 28 | F10: SFN | G10: NL | H10: SP | I10: 0.8 | J10: Y | K10: 173.2 | L10: 12 | M10: 29 | N10: 29 | O10: 1 | P10: 1 | Q10: 0 | R10: 0 | S10: 633 | T10: 14 | U10: 42 | V10: 1 | W10: 162 | X10: 546 | Y10: 171 | Z10: 34 | AA10: 27 | AB10: 3 | AC10: 0 | AD10: 63 | AE10: 3.83 | AF10: 143 | AG10: 7.7 | AH10: 3.9 | AI10: 8.6 | AJ10: 2.2 | AK10: 0.78 | AL10: 0.316 | AM10: 1.27 | AN10: 1.11 | AO10: 0.04 | AP10: 95 | AQ10: 93 | AR10: 65 | AS10: 40 | AT10: 33.31 | AU10: 16 | AV10: 8 | AW10: -0.55 | AX10: SP | AY10: 145 | AZ10: 3.23 | BA10: 61 | BB10: 98 | BC10: SP | BD10: 122.6 | BE10: 3.28 | BF10: 68 | BG10: 86 | BH10: 204.7 | BI10: 3.47 | BJ10: 3 | BK10: 147 | BL10: 0.35 | BM10: -83 | BN10: R | BO10: -82 | BP10: webblo01 | BQ10: 657277 | BR10: Righty Commanding Top Starter | BS10: Mitch Keller | BT10: Kevin Gausman | BU10: Aaron Nola | BV10: Should perform close to forecast. Expected to play regularly. Has all-star level talent.
A11: King | B11: Michael | C11: R | D11: 2025 | E11: 29 | F11: SDN | G11: NL | H11: SP | I11: 0.72 | J11: Y | K11: 156.7 | L11: 11 | M11: 26 | N11: 26 | O11: 0 | P11: 0 | Q11: 0 | R11: 0 | S11: 586 | T11: 15 | U11: 50 | V11: 1 | W11: 168 | X11: 443 | Y11: 124 | Z11: 34 | AA11: 15 | AB11: 6 | AC11: 0 | AD11: 57 | AE11: 3.75 | AF11: 124 | AG11: 7.7 | AH11: 3.4 | AI11: 10.3 | AJ11: 3.1 | AK11: 0.93 | AL11: 0.289 | AM11: 1.2 | AN11: 1.37 | AO11: 0.06 | AP11: 145 | AQ11: 91 | AR11: 63 | AS11: 36 | AT11: 32.16 | AU11: 17 | AV11: 9 | AW11: -0.25 | AX11: SP | AY11: 131.3 | AZ11: 3.37 | BA11: 63 | BB11: 82 | BC11: SP | BD11: 110.9 | BE11: 3.5 | BF11: 72 | BG11: 66 | BH11: 173.7 | BI11: 2.95 | BJ11: 3.29 | BK11: 103 | BL11: 0.8 | BM11: -40 | BN11: R | BO11: -63 | BP11: kingmi01 | BQ11: 650633 | BR11: Righty Commanding Swing Starter | BS11: Reynaldo Lopez | BT11: Freddy Peralta | BU11: Corbin Burnes | BV11: Approaching his prime years. Expected to play regularly. Has all-star level talent.
A12: Nola | B12: Aaron | C12: R | D12: 2025 | E12: 32 | F12: PHI | G12: NL | H12: SP | I12: 0.8 | J12: Y | K12: 153.7 | L12: 11 | M12: 29 | N12: 29 | O12: 1 | P12: 0 | Q12: 0 | R12: 0 | S12: 615 | T12: 24 | U12: 42 | V12: 0 | W12: 169 | X12: 510 | Y12: 154 | Z12: 35 | AA12: 30 | AB12: 2 | AC12: 0 | AD12: 70 | AE12: 3.85 | AF12: 124 | AG12: 6.9 | AH12: 4.1 | AI12: 9.4 | AJ12: 2.3 | AK12: 1.35 | AL12: 0.297 | AM12: 1.23 | AN12: 1.76 | AO12: 0.08 | AP12: 106 | AQ12: 93 | AR12: 62 | AS12: 38 | AT12: 33.38 | AU12: 18 | AV12: 10 | AW12: -0.08 | AX12: SP | AY12: 130.7 | AZ12: 3.8 | BA12: 71 | BB12: 56 | BC12: SP | BD12: 111.3 | BE12: 3.77 | BF12: 78 | BG12: 53 | BH12: 199.3 | BI12: 3.57 | BJ12: 3.85 | BK12: 72 | BL12: 0.28 | BM12: -10 | BN12: R | BO12: -88 | BP12: nolaaa01 | BQ12: 605400 | BR12: Righty Commanding Top Starter | BS12: Mitch Keller | BT12: Kevin Gausman | BU12: Gerrit Cole | BV12: Should perform close to forecast. Expected to play regularly. Has all-star level talent.
A13: Lopez | B13: Reynaldo | C13: R | D13: 2025 | E13: 31 | F13: ATL | G13: NL | H13: SP | I13: 0.67 | J13: Y | K13: 136.2 | L13: 9 | M13: 22 | N13: 22 | O13: 0 | P13: 0 | Q13: 0 | R13: 0 | S13: 430 | T13: 10 | U13: 38 | V13: 1 | W13: 120 | X13: 340 | Y13: 100 | Z13: 33 | AA13: 12 | AB13: 3 | AC13: 1 | AD13: 38 | AE13: 3.62 | AF13: 103 | AG13: 8.5 | AH13: 3.2 | AI13: 9.8 | AJ13: 3.1 | AK13: 0.85 | AL13: 0.278 | AM13: 1.2 | AN13: 1.3 | AO13: 0.05 | AP13: 127 | AQ13: 87 | AR13: 62 | AS13: 31 | AT13: 24.81 | AU13: 19 | AV13: 11 | AW13: -0.13 | AX13: SP | AY13: 105.5 | AZ13: 3.35 | BA13: 63 | BB13: 74 | BC13: SP | BD13: 84.7 | BE13: 3.49 | BF13: 72 | BG13: 58 | BH13: 135.7 | BI13: 1.99 | BJ13: 2.95 | BK13: 125 | BL13: 1.63 | BM13: -63 | BN13: R | BO13: -51 | BP13: lopezre01 | BQ13: 625643 | BR13: Righty Power Swing Starter | BS13: Michael King | BT13: Corbin Burnes | BU13: Tyler Glasnow | BV13: In prime. Expected to play regularly. All-star hopeful.
A14: Sanchez | B14: Cristopher | C14: L | D14: 2025 | E14: 28 | F14: PHI | G14: NL | H14: SP | I14: 0.72 | J14: Y | K14: 169.8 | L14: 11 | M14: 26 | N14: 26 | O14: 2 | P14: 1 | Q14: 0 | R14: 0 | S14: 672 | T14: 16 | U14: 40 | V14: 1 | W14: 142 | X14: 471 | Y14: 147 | Z14: 35 | AA14: 22 | AB14: 4 | AC14: 1 | AD14: 69 | AE14: 3.91 | AF14: 125 | AG14: 7.1 | AH14: 3.5 | AI14: 8.1 | AJ14: 2.3 | AK14: 0.9 | AL14: 0.287 | AM14: 1.2 | AN14: 1.25 | AO14: 0.05 | AP14: 71 | AQ14: 95 | AR14: 58 | AS14: 36 | AT14: 31.45 | AU14: 23 | AV14: 12 | AW14: -0.4 | AX14: SP | AY14: 145.1 | AZ14: 3.52 | BA14: 66 | BB14: 76 | BC14: SP | BD14: 124.6 | BE14: 3.51 | BF14: 73 | BG14: 70 | BH14: 181.7 | BI14: 3.32 | BJ14: 3.13 | BK14: 122 | BL14: 0.59 | BM14: -64 | BN14: R | BO14: -57 | BP14: sanchcr01 | BQ14: 650911 | BR14: Lefty Commanding Top Starter | BS14: Max Fried | BT14: Ranger Suarez | BU14: Framber Valdez | BV14: Should perform close to forecast. Expected to play regularly. All-star hopeful.
A15: Peralta | B15: Freddy | C15: R | D15: 2025 | E15: 29 | F15: MIL | G15: NL | H15: SP | I15: 0.76 | J15: Y | K15: 157.4 | L15: 11 | M15: 29 | N15: 28 | O15: 0 | P15: 0 | Q15: 0 | R15: 0 | S15: 667 | T15: 22 | U15: 53 | V15: 0 | W15: 172 | X15: 456 | Y15: 128 | Z15: 35 | AA15: 30 | AB15: 8 | AC15: 1 | AD15: 75 | AE15: 3.94 | AF15: 118 | AG15: 6.8 | AH15: 3.2 | AI15: 10 | AJ15: 3.1 | AK15: 1.25 | AL15: 0.261 | AM15: 1.15 | AN15: 1.73 | AO15: 0.08 | AP15: 114 | AQ15: 95 | AR15: 57 | AS15: 35 | AT15: 35.16 | AU15: 24 | AV15: 13 | AW15: -0.11 | AX15: SP | AY15: 136.2 | AZ15: 3.86 | BA15: 72 | BB15: 56 | BC15: SP | BD15: 117.9 | BE15: 3.83 | BF15: 79 | BG15: 52 | BH15: 173.7 | BI15: 3.68 | BJ15: 4.06 | BK15: 57 | BL15: 0.26 | BM15: 1 | BN15: R | BO15: -56 | BP15: peralfr01 | BQ15: 642547 | BR15: Righty Serious Heat Starter | BS15: Jack Flaherty | BT15: Brady Singer | BU15: Corbin Burnes | BV15: Approaching his prime years. Expected to play regularly. All-star hopeful.
A16: Steele | B16: Justin | C16: L | D16: 2025 | E16: 29 | F16: CHN | G16: NL | H16: SP | I16: 0.74 | J16: Y | K16: 136.7 | L16: 9 | M16: 23 | N16: 21 | O16: 0 | P16: 0 | Q16: 0 | R16: 0 | S16: 433 | T16: 11 | U16: 33 | V16: 0 | W16: 118 | X16: 354 | Y16: 120 | Z16: 34 | AA16: 24 | AB16: 4 | AC16: 0 | AD16: 50 | AE16: 3.78 | AF16: 110 | AG16: 8.9 | AH16: 3.6 | AI16: 9.5 | AJ16: 2.6 | AK16: 0.9 | AL16: 0.295 | AM16: 1.25 | AN16: 1.29 | AO16: 0.05 | AP16: 119 | AQ16: 91 | AR16: 56 | AS16: 30 | AT16: 24.64 | AU16: 25 | AV16: 14 | AW16: -0.19 | AX16: SP | AY16: 108.9 | AZ16: 3.41 | BA16: 64 | BB16: 71 | BC16: SP | BD16: 88.3 | BE16: 3.58 | BF16: 74 | BG16: 55 | BH16: 134.7 | BI16: 3.07 | BJ16: 3.29 | BK16: 89 | BL16: 0.7 | BM16: -33 | BN16: R | BO16: -46 | BP16: steelju01 | BQ16: 657006 | BR16: Lefty Commanding Top Starter | BS16: Cole Ragans | BT16: Tarik Skubal | BU16: Mitchell Parker | BV16: Approaching his prime years. Expected to play regularly. All-star hopeful.
A17: Suarez | B17: Ranger | C17: L | D17: 2025 | E17: 29 | F17: PHI | G17: NL | H17: SP | I17: 0.74 | J17: Y | K17: 134.4 | L17: 9 | M17: 23 | N17: 23 | O17: 1 | P17: 1 | Q17: 0 | R17: 0 | S17: 466 | T17: 13 | U17: 41 | V17: 0 | W17: 120 | X17: 384 | Y17: 133 | Z17: 34 | AA17: 21 | AB17: 4 | AC17: 1 | AD17: 54 | AE17: 3.81 | AF17: 120 | AG17: 9.1 | AH17: 2.9 | AI17: 9 | AJ17: 3.1 | AK17: 1.01 | AL17: 0.307 | AM17: 1.37 | AN17: 1.47 | AO17: 0.06 | AP17: 87 | AQ17: 92 | AR17: 56 | AS17: 32 | AT17: 22.82 | AU17: 26 | AV17: 15 | AW17: -0.03 | AX17: SP | AY17: 109.4 | AZ17: 3.7 | BA17: 69 | BB17: 55 | BC17: SP | BD17: 90.4 | BE17: 3.77 | BF17: 78 | BG17: 47 | BH17: 150.7 | BI17: 3.46 | BJ17: 3.39 | BK17: 86 | BL17: 0.34 | BM17: -30 | BN17: R | BO17: -60 | BP17: suarera01 | BQ17: 624133 | BR17: Lefty Power Top Starter | BS17: Max Fried | BT17: Cristopher Sanchez | BU17: Framber Valdez | BV17: Approaching his prime years. Expected to play regularly.
A18: Fried | B18: Max | C18: L | D18: 2025 | E18: 31 | F18: ATL | G18: NL | H18: SP | I18: 0.74 | J18: Y | K18: 144.6 | L18: 10 | M18: 25 | N18: 25 | O18: 2 | P18: 1 | Q18: 0 | R18: 0 | S18: 487 | T18: 13 | U18: 42 | V18: 0 | W18: 137 | X18: 437 | Y18: 127 | Z18: 35 | AA18: 13 | AB18: 4 | AC18: 0 | AD18: 49 | AE18: 3.87 | AF18: 117 | AG18: 8 | AH18: 3.3 | AI18: 9.3 | AJ18: 2.9 | AK18: 0.88 | AL18: 0.304 | AM18: 1.27 | AN18: 1.29 | AO18: 0.05 | AP18: 105 | AQ18: 94 | AR18: 54 | AS18: 31 | AT18: 26.16 | AU18: 28 | AV18: 16 | AW18: -0.24 | AX18: SP | AY18: 114.6 | AZ18: 3.52 | BA18: 66 | BB18: 66 | BC18: SP | BD18: 93.2 | BE18: 3.63 | BF18: 75 | BG18: 54 | BH18: 174.3 | BI18: 3.25 | BJ18: 3.41 | BK18: 92 | BL18: 0.62 | BM18: -39 | BN18: R | BO18: -81 | BP18: friedma01 | BQ18: 608331 | BR18: Lefty Commanding Top Starter | BS18: Ranger Suarez | BT18: Cristopher Sanchez | BU18: Gavin Stone | BV18: In prime. Expected to play regularly.
A19: Gallen | B19: Zac | C19: R | D19: 2025 | E19: 30 | F19: ARI | G19: NL | H19: SP | I19: 0.78 | J19: Y | K19: 140.6 | L19: 9 | M19: 23 | N19: 23 | O19: 0 | P19: 0 | Q19: 0 | R19: 1 | S19: 467 | T19: 13 | U19: 38 | V19: 0 | W19: 131 | X19: 385 | Y19: 125 | Z19: 35 | AA19: 27 | AB19: 4 | AC19: 0 | AD19: 56 | AE19: 3.91 | AF19: 113 | AG19: 8.4 | AH19: 3.5 | AI19: 9.7 | AJ19: 2.8 | AK19: 0.96 | AL19: 0.289 | AM19: 1.23 | AN19: 1.38 | AO19: 0.06 | AP19: 119 | AQ19: 95 | AR19: 53 | AS19: 32 | AT19: 27.31 | AU19: 32 | AV19: 17 | AW19: -0.32 | AX19: SP | AY19: 113.4 | AZ19: 3.45 | BA19: 65 | BB19: 70 | BC19: SP | BD19: 92.8 | BE19: 3.59 | BF19: 74 | BG19: 55 | BH19: 148 | BI19: 3.65 | BJ19: 3.39 | BK19: 86 | BL19: 0.26 | BM19: -32 | BN19: R | BO19: -55 | BP19: galleza01 | BQ19: 668678 | BR19: Righty Commanding Top Starter | BS19: Pablo Lopez | BT19: Mitch Keller | BU19: Bailey Ober | BV19: In prime. Expected to play regularly.
A20: Greene | B20: Hunter | C20: R | D20: 2025 | E20: 25 | F20: CIN | G20: NL | H20: SP | I20: 0.73 | J20: Y | K20: 142.7 | L20: 9 | M20: 22 | N20: 22 | O20: 0 | P20: 0 | Q20: 0 | R20: 0 | S20: 549 | T20: 17 | U20: 52 | V20: 0 | W20: 161 | X20: 409 | Y20: 118 | Z20: 36 | AA20: 27 | AB20: 12 | AC20: 1 | AD20: 62 | AE20: 3.95 | AF20: 114 | AG20: 7.8 | AH20: 3.1 | AI20: 11 | AJ20: 3.6 | AK20: 1.18 | AL20: 0.279 | AM20: 1.23 | AN20: 1.71 | AO20: 0.08 | AP20: 151 | AQ20: 96 | AR20: 53 | AS20: 32 | AT20: 29.63 | AU20: 33 | AV20: 18 | AW20: -0.15 | AX20: SP | AY20: 120.9 | AZ20: 3.74 | BA20: 70 | BB20: 57 | BC20: SP | BD20: 103.3 | BE20: 3.8 | BF20: 78 | BG20: 49 | BH20: 150.3 | BI20: 2.75 | BJ20: 3.48 | BK20: 80 | BL20: 1.2 | BM20: -27 | BN20: R | BO20: -47 | BP20: greenhu01 | BQ20: 668881 | BR20: Young Serious Heat Swing Starter | BS20: Spencer Arrighetti | BT20: Taj Bradley | BU20: Hunter Brown | BV20: Should perform close to forecast. Expected to play regularly.
A21: Keller | B21: Mitch | C21: R | D21: 2025 | E21: 29 | F21: PIT | G21: NL | H21: SP | I21: 0.78 | J21: Y | K21: 148.6 | L21: 10 | M21: 27 | N21: 27 | O21: 1 | P21: 0 | Q21: 0 | R21: 0 | S21: 597 | T21: 19 | U21: 46 | V21: 0 | W21: 152 | X21: 467 | Y21: 157 | Z21: 36 | AA21: 29 | AB21: 9 | AC21: 1 | AD21: 72 | AE21: 4.05 | AF21: 133 | AG21: 8 | AH21: 3.3 | AI21: 9.1 | AJ21: 2.8 | AK21: 1.17 | AL21: 0.309 | AM21: 1.34 | AN21: 1.6 | AO21: 0.07 | AP21: 88 | AQ21: 98 | AR21: 52 | AS21: 33 | AT21: 28.08 | AU21: 34 | AV21: 19 | AW21: -0.13 | AX21: SP | AY21: 128.2 | AZ21: 3.85 | BA21: 72 | BB21: 54 | BC21: SP | BD21: 110.1 | BE21: 3.92 | BF21: 81 | BG21: 46 | BH21: 178 | BI21: 4.25 | BJ21: 3.99 | BK21: 60 | BL21: -0.19 | BM21: -8 | BN21: R | BO21: -68 | BP21: kellemi03 | BQ21: 656605 | BR21: Righty Commanding Top Starter | BS21: Aaron Nola | BT21: Logan Webb | BU21: Kevin Gausman | BV21: Approaching his prime years. Expected to play regularly.
A22: Pfaadt | B22: Brandon | C22: R | D22: 2025 | E22: 26 | F22: ARI | G22: NL | H22: SP | I22: 0.75 | J22: Y | K22: 159.8 | L22: 10 | M22: 27 | N22: 27 | O22: 0 | P22: 0 | Q22: 0 | R22: 0 | S22: 685 | T22: 25 | U22: 43 | V22: 1 | W22: 165 | X22: 486 | Y22: 161 | Z22: 37 | AA22: 27 | AB22: 5 | AC22: 0 | AD22: 89 | AE22: 4.11 | AF22: 119 | AG22: 6.6 | AH22: 3.9 | AI22: 9.2 | AJ22: 2.4 | AK22: 1.37 | AL22: 0.303 | AM22: 1.27 | AN22: 1.79 | AO22: 0.08 | AP22: 90 | AQ22: 99 | AR22: 51 | AS22: 34 | AT22: 30.6 | AU22: 35 | AV22: 20 | AW22: -0.35 | AX22: SP | AY22: 143.8 | AZ22: 3.82 | BA22: 72 | BB22: 59 | BC22: SP | BD22: 127.6 | BE22: 3.76 | BF22: 77 | BG22: 58 | BH22: 181.7 | BI22: 4.71 | BJ22: 3.52 | BK22: 86 | BL22: -0.6 | BM22: -35 | BN22: R | BO22: -54 | BP22: pfaadbr01 | BQ22: 694297 | BR22: Young Commanding Swing Starter | BS22: Bryce Miller | BT22: Tobias Myers | BU22: Tanner Bibee | BV22: Should perform close to forecast. Expected to play regularly.
A23: Manaea | B23: Sean | C23: L | D23: 2025 | E23: 33 | F23: NYN | G23: NL | H23: SP | I23: 0.76 | J23: Y | K23: 131.8 | L23: 10 | M23: 27 | N23: 27 | O23: 0 | P23: 0 | Q23: 0 | R23: 0 | S23: 524 | T23: 19 | U23: 51 | V23: 0 | W23: 146 | X23: 448 | Y23: 127 | Z23: 36 | AA23: 23 | AB23: 7 | AC23: 0 | AD23: 60 | AE23: 4.01 | AF23: 112 | AG23: 7.4 | AH23: 2.8 | AI23: 9.5 | AJ23: 3.4 | AK23: 1.25 | AL23: 0.286 | AM23: 1.29 | AN23: 1.77 | AO23: 0.08 | AP23: 90 | AQ23: 97 | AR23: 50 | AS23: 31 | AT23: 26.73 | AU23: 36 | AV23: 21 | AW23: -0.01 | AX23: SP | AY23: 108.8 | AZ23: 3.94 | BA23: 74 | BB23: 45 | BC23: SP | BD23: 90.7 | BE23: 4 | BF23: 83 | BG23: 39 | BH23: 181.7 | BI23: 3.47 | BJ23: 3.84 | BK23: 68 | BL23: 0.54 | BM23: -18 | BN23: R | BO23: -91 | BP23: manaese01 | BQ23: 640455 | BR23: Lefty Power Swing Starter | BS23: Andrew Heaney | BT23: Carlos Rodon | BU23: Yusei Kikuchi | BV23: Should perform close to forecast. Expected to play regularly.
A24: Myers | B24: Tobias | C24: R | D24: 2025 | E24: 26 | F24: MIL | G24: NL | H24: SP | I24: 0.73 | J24: Y | K24: 135.3 | L24: 9 | M24: 23 | N24: 22 | O24: 0 | P24: 0 | Q24: 0 | R24: 0 | S24: 524 | T24: 17 | U24: 35 | V24: 0 | W24: 121 | X24: 380 | Y24: 115 | Z24: 35 | AA24: 3 | AB24: 5 | AC24: 3 | AD24: 50 | AE24: 3.92 | AF24: 105 | AG24: 7.5 | AH24: 3.5 | AI24: 8.7 | AJ24: 2.5 | AK24: 1.19 | AL24: 0.28 | AM24: 1.2 | AN24: 1.6 | AO24: 0.07 | AP24: 79 | AQ24: 95 | AR24: 50 | AS24: 28 | AT24: 24.58 | AU24: 38 | AV24: 22 | AW24: -0.04 | AX24: SP | AY24: 114.6 | AZ24: 3.82 | BA24: 72 | BB24: 51 | BC24: SP | BD24: 98.3 | BE24: 3.89 | BF24: 80 | BG24: 45 | BH24: 138 | BI24: 3 | BJ24: 3.86 | BK24: 56 | BL24: 0.92 | BM24: -6 | BN24: R | BO24: -40 | BP24: myersto01 | BQ24: 668964 | BR24: Young Commanding Starter | BS24: Bryce Miller | BT24: Brandon Pfaadt | BU24: Tanner Bibee | BV24: Should perform close to forecast. Expected to play regularly.
A25: Gore | B25: MacKenzie | C25: L | D25: 2025 | E25: 26 | F25: WAS | G25: NL | H25: SP | I25: 0.74 | J25: Y | K25: 154.6 | L25: 10 | M25: 30 | N25: 28 | O25: 0 | P25: 0 | Q25: 0 | R25: 5 | S25: 650 | T25: 20 | U25: 59 | V25: 0 | W25: 165 | X25: 458 | Y25: 153 | Z25: 37 | AA25: 32 | AB25: 7 | AC25: 0 | AD25: 81 | AE25: 4.16 | AF25: 143 | AG25: 8.5 | AH25: 2.8 | AI25: 9.8 | AJ25: 3.5 | AK25: 1.16 | AL25: 0.309 | AM25: 1.38 | AN25: 1.68 | AO25: 0.07 | AP25: 97 | AQ25: 101 | AR25: 49 | AS25: 31 | AT25: 27.46 | AU25: 40 | AV25: 23 | AW25: -0.34 | AX25: SP | AY25: 136.7 | AZ25: 3.89 | BA25: 73 | BB25: 54 | BC25: SP | BD25: 120 | BE25: 3.81 | BF25: 79 | BG25: 53 | BH25: 166.3 | BI25: 3.9 | BJ25: 3.56 | BK25: 79 | BL25: 0.26 | BM25: -31 | BN25: R | BO25: -46 | BP25: gorema01 | BQ25: 669022 | BR25: Young Lefty Power Starter | BS25: Mitchell Parker | BT25: Andrew Abbott | BU25: Kyle Harrison | BV25: Should perform close to forecast. Expected to play regularly.
A26: Taillon | B26: Jameson | C26: R | D26: 2025 | E26: 33 | F26: CHN | G26: NL | H26: SP | I26: 0.77 | J26: Y | K26: 124.5 | L26: 9 | M26: 26 | N26: 25 | O26: 0 | P26: 0 | Q26: 0 | R26: 0 | S26: 487 | T26: 20 | U26: 34 | V26: 0 | W26: 116 | X26: 420 | Y26: 138 | Z26: 37 | AA26: 29 | AB26: 3 | AC26: 1 | AD26: 59 | AE26: 4.1 | AF26: 112 | AG26: 7.8 | AH26: 3.4 | AI26: 8 | AJ26: 2.3 | AK26: 1.38 | AL26: 0.292 | AM26: 1.29 | AN26: 1.79 | AO26: 0.08 | AP26: 53 | AQ26: 99 | AR26: 46 | AS26: 28 | AT26: 23.94 | AU26: 47 | AV26: 24 | AW26: 0 | AX26: LP | AY26: 98.5 | AZ26: 4.08 | BA26: 77 | BB26: 38 | BC26: SP | BD26: 82.9 | BE26: 4.1 | BF26: 85 | BG26: 34 | BH26: 165.3 | BI26: 3.27 | BJ26: 3.89 | BK26: 61 | BL26: 0.84 | BM26: -15 | BN26: R | BO26: -82 | BP26: taillja01 | BQ26: 592791 | BR26: Righty Commanding Starter | BS26: Miles Mikolas | BT26: Zack Littell | BU26: Luis Castillo | BV26: Should perform close to forecast. Expected to play regularly.
A27: Severino | B27: Luis | C27: R | D27: 2025 | E27: 31 | F27: NYN | G27: NL | H27: SP | I27: 0.73 | J27: Y | K27: 133.3 | L27: 10 | M27: 26 | N27: 26 | O27: 1 | P27: 1 | Q27: 0 | R27: 0 | S27: 585 | T27: 23 | U27: 51 | V27: 0 | W27: 138 | X27: 456 | Y27: 142 | Z27: 38 | AA27: 27 | AB27: 7 | AC27: 2 | AD27: 72 | AE27: 4.18 | AF27: 121 | AG27: 7.5 | AH27: 2.7 | AI27: 8.6 | AJ27: 3.2 | AK27: 1.41 | AL27: 0.293 | AM27: 1.35 | AN27: 1.92 | AO27: 0.08 | AP27: 57 | AQ27: 101 | AR27: 45 | AS27: 29 | AT27: 24.54 | AU27: 49 | AV27: 25 | AW27: 0.05 | AX27: SP | AY27: 115.3 | AZ27: 4.29 | BA27: 81 | BB27: 36 | BC27: SP | BD27: 99.3 | BE27: 4.23 | BF27: 87 | BG27: 34 | BH27: 182 | BI27: 3.91 | BJ27: 4.17 | BK27: 54 | BL27: 0.27 | BM27: -9 | BN27: R | BO27: -83 | BP27: severlu01 | BQ27: 622663 | BR27: Righty Power Top Starter | BS27: Ronel Blanco | BT27: Gavin Stone | BU27: Tanner Houck | BV27: In prime. Expected to play regularly.
A28: Parker | B28: Mitchell | C28: L | D28: 2025 | E28: 25 | F28: WAS | G28: NL | H28: SP | I28: 0.75 | J28: Y | K28: 148.1 | L28: 9 | M28: 26 | N28: 25 | O28: 0 | P28: 0 | Q28: 0 | R28: 0 | S28: 599 | T28: 17 | U28: 41 | V28: 0 | W28: 131 | X28: 423 | Y28: 135 | Z28: 37 | AA28: 6 | AB28: 3 | AC28: 0 | AD28: 71 | AE28: 4.15 | AF28: 111 | AG28: 7.1 | AH28: 3.2 | AI28: 8.4 | AJ28: 2.6 | AK28: 1.11 | AL28: 0.299 | AM28: 1.29 | AN28: 1.53 | AO28: 0.06 | AP28: 66 | AQ28: 100 | AR28: 45 | AS28: 28 | AT28: 24.11 | AU28: 52 | AV28: 26 | AW28: -0.26 | AX28: SP | AY28: 129.7 | AZ28: 3.83 | BA28: 72 | BB28: 55 | BC28: SP | BD28: 113.5 | BE28: 3.9 | BF28: 80 | BG28: 48 | BH28: 151 | BI28: 4.29 | BJ28: 3.85 | BK28: 60 | BL28: -0.14 | BM28: -15 | BN28: R | BO28: -37 | BP28: parkemi01 | BQ28: 680730 | BR28: Young Lefty Super Control Starter | BS28: MacKenzie Gore | BT28: JP Sears | BU28: Nestor Cortes Jr. | BV28: Should perform close to forecast. Expected to play regularly.
A29: Irvin | B29: Jake | C29: R | D29: 2025 | E29: 28 | F29: WAS | G29: NL | H29: SP | I29: 0.76 | J29: Y | K29: 145.8 | L29: 10 | M29: 28 | N29: 28 | O29: 0 | P29: 0 | Q29: 0 | R29: 0 | S29: 679 | T29: 25 | U29: 53 | V29: 1 | W29: 140 | X29: 486 | Y29: 149 | Z29: 40 | AA29: 29 | AB29: 6 | AC29: 1 | AD29: 82 | AE29: 4.42 | AF29: 124 | AG29: 7 | AH29: 2.6 | AI29: 7.9 | AJ29: 3 | AK29: 1.39 | AL29: 0.272 | AM29: 1.28 | AN29: 1.87 | AO29: 0.08 | AP29: 39 | AQ29: 107 | AR29: 42 | AS29: 28 | AT29: 28.23 | AU29: 56 | AV29: 27 | AW29: -0.15 | AX29: SP | AY29: 129.3 | AZ29: 4.32 | BA29: 81 | BB29: 39 | BC29: SP | BD29: 114.2 | BE29: 4.27 | BF29: 88 | BG29: 37 | BH29: 187.7 | BI29: 4.41 | BJ29: 4.32 | BK29: 50 | BL29: 0.01 | BM29: -9 | BN29: R | BO29: -73 | BP29: irvinja01 | BQ29: 663623 | BR29: Righty Control Swing Starter | BS29: Griffin Canning | BT29: Ryan Feltner | BU29: Aaron Civale | BV29: Should perform close to forecast. Expected to play regularly.
A30: Mikolas | B30: Miles | C30: R | D30: 2025 | E30: 36 | F30: SLN | G30: NL | H30: SP | I30: 0.79 | J30: Y | K30: 124.2 | L30: 9 | M30: 26 | N30: 26 | O30: 0 | P30: 0 | Q30: 0 | R30: 0 | S30: 496 | T30: 19 | U30: 29 | V30: 0 | W30: 102 | X30: 425 | Y30: 155 | Z30: 39 | AA30: 29 | AB30: 4 | AC30: 0 | AD30: 69 | AE30: 4.33 | AF30: 112 | AG30: 7.7 | AH30: 3.5 | AI30: 6.9 | AJ30: 2 | AK30: 1.32 | AL30: 0.303 | AM30: 1.34 | AN30: 1.69 | AO30: 0.07 | AP30: 30 | AQ30: 105 | AR30: 40 | AS30: 26 | AT30: 21.59 | AU30: 64 | AV30: 28 | AW30: -0.14 | AX30: LP | AY30: 99.5 | AZ30: 4.15 | BA30: 78 | BB30: 37 | BC30: SP | BD30: 83.7 | BE30: 4.19 | BF30: 86 | BG30: 32 | BH30: 171.7 | BI30: 5.35 | BJ30: 4.15 | BK30: 53 | BL30: -1.02 | BM30: -13 | BN30: R | BO30: -88 | BP30: mikolmi01 | BQ30: 571945 | BR30: Aging Commanding Top Starter | BS30: Jameson Taillon | BT30: Jon Gray | BU30: Trevor Williams | BV30: Should perform close to forecast. Expected to play regularly.
A31: Morton | B31: Charlie | C31: R | D31: 2025 | E31: 41 | F31: ATL | G31: NL | H31: SP | I31: 0.77 | J31: Y | K31: 117.5 | L31: 9 | M31: 25 | N31: 25 | O31: 0 | P31: 0 | Q31: 0 | R31: 0 | S31: 494 | T31: 16 | U31: 55 | V31: 1 | W31: 124 | X31: 392 | Y31: 125 | Z31: 39 | AA31: 21 | AB31: 9 | AC31: 1 | AD31: 58 | AE31: 4.28 | AF31: 122 | AG31: 8.8 | AH31: 2.2 | AI31: 8.9 | AJ31: 4 | AK31: 1.19 | AL31: 0.29 | AM31: 1.41 | AN31: 1.77 | AO31: 0.07 | AP31: 57 | AQ31: 104 | AR31: 40 | AS31: 25 | AT31: 21.21 | AU31: 65 | AV31: 29 | AW31: -0.01 | AX31: LP | AY31: 93.5 | AZ31: 4.2 | BA31: 79 | BB31: 34 | BC31: SP | BD31: 77.2 | BE31: 4.28 | BF31: 88 | BG31: 29 | BH31: 165.3 | BI31: 4.19 | BJ31: 4.37 | BK31: 45 | BL31: 0.09 | BM31: -5 | BN31: R | BO31: -88 | BP31: mortoch02 | BQ31: 450203 | BR31: Aging Power Starter | BS31: Merrill Kelly | BT31: Kyle Gibson | BU31: Justin Verlander | BV31: Should perform close to forecast. Expected to play regularly.
A32: Waldron | B32: Matt | C32: R | D32: 2025 | E32: 28 | F32: SDN | G32: NL | H32: SP | I32: 0.68 | J32: Y | K32: 128.5 | L32: 8 | M32: 23 | N32: 23 | O32: 0 | P32: 0 | Q32: 0 | R32: 0 | S32: 535 | T32: 19 | U32: 36 | V32: 0 | W32: 116 | X32: 380 | Y32: 125 | Z32: 39 | AA32: 14 | AB32: 7 | AC32: 1 | AD32: 68 | AE32: 4.34 | AF32: 98 | AG32: 7 | AH32: 3.2 | AI32: 8.3 | AJ32: 2.6 | AK32: 1.33 | AL32: 0.28 | AM32: 1.25 | AN32: 1.76 | AO32: 0.08 | AP32: 56 | AQ32: 105 | AR32: 38 | AS32: 24 | AT32: 22.91 | AU32: 70 | AV32: 30 | AW32: -0.16 | AX32: LP | AY32: 102 | AZ32: 4.18 | BA32: 79 | BB32: 36 | BC32: SP | BD32: 88.5 | BE32: 4.18 | BF32: 86 | BG32: 33 | BH32: 146.7 | BI32: 4.91 | BJ32: 4.16 | BK32: 47 | BL32: -0.57 | BM32: -9 | BN32: R | BO32: -58 | BP32: waldrma01 | BQ32: 663362 | BR32: Righty Super Control Swing Starter | BS32: Aaron Civale | BT32: Kutter Crawford | BU32: Tobias Myers | BV32: Expected to play regularly.
A33: Gibson | B33: Kyle | C33: R | D33: 2025 | E33: 37 | F33: SLN | G33: NL | H33: SP | I33: 0.78 | J33: Y | K33: 124.6 | L33: 9 | M33: 26 | N33: 26 | O33: 0 | P33: 0 | Q33: 0 | R33: 5 | S33: 524 | T33: 18 | U33: 48 | V33: 1 | W33: 114 | X33: 416 | Y33: 142 | Z33: 40 | AA33: 29 | AB33: 4 | AC33: 0 | AD33: 65 | AE33: 4.43 | AF33: 123 | AG33: 8.4 | AH33: 2.4 | AI33: 7.7 | AJ33: 3.3 | AK33: 1.23 | AL33: 0.292 | AM33: 1.39 | AN33: 1.73 | AO33: 0.07 | AP33: 35 | AQ33: 107 | AR33: 38 | AS33: 24 | AT33: 21.61 | AU33: 71 | AV33: 31 | AW33: -0.16 | AX33: LP | AY33: 99.1 | AZ33: 4.22 | BA33: 79 | BB33: 35 | BC33: SP | BD33: 83.2 | BE33: 4.27 | BF33: 88 | BG33: 30 | BH33: 169.7 | BI33: 4.24 | BJ33: 4.35 | BK33: 46 | BL33: 0.18 | BM33: -8 | BN33: R | BO33: -86 | BP33: gibsoky01 | BQ33: 502043 | BR33: Aging Starter | BS33: Albert Suarez | BT33: Ben Lively | BU33: Charlie Morton | BV33: Should perform close to forecast. Expected to play regularly.
A34: Gomber | B34: Austin | C34: L | D34: 2025 | E34: 31 | F34: COL | G34: NL | H34: SP | I34: 0.75 | J34: Y | K34: 120.9 | L34: 9 | M34: 29 | N34: 25 | O34: 0 | P34: 0 | Q34: 0 | R34: 0 | S34: 554 | T34: 24 | U34: 39 | V34: 0 | W34: 106 | X34: 426 | Y34: 154 | Z34: 40 | AA34: 29 | AB34: 3 | AC34: 0 | AD34: 74 | AE34: 4.44 | AF34: 118 | AG34: 7.8 | AH34: 2.7 | AI34: 7 | AJ34: 2.6 | AK34: 1.57 | AL34: 0.296 | AM34: 1.4 | AN34: 2.03 | AO34: 0.09 | AP34: 21 | AQ34: 107 | AR34: 38 | AS34: 22 | AT34: 20.29 | AU34: 73 | AV34: 32 | AW34: 0.13 | AX34: LP | AY34: 101.5 | AZ34: 4.63 | BA34: 87 | BB34: 26 | BC34: SP | BD34: 88.8 | BE34: 4.57 | BF34: 94 | BG34: 25 | BH34: 165 | BI34: 4.75 | BJ34: 4.76 | BK34: 35 | BL34: -0.31 | BM34: 2 | BN34: R | BO34: -76 | BP34: gombeau01 | BQ34: 596295 | BR34: Lefty Super Control Starter | BS34: JP Sears | BT34: Bailey Falter | BU34: Patrick Corbin | BV34: In prime. Expected to play regularly.
A35: Feltner | B35: Ryan | C35: R | D35: 2025 | E35: 28 | F35: COL | G35: NL | H35: SP | I35: 0.69 | J35: Y | K35: 132 | L35: 9 | M35: 26 | N35: 26 | O35: 0 | P35: 0 | Q35: 0 | R35: 0 | S35: 543 | T35: 17 | U35: 49 | V35: 0 | W35: 126 | X35: 421 | Y35: 138 | Z35: 39 | AA35: 14 | AB35: 6 | AC35: 1 | AD35: 69 | AE35: 4.39 | AF35: 117 | AG35: 7.9 | AH35: 2.5 | AI35: 8.4 | AJ35: 3.3 | AK35: 1.16 | AL35: 0.308 | AM35: 1.41 | AN35: 1.66 | AO35: 0.07 | AP35: 54 | AQ35: 106 | AR35: 38 | AS35: 24 | AT35: 20.42 | AU35: 74 | AV35: 33 | AW35: -0.31 | AX35: SP | AY35: 113 | AZ35: 4.04 | BA35: 76 | BB35: 43 | BC35: SP | BD35: 97.1 | BE35: 4.08 | BF35: 84 | BG35: 38 | BH35: 162.3 | BI35: 4.49 | BJ35: 4.11 | BK35: 52 | BL35: -0.1 | BM35: -14 | BN35: R | BO35: -65 | BP35: feltnry01 | BQ35: 663372 | BR35: Righty Power Swing Starter | BS35: Javier Assad | BT35: Jake Irvin | BU35: Simeon Woods Richardson | BV35: Expected to play regularly.
A36: Stone | B36: Gavin | C36: R | D36: 2025 | E36: 26 | F36: LAN | G36: NL | H36: SP | I36: 0.66 | J36: Y | K36: 131.4 | L36: 8 | M36: 21 | N36: 21 | O36: 1 | P36: 1 | Q36: 0 | R36: 0 | S36: 528 | T36: 18 | U36: 37 | V36: 0 | W36: 110 | X36: 376 | Y36: 128 | Z36: 39 | AA36: 21 | AB36: 4 | AC36: 0 | AD36: 61 | AE36: 4.37 | AF36: 107 | AG36: 7.8 | AH36: 3 | AI36: 8 | AJ36: 2.7 | AK36: 1.29 | AL36: 0.286 | AM36: 1.29 | AN36: 1.73 | AO36: 0.07 | AP36: 48 | AQ36: 106 | AR36: 37 | AS36: 23 | AT36: 21.72 | AU36: 76 | AV36: 34 | AW36: -0.31 | AX36: SP | AY36: 113 | AZ36: 4.06 | BA36: 76 | BB36: 42 | BC36: SP | BD36: 97.5 | BE36: 4.06 | BF36: 84 | BG36: 39 | BH36: 140.3 | BI36: 3.53 | BJ36: 3.97 | BK36: 52 | BL36: 0.84 | BM36: -15 | BN36: R | BO36: -43 | BP36: stonega01 | BQ36: 694813 | BR36: Young Super Control Top Starter | BS36: Luis Severino | BT36: Ronel Blanco | BU36: Tanner Houck | BV36: Expected to play regularly.
A37: Abbott | B37: Andrew | C37: L | D37: 2025 | E37: 25 | F37: CIN | G37: NL | H37: SP | I37: 0.72 | J37: Y | K37: 123.8 | L37: 9 | M37: 21 | N37: 21 | O37: 0 | P37: 0 | Q37: 0 | R37: 0 | S37: 528 | T37: 20 | U37: 47 | V37: 1 | W37: 120 | X37: 375 | Y37: 126 | Z37: 40 | AA37: 25 | AB37: 3 | AC37: 0 | AD37: 61 | AE37: 4.43 | AF37: 120 | AG37: 8.8 | AH37: 2.6 | AI37: 8.8 | AJ37: 3.4 | AK37: 1.48 | AL37: 0.272 | AM37: 1.32 | AN37: 2.03 | AO37: 0.09 | AP37: 54 | AQ37: 107 | AR37: 37 | AS37: 23 | AT37: 23.21 | AU37: 79 | AV37: 35 | AW37: 0.03 | AX37: LP | AY37: 100.2 | AZ37: 4.45 | BA37: 84 | BB37: 30 | BC37: SP | BD37: 88 | BE37: 4.46 | BF37: 92 | BG37: 27 | BH37: 138 | BI37: 3.72 | BJ37: 4.96 | BK37: 27 | BL37: 0.71 | BM37: 9 | BN37: R | BO37: -50 | BP37: abbotan01 | BQ37: 671096 | BR37: Young Lefty Power Swing Starter | BS37: Bailey Falter | BT37: Logan Allen | BU37: Mitchell Parker | BV37: Should perform close to forecast. Expected to play regularly.
A38: Quintana | B38: Jose | C38: L | D38: 2025 | E38: 36 | F38: NYN | G38: NL | H38: SP | I38: 0.73 | J38: Y | K38: 130 | L38: 9 | M38: 26 | N38: 26 | O38: 0 | P38: 0 | Q38: 0 | R38: 0 | S38: 536 | T38: 15 | U38: 47 | V38: 0 | W38: 108 | X38: 410 | Y38: 126 | Z38: 40 | AA38: 15 | AB38: 6 | AC38: 0 | AD38: 59 | AE38: 4.42 | AF38: 118 | AG38: 8 | AH38: 2.3 | AI38: 7.3 | AJ38: 3.2 | AK38: 1.01 | AL38: 0.276 | AM38: 1.3 | AN38: 1.48 | AO38: 0.05 | AP38: 30 | AQ38: 107 | AR38: 37 | AS38: 23 | AT38: 22.37 | AU38: 80 | AV38: 36 | AW38: -0.12 | AX38: LP | AY38: 100.3 | AZ38: 4.26 | BA38: 80 | BB38: 34 | BC38: SP | BD38: 83.6 | BE38: 4.3 | BF38: 89 | BG38: 29 | BH38: 170.3 | BI38: 3.75 | BJ38: 4.59 | BK38: 40 | BL38: 0.67 | BM38: -3 | BN38: R | BO38: -87 | BP38: quintjo01 | BQ38: 500779 | BR38: Aging Lefty Control Swing Starter | BS38: Tyler Anderson | BT38: Martin Perez | BU38: Patrick Corbin | BV38: Should perform close to forecast. Expected to play regularly.
A39: Assad | B39: Javier | C39: R | D39: 2025 | E39: 27 | F39: CHN | G39: NL | H39: SP | I39: 0.7 | J39: Y | K39: 128.1 | L39: 9 | M39: 25 | N39: 25 | O39: 0 | P39: 0 | Q39: 0 | R39: 0 | S39: 539 | T39: 17 | U39: 51 | V39: 1 | W39: 115 | X39: 387 | Y39: 128 | Z39: 40 | AA39: 20 | AB39: 5 | AC39: 0 | AD39: 59 | AE39: 4.46 | AF39: 126 | AG39: 9 | AH39: 2.3 | AI39: 8.3 | AJ39: 3.6 | AK39: 1.21 | AL39: 0.278 | AM39: 1.35 | AN39: 1.74 | AO39: 0.07 | AP39: 43 | AQ39: 108 | AR39: 36 | AS39: 23 | AT39: 22.06 | AU39: 86 | AV39: 37 | AW39: -0.15 | AX39: LP | AY39: 101.5 | AZ39: 4.31 | BA39: 81 | BB39: 33 | BC39: SP | BD39: 87.9 | BE39: 4.32 | BF39: 89 | BG39: 30 | BH39: 147 | BI39: 3.73 | BJ39: 4.57 | BK39: 36 | BL39: 0.73 | BM39: 0 | BN39: R | BO39: -59 | BP39: assadja01 | BQ39: 665871 | BR39: Righty Power Swing Starter | BS39: Ryan Feltner | BT39: Jake Irvin | BU39: Simeon Woods Richardson | BV39: Expected to play regularly.
A40: Corbin | B40: Patrick | C40: L | D40: 2025 | E40: 35 | F40: WAS | G40: NL | H40: SP | I40: 0.78 | J40: Y | K40: 120.5 | L40: 9 | M40: 27 | N40: 27 | O40: 0 | P40: 0 | Q40: 0 | R40: 0 | S40: 544 | T40: 22 | U40: 46 | V40: 0 | W40: 112 | X40: 436 | Y40: 171 | Z40: 41 | AA40: 32 | AB40: 3 | AC40: 0 | AD40: 78 | AE40: 4.52 | AF40: 134 | AG40: 8.8 | AH40: 2.4 | AI40: 7.3 | AJ40: 3.1 | AK40: 1.47 | AL40: 0.324 | AM40: 1.55 | AN40: 1.98 | AO40: 0.08 | AP40: 23 | AQ40: 109 | AR40: 36 | AS40: 23 | AT40: 17.28 | AU40: 88 | AV40: 38 | AW40: -0.06 | AX40: LP | AY40: 101.4 | AZ40: 4.51 | BA40: 85 | BB40: 29 | BC40: SP | BD40: 87.6 | BE40: 4.46 | BF40: 92 | BG40: 27 | BH40: 174.7 | BI40: 5.62 | BJ40: 4.35 | BK40: 47 | BL40: -1.09 | BM40: -11 | BN40: R | BO40: -87 | BP40: corbipa01 | BQ40: 571578 | BR40: Aging Lefty Control Top Starter | BS40: Tyler Anderson | BT40: Martin Perez | BU40: Austin Gomber | BV40: Should perform close to forecast. Expected to play regularly.
A41: Montas | B41: Frankie | C41: R | D41: 2025 | E41: 32 | F41: MIL | G41: NL | H41: SP | I41: 0.67 | J41: Y | K41: 104.2 | L41: 8 | M41: 26 | N41: 26 | O41: 0 | P41: 0 | Q41: 0 | R41: 0 | S41: 438 | T41: 18 | U41: 47 | V41: 0 | W41: 119 | X41: 375 | Y41: 118 | Z41: 39 | AA41: 2 | AB41: 5 | AC41: 0 | AD41: 56 | AE41: 4.38 | AF41: 104 | AG41: 8.2 | AH41: 2.5 | AI41: 9.2 | AJ41: 3.7 | AK41: 1.4 | AL41: 0.305 | AM41: 1.43 | AN41: 1.96 | AO41: 0.09 | AP41: 66 | AQ41: 106 | AR41: 34 | AS41: 21 | AT41: 17.91 | AU41: 94 | AV41: 39 | AW41: -0.03 | AX41: LP | AY41: 88.9 | AZ41: 4.35 | BA41: 82 | BB41: 29 | BC41: SP | BD41: 76 | BE41: 4.35 | BF41: 90 | BG41: 27 | BH41: 150.7 | BI41: 4.84 | BJ41: 4.58 | BK41: 36 | BL41: -0.46 | BM41: -2 | BN41: R | BO41: -75 | BP41: montafr02 | BQ41: 593423 | BR41: Righty Power Swing Starter | BS41: Erick Fedde | BT41: Ryan Feltner | BU41: Aaron Civale | BV41: Expected to play regularly.
A42: Falter | B42: Bailey | C42: L | D42: 2025 | E42: 28 | F42: PIT | G42: NL | H42: SP | I42: 0.69 | J42: Y | K42: 121.4 | L42: 8 | M42: 24 | N42: 24 | O42: 0 | P42: 0 | Q42: 0 | R42: 0 | S42: 496 | T42: 18 | U42: 37 | V42: 0 | W42: 99 | X42: 369 | Y42: 130 | Z42: 41 | AA42: 21 | AB42: 2 | AC42: 0 | AD42: 65 | AE42: 4.53 | AF42: 107 | AG42: 8.1 | AH42: 2.7 | AI42: 7.4 | AJ42: 2.8 | AK42: 1.34 | AL42: 0.283 | AM42: 1.33 | AN42: 1.79 | AO42: 0.07 | AP42: 30 | AQ42: 110 | AR42: 33 | AS42: 21 | AT42: 19.92 | AU42: 97 | AV42: 40 | AW42: -0.21 | AX42: LP | AY42: 96.2 | AZ42: 4.35 | BA42: 82 | BB42: 31 | BC42: SP | BD42: 82.4 | BE42: 4.32 | BF42: 89 | BG42: 29 | BH42: 142.3 | BI42: 4.43 | BJ42: 4.36 | BK42: 40 | BL42: 0.11 | BM42: -7 | BN42: R | BO42: -60 | BP42: falteba01 | BQ42: 663559 | BR42: Lefty Super Control Swing Starter | BS42: JP Sears | BT42: Austin Gomber | BU42: Mitchell Parker | BV42: Expected to play regularly.
A43: Perez | B43: Martin | C43: L | D43: 2025 | E43: 34 | F43: SDN | G43: NL | H43: SP | I43: 0.75 | J43: Y | K43: 99.1 | L43: 8 | M43: 22 | N43: 22 | O43: 0 | P43: 0 | Q43: 0 | R43: 0 | S43: 381 | T43: 15 | U43: 39 | V43: 0 | W43: 86 | X43: 330 | Y43: 129 | Z43: 41 | AA43: 22 | AB43: 4 | AC43: 1 | AD43: 52 | AE43: 4.52 | AF43: 118 | AG43: 10.7 | AH43: 2.2 | AI43: 7.7 | AJ43: 3.5 | AK43: 1.32 | AL43: 0.308 | AM43: 1.52 | AN43: 1.86 | AO43: 0.07 | AP43: 28 | AQ43: 109 | AR43: 31 | AS43: 19 | AT43: 14.28 | AU43: 107 | AV43: 41 | AW43: 0.01 | AX43: LP | AY43: 81.9 | AZ43: 4.59 | BA43: 86 | BB43: 24 | BC43: SP | BD43: 68 | BE43: 4.53 | BF43: 93 | BG43: 22 | BH43: 135 | BI43: 4.53 | BJ43: 4.82 | BK43: 29 | BL43: -0.02 | BM43: 2 | BN43: R | BO43: -67 | BP43: perezma02 | BQ43: 527048 | BR43: Lefty Swing Starter | BS43: Tyler Anderson | BT43: Patrick Corbin | BU43: Jose Quintana | BV43: Should perform close to forecast. Expected to play regularly.
A44: Quantrill | B44: Cal | C44: R | D44: 2025 | E44: 30 | F44: COL | G44: NL | H44: SP | I44: 0.73 | J44: Y | K44: 103.8 | L44: 8 | M44: 25 | N44: 25 | O44: 0 | P44: 0 | Q44: 0 | R44: 0 | S44: 436 | T44: 17 | U44: 46 | V44: 0 | W44: 94 | X44: 375 | Y44: 137 | Z44: 43 | AA44: 21 | AB44: 7 | AC44: 0 | AD44: 59 | AE44: 4.72 | AF44: 121 | AG44: 9.7 | AH44: 2 | AI44: 7.5 | AJ44: 3.7 | AK44: 1.33 | AL44: 0.309 | AM44: 1.54 | AN44: 1.9 | AO44: 0.07 | AP44: 21 | AQ44: 114 | AR44: 28 | AS44: 17 | AT44: 14.45 | AU44: 125 | AV44: 42 | AW44: -0.06 | AX44: LP | AY44: 88 | AZ44: 4.72 | BA44: 89 | BB44: 23 | BC44: SP | BD44: 75 | BE44: 4.67 | BF44: 96 | BG44: 21 | BH44: 148.3 | BI44: 4.98 | BJ44: 5.24 | BK44: 25 | BL44: -0.25 | BM44: 3 | BN44: R | BO44: -73 | BP44: quantca01 | BQ44: 615698 | BR44: Righty Swing Starter | BS44: Christopher Flexen | BT44: Michael Lorenzen | BU44: Javier Assad | BV44: In prime. Expected to play regularly.
A45: Strahm | B45: Matt | C45: L | D45: 2025 | E45: 33 | F45: PHI | G45: NL | H45: LP | I45: 0.58 | J45: Y | K45: 53.2 | L45: 4 | M45: 46 | N45: 5 | O45: 0 | P45: 0 | Q45: 2 | R45: 6 | S45: 246 | T45: 7 | U45: 18 | V45: 1 | W45: 67 | X45: 186 | Y45: 46 | Z45: 27 | AA45: 12 | AB45: 3 | AC45: 0 | AD45: 23 | AE45: 3.01 | AF45: 41 | AG45: 6 | AH45: 3.7 | AI45: 9.8 | AJ45: 2.7 | AK45: 1.02 | AL45: 0.275 | AM45: 1.11 | AN45: 1.43 | AO45: 0.06 | AP45: 144 | AQ45: 73 | AR45: 81 | AS45: 13 | AT45: 11.24 | AU45: 6 | AV45: 1 | AW45: 0.74 | AX45: LP | AY45: 56.9 | AZ45: 3.54 | BA45: 66 | BB45: 46 | BC45: LP | BD45: 57.5 | BE45: 3.75 | BF45: 77 | BG45: 38 | BH45: 62.7 | BI45: 1.87 | BJ45: 2.27 | BK45: 226 | BL45: 1.14 | BM45: -145 | BN45: R | BO45: -5 | BP45: strahma01 | BQ45: 621381 | BR45: Lefty Commanding RP | BS45: Dylan Lee | BT45: Keegan Akin | BU45: Robert Garcia | BV45: Priced in-line with expectations. Among elite players.
A46: Snell | B46: Blake | C46: L | D46: 2025 | E46: 32 | F46: SFN | G46: NL | H46: LP | I46: 0.73 | J46: Y | K46: 121.9 | L46: 8 | M46: 22 | N46: 16 | O46: 0 | P46: 0 | Q46: 0 | R46: 2 | S46: 342 | T46: 8 | U46: 41 | V46: 0 | W46: 111 | X46: 275 | Y46: 84 | Z46: 33 | AA46: 20 | AB46: 2 | AC46: 1 | AD46: 39 | AE46: 3.61 | AF46: 93 | AG46: 9.6 | AH46: 2.7 | AI46: 11.4 | AJ46: 4.2 | AK46: 0.84 | AL46: 0.261 | AM46: 1.24 | AN46: 1.4 | AO46: 0.06 | AP46: 176 | AQ46: 87 | AR46: 59 | AS46: 26 | AT46: 22.57 | AU46: 21 | AV46: 2 | AW46: 0 | AX46: LP | AY46: 82.4 | AZ46: 3.43 | BA46: 64 | BB46: 61 | BC46: LP | BD46: 69.1 | BE46: 3.61 | BF46: 74 | BG46: 47 | BH46: 104 | BI46: 3.12 | BJ46: 2.52 | BK46: 185 | BL46: 0.5 | BM46: -126 | BN46: R | BO46: -35 | BP46: snellbl01 | BQ46: 605483 | BR46: Lefty Serious Heat Top Starter | BS46: Cole Ragans | BT46: David Peterson | BU46: Dylan Cease | BV46: Should perform close to forecast. If only he were on the field more. All-star caliber.
A47: Yamamoto | B47: Yoshinobu | C47: R | D47: 2025 | E47: 26 | F47: LAN | G47: NL | H47: LP | I47: 0.64 | J47: Y | K47: 113.7 | L47: 6 | M47: 22 | N47: 12 | O47: 0 | P47: 0 | Q47: 0 | R47: 2 | S47: 301 | T47: 7 | U47: 21 | V47: 0 | W47: 80 | X47: 217 | Y47: 86 | Z47: 32 | AA47: 3 | AB47: 2 | AC47: 0 | AD47: 40 | AE47: 3.61 | AF47: 79 | AG47: 9.8 | AH47: 3.8 | AI47: 10 | AJ47: 2.6 | AK47: 0.88 | AL47: 0.275 | AM47: 1.18 | AN47: 1.26 | AO47: 0.05 | AP47: 147 | AQ47: 87 | AR47: 56 | AS47: 20 | AT47: 18.27 | AU47: 27 | AV47: 3 | AW47: -0.01 | AX47: LP | AY47: 77 | AZ47: 3.4 | BA47: 64 | BB47: 60 | BC47: LP | BD47: 67.4 | BE47: 3.6 | BF47: 74 | BG47: 47 | BH47: 90 | BI47: 3 | BJ47: 2.66 | BK47: 146 | BL47: 0.61 | BM47: -90 | BN47: R | BO47: -23 | BP47: yamamyo01 | BQ47: 808967 | BR47: Young Commanding Swing Starter | BS47: Paul Skenes | BT47: Spencer Schwellenbach | BU47: Ben Brown | BV47: If only he were on the field more. Possible All-star.
A48: Schwellenbach | B48: Spencer | C48: R | D48: 2025 | E48: 25 | F48: ATL | G48: NL | H48: LP | I48: 0.71 | J48: Y | K48: 116.5 | L48: 7 | M48: 24 | N48: 13 | O48: 0 | P48: 0 | Q48: 0 | R48: 2 | S48: 376 | T48: 11 | U48: 22 | V48: 1 | W48: 94 | X48: 275 | Y48: 102 | Z48: 34 | AA48: 3 | AB48: 6 | AC48: 0 | AD48: 50 | AE48: 3.77 | AF48: 87 | AG48: 8.7 | AH48: 4.3 | AI48: 9.4 | AJ48: 2.2 | AK48: 1.09 | AL48: 0.268 | AM48: 1.13 | AN48: 1.45 | AO48: 0.07 | AP48: 118 | AQ48: 91 | AR48: 53 | AS48: 23 | AT48: 22.84 | AU48: 31 | AV48: 4 | AW48: -0.02 | AX48: LP | AY48: 87.6 | AZ48: 3.62 | BA48: 68 | BB48: 52 | BC48: LP | BD48: 75.9 | BE48: 3.75 | BF48: 77 | BG48: 43 | BH48: 123.7 | BI48: 3.35 | BJ48: 3.23 | BK48: 90 | BL48: 0.42 | BM48: -37 | BN48: R | BO48: -48 | BP48: schwesp01 | BQ48: 680885 | BR48: Young Commanding Swing Starter | BS48: Bryan Woo | BT48: Yoshinobu Yamamoto | BU48: George Kirby | BV48: Should perform close to forecast. If only he were on the field more. Possible All-star.
A49: Kerkering | B49: Orion | C49: R | D49: 2025 | E49: 24 | F49: PHI | G49: NL | H49: LP | I49: 0.44 | J49: Y | K49: 62.7 | L49: 3 | M49: 43 | N49: 4 | O49: 0 | P49: 0 | Q49: 0 | R49: 6 | S49: 254 | T49: 5 | U49: 20 | V49: 0 | W49: 66 | X49: 181 | Y49: 49 | Z49: 31 | AA49: 3 | AB49: 4 | AC49: 0 | AD49: 24 | AE49: 3.44 | AF49: 46 | AG49: 7 | AH49: 3.2 | AI49: 10 | AJ49: 3.1 | AK49: 0.81 | AL49: 0.309 | AM49: 1.24 | AN49: 1.24 | AO49: 0.05 | AP49: 140 | AQ49: 83 | AR49: 50 | AS49: 10 | AT49: 8.12 | AU49: 37 | AV49: 5 | AW49: 0.3 | AX49: LP | AY49: 62.4 | AZ49: 3.57 | BA49: 67 | BB49: 47 | BC49: LP | BD49: 62.1 | BE49: 3.74 | BF49: 77 | BG49: 40 | BH49: 63 | BI49: 2.29 | BJ49: 2.51 | BK49: 159 | BL49: 1.15 | BM49: -109 | BN49: R | BO49: -1 | BP49: kerkeor01 | BQ49: 689147 | BR49: Young Serious Heat Long Relief | BS49: Randy Rodríguez | BT49: Jeremiah Estrada | BU49: Ben Brown | BV49: Priced in-line with expectations. Already solid MLB caliber. Long term buy.
A50: Lee | B50: Dylan | C50: L | D50: 2025 | E50: 30 | F50: ATL | G50: NL | H50: LP | I50: 0.48 | J50: Y | K50: 47.7 | L50: 3 | M50: 40 | N50: 3 | O50: 0 | P50: 0 | Q50: 0 | R50: 6 | S50: 208 | T50: 7 | U50: 18 | V50: 2 | W50: 59 | X50: 167 | Y50: 46 | Z50: 31 | AA50: 6 | AB50: 1 | AC50: 0 | AD50: 21 | AE50: 3.41 | AF50: 43 | AG50: 7.3 | AH50: 3.2 | AI50: 10 | AJ50: 3.1 | AK50: 1.21 | AL50: 0.312 | AM50: 1.3 | AN50: 1.68 | AO50: 0.08 | AP50: 126 | AQ50: 82 | AR50: 49 | AS50: 9 | AT50: 6.29 | AU50: 39 | AV50: 6 | AW50: 0.52 | AX50: LP | AY50: 54.2 | AZ50: 3.81 | BA50: 72 | BB50: 35 | BC50: LP | BD50: 55.8 | BE50: 3.93 | BF50: 81 | BG50: 32 | BH50: 59.7 | BI50: 2.11 | BJ50: 2.8 | BK50: 106 | BL50: 1.29 | BM50: -57 | BN50: R | BO50: -4 | BP50: leedy01 | BQ50: 669276 | BR50: Lefty Serious Heat RP | BS50: Robert Garcia | BT50: Sam Hentges | BU50: Matt Strahm | BV50: In prime. Priced in-line with expectations. Solid keeper.
A51: Jimenez | B51: Joe | C51: R | D51: 2025 | E51: 30 | F51: ATL | G51: NL | H51: LP | I51: 0.56 | J51: Y | K51: 56.7 | L51: 4 | M51: 51 | N51: 3 | O51: 0 | P51: 0 | Q51: 1 | R51: 9 | S51: 259 | T51: 6 | U51: 21 | V51: 1 | W51: 70 | X51: 190 | Y51: 49 | Z51: 32 | AA51: 9 | AB51: 3 | AC51: 0 | AD51: 24 | AE51: 3.5 | AF51: 45 | AG51: 6.4 | AH51: 3.4 | AI51: 10 | AJ51: 2.9 | AK51: 0.9 | AL51: 0.292 | AM51: 1.17 | AN51: 1.33 | AO51: 0.06 | AP51: 138 | AQ51: 85 | AR51: 48 | AS51: 10 | AT51: 9.9 | AU51: 41 | AV51: 7 | AW51: 0.19 | AX51: LP | AY51: 60.5 | AZ51: 3.51 | BA51: 66 | BB51: 49 | BC51: LP | BD51: 60.3 | BE51: 3.69 | BF51: 76 | BG51: 41 | BH51: 68.7 | BI51: 2.62 | BJ51: 2.4 | BK51: 192 | BL51: 0.88 | BM51: -144 | BN51: R | BO51: -8 | BP51: jimenjo02 | BQ51: 641729 | BR51: Righty Commanding Long Relief | BS51: Cade Smith | BT51: Griffin Jax | BU51: Ryan Walker | BV51: In prime. Priced in-line with expectations.
A52: Martinez | B52: Nick | C52: R | D52: 2025 | E52: 34 | F52: CIN | G52: NL | H52: LP | I52: 0.72 | J52: Y | K52: 90.3 | L52: 7 | M52: 47 | N52: 10 | O52: 0 | P52: 0 | Q52: 2 | R52: 5 | S52: 421 | T52: 11 | U52: 28 | V52: 1 | W52: 88 | X52: 306 | Y52: 95 | Z52: 35 | AA52: 16 | AB52: 4 | AC52: 0 | AD52: 46 | AE52: 3.87 | AF52: 83 | AG52: 7.3 | AH52: 3.1 | AI52: 7.7 | AJ52: 2.5 | AK52: 0.99 | AL52: 0.269 | AM52: 1.18 | AN52: 1.38 | AO52: 0.05 | AP52: 55 | AQ52: 94 | AR52: 47 | AS52: 16 | AT52: 19.51 | AU52: 44 | AV52: 8 | AW52: -0.04 | AX52: LP | AY52: 84.1 | AZ52: 3.74 | BA52: 70 | BB52: 46 | BC52: LP | BD52: 75 | BE52: 3.84 | BF52: 79 | BG52: 40 | BH52: 142.3 | BI52: 3.1 | BJ52: 3.23 | BK52: 97 | BL52: 0.77 | BM52: -50 | BN52: R | BO52: -67 | BP52: martini01 | BQ52: 607259 | BR52: Righty Super Control Starter | BS52: Ryan Thompson | BT52: Seth Lugo | BU52: Zack Wheeler | BV52: Should perform close to forecast. Priced in-line with expectations. Keeper.
A53: Treinen | B53: Blake | C53: R | D53: 2025 | E53: 37 | F53: LAN | G53: NL | H53: LP | I53: 0.42 | J53: Y | K53: 37.3 | L53: 3 | M53: 35 | N53: 3 | O53: 0 | P53: 0 | Q53: 1 | R53: 7 | S53: 246 | T53: 5 | U53: 14 | V53: 1 | W53: 43 | X53: 133 | Y53: 30 | Z53: 31 | AA53: 2 | AB53: 2 | AC53: 0 | AD53: 21 | AE53: 3.41 | AF53: 28 | AG53: 4.9 | AH53: 3 | AI53: 7.9 | AJ53: 2.5 | AK53: 0.94 | AL53: 0.229 | AM53: 0.99 | AN53: 1.31 | AO53: 0.05 | AP53: 67 | AQ53: 82 | AR53: 47 | AS53: 8 | AT53: 6.31 | AU53: 45 | AV53: 9 | AW53: 0.58 | AX53: JP | AY53: 80.1 | AZ53: 3.87 | BA53: 73 | BB53: 40 | BC53: LP | BD53: 71.7 | BE53: 3.99 | BF53: 82 | BG53: 34 | BH53: 46.7 | BI53: 1.93 | BJ53: 2.96 | BK53: 80 | BL53: 1.48 | BM53: -34 | BN53: R | BO53: 25 | BP53: treinbl01 | BQ53: 595014 | BR53: Aging Super Control RP | BS53: Chris Martin | BT53: Andrew Kittredge | BU53: Ryan Thompson | BV53: Priced in-line with expectations.
A54: Bummer | B54: Aaron | C54: L | D54: 2025 | E54: 31 | F54: ATL | G54: NL | H54: LP | I54: 0.51 | J54: Y | K54: 55.2 | L54: 3 | M54: 46 | N54: 3 | O54: 0 | P54: 0 | Q54: 0 | R54: 8 | S54: 304 | T54: 5 | U54: 23 | V54: 2 | W54: 62 | X54: 170 | Y54: 49 | Z54: 32 | AA54: 14 | AB54: 3 | AC54: 0 | AD54: 34 | AE54: 3.55 | AF54: 44 | AG54: 6.1 | AH54: 2.7 | AI54: 8.7 | AJ54: 3.2 | AK54: 0.72 | AL54: 0.288 | AM54: 1.22 | AN54: 1.16 | AO54: 0.04 | AP54: 87 | AQ54: 86 | AR54: 46 | AS54: 10 | AT54: 7.78 | AU54: 48 | AV54: 10 | AW54: 0.22 | AX54: LP | AY54: 62.4 | AZ54: 3.6 | BA54: 68 | BB54: 45 | BC54: LP | BD54: 63.5 | BE54: 3.77 | BF54: 78 | BG54: 39 | BH54: 55.3 | BI54: 3.58 | BJ54: 2.36 | BK54: 192 | BL54: -0.03 | BM54: -146 | BN54: R | BO54: 8 | BP54: bummeaa01 | BQ54: 607481 | BR54: Lefty Power Long Relief | BS54: Brennan Bernardino | BT54: Joe Mantiply | BU54: Tim Herrin | BV54: In prime. Priced in-line with expectations.
A55: Nelson | B55: Ryne | C55: R | D55: 2025 | E55: 27 | F55: ARI | G55: NL | H55: LP | I55: 0.72 | J55: Y | K55: 128.5 | L55: 8 | M55: 29 | N55: 19 | O55: 0 | P55: 0 | Q55: 1 | R55: 3 | S55: 494 | T55: 16 | U55: 34 | V55: 1 | W55: 98 | X55: 353 | Y55: 143 | Z55: 38 | AA55: 33 | AB55: 4 | AC55: 0 | AD55: 73 | AE55: 4.17 | AF55: 118 | AG55: 9.1 | AH55: 2.9 | AI55: 7.6 | AJ55: 2.6 | AK55: 1.21 | AL55: 0.284 | AM55: 1.31 | AN55: 1.64 | AO55: 0.07 | AP55: 43 | AQ55: 101 | AR55: 45 | AS55: 23 | AT55: 22.79 | AU55: 51 | AV55: 11 | AW55: -0.09 | AX55: LP | AY55: 100.7 | AZ55: 4.1 | BA55: 77 | BB55: 38 | BC55: LP | BD55: 85.2 | BE55: 4.08 | BF55: 84 | BG55: 35 | BH55: 150.7 | BI55: 4.24 | BJ55: 3.67 | BK55: 68 | BL55: -0.07 | BM55: -24 | BN55: R | BO55: -65 | BP55: nelsory01 | BQ55: 669194 | BR55: Righty Super Control Swing Starter | BS55: Bryce Miller | BT55: Brady Singer | BU55: Kutter Crawford | BV55: Should perform close to forecast. Priced in-line with expectations.
A56: Ginkel | B56: Kevin | C56: R | D56: 2025 | E56: 30 | F56: ARI | G56: NL | H56: LP | I56: 0.55 | J56: Y | K56: 60.6 | L56: 3 | M56: 52 | N56: 3 | O56: 0 | P56: 0 | Q56: 3 | R56: 12 | S56: 303 | T56: 6 | U56: 21 | V56: 1 | W56: 66 | X56: 195 | Y56: 52 | Z56: 33 | AA56: 11 | AB56: 3 | AC56: 0 | AD56: 31 | AE56: 3.62 | AF56: 47 | AG56: 6.1 | AH56: 3.2 | AI56: 8.7 | AJ56: 2.7 | AK56: 0.82 | AL56: 0.278 | AM56: 1.15 | AN56: 1.21 | AO56: 0.05 | AP56: 92 | AQ56: 87 | AR56: 44 | AS56: 10 | AT56: 10.51 | AU56: 53 | AV56: 12 | AW56: 0.15 | AX56: LP | AY56: 64.1 | AZ56: 3.57 | BA56: 67 | BB56: 47 | BC56: LP | BD56: 63.9 | BE56: 3.76 | BF56: 78 | BG56: 39 | BH56: 70 | BI56: 3.21 | BJ56: 2.88 | BK56: 102 | BL56: 0.4 | BM56: -57 | BN56: R | BO56: -6 | BP56: ginkeke01 | BQ56: 656464 | BR56: Righty Super Control Long Relief | BS56: Will Vest | BT56: Griffin Jax | BU56: Hunter Harvey | BV56: In prime. Priced in-line with expectations.
A57: Brown | B57: Ben | C57: R | D57: 2025 | E57: 25 | F57: CHN | G57: NL | H57: LP | I57: 0.53 | J57: Y | K57: 87.4 | L57: 4 | M57: 21 | N57: 7 | O57: 0 | P57: 0 | Q57: 0 | R57: 2 | S57: 228 | T57: 6 | U57: 20 | V57: 0 | W57: 60 | X57: 165 | Y57: 66 | Z57: 34 | AA57: 3 | AB57: 3 | AC57: 0 | AD57: 36 | AE57: 3.8 | AF57: 62 | AG57: 10.3 | AH57: 3 | AI57: 10 | AJ57: 3.3 | AK57: 1.01 | AL57: 0.257 | AM57: 1.21 | AN57: 1.49 | AO57: 0.06 | AP57: 121 | AQ57: 92 | AR57: 42 | AS57: 13 | AT57: 12.84 | AU57: 55 | AV57: 13 | AW57: 0.11 | AX57: LP | AY57: 62.1 | AZ57: 3.77 | BA57: 71 | BB57: 39 | BC57: LP | BD57: 58.4 | BE57: 3.91 | BF57: 81 | BG57: 33 | BH57: 55.3 | BI57: 3.58 | BJ57: 3.12 | BK57: 71 | BL57: 0.22 | BM57: -29 | BN57: R | BO57: 3 | BP57: brownbe02 | BQ57: 676962 | BR57: Young Serious Heat Swing Starter | BS57: David Festa | BT57: Paul Skenes | BU57: Yoshinobu Yamamoto | BV57: Priced in-line with expectations.
A58: Jones | B58: Jared | C58: R | D58: 2025 | E58: 23 | F58: PIT | G58: NL | H58: LP | I58: 0.71 | J58: Y | K58: 116.6 | L58: 7 | M58: 25 | N58: 14 | O58: 0 | P58: 0 | Q58: 0 | R58: 2 | S58: 390 | T58: 14 | U58: 32 | V58: 1 | W58: 101 | X58: 280 | Y58: 105 | Z58: 37 | AA58: 3 | AB58: 5 | AC58: 0 | AD58: 59 | AE58: 4.11 | AF58: 94 | AG58: 9.2 | AH58: 3.2 | AI58: 10 | AJ58: 3.1 | AK58: 1.34 | AL58: 0.272 | AM58: 1.26 | AN58: 1.84 | AO58: 0.09 | AP58: 109 | AQ58: 99 | AR58: 42 | AS58: 19 | AT58: 20.87 | AU58: 58 | AV58: 14 | AW58: -0.05 | AX58: LP | AY58: 88.6 | AZ58: 4 | BA58: 75 | BB58: 38 | BC58: LP | BD58: 77.4 | BE58: 4.06 | BF58: 84 | BG58: 34 | BH58: 121.7 | BI58: 4.14 | BJ58: 3.88 | BK58: 51 | BL58: -0.03 | BM58: -9 | BN58: R | BO58: -44 | BP58: jonesja09 | BQ58: 683003 | BR58: Young Serious Heat Swing Starter | BS58: David Festa | BT58: Grayson Rodriguez | BU58: Ryan Pepiot | BV58: Should perform close to forecast. Priced in-line with expectations.
A59: Cruz | B59: Fernando | C59: R | D59: 2025 | E59: 35 | F59: CIN | G59: NL | H59: LP | I59: 0.54 | J59: Y | K59: 53.2 | L59: 3 | M59: 48 | N59: 5 | O59: 0 | P59: 0 | Q59: 0 | R59: 8 | S59: 279 | T59: 8 | U59: 27 | V59: 1 | W59: 74 | X59: 182 | Y59: 48 | Z59: 33 | AA59: 15 | AB59: 2 | AC59: 0 | AD59: 32 | AE59: 3.66 | AF59: 44 | AG59: 6.2 | AH59: 2.7 | AI59: 10.5 | AJ59: 3.8 | AK59: 1.06 | AL59: 0.286 | AM59: 1.25 | AN59: 1.6 | AO59: 0.07 | AP59: 131 | AQ59: 89 | AR59: 41 | AS59: 9 | AT59: 8.73 | AU59: 59 | AV59: 15 | AW59: 0.2 | AX59: LP | AY59: 60.1 | AZ59: 3.68 | BA59: 69 | BB59: 41 | BC59: LP | BD59: 60.5 | BE59: 3.87 | BF59: 80 | BG59: 35 | BH59: 66.7 | BI59: 4.86 | BJ59: 3.13 | BK59: 75 | BL59: -1.2 | BM59: -34 | BN59: R | BO59: -6 | BP59: cruzfe01 | BQ59: 518585 | BR59: Aging Serious Heat RP | BS59: Mark Leiter | BT59: Phil Maton | BU59: Emilio Pagan | BV59: Priced in-line with expectations.
A60: Nardi | B60: Andrew | C60: L | D60: 2025 | E60: 26 | F60: MIA | G60: NL | H60: LP | I60: 0.48 | J60: Y | K60: 58.1 | L60: 3 | M60: 46 | N60: 3 | O60: 0 | P60: 0 | Q60: 1 | R60: 6 | S60: 276 | T60: 8 | U60: 22 | V60: 1 | W60: 67 | X60: 172 | Y60: 46 | Z60: 33 | AA60: 10 | AB60: 3 | AC60: 0 | AD60: 28 | AE60: 3.63 | AF60: 40 | AG60: 6 | AH60: 3 | AI60: 10.1 | AJ60: 3.3 | AK60: 1.19 | AL60: 0.291 | AM60: 1.23 | AN60: 1.69 | AO60: 0.07 | AP60: 122 | AQ60: 88 | AR60: 41 | AS60: 9 | AT60: 7.66 | AU60: 60 | AV60: 16 | AW60: 0.37 | AX60: LP | AY60: 61 | AZ60: 3.86 | BA60: 73 | BB60: 35 | BC60: LP | BD60: 62.1 | BE60: 4 | BF60: 83 | BG60: 32 | BH60: 49.7 | BI60: 5.07 | BJ60: 3.23 | BK60: 61 | BL60: -1.45 | BM60: -19 | BN60: R | BO60: 12 | BP60: nardian01 | BQ60: 677053 | BR60: Young Lefty Serious Heat Long Relief | BS60: Adrian Morejon | BT60: Sam Hentges | BU60: Alex Vesia | BV60: Priced in-line with expectations.
A61: Garcia | B61: Robert | C61: L | D61: 2025 | E61: 29 | F61: WAS | G61: NL | H61: LP | I61: 0.49 | J61: Y | K61: 51.5 | L61: 3 | M61: 48 | N61: 2 | O61: 0 | P61: 0 | Q61: 0 | R61: 6 | S61: 240 | T61: 6 | U61: 19 | V61: 1 | W61: 61 | X61: 171 | Y61: 47 | Z61: 33 | AA61: 9 | AB61: 2 | AC61: 0 | AD61: 28 | AE61: 3.62 | AF61: 40 | AG61: 6.2 | AH61: 3.2 | AI61: 9.6 | AJ61: 3 | AK61: 0.91 | AL61: 0.305 | AM61: 1.25 | AN61: 1.35 | AO61: 0.06 | AP61: 116 | AQ61: 87 | AR61: 41 | AS61: 8 | AT61: 6.74 | AU61: 61 | AV61: 17 | AW61: 0.17 | AX61: LP | AY61: 57.7 | AZ61: 3.61 | BA61: 68 | BB61: 43 | BC61: LP | BD61: 59 | BE61: 3.78 | BF61: 78 | BG61: 37 | BH61: 59.7 | BI61: 4.22 | BJ61: 2.47 | BK61: 166 | BL61: -0.61 | BM61: -125 | BN61: R | BO61: -1 | BP61: garciro04 | BQ61: 676395 | BR61: Lefty Power RP | BS61: Sam Hentges | BT61: Dylan Lee | BU61: A.J. Puk | BV61: Approaching his prime years. Priced in-line with expectations.
A62: Puk | B62: A.J. | C62: L | D62: 2025 | E62: 29 | F62: ARI | G62: NL | H62: LP | I62: 0.57 | J62: Y | K62: 57.5 | L62: 3 | M62: 53 | N62: 3 | O62: 0 | P62: 0 | Q62: 6 | R62: 14 | S62: 244 | T62: 7 | U62: 23 | V62: 1 | W62: 75 | X62: 196 | Y62: 51 | Z62: 33 | AA62: 9 | AB62: 2 | AC62: 0 | AD62: 25 | AE62: 3.68 | AF62: 47 | AG62: 6.9 | AH62: 3.3 | AI62: 10.7 | AJ62: 3.3 | AK62: 1.05 | AL62: 0.309 | AM62: 1.25 | AN62: 1.54 | AO62: 0.07 | AP62: 155 | AQ62: 89 | AR62: 40 | AS62: 9 | AT62: 10.8 | AU62: 62 | AV62: 18 | AW62: -0.19 | AX62: EP | AY62: 62.6 | AZ62: 3.42 | BA62: 64 | BB62: 54 | BC62: LP | BD62: 61.6 | BE62: 3.49 | BF62: 72 | BG62: 50 | BH62: 71.3 | BI62: 3.15 | BJ62: 2.87 | BK62: 104 | BL62: 0.53 | BM62: -64 | BN62: R | BO62: -10 | BP62: pukaj01 | BQ62: 640462 | BR62: Lefty Commanding Long Relief | BS62: Sam Hentges | BT62: Keegan Akin | BU62: Robert Garcia | BV62: Approaching his prime years. Priced in-line with expectations.
A63: Holmes | B63: Grant | C63: R | D63: 2025 | E63: 29 | F63: ATL | G63: NL | H63: LP | I63: 0.58 | J63: Y | K63: 61.6 | L63: 4 | M63: 26 | N63: 6 | O63: 0 | P63: 0 | Q63: 0 | R63: 6 | S63: 243 | T63: 7 | U63: 16 | V63: 1 | W63: 57 | X63: 175 | Y63: 59 | Z63: 33 | AA63: 2 | AB63: 2 | AC63: 0 | AD63: 27 | AE63: 3.72 | AF63: 50 | AG63: 7.7 | AH63: 3.5 | AI63: 8.9 | AJ63: 2.5 | AK63: 1.01 | AL63: 0.289 | AM63: 1.23 | AN63: 1.4 | AO63: 0.06 | AP63: 94 | AQ63: 90 | AR63: 40 | AS63: 10 | AT63: 8.87 | AU63: 63 | AV63: 19 | AW63: 0.13 | AX63: LP | AY63: 60.8 | AZ63: 3.7 | BA63: 70 | BB63: 41 | BC63: LP | BD63: 59.7 | BE63: 3.85 | BF63: 80 | BG63: 35 | BH63: 68.3 | BI63: 3.56 | BJ63: 3.1 | BK63: 78 | BL63: 0.16 | BM63: -38 | BN63: R | BO63: -9 | BP63: holmegr01 | BQ63: 656550 | BR63: Righty Commanding Swing Starter | BS63: Justin Slaten | BT63: Drew Rasmussen | BU63: Edwin Uceta | BV63: Approaching his prime years. Priced in-line with expectations.
A64: Morejon | B64: Adrian | C64: L | D64: 2025 | E64: 25 | F64: SDN | G64: NL | H64: LP | I64: 0.45 | J64: Y | K64: 60.4 | L64: 3 | M64: 43 | N64: 3 | O64: 0 | P64: 0 | Q64: 1 | R64: 8 | S64: 270 | T64: 6 | U64: 22 | V64: 1 | W64: 62 | X64: 182 | Y64: 52 | Z64: 33 | AA64: 6 | AB64: 2 | AC64: 0 | AD64: 26 | AE64: 3.68 | AF64: 48 | AG64: 7 | AH64: 2.8 | AI64: 9.2 | AJ64: 3.2 | AK64: 0.94 | AL64: 0.313 | AM64: 1.32 | AN64: 1.4 | AO64: 0.05 | AP64: 98 | AQ64: 89 | AR64: 39 | AS64: 8 | AT64: 6.54 | AU64: 66 | AV64: 20 | AW64: 0.2 | AX64: LP | AY64: 63.3 | AZ64: 3.75 | BA64: 71 | BB64: 40 | BC64: LP | BD64: 63.3 | BE64: 3.88 | BF64: 80 | BG64: 35 | BH64: 63.7 | BI64: 2.83 | BJ64: 2.82 | BK64: 106 | BL64: 0.86 | BM64: -67 | BN64: R | BO64: 0 | BP64: morejad01 | BQ64: 670970 | BR64: Young Lefty Power Long Relief | BS64: Andrew Nardi | BT64: Caleb Ferguson | BU64: Tim Herrin | BV64: Priced in-line with expectations.
A65: Vesia | B65: Alex | C65: L | D65: 2025 | E65: 29 | F65: LAN | G65: NL | H65: LP | I65: 0.54 | J65: Y | K65: 53.7 | L65: 3 | M65: 51 | N65: 3 | O65: 0 | P65: 0 | Q65: 2 | R65: 7 | S65: 234 | T65: 7 | U65: 25 | V65: 2 | W65: 71 | X65: 186 | Y65: 45 | Z65: 33 | AA65: 10 | AB65: 2 | AC65: 0 | AD65: 22 | AE65: 3.69 | AF65: 48 | AG65: 7.3 | AH65: 2.8 | AI65: 10.9 | AJ65: 3.9 | AK65: 1.11 | AL65: 0.299 | AM65: 1.28 | AN65: 1.66 | AO65: 0.07 | AP65: 147 | AQ65: 89 | AR65: 39 | AS65: 8 | AT65: 8.29 | AU65: 69 | AV65: 21 | AW65: 0.26 | AX65: LP | AY65: 57.4 | AZ65: 3.81 | BA65: 72 | BB65: 36 | BC65: LP | BD65: 57.6 | BE65: 3.96 | BF65: 82 | BG65: 32 | BH65: 66.3 | BI65: 1.76 | BJ65: 3.33 | BK65: 61 | BL65: 1.93 | BM65: -22 | BN65: R | BO65: -9 | BP65: vesiaal01 | BQ65: 681911 | BR65: Lefty Serious Heat RP | BS65: Sam Hentges | BT65: Kris Bubic | BU65: Yuki Matsui | BV65: Approaching his prime years. Priced in-line with expectations.
A66: Williams | B66: Trevor | C66: R | D66: 2025 | E66: 33 | F66: WAS | G66: NL | H66: LP | I66: 0.66 | J66: Y | K66: 85.8 | L66: 5 | M66: 19 | N66: 12 | O66: 0 | P66: 0 | Q66: 0 | R66: 2 | S66: 281 | T66: 10 | U66: 23 | V66: 0 | W66: 59 | X66: 208 | Y66: 92 | Z66: 36 | AA66: 29 | AB66: 2 | AC66: 1 | AD66: 43 | AE66: 4.04 | AF66: 84 | AG66: 11.1 | AH66: 2.6 | AI66: 7.8 | AJ66: 3 | AK66: 1.34 | AL66: 0.279 | AM66: 1.35 | AN66: 1.82 | AO66: 0.07 | AP66: 40 | AQ66: 98 | AR66: 38 | AS66: 16 | AT66: 12.47 | AU66: 72 | AV66: 22 | AW66: 0.12 | AX66: LP | AY66: 66.9 | AZ66: 4.26 | BA66: 80 | BB66: 27 | BC66: LP | BD66: 60.9 | BE66: 4.16 | BF66: 86 | BG66: 27 | BH66: 66.7 | BI66: 2.03 | BJ66: 2.88 | BK66: 101 | BL66: 2.01 | BM66: -63 | BN66: O | BO66: -6 | BP66: willitr01 | BQ66: 592866 | BR66: Righty Starter | BS66: Ben Lively | BT66: Jameson Taillon | BU66: Miles Mikolas | BV66: Priced in-line with expectations. Could fetch value in trade.
A67: Herz | B67: DJ | C67: L | D67: 2025 | E67: 24 | F67: WAS | G67: NL | H67: LP | I67: 0.64 | J67: Y | K67: 95.3 | L67: 6 | M67: 23 | N67: 12 | O67: 0 | P67: 0 | Q67: 0 | R67: 2 | S67: 318 | T67: 10 | U67: 29 | V67: 0 | W67: 85 | X67: 222 | Y67: 87 | Z67: 37 | AA67: 5 | AB67: 4 | AC67: 1 | AD67: 50 | AE67: 4.11 | AF67: 82 | AG67: 10.1 | AH67: 2.9 | AI67: 10.4 | AJ67: 3.6 | AK67: 1.17 | AL67: 0.272 | AM67: 1.29 | AN67: 1.69 | AO67: 0.08 | AP67: 121 | AQ67: 99 | AR67: 37 | AS67: 15 | AT67: 16.41 | AU67: 75 | AV67: 23 | AW67: -0.08 | AX67: LP | AY67: 75.7 | AZ67: 3.94 | BA67: 74 | BB67: 37 | BC67: LP | BD67: 69 | BE67: 4.03 | BF67: 83 | BG67: 33 | BH67: 88.7 | BI67: 4.16 | BJ67: 3.68 | BK67: 50 | BL67: -0.05 | BM67: -13 | BN67: R | BO67: -20 | BP67: herzdj01 | BQ67: 687792 | BR67: Young Lefty Serious Heat Swing Starter | BS67: Nick Lodolo | BT67: Joey Cantillo | BU67: Kyle Harrison | BV67: Priced in-line with expectations.
A68: Rea | B68: Colin | C68: R | D68: 2025 | E68: 34 | F68: MIL | G68: NL | H68: LP | I68: 0.75 | J68: Y | K68: 114.5 | L68: 8 | M68: 33 | N68: 18 | O68: 0 | P68: 0 | Q68: 1 | R68: 3 | S68: 489 | T68: 19 | U68: 35 | V68: 1 | W68: 95 | X68: 346 | Y68: 132 | Z68: 40 | AA68: 25 | AB68: 7 | AC68: 0 | AD68: 70 | AE68: 4.44 | AF68: 111 | AG68: 8.6 | AH68: 2.7 | AI68: 7.4 | AJ68: 2.7 | AK68: 1.49 | AL68: 0.263 | AM68: 1.26 | AN68: 1.96 | AO68: 0.08 | AP68: 29 | AQ68: 107 | AR68: 37 | AS68: 17 | AT68: 23.18 | AU68: 78 | AV68: 24 | AW68: 0.03 | AX68: LP | AY68: 95.4 | AZ68: 4.5 | BA68: 85 | BB68: 28 | BC68: LP | BD68: 81.1 | BE68: 4.47 | BF68: 92 | BG68: 25 | BH68: 167.7 | BI68: 4.29 | BJ68: 4.6 | BK68: 39 | BL68: 0.15 | BM68: -2 | BN68: R | BO68: -87 | BP68: reaco01 | BQ68: 607067 | BR68: Righty Super Control Swing Starter | BS68: Miles Mikolas | BT68: Ben Lively | BU68: Lance Lynn | BV68: Should perform close to forecast. Priced in-line with expectations.
A69: Musgrove | B69: Joseph | C69: R | D69: 2025 | E69: 32 | F69: SDN | G69: NL | H69: LP | I69: 0.69 | J69: Y | K69: 91.7 | L69: 6 | M69: 21 | N69: 13 | O69: 0 | P69: 0 | Q69: 0 | R69: 2 | S69: 258 | T69: 10 | U69: 22 | V69: 0 | W69: 79 | X69: 245 | Y69: 98 | Z69: 37 | AA69: 13 | AB69: 7 | AC69: 0 | AD69: 37 | AE69: 4.1 | AF69: 87 | AG69: 10.9 | AH69: 3.6 | AI69: 9.7 | AJ69: 2.7 | AK69: 1.28 | AL69: 0.301 | AM69: 1.34 | AN69: 1.73 | AO69: 0.08 | AP69: 106 | AQ69: 99 | AR69: 37 | AS69: 16 | AT69: 14.73 | AU69: 81 | AV69: 25 | AW69: -0.04 | AX69: LP | AY69: 70.1 | AZ69: 3.95 | BA69: 74 | BB69: 35 | BC69: LP | BD69: 61.8 | BE69: 4.06 | BF69: 84 | BG69: 30 | BH69: 99.7 | BI69: 3.88 | BJ69: 3.87 | BK69: 46 | BL69: 0.22 | BM69: -9 | BN69: R | BO69: -38 | BP69: musgrjo01 | BQ69: 605397 | BR69: Righty Commanding Swing Starter | BS69: Tyler Glasnow | BT69: Zach Eflin | BU69: Zack Wheeler | BV69: Priced in-line with expectations.
A70: Knack | B70: Landon | C70: R | D70: 2025 | E70: 27 | F70: LAN | G70: NL | H70: LP | I70: 0.58 | J70: Y | K70: 87.3 | L70: 5 | M70: 21 | N70: 9 | O70: 0 | P70: 0 | Q70: 1 | R70: 3 | S70: 254 | T70: 10 | U70: 18 | V70: 0 | W70: 60 | X70: 181 | Y70: 74 | Z70: 36 | AA70: 2 | AB70: 4 | AC70: 1 | AD70: 38 | AE70: 4.01 | AF70: 66 | AG70: 10 | AH70: 3.2 | AI70: 9 | AJ70: 2.8 | AK70: 1.58 | AL70: 0.252 | AM70: 1.2 | AN70: 2.06 | AO70: 0.1 | AP70: 75 | AQ70: 97 | AR70: 37 | AS70: 13 | AT70: 13.58 | AU70: 82 | AV70: 26 | AW70: 0.32 | AX70: LP | AY70: 64.9 | AZ70: 4.33 | BA70: 81 | BB70: 25 | BC70: LP | BD70: 60.1 | BE70: 4.33 | BF70: 89 | BG70: 24 | BH70: 69 | BI70: 3.65 | BJ70: 4.54 | BK70: 22 | BL70: 0.36 | BM70: 15 | BN70: R | BO70: -9 | BP70: knackla01 | BQ70: 689017 | BR70: Righty Super Control Swing Starter | BS70: Christian Scott | BT70: Carson Spiers | BU70: Hayden Wesneski | BV70: Priced in-line with expectations.
A71: Megill | B71: Tylor | C71: R | D71: 2025 | E71: 29 | F71: NYN | G71: NL | H71: LP | I71: 0.64 | J71: Y | K71: 97.7 | L71: 6 | M71: 24 | N71: 12 | O71: 0 | P71: 0 | Q71: 0 | R71: 2 | S71: 361 | T71: 10 | U71: 30 | V71: 0 | W71: 74 | X71: 227 | Y71: 97 | Z71: 38 | AA71: 30 | AB71: 5 | AC71: 0 | AD71: 56 | AE71: 4.2 | AF71: 91 | AG71: 10.2 | AH71: 2.4 | AI71: 8.4 | AJ71: 3.4 | AK71: 1.09 | AL71: 0.268 | AM71: 1.31 | AN71: 1.59 | AO71: 0.06 | AP71: 54 | AQ71: 102 | AR71: 36 | AS71: 15 | AT71: 16.02 | AU71: 84 | AV71: 27 | AW71: -0.09 | AX71: LP | AY71: 77 | AZ71: 4.13 | BA71: 78 | BB71: 32 | BC71: LP | BD71: 69.4 | BE71: 4.11 | BF71: 85 | BG71: 31 | BH71: 78 | BI71: 4.04 | BJ71: 3.52 | BK71: 54 | BL71: 0.17 | BM71: -18 | BN71: R | BO71: -9 | BP71: megilty01 | BQ71: 656731 | BR71: Righty Power Swing Starter | BS71: Brady Singer | BT71: Hunter Brown | BU71: Freddy Peralta | BV71: Approaching his prime years. Priced in-line with expectations.
A72: Lodolo | B72: Nick | C72: L | D72: 2025 | E72: 27 | F72: CIN | G72: NL | H72: LP | I72: 0.63 | J72: Y | K72: 98.1 | L72: 6 | M72: 27 | N72: 14 | O72: 0 | P72: 0 | Q72: 0 | R72: 3 | S72: 375 | T72: 12 | U72: 30 | V72: 1 | W72: 95 | X72: 264 | Y72: 107 | Z72: 39 | AA72: 12 | AB72: 12 | AC72: 0 | AD72: 60 | AE72: 4.29 | AF72: 92 | AG72: 9.5 | AH72: 3.1 | AI72: 9.8 | AJ72: 3.1 | AK72: 1.24 | AL72: 0.284 | AM72: 1.31 | AN72: 1.73 | AO72: 0.08 | AP72: 100 | AQ72: 104 | AR72: 36 | AS72: 15 | AT72: 18.42 | AU72: 89 | AV72: 28 | AW72: -0.12 | AX72: LP | AY72: 82 | AZ72: 4.16 | BA72: 78 | BB72: 32 | BC72: LP | BD72: 72.7 | BE72: 4.17 | BF72: 86 | BG72: 30 | BH72: 115.3 | BI72: 4.76 | BJ72: 3.92 | BK72: 48 | BL72: -0.47 | BM72: -12 | BN72: R | BO72: -43 | BP72: lodolni01 | BQ72: 666157 | BR72: Lefty Power Swing Starter | BS72: Jesus Luzardo | BT72: DJ Herz | BU72: Garrett Crochet | BV72: Priced in-line with expectations.
A73: Ortiz | B73: Luis | C73: R | D73: 2025 | E73: 26 | F73: PIT | G73: NL | H73: LP | I73: 0.67 | J73: Y | K73: 123.5 | L73: 7 | M73: 35 | N73: 13 | O73: 0 | P73: 0 | Q73: 1 | R73: 10 | S73: 476 | T73: 14 | U73: 41 | V73: 2 | W73: 89 | X73: 317 | Y73: 112 | Z73: 40 | AA73: 22 | AB73: 7 | AC73: 1 | AD73: 61 | AE73: 4.42 | AF73: 106 | AG73: 8.9 | AH73: 2.2 | AI73: 7.5 | AJ73: 3.4 | AK73: 1.15 | AL73: 0.257 | AM73: 1.28 | AN73: 1.66 | AO73: 0.06 | AP73: 30 | AQ73: 107 | AR73: 35 | AS73: 13 | AT73: 20.11 | AU73: 91 | AV73: 29 | AW73: -0.12 | AX73: LP | AY73: 95.3 | AZ73: 4.35 | BA73: 82 | BB73: 31 | BC73: LP | BD73: 81.5 | BE73: 4.3 | BF73: 89 | BG73: 29 | BH73: 135.7 | BI73: 3.32 | BJ73: 4.18 | BK73: 44 | BL73: 1.1 | BM73: -9 | BN73: R | BO73: -54 | BP73: ortizlu03 | BQ73: 682847 | BR73: Young Swing Starter | BS73: Cooper Criswell | BT73: Randy Vásquez | BU73: Andre Pallante | BV73: Priced in-line with expectations.
A74: Mantiply | B74: Joe | C74: L | D74: 2025 | E74: 34 | F74: ARI | G74: NL | H74: LP | I74: 0.51 | J74: Y | K74: 44.6 | L74: 3 | M74: 48 | N74: 4 | O74: 0 | P74: 0 | Q74: 1 | R74: 7 | S74: 205 | T74: 5 | U74: 18 | V74: 3 | W74: 48 | X74: 166 | Y74: 47 | Z74: 34 | AA74: 9 | AB74: 1 | AC74: 0 | AD74: 24 | AE74: 3.76 | AF74: 39 | AG74: 6.7 | AH74: 2.7 | AI74: 8.2 | AJ74: 3 | AK74: 0.87 | AL74: 0.303 | AM74: 1.31 | AN74: 1.3 | AO74: 0.05 | AP74: 65 | AQ74: 91 | AR74: 35 | AS74: 7 | AT74: 5.03 | AU74: 92 | AV74: 30 | AW74: 0.09 | AX74: LP | AY74: 52.5 | AZ74: 3.69 | BA74: 69 | BB74: 38 | BC74: LP | BD74: 54.4 | BE74: 3.84 | BF74: 79 | BG74: 34 | BH74: 59.7 | BI74: 3.92 | BJ74: 2.36 | BK74: 195 | BL74: -0.17 | BM74: -160 | BN74: R | BO74: -5 | BP74: mantijo01 | BQ74: 573009 | BR74: Lefty Control RP | BS74: Taylor Rogers | BT74: Daniel Coulombe | BU74: Tanner Banks | BV74: Priced in-line with expectations.
A75: Garrett | B75: Reed | C75: R | D75: 2025 | E75: 32 | F75: NYN | G75: NL | H75: LP | I75: 0.42 | J75: Y | K75: 47.5 | L75: 2 | M75: 38 | N75: 3 | O75: 0 | P75: 0 | Q75: 2 | R75: 10 | S75: 292 | T75: 7 | U75: 24 | V75: 1 | W75: 56 | X75: 160 | Y75: 42 | Z75: 34 | AA75: 7 | AB75: 3 | AC75: 0 | AD75: 29 | AE75: 3.79 | AF75: 39 | AG75: 5.7 | AH75: 2.4 | AI75: 8.9 | AJ75: 3.5 | AK75: 0.99 | AL75: 0.273 | AM75: 1.23 | AN75: 1.49 | AO75: 0.06 | AP75: 76 | AQ75: 92 | AR75: 34 | AS75: 7 | AT75: 5.92 | AU75: 95 | AV75: 31 | AW75: 0.23 | AX75: LP | AY75: 58.9 | AZ75: 3.95 | BA75: 74 | BB75: 32 | BC75: LP | BD75: 61.2 | BE75: 4.02 | BF75: 83 | BG75: 31 | BH75: 57.3 | BI75: 3.77 | BJ75: 3.24 | BK75: 63 | BL75: 0.02 | BM75: -29 | BN75: R | BO75: 4 | BP75: garrere01 | BQ75: 657585 | BR75: Righty Power RP | BS75: Pierce Johnson | BT75: Ryne Stanek | BU75: Hector Neris | BV75: Priced in-line with expectations. Trade bait?
A76: Junis | B76: Jakob | C76: R | D76: 2025 | E76: 32 | F76: CIN | G76: NL | H76: LP | I76: 0.62 | J76: Y | K76: 58.9 | L76: 4 | M76: 28 | N76: 6 | O76: 0 | P76: 0 | Q76: 1 | R76: 4 | S76: 222 | T76: 8 | U76: 17 | V76: 0 | W76: 58 | X76: 193 | Y76: 63 | Z76: 35 | AA76: 13 | AB76: 3 | AC76: 0 | AD76: 26 | AE76: 3.94 | AF76: 52 | AG76: 7.9 | AH76: 3.5 | AI76: 8.8 | AJ76: 2.5 | AK76: 1.26 | AL76: 0.3 | AM76: 1.3 | AN76: 1.68 | AO76: 0.07 | AP76: 82 | AQ76: 95 | AR76: 33 | AS76: 9 | AT76: 8.11 | AU76: 98 | AV76: 32 | AW76: 0.13 | AX76: LP | AY76: 57.2 | AZ76: 3.95 | BA76: 74 | BB76: 32 | BC76: LP | BD76: 56 | BE76: 4.07 | BF76: 84 | BG76: 28 | BH76: 67 | BI76: 2.69 | BJ76: 3.68 | BK76: 44 | BL76: 1.25 | BM76: -10 | BN76: R | BO76: -11 | BP76: junisja01 | BQ76: 596001 | BR76: Righty Commanding Long Relief | BS76: Grant Holmes | BT76: Joseph Musgrove | BU76: Bowden Francis | BV76: Priced in-line with expectations. Trade bait?
A77: Harrison | B77: Kyle | C77: L | D77: 2025 | E77: 23 | F77: SFN | G77: NL | H77: LP | I77: 0.64 | J77: Y | K77: 113.7 | L77: 7 | M77: 29 | N77: 15 | O77: 0 | P77: 0 | Q77: 0 | R77: 3 | S77: 423 | T77: 15 | U77: 35 | V77: 1 | W77: 98 | X77: 296 | Y77: 120 | Z77: 40 | AA77: 14 | AB77: 7 | AC77: 1 | AD77: 65 | AE77: 4.48 | AF77: 106 | AG77: 9.8 | AH77: 2.8 | AI77: 9.1 | AJ77: 3.2 | AK77: 1.41 | AL77: 0.283 | AM77: 1.35 | AN77: 1.92 | AO77: 0.08 | AP77: 68 | AQ77: 108 | AR77: 33 | AS77: 14 | AT77: 18.91 | AU77: 99 | AV77: 33 | AW77: -0.16 | AX77: LP | AY77: 90.9 | AZ77: 4.34 | BA77: 82 | BB77: 30 | BC77: LP | BD77: 79.8 | BE77: 4.32 | BF77: 89 | BG77: 28 | BH77: 124.3 | BI77: 4.56 | BJ77: 4.28 | BK77: 39 | BL77: -0.08 | BM77: -6 | BN77: R | BO77: -45 | BP77: harriky01 | BQ77: 690986 | BR77: Young Lefty Power Swing Starter | BS77: Ryan Weathers | BT77: Joey Cantillo | BU77: DJ Herz | BV77: Priced in-line with expectations.
A78: Harvey | B78: Hunter | C78: R | D78: 2025 | E78: 30 | F78: WAS | G78: NL | H78: LP | I78: 0.5 | J78: Y | K78: 46.4 | L78: 3 | M78: 45 | N78: 1 | O78: 0 | P78: 0 | Q78: 5 | R78: 12 | S78: 236 | T78: 5 | U78: 16 | V78: 1 | W78: 55 | X78: 156 | Y78: 39 | Z78: 34 | AA78: 8 | AB78: 3 | AC78: 0 | AD78: 23 | AE78: 3.8 | AF78: 34 | AG78: 5.7 | AH78: 3.4 | AI78: 9.2 | AJ78: 2.7 | AK78: 0.88 | AL78: 0.281 | AM78: 1.13 | AN78: 1.28 | AO78: 0.05 | AP78: 104 | AQ78: 92 | AR78: 33 | AS78: 6 | AT78: 7.75 | AU78: 100 | AV78: 34 | AW78: 0.04 | AX78: LP | AY78: 54.1 | AZ78: 3.6 | BA78: 68 | BB78: 43 | BC78: LP | BD78: 57.2 | BE78: 3.84 | BF78: 79 | BG78: 35 | BH78: 45 | BI78: 4.2 | BJ78: 3.1 | BK78: 67 | BL78: -0.4 | BM78: -34 | BN78: R | BO78: 12 | BP78: harvehu01 | BQ78: 640451 | BR78: Righty Commanding RP | BS78: Will Vest | BT78: Joel Payamps | BU78: Griffin Jax | BV78: In prime. Priced in-line with expectations. Trade bait?
A79: Bender | B79: Anthony | C79: R | D79: 2025 | E79: 30 | F79: MIA | G79: NL | H79: LP | I79: 0.47 | J79: Y | K79: 44.6 | L79: 2 | M79: 41 | N79: 2 | O79: 0 | P79: 0 | Q79: 1 | R79: 8 | S79: 240 | T79: 5 | U79: 18 | V79: 1 | W79: 50 | X79: 150 | Y79: 40 | Z79: 34 | AA79: 2 | AB79: 3 | AC79: 0 | AD79: 24 | AE79: 3.78 | AF79: 35 | AG79: 5.8 | AH79: 2.7 | AI79: 8.6 | AJ79: 3 | AK79: 0.85 | AL79: 0.288 | AM79: 1.22 | AN79: 1.28 | AO79: 0.05 | AP79: 81 | AQ79: 91 | AR79: 33 | AS79: 6 | AT79: 5.22 | AU79: 101 | AV79: 35 | AW79: 0.11 | AX79: LP | AY79: 55.5 | AZ79: 3.73 | BA79: 70 | BB79: 38 | BC79: LP | BD79: 58.1 | BE79: 3.89 | BF79: 80 | BG79: 33 | BH79: 53 | BI79: 4.08 | BJ79: 2.94 | BK79: 86 | BL79: -0.29 | BM79: -53 | BN79: R | BO79: 5 | BP79: bendean01 | BQ79: 669622 | BR79: Righty Power RP | BS79: Will Vest | BT79: Joe Jimenez | BU79: Kevin Ginkel | BV79: In prime. Priced in-line with expectations. Trade bait?
A80: Weathers | B80: Ryan | C80: L | D80: 2025 | E80: 25 | F80: MIA | G80: NL | H80: LP | I80: 0.56 | J80: Y | K80: 89.8 | L80: 5 | M80: 26 | N80: 12 | O80: 0 | P80: 0 | Q80: 0 | R80: 3 | S80: 336 | T80: 11 | U80: 28 | V80: 1 | W80: 72 | X80: 234 | Y80: 99 | Z80: 39 | AA80: 23 | AB80: 7 | AC80: 1 | AD80: 54 | AE80: 4.32 | AF80: 89 | AG80: 10.4 | AH80: 2.5 | AI80: 8.5 | AJ80: 3.3 | AK80: 1.32 | AL80: 0.277 | AM80: 1.35 | AN80: 1.84 | AO80: 0.08 | AP80: 53 | AQ80: 105 | AR80: 32 | AS80: 13 | AT80: 14.31 | AU80: 102 | AV80: 36 | AW80: 0 | AX80: LP | AY80: 74.9 | AZ80: 4.38 | BA80: 82 | BB80: 26 | BC80: LP | BD80: 68.8 | BE80: 4.33 | BF80: 89 | BG80: 26 | BH80: 86.7 | BI80: 3.63 | BJ80: 4.05 | BK80: 36 | BL80: 0.69 | BM80: -4 | BN80: R | BO80: -18 | BP80: weathry01 | BQ80: 677960 | BR80: Young Lefty Power Swing Starter | BS80: Kyle Harrison | BT80: Matthew Liberatore | BU80: Logan Allen | BV80: Priced in-line with expectations.
A81: Peterson | B81: David | C81: L | D81: 2025 | E81: 29 | F81: NYN | G81: NL | H81: LP | I81: 0.7 | J81: Y | K81: 104.3 | L81: 7 | M81: 29 | N81: 15 | O81: 0 | P81: 0 | Q81: 0 | R81: 3 | S81: 363 | T81: 10 | U81: 38 | V81: 0 | W81: 93 | X81: 287 | Y81: 115 | Z81: 40 | AA81: 24 | AB81: 6 | AC81: 1 | AD81: 49 | AE81: 4.44 | AF81: 111 | AG81: 11.1 | AH81: 2.5 | AI81: 9.3 | AJ81: 3.8 | AK81: 1.03 | AL81: 0.301 | AM81: 1.45 | AN81: 1.56 | AO81: 0.06 | AP81: 76 | AQ81: 107 | AR81: 32 | AS81: 13 | AT81: 16.25 | AU81: 103 | AV81: 37 | AW81: -0.34 | AX81: LP | AY81: 82.1 | AZ81: 4.05 | BA81: 76 | BB81: 35 | BC81: LP | BD81: 71.2 | BE81: 4.1 | BF81: 85 | BG81: 31 | BH81: 121 | BI81: 2.9 | BJ81: 3.77 | BK81: 55 | BL81: 1.54 | BM81: -23 | BN81: R | BO81: -50 | BP81: peterda01 | BQ81: 656849 | BR81: Lefty Power Top Starter | BS81: Patrick Sandoval | BT81: Trevor Rogers | BU81: MacKenzie Gore | BV81: Approaching his prime years. Priced in-line with expectations. Trade bait?
A82: Milner | B82: Hoby | C82: L | D82: 2025 | E82: 34 | F82: MIL | G82: NL | H82: LP | I82: 0.56 | J82: Y | K82: 49.8 | L82: 3 | M82: 50 | N82: 3 | O82: 0 | P82: 0 | Q82: 1 | R82: 8 | S82: 237 | T82: 6 | U82: 17 | V82: 1 | W82: 55 | X82: 181 | Y82: 50 | Z82: 35 | AA82: 8 | AB82: 2 | AC82: 0 | AD82: 25 | AE82: 3.91 | AF82: 42 | AG82: 6.4 | AH82: 3.2 | AI82: 8.4 | AJ82: 2.6 | AK82: 0.97 | AL82: 0.294 | AM82: 1.23 | AN82: 1.37 | AO82: 0.05 | AP82: 74 | AQ82: 94 | AR82: 32 | AS82: 7 | AT82: 6.81 | AU82: 105 | AV82: 38 | AW82: 0.01 | AX82: LP | AY82: 56 | AZ82: 3.74 | BA82: 70 | BB82: 38 | BC82: LP | BD82: 57 | BE82: 3.92 | BF82: 81 | BG82: 33 | BH82: 64.7 | BI82: 4.73 | BJ82: 3.1 | BK82: 77 | BL82: -0.83 | BM82: -45 | BN82: R | BO82: -8 | BP82: milneho01 | BQ82: 571948 | BR82: Lefty Super Control RP | BS82: Joe Mantiply | BT82: Tanner Banks | BU82: Taylor Rogers | BV82: Priced in-line with expectations. Trade bait?
A83: Darvish | B83: Yu | C83: R | D83: 2025 | E83: 38 | F83: SDN | G83: NL | H83: LP | I83: 0.7 | J83: Y | K83: 84.7 | L83: 6 | M83: 16 | N83: 13 | O83: 0 | P83: 0 | Q83: 0 | R83: 2 | S83: 239 | T83: 9 | U83: 21 | V83: 0 | W83: 66 | X83: 218 | Y83: 85 | Z83: 38 | AA83: 20 | AB83: 4 | AC83: 0 | AD83: 36 | AE83: 4.23 | AF83: 75 | AG83: 10.3 | AH83: 3.1 | AI83: 8.9 | AJ83: 2.9 | AK83: 1.3 | AL83: 0.279 | AM83: 1.3 | AN83: 1.77 | AO83: 0.08 | AP83: 73 | AQ83: 102 | AR83: 32 | AS83: 15 | AT83: 13.26 | AU83: 106 | AV83: 39 | AW83: -0.08 | AX83: LP | AY83: 64.5 | AZ83: 4.05 | BA83: 76 | BB83: 31 | BC83: LP | BD83: 57.5 | BE83: 4.15 | BF83: 86 | BG83: 27 | BH83: 81.7 | BI83: 3.31 | BJ83: 4.01 | BK83: 36 | BL83: 0.92 | BM83: -5 | BN83: R | BO83: -24 | BP83: darviyu01 | BQ83: 506433 | BR83: Aging Power Starter | BS83: Max Scherzer | BT83: Merrill Kelly | BU83: Justin Verlander | BV83: Should perform close to forecast. Priced in-line with expectations. Trade bait?
A84: Turnbull | B84: Spencer | C84: R | D84: 2025 | E84: 32 | F84: PHI | G84: NL | H84: LP | I84: 0.47 | J84: Y | K84: 61.2 | L84: 4 | M84: 22 | N84: 7 | O84: 0 | P84: 0 | Q84: 0 | R84: 4 | S84: 227 | T84: 7 | U84: 21 | V84: 0 | W84: 49 | X84: 159 | Y84: 58 | Z84: 37 | AA84: 15 | AB84: 5 | AC84: 0 | AD84: 33 | AE84: 4.06 | AF84: 54 | AG84: 9.1 | AH84: 2.4 | AI84: 8.5 | AJ84: 3.6 | AK84: 1.17 | AL84: 0.263 | AM84: 1.3 | AN84: 1.7 | AO84: 0.07 | AP84: 55 | AQ84: 98 | AR84: 30 | AS84: 9 | AT84: 7.9 | AU84: 108 | AV84: 40 | AW84: 0.17 | AX84: LP | AY84: 56.3 | AZ84: 4.24 | BA84: 80 | BB84: 25 | BC84: LP | BD84: 55.5 | BE84: 4.23 | BF84: 87 | BG84: 25 | BH84: 54.3 | BI84: 2.65 | BJ84: 3.82 | BK84: 35 | BL84: 1.41 | BM84: -4 | BN84: R | BO84: 1 | BP84: turnbsp01 | BQ84: 605513 | BR84: Righty Power Swing Starter | BS84: Vincent Velasquez | BT84: Charlie Morton | BU84: Merrill Kelly | BV84: Priced in-line with expectations. Trade bait?
A85: Farmer | B85: Buck | C85: R | D85: 2025 | E85: 34 | F85: CIN | G85: NL | H85: LP | I85: 0.58 | J85: Y | K85: 55.3 | L85: 3 | M85: 54 | N85: 2 | O85: 0 | P85: 0 | Q85: 4 | R85: 14 | S85: 278 | T85: 7 | U85: 26 | V85: 2 | W85: 62 | X85: 193 | Y85: 49 | Z85: 36 | AA85: 11 | AB85: 4 | AC85: 0 | AD85: 27 | AE85: 4.02 | AF85: 48 | AG85: 6.7 | AH85: 2.4 | AI85: 8.4 | AJ85: 3.6 | AK85: 1 | AL85: 0.261 | AM85: 1.21 | AN85: 1.51 | AO85: 0.06 | AP85: 57 | AQ85: 97 | AR85: 30 | AS85: 7 | AT85: 9.15 | AU85: 110 | AV85: 41 | AW85: 0.04 | AX85: LP | AY85: 59.6 | AZ85: 3.97 | BA85: 75 | BB85: 32 | BC85: LP | BD85: 59.7 | BE85: 4.07 | BF85: 84 | BG85: 29 | BH85: 71 | BI85: 3.04 | BJ85: 3.73 | BK85: 43 | BL85: 0.98 | BM85: -12 | BN85: R | BO85: -11 | BP85: farmebu01 | BQ85: 571656 | BR85: Righty Power Long Relief | BS85: David Robertson | BT85: Adam Ottavino | BU85: Hector Neris | BV85: Priced in-line with expectations. Trade bait?
A86: Fernandez | B86: Ryan | C86: R | D86: 2025 | E86: 27 | F86: SLN | G86: NL | H86: LP | I86: 0.57 | J86: Y | K86: 56.2 | L86: 3 | M86: 44 | N86: 3 | O86: 0 | P86: 0 | Q86: 1 | R86: 10 | S86: 253 | T86: 5 | U86: 26 | V86: 3 | W86: 61 | X86: 178 | Y86: 48 | Z86: 36 | AA86: 1 | AB86: 2 | AC86: 0 | AD86: 25 | AE86: 3.96 | AF86: 48 | AG86: 7.3 | AH86: 2.4 | AI86: 9.3 | AJ86: 3.9 | AK86: 0.81 | AL86: 0.301 | AM86: 1.33 | AN86: 1.33 | AO86: 0.05 | AP86: 86 | AQ86: 96 | AR86: 30 | AS86: 6 | AT86: 5.95 | AU86: 111 | AV86: 42 | AW86: -0.09 | AX86: LP | AY86: 60.5 | AZ86: 3.73 | BA86: 70 | BB86: 40 | BC86: LP | BD86: 60.6 | BE86: 3.88 | BF86: 80 | BG86: 35 | BH86: 66.7 | BI86: 3.51 | BJ86: 3.18 | BK86: 71 | BL86: 0.45 | BM86: -41 | BN86: R | BO86: -6 | BP86: fernary01 | BQ86: 681676 | BR86: Righty Power Long Relief | BS86: Shawn Dubin | BT86: Nick Mears | BU86: Landen Roupp | BV86: Priced in-line with expectations.
A87: Lynn | B87: Lance | C87: R | D87: 2025 | E87: 38 | F87: SLN | G87: NL | H87: LP | I87: 0.74 | J87: Y | K87: 100.6 | L87: 7 | M87: 23 | N87: 17 | O87: 0 | P87: 0 | Q87: 0 | R87: 2 | S87: 406 | T87: 16 | U87: 33 | V87: 1 | W87: 85 | X87: 281 | Y87: 113 | Z87: 41 | AA87: 34 | AB87: 4 | AC87: 0 | AD87: 65 | AE87: 4.61 | AF87: 99 | AG87: 9.3 | AH87: 2.6 | AI87: 8 | AJ87: 3.1 | AK87: 1.5 | AL87: 0.266 | AM87: 1.31 | AN87: 2.01 | AO87: 0.09 | AP87: 35 | AQ87: 111 | AR87: 30 | AS87: 15 | AT87: 18.04 | AU87: 113 | AV87: 43 | AW87: -0.23 | AX87: LP | AY87: 82.3 | AZ87: 4.46 | BA87: 84 | BB87: 26 | BC87: LP | BD87: 71.7 | BE87: 4.38 | BF87: 90 | BG87: 25 | BH87: 117.3 | BI87: 3.84 | BJ87: 4.22 | BK87: 39 | BL87: 0.77 | BM87: -9 | BN87: R | BO87: -46 | BP87: lynnla01 | BQ87: 458681 | BR87: Aging Swing Starter | BS87: Kenta Maeda | BT87: Justin Verlander | BU87: Carlos Carrasco | BV87: Should perform close to forecast. Role player, not a keeper. Trade bait?
A88: Butto | B88: José | C88: R | D88: 2025 | E88: 27 | F88: NYN | G88: NL | H88: LP | I88: 0.51 | J88: Y | K88: 73.3 | L88: 4 | M88: 29 | N88: 7 | O88: 0 | P88: 0 | Q88: 1 | R88: 5 | S88: 298 | T88: 7 | U88: 30 | V88: 1 | W88: 67 | X88: 202 | Y88: 57 | Z88: 38 | AA88: 11 | AB88: 4 | AC88: 1 | AD88: 33 | AE88: 4.18 | AF88: 60 | AG88: 8 | AH88: 2.2 | AI88: 9 | AJ88: 4 | AK88: 0.97 | AL88: 0.248 | AM88: 1.23 | AN88: 1.52 | AO88: 0.06 | AP88: 67 | AQ88: 101 | AR88: 30 | AS88: 9 | AT88: 11.23 | AU88: 114 | AV88: 44 | AW88: -0.07 | AX88: LP | AY88: 65.6 | AZ88: 4.06 | BA88: 76 | BB88: 31 | BC88: LP | BD88: 62.6 | BE88: 4.12 | BF88: 85 | BG88: 29 | BH88: 74 | BI88: 2.55 | BJ88: 3.89 | BK88: 38 | BL88: 1.63 | BM88: -8 | BN88: R | BO88: -11 | BP88: buttojo01 | BQ88: 676130 | BR88: Righty Power Swing Starter | BS88: Landen Roupp | BT88: Carmen Mlodzinski | BU88: Jordan Hicks | BV88: Priced in-line with expectations.
A89: Johnson | B89: Pierce | C89: R | D89: 2025 | E89: 34 | F89: ATL | G89: NL | H89: LP | I89: 0.51 | J89: Y | K89: 46.8 | L89: 3 | M89: 51 | N89: 2 | O89: 0 | P89: 0 | Q89: 6 | R89: 16 | S89: 244 | T89: 7 | U89: 24 | V89: 1 | W89: 63 | X89: 168 | Y89: 45 | Z89: 36 | AA89: 11 | AB89: 2 | AC89: 0 | AD89: 24 | AE89: 3.96 | AF89: 45 | AG89: 7 | AH89: 2.6 | AI89: 9.8 | AJ89: 3.8 | AK89: 1.07 | AL89: 0.299 | AM89: 1.3 | AN89: 1.61 | AO89: 0.07 | AP89: 101 | AQ89: 96 | AR89: 30 | AS89: 6 | AT89: 7.61 | AU89: 115 | AV89: 45 | AW89: -0.28 | AX89: EP | AY89: 57.2 | AZ89: 3.65 | BA89: 69 | BB89: 41 | BC89: LP | BD89: 58.7 | BE89: 3.68 | BF89: 76 | BG89: 41 | BH89: 56.3 | BI89: 3.67 | BJ89: 3.53 | BK89: 46 | BL89: 0.28 | BM89: -17 | BN89: R | BO89: 2 | BP89: johnspi01 | BQ89: 572955 | BR89: Righty Power RP | BS89: Hector Neris | BT89: Ryne Stanek | BU89: Reed Garrett | BV89: Role player, not a keeper. Trade bait?
A90: Hicks | B90: Jordan | C90: R | D90: 2025 | E90: 28 | F90: SFN | G90: NL | H90: LP | I90: 0.63 | J90: Y | K90: 100.6 | L90: 6 | M90: 46 | N90: 10 | O90: 0 | P90: 0 | Q90: 5 | R90: 12 | S90: 343 | T90: 9 | U90: 37 | V90: 1 | W90: 86 | X90: 260 | Y90: 103 | Z90: 41 | AA90: 16 | AB90: 7 | AC90: 1 | AD90: 49 | AE90: 4.52 | AF90: 102 | AG90: 11.1 | AH90: 2.3 | AI90: 9.3 | AJ90: 4 | AK90: 0.98 | AL90: 0.291 | AM90: 1.43 | AN90: 1.53 | AO90: 0.06 | AP90: 71 | AQ90: 109 | AR90: 29 | AS90: 8 | AT90: 16.54 | AU90: 116 | AV90: 46 | AW90: -0.62 | AX90: EP | AY90: 81.4 | AZ90: 3.9 | BA90: 73 | BB90: 40 | BC90: LP | BD90: 71.6 | BE90: 3.9 | BF90: 80 | BG90: 37 | BH90: 109.7 | BI90: 4.1 | BJ90: 4.33 | BK90: 34 | BL90: 0.41 | BM90: -5 | BN90: R | BO90: -38 | BP90: hicksjo03 | BQ90: 663855 | BR90: Righty Power Long Relief | BS90: José Butto | BT90: José Soriano | BU90: Beau Brieske | BV90: Priced in-line with expectations.
A91: Pallante | B91: Andre | C91: R | D91: 2025 | E91: 26 | F91: SLN | G91: NL | H91: LP | I91: 0.67 | J91: Y | K91: 101.2 | L91: 7 | M91: 43 | N91: 10 | O91: 0 | P91: 0 | Q91: 0 | R91: 5 | S91: 361 | T91: 9 | U91: 38 | V91: 0 | W91: 78 | X91: 288 | Y91: 117 | Z91: 41 | AA91: 20 | AB91: 4 | AC91: 1 | AD91: 52 | AE91: 4.58 | AF91: 112 | AG91: 11.3 | AH91: 2.1 | AI91: 7.9 | AJ91: 3.8 | AK91: 0.91 | AL91: 0.295 | AM91: 1.47 | AN91: 1.44 | AO91: 0.05 | AP91: 37 | AQ91: 111 | AR91: 29 | AS91: 8 | AT91: 14.29 | AU91: 117 | AV91: 47 | AW91: -0.47 | AX91: LP | AY91: 81.9 | AZ91: 4.08 | BA91: 77 | BB91: 34 | BC91: LP | BD91: 72.1 | BE91: 4.11 | BF91: 85 | BG91: 31 | BH91: 121.3 | BI91: 3.78 | BJ91: 3.79 | BK91: 55 | BL91: 0.8 | BM91: -25 | BN91: R | BO91: -49 | BP91: pallaan01 | BQ91: 669467 | BR91: Young Swing Starter | BS91: José Soriano | BT91: Rhett Lowder | BU91: Luis Ortiz | BV91: Priced in-line with expectations.
A92: Estrada | B92: Jeremiah | C92: R | D92: 2025 | E92: 26 | F92: SDN | G92: NL | H92: LP | I92: 0.41 | J92: Y | K92: 59.6 | L92: 3 | M92: 43 | N92: 3 | O92: 0 | P92: 0 | Q92: 1 | R92: 11 | S92: 305 | T92: 7 | U92: 25 | V92: 1 | W92: 69 | X92: 175 | Y92: 43 | Z92: 36 | AA92: 7 | AB92: 2 | AC92: 0 | AD92: 30 | AE92: 4.02 | AF92: 41 | AG92: 5.7 | AH92: 2.8 | AI92: 10.1 | AJ92: 3.4 | AK92: 1 | AL92: 0.277 | AM92: 1.17 | AN92: 1.49 | AO92: 0.06 | AP92: 119 | AQ92: 97 | AR92: 29 | AS92: 6 | AT92: 7.62 | AU92: 118 | AV92: 48 | AW92: -0.25 | AX92: LP | AY92: 65 | AZ92: 3.67 | BA92: 69 | BB92: 43 | BC92: LP | BD92: 65.5 | BE92: 3.77 | BF92: 78 | BG92: 40 | BH92: 61 | BI92: 2.95 | BJ92: 2.14 | BK92: 278 | BL92: 1.07 | BM92: -249 | BN92: R | BO92: 4 | BP92: estraje01 | BQ92: 669093 | BR92: Young Serious Heat Long Relief | BS92: Bryan Abreu | BT92: Nick Mears | BU92: Randy Rodríguez | BV92: Priced in-line with expectations.
A93: Matsui | B93: Yuki | C93: L | D93: 2025 | E93: 29 | F93: SDN | G93: NL | H93: LP | I93: 0.56 | J93: Y | K93: 48.9 | L93: 3 | M93: 44 | N93: 3 | O93: 0 | P93: 0 | Q93: 0 | R93: 9 | S93: 231 | T93: 7 | U93: 22 | V93: 2 | W93: 57 | X93: 166 | Y93: 41 | Z93: 36 | AA93: 4 | AB93: 1 | AC93: 0 | AD93: 23 | AE93: 3.96 | AF93: 38 | AG93: 6.3 | AH93: 2.6 | AI93: 9.3 | AJ93: 3.6 | AK93: 1.16 | AL93: 0.272 | AM93: 1.23 | AN93: 1.69 | AO93: 0.07 | AP93: 83 | AQ93: 96 | AR93: 29 | AS93: 6 | AT93: 5.69 | AU93: 119 | AV93: 49 | AW93: 0.13 | AX93: LP | AY93: 55.9 | AZ93: 4 | BA93: 75 | BB93: 30 | BC93: LP | BD93: 57.3 | BE93: 4.09 | BF93: 84 | BG93: 28 | BH93: 62.7 | BI93: 3.73 | BJ93: 3.72 | BK93: 41 | BL93: 0.23 | BM93: -12 | BN93: R | BO93: -5 | BP93: matsuyu01 | BQ93: 673513 | BR93: Lefty Power RP | BS93: Bryan King | BT93: Alex Vesia | BU93: Bryan Hudson | BV93: Approaching his prime years. Priced in-line with expectations. Trade bait?
A94: Banda | B94: Anthony | C94: L | D94: 2025 | E94: 31 | F94: LAN | G94: NL | H94: LP | I94: 0.39 | J94: Y | K94: 46.7 | L94: 3 | M94: 36 | N94: 4 | O94: 0 | P94: 0 | Q94: 1 | R94: 9 | S94: 259 | T94: 6 | U94: 19 | V94: 2 | W94: 46 | X94: 146 | Y94: 43 | Z94: 36 | AA94: 4 | AB94: 3 | AC94: 0 | AD94: 28 | AE94: 3.96 | AF94: 39 | AG94: 6.3 | AH94: 2.4 | AI94: 7.7 | AJ94: 3.2 | AK94: 1.02 | AL94: 0.269 | AM94: 1.24 | AN94: 1.48 | AO94: 0.06 | AP94: 45 | AQ94: 96 | AR94: 29 | AS94: 6 | AT94: 4.81 | AU94: 121 | AV94: 50 | AW94: 0.15 | AX94: LP | AY94: 55.9 | AZ94: 4.04 | BA94: 76 | BB94: 29 | BC94: LP | BD94: 58.5 | BE94: 4.11 | BF94: 85 | BG94: 28 | BH94: 49.7 | BI94: 3.08 | BJ94: 3.34 | BK94: 54 | BL94: 0.88 | BM94: -25 | BN94: R | BO94: 9 | BP94: bandaan01 | BQ94: 607455 | BR94: Lefty Control RP | BS94: John King | BT94: Colin Poche | BU94: Taylor Rogers | BV94: In prime. Role player, not a keeper. Trade bait?
A95: Thompson | B95: Ryan | C95: R | D95: 2025 | E95: 33 | F95: ARI | G95: NL | H95: LP | I95: 0.5 | J95: Y | K95: 50.1 | L95: 3 | M95: 48 | N95: 2 | O95: 0 | P95: 0 | Q95: 1 | R95: 7 | S95: 246 | T95: 6 | U95: 18 | V95: 1 | W95: 48 | X95: 175 | Y95: 49 | Z95: 36 | AA95: 7 | AB95: 3 | AC95: 0 | AD95: 26 | AE95: 4.03 | AF95: 42 | AG95: 6.4 | AH95: 2.7 | AI95: 7.4 | AJ95: 2.8 | AK95: 0.94 | AL95: 0.276 | AM95: 1.22 | AN95: 1.36 | AO95: 0.05 | AP95: 44 | AQ95: 97 | AR95: 29 | AS95: 6 | AT95: 6.31 | AU95: 123 | AV95: 51 | AW95: -0.03 | AX95: LP | AY95: 56.6 | AZ95: 3.91 | BA95: 73 | BB95: 33 | BC95: LP | BD95: 57.7 | BE95: 3.99 | BF95: 82 | BG95: 31 | BH95: 66.3 | BI95: 3.26 | BJ95: 3.27 | BK95: 65 | BL95: 0.77 | BM95: -36 | BN95: R | BO95: -9 | BP95: thompry02 | BQ95: 657044 | BR95: Righty Super Control RP | BS95: Burch Smith | BT95: Blake Treinen | BU95: Chris Martin | BV95: Role player, not a keeper. Trade bait?
A96: Cabrera | B96: Edward | C96: R | D96: 2025 | E96: 27 | F96: MIA | G96: NL | H96: LP | I96: 0.65 | J96: Y | K96: 103.2 | L96: 6 | M96: 27 | N96: 14 | O96: 0 | P96: 0 | Q96: 0 | R96: 3 | S96: 394 | T96: 12 | U96: 42 | V96: 0 | W96: 92 | X96: 255 | Y96: 92 | Z96: 42 | AA96: 22 | AB96: 5 | AC96: 1 | AD96: 60 | AE96: 4.62 | AF96: 93 | AG96: 9.6 | AH96: 2.2 | AI96: 9.4 | AJ96: 4.3 | AK96: 1.2 | AL96: 0.248 | AM96: 1.31 | AN96: 1.81 | AO96: 0.07 | AP96: 64 | AQ96: 112 | AR96: 28 | AS96: 11 | AT96: 18.35 | AU96: 124 | AV96: 52 | AW96: -0.31 | AX96: LP | AY96: 81.5 | AZ96: 4.32 | BA96: 81 | BB96: 29 | BC96: LP | BD96: 72.6 | BE96: 4.32 | BF96: 89 | BG96: 27 | BH96: 96.3 | BI96: 4.95 | BJ96: 4.57 | BK96: 27 | BL96: -0.33 | BM96: 2 | BN96: R | BO96: -24 | BP96: cabreed02 | BQ96: 665795 | BR96: Righty Power Swing Starter | BS96: Gavin Williams | BT96: Luis Gil | BU96: Yariel Rodríguez | BV96: Priced in-line with expectations.
A97: Ottavino | B97: Adam | C97: R | D97: 2025 | E97: 39 | F97: NYN | G97: NL | H97: LP | I97: 0.54 | J97: Y | K97: 39.3 | L97: 3 | M97: 50 | N97: 2 | O97: 0 | P97: 0 | Q97: 5 | R97: 14 | S97: 201 | T97: 6 | U97: 22 | V97: 1 | W97: 54 | X97: 160 | Y97: 41 | Z97: 36 | AA97: 8 | AB97: 4 | AC97: 1 | AD97: 20 | AE97: 3.96 | AF97: 41 | AG97: 7.2 | AH97: 2.5 | AI97: 9.3 | AJ97: 3.8 | AK97: 1.05 | AL97: 0.292 | AM97: 1.31 | AN97: 1.59 | AO97: 0.06 | AP97: 82 | AQ97: 96 | AR97: 28 | AS97: 6 | AT97: 6.19 | AU97: 126 | AV97: 53 | AW97: -0.22 | AX97: EP | AY97: 51.4 | AZ97: 3.77 | BA97: 71 | BB97: 35 | BC97: LP | BD97: 53.8 | BE97: 3.74 | BF97: 77 | BG97: 37 | BH97: 56 | BI97: 4.34 | BJ97: 3.56 | BK97: 45 | BL97: -0.38 | BM97: -17 | BN97: R | BO97: -2 | BP97: ottavad01 | BQ97: 493603 | BR97: Aging Power RP | BS97: Hector Neris | BT97: Thomas Kahnle | BU97: Buck Farmer | BV97: Role player, not a keeper. Trade bait?
A98: Mears | B98: Nick | C98: R | D98: 2025 | E98: 28 | F98: MIL | G98: NL | H98: LP | I98: 0.42 | J98: Y | K98: 52.9 | L98: 3 | M98: 40 | N98: 3 | O98: 0 | P98: 0 | Q98: 0 | R98: 9 | S98: 260 | T98: 7 | U98: 23 | V98: 1 | W98: 60 | X98: 167 | Y98: 48 | Z98: 36 | AA98: 7 | AB98: 2 | AC98: 0 | AD98: 30 | AE98: 4.02 | AF98: 41 | AG98: 6.3 | AH98: 2.5 | AI98: 9.4 | AJ98: 3.6 | AK98: 1.06 | AL98: 0.302 | AM98: 1.33 | AN98: 1.58 | AO98: 0.06 | AP98: 88 | AQ98: 97 | AR98: 28 | AS98: 6 | AT98: 4.99 | AU98: 127 | AV98: 54 | AW98: -0.02 | AX98: LP | AY98: 59.3 | AZ98: 3.92 | BA98: 74 | BB98: 33 | BC98: LP | BD98: 60.6 | BE98: 4 | BF98: 83 | BG98: 31 | BH98: 57.7 | BI98: 5.93 | BJ98: 3.3 | BK98: 59 | BL98: -1.91 | BM98: -31 | BN98: R | BO98: 3 | BP98: mearsni01 | BQ98: 683232 | BR98: Righty Power RP | BS98: Bryan Abreu | BT98: Jeremiah Estrada | BU98: Michel Otañez | BV98: Priced in-line with expectations.
A99: Luzardo | B99: Jesus | C99: L | D99: 2025 | E99: 27 | F99: MIA | G99: NL | H99: LP | I99: 0.69 | J99: Y | K99: 94.8 | L99: 6 | M99: 17 | N99: 13 | O99: 0 | P99: 0 | Q99: 0 | R99: 1 | S99: 310 | T99: 10 | U99: 25 | V99: 0 | W99: 82 | X99: 233 | Y99: 91 | Z99: 41 | AA99: 26 | AB99: 4 | AC99: 0 | AD99: 47 | AE99: 4.52 | AF99: 82 | AG99: 9.8 | AH99: 3.2 | AI99: 9.8 | AJ99: 3 | AK99: 1.17 | AL99: 0.275 | AM99: 1.26 | AN99: 1.64 | AO99: 0.07 | AP99: 100 | AQ99: 109 | AR99: 28 | AS99: 13 | AT99: 16.12 | AU99: 128 | AV99: 55 | AW99: -0.44 | AX99: LP | AY99: 72.5 | AZ99: 3.91 | BA99: 74 | BB99: 37 | BC99: LP | BD99: 65.5 | BE99: 4.08 | BF99: 84 | BG99: 30 | BH99: 66.7 | BI99: 5 | BJ99: 4.27 | BK99: 26 | BL99: -0.47 | BM99: 2 | BN99: R | BO99: -1 | BP99: luzarje01 | BQ99: 666200 | BR99: Lefty Power Starter | BS99: Nick Lodolo | BT99: Reid Detmers | BU99: Mitchell Parker | BV99: Priced in-line with expectations.
A100: Rogers | B100: Taylor | C100: L | D100: 2025 | E100: 34 | F100: SFN | G100: NL | H100: LP | I100: 0.54 | J100: Y | K100: 52.1 | L100: 3 | M100: 50 | N100: 2 | O100: 0 | P100: 0 | Q100: 5 | R100: 9 | S100: 287 | T100: 7 | U100: 22 | V100: 1 | W100: 58 | X100: 170 | Y100: 45 | Z100: 37 | AA100: 9 | AB100: 3 | AC100: 0 | AD100: 28 | AE100: 4.09 | AF100: 44 | AG100: 6.3 | AH100: 2.7 | AI100: 8.4 | AJ100: 3.2 | AK100: 0.98 | AL100: 0.256 | AM100: 1.15 | AN100: 1.44 | AO100: 0.06 | AP100: 62 | AQ100: 99 | AR100: 28 | AS100: 6 | AT100: 9.03 | AU100: 129 | AV100: 56 | AW100: -0.01 | AX100: LP | AY100: 58.7 | AZ100: 3.98 | BA100: 75 | BB100: 31 | BC100: LP | BD100: 59.9 | BE100: 4.08 | BF100: 84 | BG100: 29 | BH100: 60 | BI100: 2.4 | BJ100: 3.75 | BK100: 39 | BL100: 1.69 | BM100: -11 | BN100: R | BO100: 0 | BP100: rogerta01 | BQ100: 573124 | BR100: Lefty Power RP | BS100: Tanner Banks | BT100: Joe Mantiply | BU100: Daniel Coulombe | BV100: Role player, not a keeper. Trade bait?
A101: Miller | B101: Erik | C101: L | D101: 2025 | E101: 27 | F101: SFN | G101: NL | H101: LP | I101: 0.57 | J101: Y | K101: 59.3 | L101: 4 | M101: 49 | N101: 8 | O101: 0 | P101: 0 | Q101: 0 | R101: 8 | S101: 253 | T101: 7 | U101: 29 | V101: 0 | W101: 69 | X101: 179 | Y101: 47 | Z101: 37 | AA101: 1 | AB101: 2 | AC101: 0 | AD101: 28 | AE101: 4.09 | AF101: 49 | AG101: 7.5 | AH101: 2.4 | AI101: 10.6 | AJ101: 4.4 | AK101: 1.05 | AL101: 0.288 | AM101: 1.32 | AN101: 1.65 | AO101: 0.07 | AP101: 117 | AQ101: 99 | AR101: 28 | AS101: 7 | AT101: 7.02 | AU101: 131 | AV101: 57 | AW101: -0.02 | AX101: LP | AY101: 60.1 | AZ101: 3.97 | BA101: 75 | BB101: 32 | BC101: LP | BD101: 59.7 | BE101: 4.07 | BF101: 84 | BG101: 29 | BH101: 67.3 | BI101: 3.88 | BJ101: 3.69 | BK101: 43 | BL101: 0.21 | BM101: -15 | BN101: R | BO101: -8 | BP101: milleer01 | BQ101: 669062 | BR101: Lefty Serious Heat Long Relief | BS101: Aaron Ashby | BT101: Alex Vesia | BU101: Fraser Ellard | BV101: Priced in-line with expectations.
A102: Kelly | B102: Merrill | C102: R | D102: 2025 | E102: 37 | F102: ARI | G102: NL | H102: LP | I102: 0.72 | J102: Y | K102: 86.5 | L102: 6 | M102: 15 | N102: 13 | O102: 0 | P102: 0 | Q102: 0 | R102: 1 | S102: 239 | T102: 9 | U102: 25 | V102: 0 | W102: 65 | X102: 220 | Y102: 84 | Z102: 40 | AA102: 19 | AB102: 2 | AC102: 1 | AD102: 34 | AE102: 4.42 | AF102: 79 | AG102: 10.8 | AH102: 2.6 | AI102: 8.8 | AJ102: 3.4 | AK102: 1.24 | AL102: 0.278 | AM102: 1.35 | AN102: 1.75 | AO102: 0.07 | AP102: 61 | AQ102: 107 | AR102: 28 | AS102: 14 | AT102: 12.35 | AU102: 132 | AV102: 58 | AW102: -0.22 | AX102: LP | AY102: 64 | AZ102: 4.07 | BA102: 76 | BB102: 30 | BC102: LP | BD102: 57.1 | BE102: 4.19 | BF102: 86 | BG102: 26 | BH102: 73.7 | BI102: 4.03 | BJ102: 4.19 | BK102: 30 | BL102: 0.38 | BM102: -2 | BN102: R | BO102: -17 | BP102: kellyme01 | BQ102: 518876 | BR102: Aging Power Starter | BS102: Charlie Morton | BT102: Yu Darvish | BU102: Justin Verlander | BV102: Should perform close to forecast. Role player, not a keeper. Trade bait?
A103: Liberatore | B103: Matthew | C103: L | D103: 2025 | E103: 25 | F103: SLN | G103: NL | H103: LP | I103: 0.58 | J103: Y | K103: 83.2 | L103: 4 | M103: 41 | N103: 8 | O103: 0 | P103: 0 | Q103: 0 | R103: 7 | S103: 340 | T103: 10 | U103: 29 | V103: 2 | W103: 70 | X103: 234 | Y103: 76 | Z103: 39 | AA103: 16 | AB103: 4 | AC103: 0 | AD103: 43 | AE103: 4.32 | AF103: 65 | AG103: 7.5 | AH103: 2.4 | AI103: 8.3 | AJ103: 3.4 | AK103: 1.14 | AL103: 0.292 | AM103: 1.36 | AN103: 1.64 | AO103: 0.06 | AP103: 50 | AQ103: 105 | AR103: 27 | AS103: 8 | AT103: 9.22 | AU103: 133 | AV103: 59 | AW103: -0.13 | AX103: LP | AY103: 74.1 | AZ103: 4.15 | BA103: 78 | BB103: 31 | BC103: LP | BD103: 69.2 | BE103: 4.2 | BF103: 87 | BG103: 28 | BH103: 86 | BI103: 4.4 | BJ103: 4 | BK103: 38 | BL103: -0.07 | BM103: -10 | BN103: R | BO103: -17 | BP103: liberma01 | BQ103: 669461 | BR103: Young Lefty Power Long Relief | BS103: DL Hall | BT103: Ryan Weathers | BU103: Angel Zerpa | BV103: Priced in-line with expectations.
A104: Birdsong | B104: Hayden | C104: R | D104: 2025 | E104: 23 | F104: SFN | G104: NL | H104: LP | I104: 0.59 | J104: Y | K104: 82.1 | L104: 5 | M104: 22 | N104: 11 | O104: 0 | P104: 0 | Q104: 0 | R104: 2 | S104: 286 | T104: 10 | U104: 34 | V104: 0 | W104: 76 | X104: 198 | Y104: 78 | Z104: 40 | AA104: 4 | AB104: 5 | AC104: 0 | AD104: 48 | AE104: 4.46 | AF104: 78 | AG104: 10.8 | AH104: 2.3 | AI104: 10.6 | AJ104: 4.7 | AK104: 1.35 | AL104: 0.262 | AM104: 1.39 | AN104: 2.02 | AO104: 0.09 | AP104: 97 | AQ104: 108 | AR104: 27 | AS104: 10 | AT104: 12.8 | AU104: 134 | AV104: 60 | AW104: -0.12 | AX104: LP | AY104: 68.1 | AZ104: 4.34 | BA104: 82 | BB104: 25 | BC104: LP | BD104: 64.6 | BE104: 4.34 | BF104: 89 | BG104: 25 | BH104: 72 | BI104: 4.75 | BJ104: 4.56 | BK104: 22 | BL104: -0.29 | BM104: 5 | BN104: R | BO104: -7 | BP104: birdsha01 | BQ104: 806185 | BR104: Young Serious Heat Swing Starter | BS104: Joe Boyle | BT104: Mike Soroka | BU104: Edward Cabrera | BV104: Priced in-line with expectations.
A105: Cecconi | B105: Slade | C105: R | D105: 2025 | E105: 26 | F105: ARI | G105: NL | H105: LP | I105: 0.53 | J105: Y | K105: 72.1 | L105: 4 | M105: 26 | N105: 9 | O105: 0 | P105: 0 | Q105: 0 | R105: 4 | S105: 296 | T105: 12 | U105: 20 | V105: 1 | W105: 61 | X105: 205 | Y105: 98 | Z105: 40 | AA105: 12 | AB105: 5 | AC105: 1 | AD105: 57 | AE105: 4.49 | AF105: 77 | AG105: 10.1 | AH105: 3.1 | AI105: 8.1 | AJ105: 2.6 | AK105: 1.53 | AL105: 0.287 | AM105: 1.36 | AN105: 1.98 | AO105: 0.09 | AP105: 44 | AQ105: 109 | AR105: 27 | AS105: 9 | AT105: 11.27 | AU105: 135 | AV105: 61 | AW105: -0.09 | AX105: LP | AY105: 68.1 | AZ105: 4.41 | BA105: 83 | BB105: 24 | BC105: LP | BD105: 65.3 | BE105: 4.4 | BF105: 91 | BG105: 24 | BH105: 77 | BI105: 6.66 | BJ105: 4.74 | BK105: 20 | BL105: -2.17 | BM105: 7 | BN105: R | BO105: -12 | BP105: ceccosl01 | BQ105: 677944 | BR105: Young Super Control Swing Starter | BS105: Louie Varland | BT105: Hayden Wesneski | BU105: Christian Scott | BV105: Priced in-line with expectations.
A106: Grove | B106: Michael | C106: R | D106: 2025 | E106: 28 | F106: LAN | G106: NL | H106: LP | I106: 0.52 | J106: Y | K106: 60.1 | L106: 3 | M106: 29 | N106: 6 | O106: 0 | P106: 0 | Q106: 0 | R106: 6 | S106: 252 | T106: 8 | U106: 19 | V106: 0 | W106: 57 | X106: 172 | Y106: 58 | Z106: 38 | AA106: 16 | AB106: 4 | AC106: 0 | AD106: 34 | AE106: 4.17 | AF106: 45 | AG106: 7 | AH106: 3 | AI106: 9 | AJ106: 3 | AK106: 1.28 | AL106: 0.296 | AM106: 1.32 | AN106: 1.75 | AO106: 0.08 | AP106: 76 | AQ106: 101 | AR106: 26 | AS106: 7 | AT106: 6.28 | AU106: 136 | AV106: 62 | AW106: -0.02 | AX106: LP | AY106: 59 | AZ106: 4.1 | BA106: 77 | BB106: 28 | BC106: LP | BD106: 59.1 | BE106: 4.15 | BF106: 86 | BG106: 27 | BH106: 51 | BI106: 5.12 | BJ106: 3.81 | BK106: 34 | BL106: -0.95 | BM106: -8 | BN106: R | BO106: 8 | BP106: grovemi01 | BQ106: 675627 | BR106: Righty Power Long Relief | BS106: Garrett Whitlock | BT106: Eli Morgan | BU106: Nate Pearson | BV106: Priced in-line with expectations.
A107: Montgomery | B107: Jordan | C107: L | D107: 2025 | E107: 32 | F107: ARI | G107: NL | H107: LP | I107: 0.75 | J107: Y | K107: 112 | L107: 7 | M107: 22 | N107: 17 | O107: 0 | P107: 0 | Q107: 0 | R107: 3 | S107: 367 | T107: 11 | U107: 30 | V107: 1 | W107: 82 | X107: 297 | Y107: 126 | Z107: 43 | AA107: 24 | AB107: 3 | AC107: 0 | AD107: 57 | AE107: 4.79 | AF107: 109 | AG107: 10.5 | AH107: 2.7 | AI107: 7.8 | AJ107: 2.9 | AK107: 1.09 | AL107: 0.302 | AM107: 1.41 | AN107: 1.53 | AO107: 0.06 | AP107: 41 | AQ107: 116 | AR107: 26 | AS107: 13 | AT107: 15.62 | AU107: 138 | AV107: 63 | AW107: -0.61 | AX107: LP | AY107: 84.8 | AZ107: 4.06 | BA107: 76 | BB107: 36 | BC107: LP | BD107: 72.4 | BE107: 4.18 | BF107: 86 | BG107: 30 | BH107: 117 | BI107: 6.23 | BJ107: 4.38 | BK107: 34 | BL107: -1.44 | BM107: -8 | BN107: R | BO107: -45 | BP107: montgjo01 | BQ107: 656756 | BR107: Lefty Control Top Starter | BS107: Jose Quintana | BT107: Bailey Falter | BU107: Eduardo Rodriguez | BV107: Should perform close to forecast. Role player, not a keeper. Trade bait?
A108: Spiers | B108: Carson | C108: R | D108: 2025 | E108: 27 | F108: CIN | G108: NL | H108: LP | I108: 0.54 | J108: Y | K108: 82.1 | L108: 4 | M108: 27 | N108: 8 | O108: 0 | P108: 0 | Q108: 1 | R108: 5 | S108: 323 | T108: 13 | U108: 25 | V108: 0 | W108: 67 | X108: 219 | Y108: 92 | Z108: 40 | AA108: 7 | AB108: 4 | AC108: 0 | AD108: 50 | AE108: 4.45 | AF108: 76 | AG108: 9.3 | AH108: 2.7 | AI108: 8.3 | AJ108: 3 | AK108: 1.56 | AL108: 0.302 | AM108: 1.44 | AN108: 2.07 | AO108: 0.09 | AP108: 43 | AQ108: 108 | AR108: 26 | AS108: 8 | AT108: 9.01 | AU108: 139 | AV108: 64 | AW108: 0.04 | AX108: LP | AY108: 73.3 | AZ108: 4.52 | BA108: 85 | BB108: 23 | BC108: LP | BD108: 67.9 | BE108: 4.49 | BF108: 93 | BG108: 23 | BH108: 90.7 | BI108: 5.46 | BJ108: 5.02 | BK108: 19 | BL108: -1.01 | BM108: 7 | BN108: R | BO108: -23 | BP108: spierca01 | BQ108: 686730 | BR108: Righty Power Swing Starter | BS108: Landon Knack | BT108: Max Meyer | BU108: Christian Scott | BV108: Priced in-line with expectations.
A109: Miller | B109: Tyson | C109: R | D109: 2025 | E109: 29 | F109: CHN | G109: NL | H109: LP | I109: 0.39 | J109: Y | K109: 47.7 | L109: 3 | M109: 35 | N109: 3 | O109: 0 | P109: 0 | Q109: 1 | R109: 9 | S109: 239 | T109: 6 | U109: 17 | V109: 1 | W109: 44 | X109: 152 | Y109: 39 | Z109: 37 | AA109: 5 | AB109: 3 | AC109: 0 | AD109: 23 | AE109: 4.06 | AF109: 34 | AG109: 5.7 | AH109: 2.6 | AI109: 7.6 | AJ109: 2.9 | AK109: 1.04 | AL109: 0.249 | AM109: 1.13 | AN109: 1.48 | AO109: 0.06 | AP109: 44 | AQ109: 98 | AR109: 26 | AS109: 5 | AT109: 5.42 | AU109: 140 | AV109: 65 | AW109: 0.07 | AX109: LP | AY109: 54 | AZ109: 4.08 | BA109: 77 | BB109: 27 | BC109: LP | BD109: 56.5 | BE109: 4.13 | BF109: 85 | BG109: 27 | BH109: 50.3 | BI109: 2.15 | BJ109: 3.64 | BK109: 40 | BL109: 1.91 | BM109: -14 | BN109: R | BO109: 6 | BP109: millety01 | BQ109: 668338 | BR109: Righty Super Control RP | BS109: Hunter Gaddis | BT109: Stephen Kolek | BU109: Kevin Kelly | BV109: Approaching his prime years. Priced in-line with expectations. Trade bait?
A110: Elder | B110: Bryce | C110: R | D110: 2025 | E110: 26 | F110: ATL | G110: NL | H110: LP | I110: 0.65 | J110: Y | K110: 80.8 | L110: 5 | M110: 15 | N110: 12 | O110: 0 | P110: 0 | Q110: 0 | R110: 1 | S110: 276 | T110: 9 | U110: 25 | V110: 0 | W110: 61 | X110: 209 | Y110: 92 | Z110: 41 | AA110: 29 | AB110: 4 | AC110: 0 | AD110: 45 | AE110: 4.52 | AF110: 83 | AG110: 11.3 | AH110: 2.5 | AI110: 8.2 | AJ110: 3.3 | AK110: 1.18 | AL110: 0.287 | AM110: 1.4 | AN110: 1.68 | AO110: 0.07 | AP110: 46 | AQ110: 109 | AR110: 26 | AS110: 12 | AT110: 10.99 | AU110: 142 | AV110: 66 | AW110: -0.26 | AX110: LP | AY110: 65.7 | AZ110: 4.23 | BA110: 80 | BB110: 27 | BC110: LP | BD110: 62.4 | BE110: 4.26 | BF110: 88 | BG110: 25 | BH110: 49.7 | BI110: 6.52 | BJ110: 4.37 | BK110: 21 | BL110: -2 | BM110: 5 | BN110: R | BO110: 13 | BP110: elderbr01 | BQ110: 693821 | BR110: Young Power Starter | BS110: Mitch Keller | BT110: Dean Kremer | BU110: Brayan Bello | BV110: Priced in-line with expectations.
A111: Romero | B111: JoJo | C111: L | D111: 2025 | E111: 28 | F111: SLN | G111: NL | H111: LP | I111: 0.47 | J111: Y | K111: 58.2 | L111: 3 | M111: 46 | N111: 2 | O111: 0 | P111: 0 | Q111: 1 | R111: 10 | S111: 301 | T111: 7 | U111: 20 | V111: 1 | W111: 55 | X111: 174 | Y111: 46 | Z111: 38 | AA111: 10 | AB111: 3 | AC111: 0 | AD111: 29 | AE111: 4.17 | AF111: 40 | AG111: 5.6 | AH111: 2.8 | AI111: 7.9 | AJ111: 2.8 | AK111: 0.99 | AL111: 0.254 | AM111: 1.12 | AN111: 1.41 | AO111: 0.05 | AP111: 52 | AQ111: 101 | AR111: 26 | AS111: 6 | AT111: 7.65 | AU111: 143 | AV111: 67 | AW111: -0.03 | AX111: LP | AY111: 62 | AZ111: 4.02 | BA111: 76 | BB111: 31 | BC111: LP | BD111: 62.6 | BE111: 4.14 | BF111: 85 | BG111: 28 | BH111: 59 | BI111: 3.36 | BJ111: 4.26 | BK111: 25 | BL111: 0.81 | BM111: 1 | BN111: R | BO111: 4 | BP111: romerjo01 | BQ111: 668941 | BR111: Lefty Super Control Long Relief | BS111: John King | BT111: Tyler Holton | BU111: Bryan Hudson | BV111: Priced in-line with expectations.
A112: Wilson | B112: Justin | C112: L | D112: 2025 | E112: 37 | F112: CIN | G112: NL | H112: LP | I112: 0.42 | J112: Y | K112: 44.7 | L112: 2 | M112: 39 | N112: 3 | O112: 0 | P112: 0 | Q112: 1 | R112: 9 | S112: 322 | T112: 7 | U112: 15 | V112: 1 | W112: 42 | X112: 133 | Y112: 38 | Z112: 37 | AA112: 3 | AB112: 2 | AC112: 0 | AD112: 35 | AE112: 4.11 | AF112: 30 | AG112: 4.4 | AH112: 2.8 | AI112: 6.4 | AJ112: 2.2 | AK112: 1.07 | AL112: 0.22 | AM112: 1.01 | AN112: 1.43 | AO112: 0.05 | AP112: 24 | AQ112: 99 | AR112: 26 | AS112: 5 | AT112: 6.43 | AU112: 144 | AV112: 68 | AW112: 0.12 | AX112: LP | AY112: 59.9 | AZ112: 4.18 | BA112: 78 | BB112: 27 | BC112: LP | BD112: 62.6 | BE112: 4.22 | BF112: 87 | BG112: 26 | BH112: 46.7 | BI112: 5.59 | BJ112: 4.42 | BK112: 19 | BL112: -1.49 | BM112: 7 | BN112: R | BO112: 16 | BP112: wilsoju10 | BQ112: 458677 | BR112: Aging Lefty Super Control RP | BS112: Brent Suter | BT112: T.J. McFarland | BU112: Ryan Yarbrough | BV112: Role player, not a keeper. Trade bait?
A113: Freeland | B113: Kyle | C113: L | D113: 2025 | E113: 32 | F113: COL | G113: NL | H113: LP | I113: 0.73 | J113: Y | K113: 78.2 | L113: 6 | M113: 21 | N113: 17 | O113: 0 | P113: 0 | Q113: 0 | R113: 3 | S113: 338 | T113: 15 | U113: 26 | V113: 0 | W113: 70 | X113: 282 | Y113: 131 | Z113: 43 | AA113: 27 | AB113: 2 | AC113: 0 | AD113: 59 | AE113: 4.74 | AF113: 108 | AG113: 11.2 | AH113: 2.6 | AI113: 7.2 | AJ113: 2.7 | AK113: 1.57 | AL113: 0.31 | AM113: 1.51 | AN113: 2.05 | AO113: 0.09 | AP113: 21 | AQ113: 115 | AR113: 26 | AS113: 13 | AT113: 11.88 | AU113: 145 | AV113: 69 | AW113: -0.18 | AX113: LP | AY113: 73.8 | AZ113: 4.64 | BA113: 87 | BB113: 21 | BC113: LP | BD113: 67.7 | BE113: 4.56 | BF113: 94 | BG113: 21 | BH113: 113.3 | BI113: 5.24 | BJ113: 4.76 | BK113: 26 | BL113: -0.5 | BM113: 0 | BN113: R | BO113: -46 | BP113: freelky01 | BQ113: 607536 | BR113: Lefty Super Control Starter | BS113: Austin Gomber | BT113: Patrick Corbin | BU113: Cole Irvin | BV113: Should perform close to forecast. Role player, not a keeper. Trade bait?
A114: Wesneski | B114: Hayden | C114: R | D114: 2025 | E114: 27 | F114: CHN | G114: NL | H114: LP | I114: 0.58 | J114: Y | K114: 75.4 | L114: 4 | M114: 29 | N114: 8 | O114: 0 | P114: 0 | Q114: 0 | R114: 5 | S114: 314 | T114: 12 | U114: 24 | V114: 1 | W114: 67 | X114: 207 | Y114: 65 | Z114: 39 | AA114: 18 | AB114: 3 | AC114: 0 | AD114: 43 | AE114: 4.37 | AF114: 57 | AG114: 7.2 | AH114: 2.8 | AI114: 8.6 | AJ114: 3 | AK114: 1.48 | AL114: 0.254 | AM114: 1.21 | AN114: 1.98 | AO114: 0.09 | AP114: 54 | AQ114: 106 | AR114: 26 | AS114: 7 | AT114: 10.54 | AU114: 146 | AV114: 70 | AW114: -0.05 | AX114: LP | AY114: 67.9 | AZ114: 4.39 | BA114: 82 | BB114: 24 | BC114: LP | BD114: 65 | BE114: 4.33 | BF114: 89 | BG114: 25 | BH114: 67.7 | BI114: 3.86 | BJ114: 4.37 | BK114: 25 | BL114: 0.52 | BM114: 1 | BN114: R | BO114: -3 | BP114: wesneha01 | BQ114: 669713 | BR114: Righty Power Swing Starter | BS114: Louie Varland | BT114: Slade Cecconi | BU114: Carson Spiers | BV114: Priced in-line with expectations.
A115: Lopez | B115: Jorge | C115: R | D115: 2025 | E115: 32 | F115: CHN | G115: NL | H115: LP | I115: 0.54 | J115: Y | K115: 46.5 | L115: 3 | M115: 45 | N115: 2 | O115: 0 | P115: 0 | Q115: 5 | R115: 10 | S115: 228 | T115: 7 | U115: 21 | V115: 1 | W115: 51 | X115: 165 | Y115: 46 | Z115: 37 | AA115: 12 | AB115: 3 | AC115: 0 | AD115: 26 | AE115: 4.09 | AF115: 42 | AG115: 7 | AH115: 2.4 | AI115: 8.4 | AJ115: 3.5 | AK115: 1.18 | AL115: 0.288 | AM115: 1.32 | AN115: 1.69 | AO115: 0.07 | AP115: 53 | AQ115: 99 | AR115: 26 | AS115: 5 | AT115: 5.79 | AU115: 147 | AV115: 71 | AW115: 0.12 | AX115: LP | AY115: 53.3 | AZ115: 4.24 | BA115: 80 | BB115: 24 | BC115: LP | BD115: 55.4 | BE115: 4.21 | BF115: 87 | BG115: 25 | BH115: 53 | BI115: 2.89 | BJ115: 3.87 | BK115: 33 | BL115: 1.2 | BM115: -7 | BN115: R | BO115: 2 | BP115: lopezjo02 | BQ115: 605347 | BR115: Righty Power RP | BS115: Michael Tonkin | BT115: Buck Farmer | BU115: Pierce Johnson | BV115: Role player, not a keeper. Trade bait?
A116: Hoeing | B116: Bryan | C116: R | D116: 2025 | E116: 28 | F116: SDN | G116: NL | H116: LP | I116: 0.51 | J116: Y | K116: 60.2 | L116: 3 | M116: 31 | N116: 5 | O116: 0 | P116: 0 | Q116: 0 | R116: 7 | S116: 274 | T116: 8 | U116: 20 | V116: 1 | W116: 50 | X116: 177 | Y116: 52 | Z116: 38 | AA116: 18 | AB116: 2 | AC116: 0 | AD116: 29 | AE116: 4.2 | AF116: 45 | AG116: 6.6 | AH116: 2.5 | AI116: 7.5 | AJ116: 2.9 | AK116: 1.18 | AL116: 0.262 | AM116: 1.22 | AN116: 1.63 | AO116: 0.06 | AP116: 36 | AQ116: 102 | AR116: 26 | AS116: 6 | AT116: 6.75 | AU116: 148 | AV116: 72 | AW116: -0.07 | AX116: LP | AY116: 59.9 | AZ116: 4.13 | BA116: 78 | BB116: 28 | BC116: LP | BD116: 60.2 | BE116: 4.13 | BF116: 85 | BG116: 28 | BH116: 53.7 | BI116: 2.18 | BJ116: 3.31 | BK116: 57 | BL116: 2.02 | BM116: -31 | BN116: O | BO116: 7 | BP116: hoeinbr01 | BQ116: 663773 | BR116: Righty Long Relief | BS116: Jhony Brito | BT116: Xzavion Curry | BU116: Bryan Woo | BV116: Priced in-line with expectations.
A117: Rodríguez | B117: Randy | C117: R | D117: 2025 | E117: 25 | F117: SFN | G117: NL | H117: LP | I117: 0.51 | J117: Y | K117: 53.7 | L117: 2 | M117: 31 | N117: 3 | O117: 0 | P117: 0 | Q117: 0 | R117: 6 | S117: 227 | T117: 6 | U117: 19 | V117: 0 | W117: 54 | X117: 161 | Y117: 44 | Z117: 37 | AA117: 3 | AB117: 3 | AC117: 0 | AD117: 26 | AE117: 4.08 | AF117: 38 | AG117: 6.5 | AH117: 2.8 | AI117: 9.2 | AJ117: 3.2 | AK117: 0.94 | AL117: 0.302 | AM117: 1.29 | AN117: 1.41 | AO117: 0.06 | AP117: 88 | AQ117: 99 | AR117: 26 | AS117: 5 | AT117: 4.54 | AU117: 149 | AV117: 73 | AW117: -0.11 | AX117: LP | AY117: 57 | AZ117: 3.85 | BA117: 72 | BB117: 35 | BC117: LP | BD117: 58.5 | BE117: 3.97 | BF117: 82 | BG117: 31 | BH117: 52.3 | BI117: 4.3 | BJ117: 3.37 | BK117: 53 | BL117: -0.22 | BM117: -27 | BN117: R | BO117: 6 | BP117: rodrira02 | BQ117: 678495 | BR117: Young Power Long Relief | BS117: Orion Kerkering | BT117: Jeremiah Estrada | BU117: Ben Brown | BV117: Priced in-line with expectations.
A118: Ruiz | B118: Jose | C118: R | D118: 2025 | E118: 30 | F118: PHI | G118: NL | H118: LP | I118: 0.5 | J118: Y | K118: 45.5 | L118: 3 | M118: 40 | N118: 3 | O118: 0 | P118: 0 | Q118: 1 | R118: 10 | S118: 209 | T118: 8 | U118: 21 | V118: 1 | W118: 51 | X118: 160 | Y118: 48 | Z118: 37 | AA118: 9 | AB118: 2 | AC118: 0 | AD118: 22 | AE118: 4.06 | AF118: 43 | AG118: 7.5 | AH118: 2.5 | AI118: 9.1 | AJ118: 3.7 | AK118: 1.44 | AL118: 0.312 | AM118: 1.44 | AN118: 2.02 | AO118: 0.09 | AP118: 64 | AQ118: 98 | AR118: 26 | AS118: 5 | AT118: 3.26 | AU118: 152 | AV118: 74 | AW118: 0.24 | AX118: LP | AY118: 52.4 | AZ118: 4.35 | BA118: 82 | BB118: 22 | BC118: LP | BD118: 54.7 | BE118: 4.3 | BF118: 89 | BG118: 23 | BH118: 51 | BI118: 3.71 | BJ118: 4.05 | BK118: 27 | BL118: 0.36 | BM118: -2 | BN118: R | BO118: 4 | BP118: ruizjo01 | BQ118: 614179 | BR118: Righty Power RP | BS118: Nick Sandlin | BT118: Jorge Alcala | BU118: Joey Krehbiel | BV118: In prime. Priced in-line with expectations. Trade bait?
A119: Hall | B119: DL | C119: L | D119: 2025 | E119: 26 | F119: MIL | G119: NL | H119: LP | I119: 0.38 | J119: Y | K119: 72.6 | L119: 4 | M119: 26 | N119: 5 | O119: 0 | P119: 0 | Q119: 0 | R119: 6 | S119: 226 | T119: 7 | U119: 20 | V119: 0 | W119: 50 | X119: 149 | Y119: 73 | Z119: 39 | AA119: 11 | AB119: 5 | AC119: 0 | AD119: 41 | AE119: 4.38 | AF119: 68 | AG119: 12 | AH119: 2.4 | AI119: 9.1 | AJ119: 3.6 | AK119: 1.17 | AL119: 0.281 | AM119: 1.4 | AN119: 1.7 | AO119: 0.07 | AP119: 70 | AQ119: 106 | AR119: 26 | AS119: 7 | AT119: 8.07 | AU119: 153 | AV119: 75 | AW119: -0.06 | AX119: LP | AY119: 59 | AZ119: 4.28 | BA119: 80 | BB119: 24 | BC119: LP | BD119: 57.3 | BE119: 4.31 | BF119: 89 | BG119: 23 | BH119: 43 | BI119: 5.02 | BJ119: 4.57 | BK119: 16 | BL119: -0.64 | BM119: 9 | BN119: R | BO119: 14 | BP119: halldl01 | BQ119: 669084 | BR119: Young Lefty Power Long Relief | BS119: Matthew Liberatore | BT119: Adrian Morejon | BU119: Joey Wentz | BV119: Priced in-line with expectations.
A120: Suter | B120: Brent | C120: L | D120: 2025 | E120: 35 | F120: CIN | G120: NL | H120: LP | I120: 0.57 | J120: Y | K120: 49.8 | L120: 3 | M120: 41 | N120: 4 | O120: 0 | P120: 0 | Q120: 1 | R120: 11 | S120: 240 | T120: 7 | U120: 19 | V120: 0 | W120: 49 | X120: 182 | Y120: 53 | Z120: 38 | AA120: 12 | AB120: 2 | AC120: 0 | AD120: 26 | AE120: 4.18 | AF120: 47 | AG120: 7.2 | AH120: 2.5 | AI120: 7.5 | AJ120: 2.9 | AK120: 1.11 | AL120: 0.284 | AM120: 1.3 | AN120: 1.56 | AO120: 0.06 | AP120: 37 | AQ120: 101 | AR120: 25 | AS120: 6 | AT120: 5.62 | AU120: 155 | AV120: 76 | AW120: 0.07 | AX120: LP | AY120: 55.4 | AZ120: 4.16 | BA120: 78 | BB120: 26 | BC120: LP | BD120: 56.2 | BE120: 4.25 | BF120: 88 | BG120: 24 | BH120: 65.7 | BI120: 3.15 | BJ120: 4.28 | BK120: 26 | BL120: 1.03 | BM120: -1 | BN120: R | BO120: -10 | BP120: suterbr01 | BQ120: 608718 | BR120: Aging Lefty Control RP | BS120: Justin Wilson | BT120: T.J. McFarland | BU120: Taylor Rogers | BV120: Role player, not a keeper. Trade bait?
A121: Ross | B121: Joe | C121: R | D121: 2025 | E121: 32 | F121: MIL | G121: NL | H121: LP | I121: 0.6 | J121: Y | K121: 62.5 | L121: 4 | M121: 25 | N121: 7 | O121: 0 | P121: 0 | Q121: 0 | R121: 6 | S121: 256 | T121: 6 | U121: 23 | V121: 1 | W121: 53 | X121: 178 | Y121: 66 | Z121: 39 | AA121: 2 | AB121: 2 | AC121: 0 | AD121: 34 | AE121: 4.36 | AF121: 62 | AG121: 9.4 | AH121: 2.3 | AI121: 7.9 | AJ121: 3.4 | AK121: 0.96 | AL121: 0.278 | AM121: 1.33 | AN121: 1.45 | AO121: 0.05 | AP121: 44 | AQ121: 105 | AR121: 25 | AS121: 7 | AT121: 7.98 | AU121: 157 | AV121: 77 | AW121: -0.27 | AX121: LP | AY121: 61.3 | AZ121: 4.01 | BA121: 75 | BB121: 31 | BC121: LP | BD121: 59.6 | BE121: 4.09 | BF121: 84 | BG121: 29 | BH121: 74 | BI121: 3.77 | BJ121: 3.79 | BK121: 41 | BL121: 0.59 | BM121: -16 | BN121: R | BO121: -14 | BP121: rossjo01 | BQ121: 605452 | BR121: Righty Swing Starter | BS121: Carson Fulmer | BT121: Albert Suarez | BU121: Shawn Armstrong | BV121: Role player, not a keeper. Trade bait?
A122: Vásquez | B122: Randy | C122: R | D122: 2025 | E122: 26 | F122: SDN | G122: NL | H122: LP | I122: 0.6 | J122: Y | K122: 93.2 | L122: 6 | M122: 27 | N122: 12 | O122: 0 | P122: 0 | Q122: 0 | R122: 3 | S122: 352 | T122: 11 | U122: 28 | V122: 1 | W122: 64 | X122: 242 | Y122: 111 | Z122: 43 | AA122: 13 | AB122: 6 | AC122: 1 | AD122: 55 | AE122: 4.74 | AF122: 99 | AG122: 11.1 | AH122: 2.3 | AI122: 7.3 | AJ122: 3.2 | AK122: 1.22 | AL122: 0.289 | AM122: 1.43 | AN122: 1.71 | AO122: 0.07 | AP122: 24 | AQ122: 115 | AR122: 25 | AS122: 8 | AT122: 12.33 | AU122: 158 | AV122: 78 | AW122: -0.34 | AX122: LP | AY122: 77.7 | AZ122: 4.43 | BA122: 83 | BB122: 26 | BC122: LP | BD122: 70.4 | BE122: 4.4 | BF122: 91 | BG122: 25 | BH122: 98 | BI122: 4.87 | BJ122: 4.6 | BK122: 26 | BL122: -0.12 | BM122: -1 | BN122: R | BO122: -28 | BP122: vasqura02 | BQ122: 681190 | BR122: Young Control Swing Starter | BS122: Matt Manning | BT122: Jonathan Cannon | BU122: Emerson Hancock | BV122: Priced in-line with expectations.
A123: Scott | B123: Christian | C123: R | D123: 2025 | E123: 26 | F123: NYN | G123: NL | H123: LP | I123: 0.49 | J123: Y | K123: 72.8 | L123: 4 | M123: 18 | N123: 7 | O123: 0 | P123: 0 | Q123: 0 | R123: 2 | S123: 211 | T123: 8 | U123: 16 | V123: 0 | W123: 45 | X123: 150 | Y123: 70 | Z123: 40 | AA123: 1 | AB123: 3 | AC123: 0 | AD123: 38 | AE123: 4.41 | AF123: 61 | AG123: 11.1 | AH123: 2.9 | AI123: 8.3 | AJ123: 2.8 | AK123: 1.37 | AL123: 0.265 | AM123: 1.28 | AN123: 1.84 | AO123: 0.08 | AP123: 51 | AQ123: 107 | AR123: 25 | AS123: 8 | AT123: 8.97 | AU123: 161 | AV123: 79 | AW123: -0.12 | AX123: LP | AY123: 57.2 | AZ123: 4.29 | BA123: 81 | BB123: 24 | BC123: LP | BD123: 55.8 | BE123: 4.3 | BF123: 89 | BG123: 23 | BH123: 47.3 | BI123: 4.56 | BJ123: 4.49 | BK123: 18 | BL123: -0.15 | BM123: 7 | BN123: R | BO123: 8 | BP123: scottch01 | BQ123: 681035 | BR123: Young Super Control Swing Starter | BS123: Landon Knack | BT123: J.T. Ginn | BU123: Carson Spiers | BV123: Priced in-line with expectations.
A124: Mlodzinski | B124: Carmen | C124: R | D124: 2025 | E124: 26 | F124: PIT | G124: NL | H124: LP | I124: 0.47 | J124: Y | K124: 55.3 | L124: 3 | M124: 37 | N124: 5 | O124: 0 | P124: 0 | Q124: 0 | R124: 6 | S124: 236 | T124: 6 | U124: 22 | V124: 1 | W124: 52 | X124: 167 | Y124: 46 | Z124: 38 | AA124: 10 | AB124: 2 | AC124: 0 | AD124: 25 | AE124: 4.17 | AF124: 44 | AG124: 7.3 | AH124: 2.3 | AI124: 8.7 | AJ124: 3.7 | AK124: 0.96 | AL124: 0.287 | AM124: 1.31 | AN124: 1.47 | AO124: 0.05 | AP124: 63 | AQ124: 101 | AR124: 25 | AS124: 5 | AT124: 4.83 | AU124: 163 | AV124: 80 | AW124: -0.12 | AX124: LP | AY124: 57 | AZ124: 3.98 | BA124: 75 | BB124: 31 | BC124: LP | BD124: 58.2 | BE124: 4.05 | BF124: 84 | BG124: 29 | BH124: 50.7 | BI124: 3.38 | BJ124: 3.37 | BK124: 52 | BL124: 0.8 | BM124: -28 | BN124: R | BO124: 7 | BP124: mlodzca01 | BQ124: 669387 | BR124: Young Power Long Relief | BS124: José Butto | BT124: Landen Roupp | BU124: Randy Rodríguez | BV124: Priced in-line with expectations.
A125: Wilson | B125: Bryse | C125: R | D125: 2025 | E125: 27 | F125: MIL | G125: NL | H125: LP | I125: 0.66 | J125: Y | K125: 77.7 | L125: 5 | M125: 41 | N125: 7 | O125: 0 | P125: 0 | Q125: 3 | R125: 11 | S125: 314 | T125: 13 | U125: 27 | V125: 1 | W125: 74 | X125: 260 | Y125: 82 | Z125: 41 | AA125: 10 | AB125: 3 | AC125: 0 | AD125: 34 | AE125: 4.52 | AF125: 72 | AG125: 8.1 | AH125: 2.7 | AI125: 8.3 | AJ125: 3.1 | AK125: 1.5 | AL125: 0.293 | AM125: 1.37 | AN125: 2.01 | AO125: 0.09 | AP125: 44 | AQ125: 109 | AR125: 24 | AS125: 6 | AT125: 10.84 | AU125: 164 | AV125: 81 | AW125: -0.07 | AX125: LP | AY125: 71.7 | AZ125: 4.41 | BA125: 83 | BB125: 25 | BC125: LP | BD125: 66.5 | BE125: 4.45 | BF125: 92 | BG125: 23 | BH125: 104.7 | BI125: 4.04 | BJ125: 4.95 | BK125: 22 | BL125: 0.48 | BM125: 2 | BN125: R | BO125: -38 | BP125: wilsobr02 | BQ125: 669060 | BR125: Righty Power Long Relief | BS125: Carson Spiers | BT125: Hayden Wesneski | BU125: Max Meyer | BV125: Priced in-line with expectations.
A126: Armstrong | B126: Shawn | C126: R | D126: 2025 | E126: 34 | F126: CHN | G126: NL | H126: LP | I126: 0.55 | J126: Y | K126: 52.5 | L126: 4 | M126: 42 | N126: 6 | O126: 0 | P126: 0 | Q126: 1 | R126: 8 | S126: 242 | T126: 6 | U126: 21 | V126: 0 | W126: 57 | X126: 180 | Y126: 56 | Z126: 38 | AA126: 7 | AB126: 2 | AC126: 0 | AD126: 26 | AE126: 4.27 | AF126: 50 | AG126: 7.7 | AH126: 2.7 | AI126: 8.6 | AJ126: 3.1 | AK126: 0.94 | AL126: 0.307 | AM126: 1.34 | AN126: 1.39 | AO126: 0.05 | AP126: 68 | AQ126: 103 | AR126: 24 | AS126: 6 | AT126: 6.11 | AU126: 166 | AV126: 82 | AW126: -0.3 | AX126: LP | AY126: 57.5 | AZ126: 3.81 | BA126: 72 | BB126: 36 | BC126: LP | BD126: 57.8 | BE126: 3.98 | BF126: 82 | BG126: 31 | BH126: 66.7 | BI126: 4.86 | BJ126: 3.57 | BK126: 48 | BL126: -0.59 | BM126: -24 | BN126: R | BO126: -9 | BP126: armstsh01 | BQ126: 542888 | BR126: Righty Power RP | BS126: Ryan Thompson | BT126: Blake Treinen | BU126: Dylan Floro | BV126: Role player, not a keeper. Trade bait?
A127: Rodriguez | B127: Eduardo | C127: L | D127: 2025 | E127: 32 | F127: ARI | G127: NL | H127: LP | I127: 0.65 | J127: Y | K127: 80.6 | L127: 5 | M127: 15 | N127: 11 | O127: 0 | P127: 0 | Q127: 0 | R127: 1 | S127: 231 | T127: 8 | U127: 21 | V127: 0 | W127: 57 | X127: 188 | Y127: 80 | Z127: 41 | AA127: 20 | AB127: 2 | AC127: 0 | AD127: 35 | AE127: 4.54 | AF127: 74 | AG127: 11.3 | AH127: 2.6 | AI127: 8.7 | AJ127: 3.3 | AK127: 1.19 | AL127: 0.282 | AM127: 1.36 | AN127: 1.69 | AO127: 0.07 | AP127: 58 | AQ127: 110 | AR127: 24 | AS127: 10 | AT127: 10.11 | AU127: 167 | AV127: 83 | AW127: -0.32 | AX127: LP | AY127: 61.4 | AZ127: 4.07 | BA127: 77 | BB127: 29 | BC127: LP | BD127: 57.1 | BE127: 4.22 | BF127: 87 | BG127: 25 | BH127: 50 | BI127: 5.04 | BJ127: 4.39 | BK127: 20 | BL127: -0.5 | BM127: 4 | BN127: R | BO127: 7 | BP127: rodried05 | BQ127: 593958 | BR127: Lefty Power Starter | BS127: Sean Manaea | BT127: Andrew Heaney | BU127: Clayton Kershaw | BV127: Role player, not a keeper. Trade bait?
A128: Holderman | B128: Colin | C128: R | D128: 2025 | E128: 29 | F128: PIT | G128: NL | H128: LP | I128: 0.5 | J128: Y | K128: 51.2 | L128: 3 | M128: 44 | N128: 3 | O128: 0 | P128: 0 | Q128: 1 | R128: 7 | S128: 264 | T128: 6 | U128: 22 | V128: 1 | W128: 55 | X128: 166 | Y128: 44 | Z128: 38 | AA128: 10 | AB128: 3 | AC128: 0 | AD128: 26 | AE128: 4.22 | AF128: 42 | AG128: 6.5 | AH128: 2.5 | AI128: 8.6 | AJ128: 3.4 | AK128: 0.94 | AL128: 0.277 | AM128: 1.24 | AN128: 1.42 | AO128: 0.05 | AP128: 64 | AQ128: 102 | AR128: 24 | AS128: 5 | AT128: 5.46 | AU128: 169 | AV128: 84 | AW128: -0.12 | AX128: LP | AY128: 57.4 | AZ128: 3.99 | BA128: 75 | BB128: 31 | BC128: LP | BD128: 59.3 | BE128: 4.11 | BF128: 85 | BG128: 28 | BH128: 51.3 | BI128: 3.16 | BJ128: 4.2 | BK128: 24 | BL128: 1.07 | BM128: 0 | BN128: R | BO128: 8 | BP128: holdeco01 | BQ128: 670059 | BR128: Righty Power RP | BS128: John Schreiber | BT128: Ian Hamilton | BU128: Jose Leclerc | BV128: Approaching his prime years. Priced in-line with expectations. Trade bait?
A129: Koenig | B129: Jared | C129: L | D129: 2025 | E129: 31 | F129: MIL | G129: NL | H129: LP | I129: 0.53 | J129: Y | K129: 48.5 | L129: 3 | M129: 36 | N129: 6 | O129: 0 | P129: 0 | Q129: 1 | R129: 5 | S129: 230 | T129: 5 | U129: 20 | V129: 2 | W129: 49 | X129: 162 | Y129: 46 | Z129: 38 | AA129: 1 | AB129: 3 | AC129: 0 | AD129: 22 | AE129: 4.23 | AF129: 44 | AG129: 7.4 | AH129: 2.4 | AI129: 8.4 | AJ129: 3.4 | AK129: 0.9 | AL129: 0.289 | AM129: 1.3 | AN129: 1.37 | AO129: 0.05 | AP129: 61 | AQ129: 102 | AR129: 23 | AS129: 5 | AT129: 4.88 | AU129: 170 | AV129: 85 | AW129: -0.23 | AX129: LP | AY129: 55.8 | AZ129: 3.85 | BA129: 72 | BB129: 34 | BC129: LP | BD129: 57.1 | BE129: 3.99 | BF129: 82 | BG129: 30 | BH129: 62 | BI129: 2.47 | BJ129: 3.18 | BK129: 69 | BL129: 1.76 | BM129: -46 | BN129: R | BO129: -5 | BP129: koenija01 | BQ129: 657649 | BR129: Lefty Power RP | BS129: Cam Booser | BT129: Anthony Banda | BU129: Colin Poche | BV129: In prime. Role player, not a keeper. Trade bait?
A130: Hendricks | B130: Kyle | C130: R | D130: 2025 | E130: 35 | F130: CHN | G130: NL | H130: LP | I130: 0.71 | J130: Y | K130: 102.3 | L130: 7 | M130: 26 | N130: 17 | O130: 0 | P130: 0 | Q130: 0 | R130: 3 | S130: 385 | T130: 13 | U130: 30 | V130: 0 | W130: 71 | X130: 294 | Y130: 124 | Z130: 45 | AA130: 22 | AB130: 3 | AC130: 0 | AD130: 63 | AE130: 5 | AF130: 102 | AG130: 9.7 | AH130: 2.4 | AI130: 6.7 | AJ130: 2.8 | AK130: 1.27 | AL130: 0.285 | AM130: 1.38 | AN130: 1.72 | AO130: 0.07 | AP130: 15 | AQ130: 121 | AR130: 23 | AS130: 8 | AT130: 14.77 | AU130: 171 | AV130: 86 | AW130: -0.56 | AX130: LP | AY130: 82.9 | AZ130: 4.38 | BA130: 82 | BB130: 28 | BC130: LP | BD130: 71.5 | BE130: 4.44 | BF130: 92 | BG130: 24 | BH130: 130.7 | BI130: 5.92 | BJ130: 4.89 | BK130: 27 | BL130: -0.93 | BM130: -4 | BN130: R | BO130: -59 | BP130: hendrky01 | BQ130: 543294 | BR130: Aging Super Control Swing Starter | BS130: Albert Suarez | BT130: Lance Lynn | BU130: Kyle Gibson | BV130: Should perform close to forecast. Role player, not a keeper. Trade bait?
A131: Smyly | B131: Drew | C131: L | D131: 2025 | E131: 36 | F131: CHN | G131: NL | H131: LP | I131: 0.65 | J131: Y | K131: 56.6 | L131: 4 | M131: 31 | N131: 8 | O131: 0 | P131: 0 | Q131: 0 | R131: 4 | S131: 238 | T131: 10 | U131: 25 | V131: 1 | W131: 57 | X131: 191 | Y131: 66 | Z131: 40 | AA131: 22 | AB131: 3 | AC131: 0 | AD131: 32 | AE131: 4.42 | AF131: 60 | AG131: 9 | AH131: 2.3 | AI131: 8.6 | AJ131: 3.7 | AK131: 1.53 | AL131: 0.297 | AM131: 1.46 | AN131: 2.11 | AO131: 0.09 | AP131: 44 | AQ131: 107 | AR131: 23 | AS131: 6 | AT131: 5.77 | AU131: 174 | AV131: 87 | AW131: 0.06 | AX131: LP | AY131: 56.4 | AZ131: 4.53 | BA131: 85 | BB131: 20 | BC131: LP | BD131: 55.8 | BE131: 4.48 | BF131: 92 | BG131: 20 | BH131: 58.7 | BI131: 3.84 | BJ131: 4.65 | BK131: 18 | BL131: 0.58 | BM131: 4 | BN131: R | BO131: -3 | BP131: smylydr01 | BQ131: 592767 | BR131: Aging Lefty Power Swing Starter | BS131: Steven Okert | BT131: Caleb Thielbar | BU131: Matt Moore | BV131: Role player, not a keeper. Trade bait?
A132: Floro | B132: Dylan | C132: R | D132: 2025 | E132: 34 | F132: ARI | G132: NL | H132: LP | I132: 0.55 | J132: Y | K132: 50.7 | L132: 3 | M132: 56 | N132: 2 | O132: 0 | P132: 0 | Q132: 6 | R132: 13 | S132: 245 | T132: 5 | U132: 20 | V132: 1 | W132: 54 | X132: 184 | Y132: 53 | Z132: 39 | AA132: 10 | AB132: 2 | AC132: 0 | AD132: 26 | AE132: 4.32 | AF132: 47 | AG132: 6.9 | AH132: 2.8 | AI132: 7.9 | AJ132: 2.9 | AK132: 0.8 | AL132: 0.303 | AM132: 1.3 | AN132: 1.22 | AO132: 0.04 | AP132: 54 | AQ132: 104 | AR132: 23 | AS132: 4 | AT132: 7.11 | AU132: 175 | AV132: 88 | AW132: -0.7 | AX132: EP | AY132: 59.2 | AZ132: 3.55 | BA132: 67 | BB132: 46 | BC132: LP | BD132: 59.3 | BE132: 3.62 | BF132: 75 | BG132: 43 | BH132: 68.7 | BI132: 3.8 | BJ132: 3.57 | BK132: 49 | BL132: 0.52 | BM132: -26 | BN132: R | BO132: -9 | BP132: florody01 | BQ132: 571670 | BR132: Righty Control RP | BS132: Derek Law | BT132: Shelby Miller | BU132: Tyler Rogers | BV132: Role player, not a keeper. Trade bait?
A133: Peguero | B133: Elvis | C133: R | D133: 2025 | E133: 28 | F133: MIL | G133: NL | H133: LP | I133: 0.49 | J133: Y | K133: 54.4 | L133: 3 | M133: 42 | N133: 3 | O133: 0 | P133: 0 | Q133: 1 | R133: 7 | S133: 276 | T133: 6 | U133: 24 | V133: 2 | W133: 52 | X133: 170 | Y133: 47 | Z133: 39 | AA133: 12 | AB133: 3 | AC133: 0 | AD133: 26 | AE133: 4.32 | AF133: 46 | AG133: 6.9 | AH133: 2.2 | AI133: 7.9 | AJ133: 3.6 | AK133: 0.92 | AL133: 0.278 | AM133: 1.29 | AN133: 1.42 | AO133: 0.05 | AP133: 43 | AQ133: 105 | AR133: 22 | AS133: 4 | AT133: 5.07 | AU133: 176 | AV133: 89 | AW133: -0.21 | AX133: LP | AY133: 58.8 | AZ133: 4.03 | BA133: 76 | BB133: 30 | BC133: LP | BD133: 60.5 | BE133: 4.11 | BF133: 85 | BG133: 28 | BH133: 51.3 | BI133: 2.98 | BJ133: 3.89 | BK133: 32 | BL133: 1.34 | BM133: -9 | BN133: R | BO133: 9 | BP133: pegueel01 | BQ133: 665625 | BR133: Righty Long Relief | BS133: Colin Holderman | BT133: Carmen Mlodzinski | BU133: Osvaldo Bido | BV133: Priced in-line with expectations.
A134: Winn | B134: Keaton | C134: R | D134: 2025 | E134: 27 | F134: SFN | G134: NL | H134: LP | I134: 0.5 | J134: Y | K134: 64.6 | L134: 4 | M134: 21 | N134: 8 | O134: 0 | P134: 0 | Q134: 0 | R134: 3 | S134: 245 | T134: 8 | U134: 19 | V134: 0 | W134: 53 | X134: 173 | Y134: 77 | Z134: 42 | AA134: 16 | AB134: 6 | AC134: 0 | AD134: 49 | AE134: 4.67 | AF134: 62 | AG134: 9.8 | AH134: 2.7 | AI134: 8.3 | AJ134: 3.1 | AK134: 1.32 | AL134: 0.268 | AM134: 1.3 | AN134: 1.81 | AO134: 0.08 | AP134: 48 | AQ134: 113 | AR134: 22 | AS134: 6 | AT134: 9.77 | AU134: 177 | AV134: 90 | AW134: -0.31 | AX134: LP | AY134: 59.4 | AZ134: 4.35 | BA134: 82 | BB134: 23 | BC134: LP | BD134: 58.5 | BE134: 4.35 | BF134: 90 | BG134: 23 | BH134: 55.3 | BI134: 7.16 | BJ134: 4.74 | BK134: 17 | BL134: -2.49 | BM134: 5 | BN134: R | BO134: 3 | BP134: winnke01 | BQ134: 676775 | BR134: Righty Power Swing Starter | BS134: Slade Cecconi | BT134: Bobby Miller | BU134: Louie Varland | BV134: Priced in-line with expectations.
A135: Roupp | B135: Landen | C135: R | D135: 2025 | E135: 26 | F135: SFN | G135: NL | H135: LP | I135: 0.5 | J135: Y | K135: 55.4 | L135: 3 | M135: 25 | N135: 5 | O135: 0 | P135: 0 | Q135: 0 | R135: 4 | S135: 221 | T135: 4 | U135: 23 | V135: 0 | W135: 49 | X135: 155 | Y135: 46 | Z135: 39 | AA135: 2 | AB135: 2 | AC135: 1 | AD135: 24 | AE135: 4.31 | AF135: 46 | AG135: 8.2 | AH135: 2.2 | AI135: 8.7 | AJ135: 4 | AK135: 0.77 | AL135: 0.288 | AM135: 1.35 | AN135: 1.31 | AO135: 0.04 | AP135: 62 | AQ135: 104 | AR135: 22 | AS135: 5 | AT135: 4.24 | AU135: 178 | AV135: 91 | AW135: -0.28 | AX135: LP | AY135: 55.9 | AZ135: 3.92 | BA135: 74 | BB135: 32 | BC135: LP | BD135: 57 | BE135: 4.03 | BF135: 83 | BG135: 29 | BH135: 50.3 | BI135: 3.58 | BJ135: 3.53 | BK135: 44 | BL135: 0.73 | BM135: -22 | BN135: R | BO135: 7 | BP135: rouppla01 | BQ135: 694738 | BR135: Young Power Long Relief | BS135: José Butto | BT135: Ryan Fernandez | BU135: Carmen Mlodzinski | BV135: Priced in-line with expectations.
A136: Brito | B136: Jhony | C136: R | D136: 2025 | E136: 27 | F136: SDN | G136: NL | H136: LP | I136: 0.55 | J136: Y | K136: 60 | L136: 3 | M136: 25 | N136: 5 | O136: 0 | P136: 0 | Q136: 0 | R136: 5 | S136: 239 | T136: 8 | U136: 18 | V136: 1 | W136: 48 | X136: 170 | Y136: 56 | Z136: 39 | AA136: 18 | AB136: 2 | AC136: 0 | AD136: 30 | AE136: 4.38 | AF136: 47 | AG136: 7.5 | AH136: 2.6 | AI136: 7.7 | AJ136: 2.9 | AK136: 1.21 | AL136: 0.284 | AM136: 1.31 | AN136: 1.66 | AO136: 0.07 | AP136: 40 | AQ136: 106 | AR136: 22 | AS136: 5 | AT136: 5.29 | AU136: 179 | AV136: 92 | AW136: -0.2 | AX136: LP | AY136: 57.3 | AZ136: 4.17 | BA136: 78 | BB136: 26 | BC136: LP | BD136: 57.9 | BE136: 4.18 | BF136: 86 | BG136: 26 | BH136: 43.7 | BI136: 4.12 | BJ136: 3.68 | BK136: 36 | BL136: 0.26 | BM136: -14 | BN136: R | BO136: 14 | BP136: britojh01 | BQ136: 666745 | BR136: Righty Long Relief | BS136: Bryan Hoeing | BT136: Xzavion Curry | BU136: Slade Cecconi | BV136: Priced in-line with expectations.
A137: Bivens | B137: Spencer | C137: R | D137: 2025 | E137: 31 | F137: SFN | G137: NL | H137: LP | I137: 0.49 | J137: Y | K137: 42.8 | L137: 3 | M137: 26 | N137: 4 | O137: 0 | P137: 0 | Q137: 1 | R137: 6 | S137: 200 | T137: 7 | U137: 14 | V137: 1 | W137: 40 | X137: 143 | Y137: 42 | Z137: 38 | AA137: 1 | AB137: 2 | AC137: 0 | AD137: 20 | AE137: 4.23 | AF137: 37 | AG137: 7 | AH137: 2.8 | AI137: 7.6 | AJ137: 2.7 | AK137: 1.41 | AL137: 0.273 | AM137: 1.25 | AN137: 1.86 | AO137: 0.08 | AP137: 36 | AQ137: 102 | AR137: 22 | AS137: 4 | AT137: 3.53 | AU137: 181 | AV137: 93 | AW137: 0.09 | AX137: LP | AY137: 50.8 | AZ137: 4.31 | BA137: 81 | BB137: 22 | BC137: LP | BD137: 53.7 | BE137: 4.32 | BF137: 89 | BG137: 22 | BH137: 48.7 | BI137: 3.14 | BJ137: 4.6 | BK137: 17 | BL137: 1.09 | BM137: 5 | BN137: R | BO137: 5 | BP137: bivensp01 | BQ137: 702352 | BR137: Righty Super Control RP | BS137: Bowden Francis | BT137: Austin Voth | BU137: Burch Smith | BV137: In prime. Role player, not a keeper. Trade bait?
A138: Leahy | B138: Kyle | C138: R | D138: 2025 | E138: 28 | F138: SLN | G138: NL | H138: LP | I138: 0.37 | J138: Y | K138: 45.6 | L138: 2 | M138: 29 | N138: 3 | O138: 0 | P138: 0 | Q138: 1 | R138: 8 | S138: 207 | T138: 6 | U138: 16 | V138: 0 | W138: 42 | X138: 148 | Y138: 41 | Z138: 38 | AA138: 3 | AB138: 2 | AC138: 0 | AD138: 23 | AE138: 4.24 | AF138: 33 | AG138: 6.2 | AH138: 2.6 | AI138: 7.8 | AJ138: 3 | AK138: 1.07 | AL138: 0.279 | AM138: 1.26 | AN138: 1.52 | AO138: 0.06 | AP138: 45 | AQ138: 103 | AR138: 22 | AS138: 4 | AT138: 3.39 | AU138: 182 | AV138: 94 | AW138: -0.11 | AX138: LP | AY138: 51.8 | AZ138: 4.09 | BA138: 77 | BB138: 27 | BC138: LP | BD138: 54.5 | BE138: 4.13 | BF138: 85 | BG138: 26 | BH138: 48.7 | BI138: 4.07 | BJ138: 3.62 | BK138: 40 | BL138: 0.17 | BM138: -18 | BN138: R | BO138: 6 | BP138: leahyky01 | BQ138: 681517 | BR138: Righty Control RP | BS138: Stephen Kolek | BT138: Tyson Miller | BU138: Cole Sands | BV138: Priced in-line with expectations.
A139: Chavez | B139: Jesse | C139: R | D139: 2025 | E139: 41 | F139: ATL | G139: NL | H139: LP | I139: 0.52 | J139: Y | K139: 41.9 | L139: 3 | M139: 39 | N139: 3 | O139: 0 | P139: 0 | Q139: 0 | R139: 11 | S139: 237 | T139: 7 | U139: 19 | V139: 1 | W139: 45 | X139: 160 | Y139: 46 | Z139: 39 | AA139: 6 | AB139: 2 | AC139: 0 | AD139: 23 | AE139: 4.33 | AF139: 44 | AG139: 7.1 | AH139: 2.4 | AI139: 7.4 | AJ139: 3.1 | AK139: 1.13 | AL139: 0.269 | AM139: 1.26 | AN139: 1.6 | AO139: 0.06 | AP139: 32 | AQ139: 105 | AR139: 22 | AS139: 4 | AT139: 4.83 | AU139: 185 | AV139: 95 | AW139: -0.11 | AX139: LP | AY139: 52.5 | AZ139: 4.16 | BA139: 78 | BB139: 25 | BC139: LP | BD139: 54.3 | BE139: 4.23 | BF139: 87 | BG139: 24 | BH139: 63.3 | BI139: 3.13 | BJ139: 4.29 | BK139: 25 | BL139: 1.21 | BM139: -4 | BN139: R | BO139: -9 | BP139: chaveje01 | BQ139: 445926 | BR139: Aging Control RP | BS139: Luis Garcia | BT139: J. T. Chargois | BU139: Jacob Barnes | BV139: Role player, not a keeper. Trade bait?
A140: Barnes | B140: Jacob | C140: R | D140: 2025 | E140: 35 | F140: WAS | G140: NL | H140: LP | I140: 0.45 | J140: Y | K140: 48.9 | L140: 3 | M140: 44 | N140: 3 | O140: 0 | P140: 0 | Q140: 0 | R140: 7 | S140: 277 | T140: 8 | U140: 20 | V140: 1 | W140: 45 | X140: 167 | Y140: 49 | Z140: 39 | AA140: 6 | AB140: 2 | AC140: 0 | AD140: 31 | AE140: 4.38 | AF140: 41 | AG140: 6.1 | AH140: 2.3 | AI140: 6.9 | AJ140: 2.9 | AK140: 1.11 | AL140: 0.264 | AM140: 1.24 | AN140: 1.56 | AO140: 0.06 | AP140: 23 | AQ140: 106 | AR140: 21 | AS140: 4 | AT140: 4.86 | AU140: 187 | AV140: 96 | AW140: -0.15 | AX140: LP | AY140: 58.2 | AZ140: 4.19 | BA140: 79 | BB140: 26 | BC140: LP | BD140: 59.3 | BE140: 4.22 | BF140: 87 | BG140: 26 | BH140: 66 | BI140: 4.36 | BJ140: 4.21 | BK140: 28 | BL140: 0.01 | BM140: -6 | BN140: R | BO140: -7 | BP140: barneja01 | BQ140: 606930 | BR140: Aging Control RP | BS140: Jesse Chavez | BT140: Luis Garcia | BU140: Burch Smith | BV140: Role player, not a keeper. Trade bait?
A141: Bellozo | B141: Valente | C141: R | D141: 2025 | E141: 25 | F141: MIA | G141: NL | H141: LP | I141: 0.58 | J141: Y | K141: 83.5 | L141: 5 | M141: 20 | N141: 9 | O141: 0 | P141: 0 | Q141: 0 | R141: 2 | S141: 267 | T141: 11 | U141: 21 | V141: 1 | W141: 49 | X141: 187 | Y141: 84 | Z141: 43 | AA141: 1 | AB141: 3 | AC141: 0 | AD141: 41 | AE141: 4.78 | AF141: 78 | AG141: 11.5 | AH141: 2.4 | AI141: 7.3 | AJ141: 3 | AK141: 1.69 | AL141: 0.263 | AM141: 1.34 | AN141: 2.21 | AO141: 0.09 | AP141: 18 | AQ141: 116 | AR141: 21 | AS141: 6 | AT141: 9.96 | AU141: 189 | AV141: 97 | AW141: -0.13 | AX141: LP | AY141: 65.6 | AZ141: 4.75 | BA141: 89 | BB141: 18 | BC141: LP | BD141: 61.6 | BE141: 4.65 | BF141: 96 | BG141: 19 | BH141: 68.7 | BI141: 3.67 | BJ141: 5.54 | BK141: 11 | BL141: 1.11 | BM141: 10 | BN141: R | BO141: -7 | BP141: bellova01 | BQ141: 678368 | BR141: Young Control Swing Starter | BS141: Emerson Hancock | BT141: Max Meyer | BU141: Carlos Rodriguez | BV141: Priced in-line with expectations.
A142: King | B142: John | C142: L | D142: 2025 | E142: 30 | F142: SLN | G142: NL | H142: LP | I142: 0.5 | J142: Y | K142: 48.4 | L142: 3 | M142: 44 | N142: 2 | O142: 0 | P142: 0 | Q142: 0 | R142: 8 | S142: 216 | T142: 6 | U142: 18 | V142: 1 | W142: 44 | X142: 172 | Y142: 52 | Z142: 39 | AA142: 8 | AB142: 2 | AC142: 0 | AD142: 21 | AE142: 4.34 | AF142: 46 | AG142: 7.7 | AH142: 2.4 | AI142: 7.3 | AJ142: 3 | AK142: 0.98 | AL142: 0.308 | AM142: 1.39 | AN142: 1.43 | AO142: 0.05 | AP142: 33 | AQ142: 105 | AR142: 21 | AS142: 4 | AT142: 3.12 | AU142: 190 | AV142: 98 | AW142: -0.18 | AX142: LP | AY142: 54.1 | AZ142: 4.08 | BA142: 77 | BB142: 28 | BC142: LP | BD142: 55.6 | BE142: 4.16 | BF142: 86 | BG142: 26 | BH142: 60 | BI142: 2.85 | BJ142: 3.79 | BK142: 37 | BL142: 1.49 | BM142: -16 | BN142: R | BO142: -4 | BP142: kingjo01 | BQ142: 667463 | BR142: Lefty Control RP | BS142: Colin Poche | BT142: Anthony Banda | BU142: Tim Mayza | BV142: In prime. Priced in-line with expectations. Trade bait?
A143: Wicks | B143: Jordan | C143: L | D143: 2025 | E143: 25 | F143: CHN | G143: NL | H143: LP | I143: 0.45 | J143: Y | K143: 69.6 | L143: 4 | M143: 20 | N143: 8 | O143: 0 | P143: 0 | Q143: 0 | R143: 3 | S143: 237 | T143: 9 | U143: 21 | V143: 0 | W143: 49 | X143: 162 | Y143: 81 | Z143: 42 | AA143: 18 | AB143: 3 | AC143: 0 | AD143: 46 | AE143: 4.71 | AF143: 73 | AG143: 12.3 | AH143: 2.3 | AI143: 8.4 | AJ143: 3.6 | AK143: 1.44 | AL143: 0.284 | AM143: 1.44 | AN143: 1.99 | AO143: 0.08 | AP143: 39 | AQ143: 114 | AR143: 21 | AS143: 6 | AT143: 7.52 | AU143: 192 | AV143: 99 | AW143: -0.22 | AX143: LP | AY143: 60 | AZ143: 4.53 | BA143: 85 | BB143: 20 | BC143: LP | BD143: 58.9 | BE143: 4.49 | BF143: 93 | BG143: 21 | BH143: 46 | BI143: 5.48 | BJ143: 5.1 | BK143: 11 | BL143: -0.77 | BM143: 9 | BN143: R | BO143: 13 | BP143: wicksjo01 | BQ143: 696136 | BR143: Young Lefty Power Swing Starter | BS143: Logan Allen | BT143: Ryan Weathers | BU143: Brandon Williamson | BV143: Priced in-line with expectations.
A144: Hudson | B144: Bryan | C144: L | D144: 2025 | E144: 28 | F144: MIL | G144: NL | H144: LP | I144: 0.45 | J144: Y | K144: 52.2 | L144: 3 | M144: 35 | N144: 3 | O144: 0 | P144: 0 | Q144: 0 | R144: 5 | S144: 233 | T144: 7 | U144: 19 | V144: 0 | W144: 55 | X144: 171 | Y144: 40 | Z144: 39 | AA144: 5 | AB144: 3 | AC144: 0 | AD144: 21 | AE144: 4.38 | AF144: 37 | AG144: 6 | AH144: 2.8 | AI144: 8.9 | AJ144: 3.1 | AK144: 1.16 | AL144: 0.252 | AM144: 1.14 | AN144: 1.63 | AO144: 0.07 | AP144: 70 | AQ144: 106 | AR144: 21 | AS144: 4 | AT144: 6.18 | AU144: 194 | AV144: 100 | AW144: -0.24 | AX144: LP | AY144: 55.7 | AZ144: 4.08 | BA144: 77 | BB144: 28 | BC144: LP | BD144: 56.6 | BE144: 4.13 | BF144: 85 | BG144: 27 | BH144: 62.3 | BI144: 1.73 | BJ144: 3.63 | BK144: 44 | BL144: 2.64 | BM144: -23 | BN144: O | BO144: -6 | BP144: hudsobr01 | BQ144: 663542 | BR144: Lefty Power RP | BS144: Brock Burke | BT144: Yuki Matsui | BU144: Angel Zerpa | BV144: Priced in-line with expectations.
A145: Kolek | B145: Stephen | C145: R | D145: 2025 | E145: 28 | F145: SDN | G145: NL | H145: LP | I145: 0.48 | J145: Y | K145: 44.3 | L145: 2 | M145: 34 | N145: 3 | O145: 0 | P145: 0 | Q145: 0 | R145: 8 | S145: 211 | T145: 5 | U145: 15 | V145: 0 | W145: 43 | X145: 144 | Y145: 47 | Z145: 39 | AA145: 2 | AB145: 2 | AC145: 0 | AD145: 24 | AE145: 4.28 | AF145: 36 | AG145: 6.7 | AH145: 2.9 | AI145: 8 | AJ145: 2.7 | AK145: 0.96 | AL145: 0.324 | AM145: 1.39 | AN145: 1.37 | AO145: 0.05 | AP145: 54 | AQ145: 104 | AR145: 21 | AS145: 4 | AT145: 2.06 | AU145: 197 | AV145: 101 | AW145: -0.24 | AX145: LP | AY145: 53.3 | AZ145: 3.94 | BA145: 74 | BB145: 31 | BC145: LP | BD145: 56.2 | BE145: 4.05 | BF145: 84 | BG145: 29 | BH145: 46.7 | BI145: 5.21 | BJ145: 3.58 | BK145: 41 | BL145: -0.92 | BM145: -20 | BN145: R | BO145: 10 | BP145: kolekst01 | BQ145: 663568 | BR145: Righty Super Control RP | BS145: Kyle Leahy | BT145: Tyson Miller | BU145: Grant Holmes | BV145: Priced in-line with expectations.
A146: Meyer | B146: Max | C146: R | D146: 2025 | E146: 26 | F146: MIA | G146: NL | H146: LP | I146: 0.47 | J146: Y | K146: 71.5 | L146: 4 | M146: 20 | N146: 8 | O146: 0 | P146: 0 | Q146: 0 | R146: 4 | S146: 264 | T146: 10 | U146: 19 | V146: 1 | W146: 49 | X146: 165 | Y146: 79 | Z146: 43 | AA146: 2 | AB146: 5 | AC146: 0 | AD146: 48 | AE146: 4.79 | AF146: 68 | AG146: 10.6 | AH146: 2.5 | AI146: 7.8 | AJ146: 3 | AK146: 1.62 | AL146: 0.26 | AM146: 1.31 | AN146: 2.13 | AO146: 0.09 | AP146: 29 | AQ146: 116 | AR146: 21 | AS146: 6 | AT146: 9.6 | AU146: 198 | AV146: 102 | AW146: -0.2 | AX146: LP | AY146: 62.2 | AZ146: 4.68 | BA146: 88 | BB146: 19 | BC146: LP | BD146: 60.5 | BE146: 4.59 | BF146: 95 | BG146: 20 | BH146: 57 | BI146: 5.68 | BJ146: 5.66 | BK146: 9 | BL146: -0.9 | BM146: 11 | BN146: R | BO146: 3 | BP146: meyerma01 | BQ146: 676974 | BR146: Young Control Swing Starter | BS146: Valente Bellozo | BT146: Emerson Hancock | BU146: Carson Spiers | BV146: Priced in-line with expectations.
A147: Matz | B147: Steven | C147: L | D147: 2025 | E147: 34 | F147: SLN | G147: NL | H147: LP | I147: 0.57 | J147: Y | K147: 75.9 | L147: 4 | M147: 21 | N147: 8 | O147: 0 | P147: 0 | Q147: 0 | R147: 7 | S147: 233 | T147: 7 | U147: 18 | V147: 1 | W147: 48 | X147: 163 | Y147: 77 | Z147: 43 | AA147: 21 | AB147: 3 | AC147: 1 | AD147: 39 | AE147: 4.75 | AF147: 69 | AG147: 11.3 | AH147: 2.6 | AI147: 7.8 | AJ147: 3 | AK147: 1.18 | AL147: 0.276 | AM147: 1.34 | AN147: 1.64 | AO147: 0.07 | AP147: 37 | AQ147: 115 | AR147: 20 | AS147: 5 | AT147: 8.76 | AU147: 199 | AV147: 103 | AW147: -0.45 | AX147: LP | AY147: 59.2 | AZ147: 4.22 | BA147: 79 | BB147: 26 | BC147: LP | BD147: 55.8 | BE147: 4.31 | BF147: 89 | BG147: 23 | BH147: 44.3 | BI147: 5.08 | BJ147: 4.78 | BK147: 14 | BL147: -0.32 | BM147: 6 | BN147: R | BO147: 11 | BP147: matzst01 | BQ147: 571927 | BR147: Lefty Control Swing Starter | BS147: John Means | BT147: Brent Suter | BU147: Ryan Yarbrough | BV147: Role player, not a keeper. Trade bait?
A148: Paxton | B148: James | C148: L | D148: 2025 | E148: 36 | F148: LAN | G148: NL | H148: LP | I148: 0.65 | J148: Y | K148: 86.8 | L148: 6 | M148: 24 | N148: 13 | O148: 0 | P148: 0 | Q148: 0 | R148: 2 | S148: 318 | T148: 11 | U148: 32 | V148: 0 | W148: 62 | X148: 221 | Y148: 90 | Z148: 45 | AA148: 23 | AB148: 3 | AC148: 0 | AD148: 49 | AE148: 4.99 | AF148: 86 | AG148: 10.5 | AH148: 1.9 | AI148: 7.5 | AJ148: 4 | AK148: 1.3 | AL148: 0.261 | AM148: 1.38 | AN148: 1.88 | AO148: 0.07 | AP148: 19 | AQ148: 121 | AR148: 20 | AS148: 6 | AT148: 11.78 | AU148: 200 | AV148: 104 | AW148: -0.43 | AX148: LP | AY148: 69.9 | AZ148: 4.58 | BA148: 86 | BB148: 21 | BC148: LP | BD148: 62.9 | BE148: 4.56 | BF148: 94 | BG148: 20 | BH148: 89.3 | BI148: 4.43 | BJ148: 5.04 | BK148: 19 | BL148: 0.56 | BM148: 2 | BN148: R | BO148: -26 | BP148: paxtoja01 | BQ148: 572020 | BR148: Aging Lefty Swing Starter | BS148: Alex Wood | BT148: Wade Miley | BU148: Dallas Keuchel | BV148: Role player, not a keeper. Trade bait?
A149: Brazoban | B149: Huascar | C149: R | D149: 2025 | E149: 35 | F149: NYN | G149: NL | H149: LP | I149: 0.5 | J149: Y | K149: 46.5 | L149: 3 | M149: 37 | N149: 3 | O149: 0 | P149: 0 | Q149: 0 | R149: 5 | S149: 268 | T149: 5 | U149: 24 | V149: 1 | W149: 50 | X149: 159 | Y149: 41 | Z149: 40 | AA149: 11 | AB149: 3 | AC149: 0 | AD149: 29 | AE149: 4.43 | AF149: 41 | AG149: 6.4 | AH149: 2.1 | AI149: 8 | AJ149: 3.8 | AK149: 0.8 | AL149: 0.258 | AM149: 1.22 | AN149: 1.3 | AO149: 0.04 | AP149: 43 | AQ149: 107 | AR149: 20 | AS149: 4 | AT149: 4.73 | AU149: 202 | AV149: 105 | AW149: -0.38 | AX149: LP | AY149: 55 | AZ149: 3.95 | BA149: 74 | BB149: 31 | BC149: LP | BD149: 57.5 | BE149: 4.05 | BF149: 84 | BG149: 29 | BH149: 51.7 | BI149: 3.83 | BJ149: 3.42 | BK149: 50 | BL149: 0.59 | BM149: -30 | BN149: R | BO149: 6 | BP149: brazohu01 | BQ149: 623211 | BR149: Aging RP | BS149: Austin Adams | BT149: Joe Kelly | BU149: Matt Barnes | BV149: Role player, not a keeper. Trade bait?
A150: Buehler | B150: Walker | C150: R | D150: 2025 | E150: 30 | F150: LAN | G150: NL | H150: LP | I150: 0.59 | J150: Y | K150: 72.2 | L150: 4 | M150: 21 | N150: 10 | O150: 0 | P150: 0 | Q150: 0 | R150: 5 | S150: 259 | T150: 10 | U150: 22 | V150: 0 | W150: 54 | X150: 183 | Y150: 90 | Z150: 44 | AA150: 3 | AB150: 5 | AC150: 0 | AD150: 46 | AE150: 4.89 | AF150: 79 | AG150: 11.8 | AH150: 2.5 | AI150: 8 | AJ150: 3.2 | AK150: 1.51 | AL150: 0.288 | AM150: 1.43 | AN150: 2.03 | AO150: 0.09 | AP150: 32 | AQ150: 118 | AR150: 20 | AS150: 6 | AT150: 8.64 | AU150: 206 | AV150: 106 | AW150: -0.34 | AX150: LP | AY150: 63.4 | AZ150: 4.63 | BA150: 87 | BB150: 19 | BC150: LP | BD150: 60.2 | BE150: 4.55 | BF150: 94 | BG150: 20 | BH150: 75.3 | BI150: 5.38 | BJ150: 5.26 | BK150: 14 | BL150: -0.49 | BM150: 5 | BN150: R | BO150: -15 | BP150: buehlwa01 | BQ150: 621111 | BR150: Righty Control Starter | BS150: Brenan Hanifee | BT150: Joey Estes | BU150: Davis Daniel | BV150: In prime. Priced in-line with expectations. Trade bait?
A151: Jackson | B151: Luke | C151: R | D151: 2025 | E151: 33 | F151: ATL | G151: NL | H151: LP | I151: 0.47 | J151: Y | K151: 44.2 | L151: 3 | M151: 42 | N151: 2 | O151: 0 | P151: 0 | Q151: 0 | R151: 10 | S151: 226 | T151: 7 | U151: 23 | V151: 1 | W151: 53 | X151: 156 | Y151: 43 | Z151: 40 | AA151: 9 | AB151: 2 | AC151: 0 | AD151: 25 | AE151: 4.41 | AF151: 41 | AG151: 6.9 | AH151: 2.3 | AI151: 9.1 | AJ151: 3.9 | AK151: 1.11 | AL151: 0.294 | AM151: 1.35 | AN151: 1.67 | AO151: 0.07 | AP151: 64 | AQ151: 107 | AR151: 19 | AS151: 3 | AT151: 3.36 | AU151: 207 | AV151: 107 | AW151: -0.24 | AX151: LP | AY151: 53.1 | AZ151: 4.08 | BA151: 77 | BB151: 27 | BC151: LP | BD151: 55.5 | BE151: 4.17 | BF151: 86 | BG151: 26 | BH151: 53 | BI151: 5.09 | BJ151: 4.15 | BK151: 26 | BL151: -0.68 | BM151: -6 | BN151: R | BO151: 3 | BP151: jackslu01 | BQ151: 592426 | BR151: Righty Power RP | BS151: Brock Stewart | BT151: Tayler Scott | BU151: Jacob Webb | BV151: Role player, not a keeper. Trade bait?
A152: Miller | B152: Bobby | C152: R | D152: 2025 | E152: 26 | F152: LAN | G152: NL | H152: LP | I152: 0.63 | J152: Y | K152: 72.1 | L152: 5 | M152: 21 | N152: 11 | O152: 0 | P152: 0 | Q152: 0 | R152: 2 | S152: 290 | T152: 11 | U152: 25 | V152: 0 | W152: 65 | X152: 203 | Y152: 90 | Z152: 45 | AA152: 29 | AB152: 4 | AC152: 0 | AD152: 54 | AE152: 4.99 | AF152: 76 | AG152: 10.2 | AH152: 2.6 | AI152: 8.8 | AJ152: 3.4 | AK152: 1.51 | AL152: 0.276 | AM152: 1.37 | AN152: 2.05 | AO152: 0.09 | AP152: 48 | AQ152: 121 | AR152: 19 | AS152: 5 | AT152: 10.9 | AU152: 208 | AV152: 108 | AW152: -0.41 | AX152: LP | AY152: 64.8 | AZ152: 4.53 | BA152: 85 | BB152: 21 | BC152: LP | BD152: 62.9 | BE152: 4.58 | BF152: 95 | BG152: 20 | BH152: 56 | BI152: 8.52 | BJ152: 6.58 | BK152: 5 | BL152: -3.52 | BM152: 14 | BN152: S | BO152: 7 | BP152: millebo06 | BQ152: 676272 | BR152: Young Power Swing Starter | BS152: Keaton Winn | BT152: Quinn Priester | BU152: Graham Ashcraft | BV152: Expect rebound.
A153: Priester | B153: Quinn | C153: R | D153: 2025 | E153: 24 | F153: PIT | G153: NL | H153: LP | I153: 0.48 | J153: Y | K153: 60.8 | L153: 3 | M153: 20 | N153: 7 | O153: 0 | P153: 0 | Q153: 0 | R153: 3 | S153: 246 | T153: 9 | U153: 22 | V153: 0 | W153: 48 | X153: 167 | Y153: 84 | Z153: 44 | AA153: 25 | AB153: 4 | AC153: 0 | AD153: 50 | AE153: 4.89 | AF153: 73 | AG153: 12 | AH153: 2.2 | AI153: 7.8 | AJ153: 3.5 | AK153: 1.51 | AL153: 0.282 | AM153: 1.45 | AN153: 2.06 | AO153: 0.08 | AP153: 25 | AQ153: 118 | AR153: 19 | AS153: 4 | AT153: 7.08 | AU153: 210 | AV153: 109 | AW153: -0.4 | AX153: LP | AY153: 59.1 | AZ153: 4.62 | BA153: 87 | BB153: 19 | BC153: LP | BD153: 59.9 | BE153: 4.49 | BF153: 93 | BG153: 21 | BH153: 44.7 | BI153: 5.04 | BJ153: 4.67 | BK153: 15 | BL153: -0.15 | BM153: 3 | BN153: R | BO153: 15 | BP153: priesqu01 | BQ153: 682990 | BR153: Young Swing Starter | BS153: AJ Smith-Shawver | BT153: Jackson Rutledge | BU153: Peyton Battenfield | BV153: Priced in-line with expectations.
A154: Houser | B154: Adrian | C154: R | D154: 2025 | E154: 32 | F154: NYN | G154: NL | H154: LP | I154: 0.64 | J154: Y | K154: 72.6 | L154: 5 | M154: 24 | N154: 10 | O154: 0 | P154: 0 | Q154: 0 | R154: 5 | S154: 256 | T154: 8 | U154: 27 | V154: 0 | W154: 54 | X154: 204 | Y154: 92 | Z154: 45 | AA154: 21 | AB154: 3 | AC154: 0 | AD154: 44 | AE154: 4.96 | AF154: 83 | AG154: 11.7 | AH154: 2 | AI154: 7.6 | AJ154: 3.8 | AK154: 1.13 | AL154: 0.298 | AM154: 1.51 | AN154: 1.67 | AO154: 0.06 | AP154: 25 | AQ154: 120 | AR154: 19 | AS154: 4 | AT154: 7.69 | AU154: 211 | AV154: 110 | AW154: -0.57 | AX154: LP | AY154: 62.8 | AZ154: 4.35 | BA154: 82 | BB154: 24 | BC154: LP | BD154: 59 | BE154: 4.39 | BF154: 91 | BG154: 22 | BH154: 69.3 | BI154: 5.84 | BJ154: 4.91 | BK154: 17 | BL154: -0.88 | BM154: 2 | BN154: R | BO154: -10 | BP154: housead01 | BQ154: 605288 | BR154: Righty Swing Starter | BS154: Dakota Hudson | BT154: Michael Lorenzen | BU154: Kyle Hendricks | BV154: Role player, not a keeper. Trade bait?
A155: Lambert | B155: Peter | C155: R | D155: 2025 | E155: 28 | F155: COL | G155: NL | H155: LP | I155: 0.59 | J155: Y | K155: 68.1 | L155: 3 | M155: 28 | N155: 6 | O155: 0 | P155: 0 | Q155: 0 | R155: 5 | S155: 282 | T155: 10 | U155: 25 | V155: 1 | W155: 56 | X155: 193 | Y155: 70 | Z155: 43 | AA155: 21 | AB155: 3 | AC155: 0 | AD155: 39 | AE155: 4.74 | AF155: 58 | AG155: 8.1 | AH155: 2.3 | AI155: 7.9 | AJ155: 3.5 | AK155: 1.34 | AL155: 0.297 | AM155: 1.44 | AN155: 1.88 | AO155: 0.08 | AP155: 31 | AQ155: 115 | AR155: 19 | AS155: 4 | AT155: 5.17 | AU155: 213 | AV155: 111 | AW155: -0.37 | AX155: LP | AY155: 63.5 | AZ155: 4.43 | BA155: 83 | BB155: 23 | BC155: LP | BD155: 62 | BE155: 4.37 | BF155: 90 | BG155: 23 | BH155: 61.3 | BI155: 5.72 | BJ155: 4.37 | BK155: 23 | BL155: -0.98 | BM155: -5 | BN155: R | BO155: 1 | BP155: lambepe01 | BQ155: 663567 | BR155: Righty Long Relief | BS155: Bobby Miller | BT155: Quinn Priester | BU155: Jake Woodford | BV155: Priced in-line with expectations.
A156: Blach | B156: Ty | C156: L | D156: 2025 | E156: 34 | F156: COL | G156: NL | H156: LP | I156: 0.58 | J156: Y | K156: 63.2 | L156: 4 | M156: 26 | N156: 9 | O156: 0 | P156: 0 | Q156: 0 | R156: 4 | S156: 284 | T156: 11 | U156: 21 | V156: 0 | W156: 45 | X156: 194 | Y156: 104 | Z156: 47 | AA156: 21 | AB156: 6 | AC156: 0 | AD156: 54 | AE156: 5.2 | AF156: 85 | AG156: 11.7 | AH156: 2.2 | AI156: 6.2 | AJ156: 2.8 | AK156: 1.56 | AL156: 0.298 | AM156: 1.5 | AN156: 2.05 | AO156: 0.08 | AP156: 5 | AQ156: 126 | AR156: 17 | AS156: 1 | AT156: 6.58 | AU156: 229 | AV156: 112 | AW156: -0.38 | AX156: LP | AY156: 62.2 | AZ156: 4.96 | BA156: 93 | BB156: 15 | BC156: LP | BD156: 60.4 | BE156: 4.82 | BF156: 100 | BG156: 16 | BH156: 71.3 | BI156: 6.94 | BJ156: 5.99 | BK156: 9 | BL156: -1.74 | BM156: 8 | BN156: R | BO156: -11 | BP156: blachty01 | BQ156: 621389 | BR156: Lefty Super Control Swing Starter | BS156: Hyun-jin Ryu | BT156: Wade Miley | BU156: Kyle Freeland | BV156: Role player, not a keeper. Trade bait?
A157: Muñoz | B157: Roddery | C157: R | D157: 2025 | E157: 25 | F157: MIA | G157: NL | H157: LP | I157: 0.62 | J157: Y | K157: 57.5 | L157: 4 | M157: 22 | N157: 11 | O157: 0 | P157: 0 | Q157: 0 | R157: 2 | S157: 311 | T157: 17 | U157: 32 | V157: 0 | W157: 63 | X157: 209 | Y157: 96 | Z157: 48 | AA157: 4 | AB157: 5 | AC157: 1 | AD157: 65 | AE157: 5.29 | AF157: 84 | AG157: 11 | AH157: 2 | AI157: 8.3 | AJ157: 4.2 | AK157: 2.28 | AL157: 0.27 | AM157: 1.51 | AN157: 3 | AO157: 0.14 | AP157: 14 | AQ157: 128 | AR157: 16 | AS157: 2 | AT157: 8.42 | AU157: 234 | AV157: 113 | AW157: -0.08 | AX157: LP | AY157: 65.3 | AZ157: 5.47 | BA157: 103 | BB157: 11 | BC157: LP | BD157: 65 | BE157: 5.21 | BF157: 108 | BG157: 13 | BH157: 82.7 | BI157: 6.53 | BJ157: 6.91 | BK157: 7 | BL157: -1.24 | BM157: 10 | BN157: R | BO157: -18 | BP157: munozro01 | BQ157: 682610 | BR157: Young Power Swing Starter | BS157: Michael Mercado | BT157: Julian Aguiar | BU157: Hurston Waldrep | BV157: Priced in-line with expectations.
A158: Walker | B158: Taijuan | C158: R | D158: 2025 | E158: 32 | F158: PHI | G158: NL | H158: LP | I158: 0.72 | J158: Y | K158: 73.3 | L158: 6 | M158: 18 | N158: 14 | O158: 0 | P158: 0 | Q158: 0 | R158: 1 | S158: 293 | T158: 13 | U158: 31 | V158: 0 | W158: 65 | X158: 243 | Y158: 105 | Z158: 48 | AA158: 24 | AB158: 4 | AC158: 0 | AD158: 52 | AE158: 5.35 | AF158: 93 | AG158: 11.3 | AH158: 2.1 | AI158: 7.8 | AJ158: 3.7 | AK158: 1.54 | AL158: 0.293 | AM158: 1.51 | AN158: 2.13 | AO158: 0.09 | AP158: 19 | AQ158: 129 | AR158: 16 | AS158: 4 | AT158: 9.4 | AU158: 236 | AV158: 114 | AW158: -0.5 | AX158: LP | AY158: 65.8 | AZ158: 4.89 | BA158: 92 | BB158: 17 | BC158: LP | BD158: 61.9 | BE158: 4.86 | BF158: 100 | BG158: 16 | BH158: 83.7 | BI158: 7.1 | BJ158: 6.63 | BK158: 8 | BL158: -1.75 | BM158: 9 | BN158: R | BO158: -22 | BP158: walketa01 | BQ158: 592836 | BR158: Righty Starter | BS158: J.P. France | BT158: Cal Quantrill | BU158: Christopher Flexen | BV158: Should perform close to forecast. Role player, not a keeper. Trade bait?
A159: Molina | B159: Anthony | C159: R | D159: 2025 | E159: 23 | F159: COL | G159: NL | H159: LP | I159: 0.54 | J159: Y | K159: 63.3 | L159: 2 | M159: 31 | N159: 3 | O159: 0 | P159: 0 | Q159: 0 | R159: 11 | S159: 258 | T159: 6 | U159: 22 | V159: 1 | W159: 49 | X159: 178 | Y159: 59 | Z159: 43 | AA159: 3 | AB159: 2 | AC159: 0 | AD159: 35 | AE159: 4.75 | AF159: 44 | AG159: 6.7 | AH159: 2.2 | AI159: 7.6 | AJ159: 3.4 | AK159: 0.97 | AL159: 0.321 | AM159: 1.47 | AN159: 1.46 | AO159: 0.05 | AP159: 33 | AQ159: 115 | AR159: 16 | AS159: 2 | AT159: 2.1 | AU159: 240 | AV159: 115 | AW159: -0.59 | AX159: LP | AY159: 62.6 | AZ159: 4.1 | BA159: 77 | BB159: 29 | BC159: LP | BD159: 62.6 | BE159: 4.16 | BF159: 86 | BG159: 28 | BH159: 59.7 | BI159: 6.79 | BJ159: 4.06 | BK159: 29 | BL159: -2.04 | BM159: -13 | BN159: R | BO159: 3 | BP159: molinan01 | BQ159: 683627 | BR159: Young Long Relief | BS159: Ronny Henriquez | BT159: Victor Vodnik | BU159: Ben Joyce | BV159: Priced in-line with expectations.
A160: Hudson | B160: Dakota | C160: R | D160: 2025 | E160: 30 | F160: COL | G160: NL | H160: LP | I160: 0.65 | J160: Y | K160: 66.8 | L160: 5 | M160: 22 | N160: 12 | O160: 0 | P160: 0 | Q160: 0 | R160: 3 | S160: 268 | T160: 9 | U160: 34 | V160: 0 | W160: 52 | X160: 228 | Y160: 104 | Z160: 48 | AA160: 18 | AB160: 5 | AC160: 0 | AD160: 50 | AE160: 5.37 | AF160: 96 | AG160: 12.7 | AH160: 1.5 | AI160: 6.8 | AJ160: 4.5 | AK160: 1.15 | AL160: 0.304 | AM160: 1.65 | AN160: 1.77 | AO160: 0.06 | AP160: 5 | AQ160: 130 | AR160: 15 | AS160: 2 | AT160: 5.83 | AU160: 245 | AV160: 116 | AW160: -0.65 | AX160: LP | AY160: 63.1 | AZ160: 4.82 | BA160: 91 | BB160: 17 | BC160: LP | BD160: 60 | BE160: 4.72 | BF160: 97 | BG160: 18 | BH160: 89 | BI160: 6.17 | BJ160: 5.54 | BK160: 14 | BL160: -0.8 | BM160: 2 | BN160: R | BO160: -29 | BP160: hudsoda02 | BQ160: 641712 | BR160: Righty Soft Tosser Swing Starter | BS160: Adrian Houser | BT160: Taijuan Walker | BU160: Sixto Sanchez | BV160: In prime. Priced in-line with expectations. Trade bait?
A161: Jarvis | B161: Bryce | C161: R | D161: 2025 | E161: 27 | F161: ARI | G161: NL | H161: LP | I161: 0.47 | J161: Y | K161: 54.8 | L161: 3 | M161: 34 | N161: 4 | O161: 0 | P161: 0 | Q161: 0 | R161: 9 | S161: 248 | T161: 7 | U161: 26 | V161: 2 | W161: 46 | X161: 174 | Y161: 47 | Z161: 43 | AA161: 8 | AB161: 3 | AC161: 0 | AD161: 25 | AE161: 4.78 | AF161: 48 | AG161: 7.6 | AH161: 1.8 | AI161: 7.3 | AJ161: 4.1 | AK161: 1.12 | AL161: 0.269 | AM161: 1.37 | AN161: 1.7 | AO161: 0.06 | AP161: 18 | AQ161: 116 | AR161: 15 | AS161: 2 | AT161: 2.88 | AU161: 248 | AV161: 117 | AW161: -0.35 | AX161: LP | AY161: 57.2 | AZ161: 4.49 | BA161: 84 | BB161: 20 | BC161: LP | BD161: 58 | BE161: 4.44 | BF161: 92 | BG161: 21 | BH161: 59.3 | BI161: 3.19 | BJ161: 5.01 | BK161: 14 | BL161: 1.6 | BM161: 1 | BN161: R | BO161: -1 | BP161: jarvibr01 | BQ161: 686826 | BR161: Righty Soft Tosser Long Relief | BS161: Nick Nastrini | BT161: Matt Sauer | BU161: Kai-Wei Teng | BV161: Priced in-line with expectations.
A162: Oller | B162: Adam | C162: R | D162: 2025 | E162: 30 | F162: MIA | G162: NL | H162: LP | I162: 0.45 | J162: Y | K162: 52.1 | L162: 3 | M162: 19 | N162: 6 | O162: 0 | P162: 0 | Q162: 0 | R162: 3 | S162: 176 | T162: 8 | U162: 21 | V162: 0 | W162: 39 | X162: 140 | Y162: 73 | Z162: 45 | AA162: 12 | AB162: 3 | AC162: 0 | AD162: 37 | AE162: 5 | AF162: 66 | AG162: 13.8 | AH162: 1.9 | AI162: 8.2 | AJ162: 4.3 | AK162: 1.57 | AL162: 0.295 | AM162: 1.6 | AN162: 2.23 | AO162: 0.09 | AP162: 22 | AQ162: 121 | AR162: 15 | AS162: 2 | AT162: 3.48 | AU162: 249 | AV162: 118 | AW162: -0.42 | AX162: LP | AY162: 50.1 | AZ162: 4.7 | BA162: 88 | BB162: 16 | BC162: LP | BD162: 51.3 | BE162: 4.58 | BF162: 95 | BG162: 18 | BH162: 42.3 | BI162: 5.31 | BJ162: 5.2 | BK162: 10 | BL162: -0.31 | BM162: 5 | BN162: R | BO162: 9 | BP162: ollerad01 | BQ162: 670124 | BR162: Righty Swing Starter | BS162: Brad Keller | BT162: Glenn Otto | BU162: Nick Nastrini | BV162: In prime. Priced in-line with expectations. Trade bait?
A163: Rainey | B163: Tanner | C163: R | D163: 2025 | E163: 32 | F163: WAS | G163: NL | H163: LP | I163: 0.38 | J163: Y | K163: 42.5 | L163: 2 | M163: 37 | N163: 3 | O163: 0 | P163: 0 | Q163: 3 | R163: 13 | S163: 218 | T163: 7 | U163: 21 | V163: 1 | W163: 45 | X163: 145 | Y163: 40 | Z163: 42 | AA163: 3 | AB163: 2 | AC163: 0 | AD163: 23 | AE163: 4.71 | AF163: 39 | AG163: 7 | AH163: 2.1 | AI163: 8.1 | AJ163: 3.9 | AK163: 1.2 | AL163: 0.273 | AM163: 1.33 | AN163: 1.76 | AO163: 0.07 | AP163: 34 | AQ163: 114 | AR163: 15 | AS163: 2 | AT163: 3.02 | AU163: 256 | AV163: 119 | AW163: -0.3 | AX163: LP | AY163: 51.7 | AZ163: 4.43 | BA163: 83 | BB163: 20 | BC163: LP | BD163: 54.6 | BE163: 4.41 | BF163: 91 | BG163: 21 | BH163: 51 | BI163: 4.76 | BJ163: 5.25 | BK163: 11 | BL163: -0.06 | BM163: 4 | BN163: R | BO163: 4 | BP163: raineta01 | BQ163: 663432 | BR163: Righty RP | BS163: Michael Petersen | BT163: Ryder Ryan | BU163: Colten Brewer | BV163: Role player, not a keeper. Trade bait?
A164: Ashcraft | B164: Graham | C164: R | D164: 2025 | E164: 27 | F164: CIN | G164: NL | H164: LP | I164: 0.68 | J164: Y | K164: 73.9 | L164: 5 | M164: 19 | N164: 13 | O164: 0 | P164: 0 | Q164: 0 | R164: 1 | S164: 301 | T164: 11 | U164: 27 | V164: 0 | W164: 65 | X164: 239 | Y164: 108 | Z164: 51 | AA164: 27 | AB164: 6 | AC164: 0 | AD164: 50 | AE164: 5.62 | AF164: 94 | AG164: 11.4 | AH164: 2.4 | AI164: 7.9 | AJ164: 3.3 | AK164: 1.36 | AL164: 0.301 | AM164: 1.49 | AN164: 1.88 | AO164: 0.08 | AP164: 25 | AQ164: 136 | AR164: 14 | AS164: 1 | AT164: 9.28 | AU164: 268 | AV164: 120 | AW164: -1.17 | AX164: LP | AY164: 67.8 | AZ164: 4.5 | BA164: 85 | BB164: 22 | BC164: LP | BD164: 64.5 | BE164: 4.45 | BF164: 92 | BG164: 22 | BH164: 77.3 | BI164: 5.24 | BJ164: 4.69 | BK164: 21 | BL164: 0.38 | BM164: -7 | BN164: R | BO164: -13 | BP164: ashcrgr01 | BQ164: 668933 | BR164: Righty Starter | BS164: J.P. France | BT164: Bobby Miller | BU164: Jake Woodford | BV164: Priced in-line with expectations.
A165: Lawrence | B165: Justin | C165: R | D165: 2025 | E165: 30 | F165: COL | G165: NL | H165: LP | I165: 0.55 | J165: Y | K165: 54.4 | L165: 3 | M165: 51 | N165: 2 | O165: 0 | P165: 0 | Q165: 6 | R165: 18 | S165: 263 | T165: 7 | U165: 28 | V165: 2 | W165: 58 | X165: 182 | Y165: 54 | Z165: 45 | AA165: 11 | AB165: 4 | AC165: 0 | AD165: 32 | AE165: 5.01 | AF165: 51 | AG165: 7.5 | AH165: 2.1 | AI165: 8.5 | AJ165: 4.1 | AK165: 1 | AL165: 0.306 | AM165: 1.43 | AN165: 1.56 | AO165: 0.06 | AP165: 41 | AQ165: 121 | AR165: 14 | AS165: 0 | AT165: 4.8 | AU165: 272 | AV165: 121 | AW165: -0.98 | AX165: EP | AY165: 60.7 | AZ165: 4.07 | BA165: 77 | BB165: 29 | BC165: LP | BD165: 61.2 | BE165: 4.03 | BF165: 83 | BG165: 31 | BH165: 59.7 | BI165: 6.49 | BJ165: 5.44 | BK165: 11 | BL165: -1.48 | BM165: 3 | BN165: R | BO165: 2 | BP165: lawreju01 | BQ165: 664875 | BR165: Righty Power Long Relief | BS165: Alex Lange | BT165: Ryder Ryan | BU165: Chris Roycroft | BV165: In prime. Priced in-line with expectations. Trade bait?
A166: Nicolas | B166: Kyle | C166: R | D166: 2025 | E166: 26 | F166: PIT | G166: NL | H166: LP | I166: 0.41 | J166: Y | K166: 53.1 | L166: 2 | M166: 37 | N166: 3 | O166: 0 | P166: 0 | Q166: 0 | R166: 11 | S166: 238 | T166: 6 | U166: 25 | V166: 1 | W166: 54 | X166: 163 | Y166: 47 | Z166: 45 | AA166: 7 | AB166: 3 | AC166: 0 | AD166: 27 | AE166: 4.97 | AF166: 45 | AG166: 7.5 | AH166: 2.1 | AI166: 9 | AJ166: 4.2 | AK166: 1.02 | AL166: 0.308 | AM166: 1.43 | AN166: 1.6 | AO166: 0.06 | AP166: 54 | AQ166: 120 | AR166: 13 | AS166: 1 | AT166: 2.07 | AU166: 281 | AV166: 122 | AW166: -0.79 | AX166: LP | AY166: 57.2 | AZ166: 4.15 | BA166: 78 | BB166: 27 | BC166: LP | BD166: 58.5 | BE166: 4.18 | BF166: 86 | BG166: 26 | BH166: 54.7 | BI166: 3.95 | BJ166: 3.99 | BK166: 30 | BL166: 1.02 | BM166: -17 | BN166: R | BO166: 4 | BP166: nicolky01 | BQ166: 693312 | BR166: Young Power RP | BS166: Ben Joyce | BT166: Grant Holman | BU166: Jonathan Hernandez | BV166: Priced in-line with expectations.
A167: Weems | B167: Jordan | C167: R | D167: 2025 | E167: 32 | F167: WAS | G167: NL | H167: LP | I167: 0.48 | J167: Y | K167: 40.8 | L167: 2 | M167: 37 | N167: 2 | O167: 0 | P167: 0 | Q167: 0 | R167: 7 | S167: 220 | T167: 7 | U167: 22 | V167: 1 | W167: 46 | X167: 147 | Y167: 40 | Z167: 46 | AA167: 9 | AB167: 2 | AC167: 0 | AD167: 25 | AE167: 5.09 | AF167: 36 | AG167: 6.4 | AH167: 2.1 | AI167: 8.5 | AJ167: 3.9 | AK167: 1.31 | AL167: 0.282 | AM167: 1.37 | AN167: 1.9 | AO167: 0.08 | AP167: 35 | AQ167: 123 | AR167: 11 | AS167: 0 | AT167: 0.98 | AU167: 309 | AV167: 123 | AW167: -0.66 | AX167: LP | AY167: 50.5 | AZ167: 4.45 | BA167: 84 | BB167: 20 | BC167: LP | BD167: 54.3 | BE167: 4.43 | BF167: 91 | BG167: 21 | BH167: 41.7 | BI167: 6.7 | BJ167: 5.34 | BK167: 9 | BL167: -1.6 | BM167: 2 | BN167: R | BO167: 13 | BP167: weemsjo01 | BQ167: 607179 | BR167: Righty Power RP | BS167: Rafael Montero | BT167: Mychal Givens | BU167: Dominic Leone | BV167: Risky pick. Avoid. Trade bait?
A168: Senga | B168: Kodai | C168: R | D168: 2025 | E168: 32 | F168: NYN | G168: NL | H168: JP | I168: 0.58 | J168: Y | K168: 89.9 | L168: 5 | M168: 11 | N168: 11 | O168: 0 | P168: 0 | Q168: 0 | R168: 0 | S168: 258 | T168: 7 | U168: 25 | V168: 0 | W168: 68 | X168: 185 | Y168: 55 | Z168: 27 | AA168: 26 | AB168: 3 | AC168: 0 | AD168: 28 | AE168: 2.95 | AF168: 57 | AG168: 8.3 | AH168: 2.8 | AI168: 9.9 | AJ168: 3.6 | AK168: 1.06 | AL168: 0.264 | AM168: 1.22 | AN168: 1.58 | AO168: 0.07 | AP168: 126 | AQ168: 71 | AR168: 93 | AS168: 23 | AT168: 12.22 | AU168: 4 | AV168: 1 | AW168: 1.1 | AX168: LP | AY168: 60.1 | AZ168: 3.86 | BA168: 72 | BB168: 35 | BC168: JP | BD168: 74.4 | BE168: 4.04 | BF168: 83 | BG168: 33 | BH168: 5.3 | BI168: 3.38 | BJ168: 3.18 | BK168: 37 | BL168: -0.43 | BM168: 56 | BN168: R | BO168: 69 | BP168: sengako01 | BQ168: 673540 | BR168: Righty Serious Heat Starter | BS168: Reynaldo Lopez | BT168: Jack Flaherty | BU168: Tyler Glasnow | BV168: Priced in-line with expectations. CY Young candidate.
A169: Santillan | B169: Tony | C169: R | D169: 2025 | E169: 28 | F169: CIN | G169: NL | H169: JP | I169: 0.28 | J169: Y | K169: 50.6 | L169: 3 | M169: 38 | N169: 6 | O169: 0 | P169: 0 | Q169: 1 | R169: 7 | S169: 430 | T169: 9 | U169: 25 | V169: 1 | W169: 61 | X169: 181 | Y169: 37 | Z169: 35 | AA169: 3 | AB169: 2 | AC169: 0 | AD169: 31 | AE169: 3.91 | AF169: 30 | AG169: 3.3 | AH169: 2.4 | AI169: 7.3 | AJ169: 2.8 | AK169: 0.98 | AL169: 0.245 | AM169: 1.06 | AN169: 1.4 | AO169: 0.05 | AP169: 40 | AQ169: 95 | AR169: 30 | AS169: 7 | AT169: 6.37 | AU169: 109 | AV169: 2 | AW169: 0.15 | AX169: LP | AY169: 68 | AZ169: 4.01 | BA169: 75 | BB169: 33 | BC169: JP | BD169: 96.2 | BE169: 4.06 | BF169: 84 | BG169: 38 | BH169: 30 | BI169: 3 | BJ169: 2.7 | BK169: 100 | BL169: 0.91 | BM169: -69 | BN169: R | BO169: 66 | BP169: santito01 | BQ169: 663574 | BR169: Righty Super Control RP | BS169: Tyson Miller | BT169: Logan Gilbert | BU169: George Kirby | BV169: Priced in-line with expectations.
A170: Garrett | B170: Braxton | C170: L | D170: 2025 | E170: 27 | F170: MIA | G170: NL | H170: JP | I170: 0.63 | J170: Y | K170: 99.5 | L170: 6 | M170: 18 | N170: 14 | O170: 0 | P170: 0 | Q170: 0 | R170: 1 | S170: 349 | T170: 10 | U170: 19 | V170: 0 | W170: 79 | X170: 243 | Y170: 86 | Z170: 39 | AA170: 25 | AB170: 6 | AC170: 0 | AD170: 43 | AE170: 4.33 | AF170: 69 | AG170: 7.5 | AH170: 4.1 | AI170: 8.7 | AJ170: 2.1 | AK170: 1.15 | AL170: 0.288 | AM170: 1.21 | AN170: 1.51 | AO170: 0.07 | AP170: 81 | AQ170: 105 | AR170: 30 | AS170: 14 | AT170: 14.58 | AU170: 112 | AV170: 3 | AW170: -0.27 | AX170: LP | AY170: 73.7 | AZ170: 3.9 | BA170: 73 | BB170: 38 | BC170: JP | BD170: 87 | BE170: 4.05 | BF170: 84 | BG170: 36 | BH170: 37 | BI170: 5.35 | BJ170: 3.75 | BK170: 31 | BL170: -1.02 | BM170: -1 | BN170: R | BO170: 50 | BP170: garrebr01 | BQ170: 666129 | BR170: Lefty Commanding Top Starter | BS170: Logan Webb | BT170: Framber Valdez | BU170: Justin Steele | BV170: Priced in-line with expectations.
A171: McGreevy | B171: Michael | C171: R | D171: 2025 | E171: 24 | F171: SLN | G171: NL | H171: JP | I171: 0.32 | J171: Y | K171: 93.6 | L171: 4 | M171: 19 | N171: 8 | O171: 0 | P171: 0 | Q171: 0 | R171: 4 | S171: 253 | T171: 7 | U171: 18 | V171: 0 | W171: 52 | X171: 180 | Y171: 63 | Z171: 38 | AA171: 2 | AB171: 3 | AC171: 0 | AD171: 33 | AE171: 4.26 | AF171: 53 | AG171: 8.1 | AH171: 2.9 | AI171: 8.3 | AJ171: 2.8 | AK171: 1.12 | AL171: 0.28 | AM171: 1.27 | AN171: 1.55 | AO171: 0.06 | AP171: 61 | AQ171: 103 | AR171: 26 | AS171: 9 | AT171: 7.79 | AU171: 141 | AV171: 4 | AW171: -0.14 | AX171: LP | AY171: 60.9 | AZ171: 4.03 | BA171: 76 | BB171: 30 | BC171: JP | BD171: 76.6 | BE171: 4.11 | BF171: 85 | BG171: 32 | BH171: 23 | BI171: 1.96 | BJ171: 2.62 | BK171: 105 | BL171: 2.3 | BM171: -79 | BN171: O | BO171: 54 | BP171: mcgremi01 | BQ171: 700241 | BR171: Young Super Control Starter | BS171: Shane Baz | BT171: J.T. Ginn | BU171: Jared Jones | BV171: Truth coming. Breaking out or false hopes?
A172: Ashby | B172: Aaron | C172: L | D172: 2025 | E172: 27 | F172: MIL | G172: NL | H172: JP | I172: 0.49 | J172: Y | K172: 44.4 | L172: 3 | M172: 25 | N172: 8 | O172: 0 | P172: 0 | Q172: 0 | R172: 4 | S172: 168 | T172: 7 | U172: 23 | V172: 0 | W172: 63 | X172: 180 | Y172: 47 | Z172: 36 | AA172: 1 | AB172: 2 | AC172: 0 | AD172: 18 | AE172: 4.05 | AF172: 43 | AG172: 7.9 | AH172: 2.7 | AI172: 11.4 | AJ172: 4.3 | AK172: 1.36 | AL172: 0.391 | AM172: 1.61 | AN172: 1.99 | AO172: 0.1 | AP172: 145 | AQ172: 98 | AR172: 25 | AS172: 6 | AT172: 2.42 | AU172: 159 | AV172: 5 | AW172: 0.15 | AX172: LP | AY172: 47.5 | AZ172: 4.11 | BA172: 77 | BB172: 25 | BC172: JP | BD172: 70.8 | BE172: 4.19 | BF172: 87 | BG172: 29 | BH172: 28.3 | BI172: 2.86 | BJ172: 2.91 | BK172: 74 | BL172: 1.19 | BM172: -49 | BN172: R | BO172: 42 | BP172: ashbyaa01 | BQ172: 676879 | BR172: Lefty Serious Heat Swing Starter | BS172: Erik Miller | BT172: Kris Bubic | BU172: Alex Vesia | BV172: Priced in-line with expectations.
A173: Strider | B173: Spencer | C173: R | D173: 2025 | E173: 26 | F173: ATL | G173: NL | H173: JP | I173: 0.64 | J173: Y | K173: 84.2 | L173: 5 | M173: 15 | N173: 11 | O173: 0 | P173: 0 | Q173: 0 | R173: 1 | S173: 243 | T173: 8 | U173: 23 | V173: 0 | W173: 94 | X173: 212 | Y173: 64 | Z173: 40 | AA173: 26 | AB173: 3 | AC173: 0 | AD173: 31 | AE173: 4.42 | AF173: 58 | AG173: 8 | AH173: 4 | AI173: 13 | AJ173: 3.3 | AK173: 1.15 | AL173: 0.32 | AM173: 1.27 | AN173: 1.64 | AO173: 0.09 | AP173: 259 | AQ173: 107 | AR173: 24 | AS173: 11 | AT173: 11.95 | AU173: 165 | AV173: 6 | AW173: -0.63 | AX173: LP | AY173: 61.6 | AZ173: 3.45 | BA173: 65 | BB173: 52 | BC173: JP | BD173: 77.5 | BE173: 3.79 | BF173: 78 | BG173: 42 | BH173: 9 | BI173: 7 | BJ173: 4.72 | BK173: 7 | BL173: -2.58 | BM173: 17 | BN173: S | BO173: 68 | BP173: stridsp01 | BQ173: 675911 | BR173: Young Commanding Starter | BS173: David Festa | BT173: Ben Brown | BU173: Kyle Bradish | BV173: Expect rebound.
A174: Pagan | B174: Emilio | C174: R | D174: 2025 | E174: 34 | F174: CIN | G174: NL | H174: JP | I174: 0.51 | J174: Y | K174: 40.4 | L174: 3 | M174: 53 | N174: 4 | O174: 0 | P174: 0 | Q174: 3 | R174: 8 | S174: 252 | T174: 9 | U174: 24 | V174: 1 | W174: 66 | X174: 201 | Y174: 41 | Z174: 37 | AA174: 9 | AB174: 1 | AC174: 0 | AD174: 21 | AE174: 4.12 | AF174: 35 | AG174: 4.9 | AH174: 2.8 | AI174: 9.3 | AJ174: 3.4 | AK174: 1.24 | AL174: 0.335 | AM174: 1.33 | AN174: 1.75 | AO174: 0.08 | AP174: 81 | AQ174: 100 | AR174: 24 | AS174: 5 | AT174: 4.93 | AU174: 168 | AV174: 7 | AW174: 0.03 | AX174: LP | AY174: 51.8 | AZ174: 4.03 | BA174: 76 | BB174: 28 | BC174: JP | BD174: 77.3 | BE174: 4.16 | BF174: 86 | BG174: 31 | BH174: 38 | BI174: 4.5 | BJ174: 3.66 | BK174: 35 | BL174: -0.38 | BM174: -11 | BN174: R | BO174: 39 | BP174: paganem01 | BQ174: 641941 | BR174: Righty Power RP | BS174: John Brebbia | BT174: Mark Leiter | BU174: Yimi Garcia | BV174: Priced in-line with expectations.
A175: Brasier | B175: Ryan | C175: R | D175: 2025 | E175: 37 | F175: LAN | G175: NL | H175: JP | I175: 0.47 | J175: Y | K175: 33.6 | L175: 3 | M175: 46 | N175: 5 | O175: 0 | P175: 0 | Q175: 1 | R175: 7 | S175: 222 | T175: 7 | U175: 20 | V175: 1 | W175: 52 | X175: 179 | Y175: 36 | Z175: 38 | AA175: 9 | AB175: 1 | AC175: 0 | AD175: 18 | AE175: 4.17 | AF175: 28 | AG175: 4.4 | AH175: 2.7 | AI175: 8.3 | AJ175: 3.1 | AK175: 1.11 | AL175: 0.322 | AM175: 1.3 | AN175: 1.58 | AO175: 0.06 | AP175: 56 | AQ175: 101 | AR175: 21 | AS175: 4 | AT175: 2.67 | AU175: 186 | AV175: 8 | AW175: 0.01 | AX175: JP | AY175: 73 | AZ175: 4.08 | BA175: 77 | BB175: 32 | BC175: JP | BD175: 88.6 | BE175: 4.18 | BF175: 86 | BG175: 33 | BH175: 28 | BI175: 3.54 | BJ175: 3.3 | BK175: 46 | BL175: 0.63 | BM175: -24 | BN175: R | BO175: 61 | BP175: brasiry01 | BQ175: 518489 | BR175: Aging Power RP | BS175: Luis Garcia | BT175: Collin McHugh | BU175: Thomas Kahnle | BV175: He's done. Drop like a hot potato.
A176: Ray | B176: Robbie | C176: L | D176: 2025 | E176: 33 | F176: SFN | G176: NL | H176: JP | I176: 0.49 | J176: Y | K176: 48.2 | L176: 4 | M176: 13 | N176: 11 | O176: 0 | P176: 0 | Q176: 0 | R176: 2 | S176: 114 | T176: 9 | U176: 21 | V176: 0 | W176: 59 | X176: 173 | Y176: 64 | Z176: 40 | AA176: 4 | AB176: 3 | AC176: 0 | AD176: 19 | AE176: 4.4 | AF176: 59 | AG176: 12.6 | AH176: 2.8 | AI176: 11.8 | AJ176: 4.6 | AK176: 1.87 | AL176: 0.359 | AM176: 1.72 | AN176: 2.59 | AO176: 0.15 | AP176: 128 | AQ176: 106 | AR176: 21 | AS176: 8 | AT176: 3.25 | AU176: 195 | AV176: 9 | AW176: 0.16 | AX176: LP | AY176: 43.2 | AZ176: 4.63 | BA176: 87 | BB176: 16 | BC176: JP | BD176: 63.1 | BE176: 4.56 | BF176: 94 | BG176: 20 | BH176: 30.7 | BI176: 4.7 | BJ176: 4.85 | BK176: 11 | BL176: -0.29 | BM176: 10 | BN176: R | BO176: 32 | BP176: rayro02 | BQ176: 592662 | BR176: Lefty Serious Heat Starter | BS176: Aaron Ashby | BT176: Jeffrey Springs | BU176: Shane McClanahan | BV176: Priced in-line with expectations.
A177: Gasser | B177: Robert | C177: L | D177: 2025 | E177: 26 | F177: MIL | G177: NL | H177: JP | I177: 0.36 | J177: Y | K177: 90.2 | L177: 4 | M177: 19 | N177: 10 | O177: 0 | P177: 0 | Q177: 0 | R177: 3 | S177: 262 | T177: 8 | U177: 16 | V177: 0 | W177: 47 | X177: 183 | Y177: 70 | Z177: 41 | AA177: 1 | AB177: 5 | AC177: 0 | AD177: 34 | AE177: 4.58 | AF177: 57 | AG177: 8.5 | AH177: 2.9 | AI177: 7.3 | AJ177: 2.4 | AK177: 1.15 | AL177: 0.29 | AM177: 1.32 | AN177: 1.54 | AO177: 0.06 | AP177: 36 | AQ177: 111 | AR177: 21 | AS177: 7 | AT177: 6.67 | AU177: 196 | AV177: 10 | AW177: -0.32 | AX177: LP | AY177: 61.3 | AZ177: 4.22 | BA177: 79 | BB177: 26 | BC177: JP | BD177: 76.8 | BE177: 4.26 | BF177: 88 | BG177: 29 | BH177: 28 | BI177: 2.57 | BJ177: 3.49 | BK177: 37 | BL177: 2.01 | BM177: -16 | BN177: R | BO177: 49 | BP177: gassero01 | BQ177: 688107 | BR177: Young Lefty Super Control Starter | BS177: Brady Basso | BT177: Cole Irvin | BU177: Mitchell Parker | BV177: Priced in-line with expectations.
A178: Beck | B178: Tristan | C178: R | D178: 2025 | E178: 29 | F178: SFN | G178: NL | H178: JP | I178: 0.47 | J178: Y | K178: 41.9 | L178: 3 | M178: 27 | N178: 5 | O178: 0 | P178: 0 | Q178: 1 | R178: 7 | S178: 257 | T178: 8 | U178: 19 | V178: 1 | W178: 53 | X178: 182 | Y178: 40 | Z178: 39 | AA178: 17 | AB178: 2 | AC178: 0 | AD178: 20 | AE178: 4.31 | AF178: 32 | AG178: 4.8 | AH178: 2.8 | AI178: 8 | AJ178: 2.8 | AK178: 1.19 | AL178: 0.309 | AM178: 1.28 | AN178: 1.64 | AO178: 0.07 | AP178: 48 | AQ178: 104 | AR178: 20 | AS178: 4 | AT178: 3.08 | AU178: 205 | AV178: 11 | AW178: -0.1 | AX178: LP | AY178: 51.1 | AZ178: 4.13 | BA178: 78 | BB178: 26 | BC178: JP | BD178: 78.2 | BE178: 4.21 | BF178: 87 | BG178: 30 | BH178: 16 | BI178: 1.69 | BJ178: 3.92 | BK178: 20 | BL178: 2.62 | BM178: 0 | BN178: R | BO178: 62 | BP178: becktr01 | BQ178: 663941 | BR178: Righty Super Control RP | BS178: Bryan Hoeing | BT178: Andre Jackson | BU178: Jhony Brito | BV178: Approaching his prime years. Priced in-line with expectations.
A179: Kershaw | B179: Clayton | C179: L | D179: 2025 | E179: 37 | F179: LAN | G179: NL | H179: JP | I179: 0.62 | J179: Y | K179: 86.1 | L179: 5 | M179: 17 | N179: 12 | O179: 0 | P179: 0 | Q179: 0 | R179: 1 | S179: 226 | T179: 8 | U179: 21 | V179: 0 | W179: 62 | X179: 202 | Y179: 66 | Z179: 43 | AA179: 16 | AB179: 2 | AC179: 1 | AD179: 26 | AE179: 4.75 | AF179: 61 | AG179: 9 | AH179: 3 | AI179: 9 | AJ179: 3 | AK179: 1.19 | AL179: 0.291 | AM179: 1.31 | AN179: 1.67 | AO179: 0.07 | AP179: 70 | AQ179: 115 | AR179: 19 | AS179: 7 | AT179: 8.32 | AU179: 212 | AV179: 12 | AW179: -0.59 | AX179: LP | AY179: 58.7 | AZ179: 4.05 | BA179: 76 | BB179: 29 | BC179: JP | BD179: 71.8 | BE179: 4.17 | BF179: 86 | BG179: 30 | BH179: 30 | BI179: 4.5 | BJ179: 3.53 | BK179: 36 | BL179: 0.25 | BM179: -18 | BN179: R | BO179: 42 | BP179: kershcl01 | BQ179: 477132 | BR179: Aging Lefty Power Starter | BS179: Eduardo Rodriguez | BT179: Andrew Heaney | BU179: Jose Quintana | BV179: He's done. Drop like a hot potato.
A180: Phillips | B180: Tyler | C180: R | D180: 2025 | E180: 27 | F180: PHI | G180: NL | H180: JP | I180: 0.42 | J180: Y | K180: 67 | L180: 4 | M180: 20 | N180: 11 | O180: 1 | P180: 1 | Q180: 0 | R180: 4 | S180: 283 | T180: 13 | U180: 20 | V180: 0 | W180: 54 | X180: 193 | Y180: 80 | Z180: 43 | AA180: 1 | AB180: 4 | AC180: 0 | AD180: 48 | AE180: 4.81 | AF180: 57 | AG180: 8 | AH180: 2.7 | AI180: 7.8 | AJ180: 2.8 | AK180: 1.75 | AL180: 0.299 | AM180: 1.44 | AN180: 2.25 | AO180: 0.1 | AP180: 28 | AQ180: 116 | AR180: 18 | AS180: 6 | AT180: 5.69 | AU180: 214 | AV180: 13 | AW180: -0.21 | AX180: LP | AY180: 60.9 | AZ180: 4.69 | BA180: 88 | BB180: 18 | BC180: JP | BD180: 80.7 | BE180: 4.6 | BF180: 95 | BG180: 23 | BH180: 36.7 | BI180: 6.87 | BJ180: 5.26 | BK180: 9 | BL180: -2.06 | BM180: 9 | BN180: R | BO180: 44 | BP180: phillty01 | BQ180: 663969 | BR180: Righty Super Control Starter | BS180: Keider Montero | BT180: Gavin Stone | BU180: Luis Severino | BV180: Priced in-line with expectations.
A181: Lowder | B181: Rhett | C181: R | D181: 2025 | E181: 23 | F181: CIN | G181: NL | H181: JP | I181: 0.38 | J181: Y | K181: 103.3 | L181: 4 | M181: 20 | N181: 10 | O181: 0 | P181: 0 | Q181: 0 | R181: 3 | S181: 283 | T181: 6 | U181: 28 | V181: 0 | W181: 55 | X181: 196 | Y181: 69 | Z181: 43 | AA181: 2 | AB181: 2 | AC181: 0 | AD181: 31 | AE181: 4.81 | AF181: 71 | AG181: 9.9 | AH181: 2 | AI181: 8 | AJ181: 3.9 | AK181: 0.9 | AL181: 0.288 | AM181: 1.42 | AN181: 1.44 | AO181: 0.05 | AP181: 37 | AQ181: 116 | AR181: 18 | AS181: 6 | AT181: 6.63 | AU181: 215 | AV181: 14 | AW181: -0.64 | AX181: LP | AY181: 65.6 | AZ181: 4.11 | BA181: 77 | BB181: 30 | BC181: JP | BD181: 79.7 | BE181: 4.17 | BF181: 86 | BG181: 32 | BH181: 30.7 | BI181: 1.17 | BJ181: 3.3 | BK181: 47 | BL181: 3.64 | BM181: -29 | BN181: O | BO181: 49 | BP181: lowderh01 | BQ181: 695076 | BR181: Young Starter | BS181: River Ryan | BT181: Richard Fitts | BU181: Yilber Diaz | BV181: Truth coming. Breaking out or false hopes?
A182: Ryan | B182: River | C182: R | D182: 2025 | E182: 26 | F182: LAN | G182: NL | H182: JP | I182: 0.29 | J182: Y | K182: 90.3 | L182: 4 | M182: 19 | N182: 9 | O182: 0 | P182: 0 | Q182: 0 | R182: 3 | S182: 244 | T182: 7 | U182: 23 | V182: 0 | W182: 51 | X182: 171 | Y182: 61 | Z182: 43 | AA182: 2 | AB182: 2 | AC182: 0 | AD182: 31 | AE182: 4.76 | AF182: 59 | AG182: 9.4 | AH182: 2.2 | AI182: 8.5 | AJ182: 3.7 | AK182: 1.15 | AL182: 0.285 | AM182: 1.4 | AN182: 1.69 | AO182: 0.06 | AP182: 45 | AQ182: 115 | AR182: 17 | AS182: 5 | AT182: 5.3 | AU182: 218 | AV182: 15 | AW182: -0.5 | AX182: LP | AY182: 58.3 | AZ182: 4.23 | BA182: 79 | BB182: 25 | BC182: JP | BD182: 74 | BE182: 4.26 | BF182: 88 | BG182: 28 | BH182: 20.3 | BI182: 1.33 | BJ182: 3.46 | BK182: 35 | BL182: 3.43 | BM182: -17 | BN182: R | BO182: 54 | BP182: ryanri01 | BQ182: 689981 | BR182: Young Power Starter | BS182: Rhett Lowder | BT182: Yariel Rodríguez | BU182: Yilber Diaz | BV182: Priced in-line with expectations.
A183: Williamson | B183: Brandon | C183: L | D183: 2025 | E183: 27 | F183: CIN | G183: NL | H183: JP | I183: 0.53 | J183: Y | K183: 76.6 | L183: 4 | M183: 22 | N183: 10 | O183: 0 | P183: 0 | Q183: 0 | R183: 3 | S183: 276 | T183: 10 | U183: 23 | V183: 0 | W183: 58 | X183: 195 | Y183: 67 | Z183: 44 | AA183: 32 | AB183: 3 | AC183: 1 | AD183: 38 | AE183: 4.88 | AF183: 58 | AG183: 8.1 | AH183: 2.5 | AI183: 8.3 | AJ183: 3.3 | AK183: 1.46 | AL183: 0.271 | AM183: 1.32 | AN183: 1.99 | AO183: 0.08 | AP183: 38 | AQ183: 118 | AR183: 17 | AS183: 5 | AT183: 7.62 | AU183: 219 | AV183: 16 | AW183: -0.39 | AX183: LP | AY183: 59.6 | AZ183: 4.52 | BA183: 85 | BB183: 20 | BC183: JP | BD183: 77.8 | BE183: 4.5 | BF183: 93 | BG183: 24 | BH183: 14.3 | BI183: 3.77 | BJ183: 6.59 | BK183: 2 | BL183: 1.12 | BM183: 15 | BN183: R | BO183: 63 | BP183: willibr02 | BQ183: 682227 | BR183: Lefty Power Swing Starter | BS183: Logan Allen | BT183: Jordan Wicks | BU183: Ryan Weathers | BV183: Priced in-line with expectations.
A184: Allard | B184: Kolby | C184: L | D184: 2025 | E184: 27 | F184: PHI | G184: NL | H184: JP | I184: 0.3 | J184: Y | K184: 77.2 | L184: 3 | M184: 26 | N184: 8 | O184: 0 | P184: 0 | Q184: 1 | R184: 6 | S184: 317 | T184: 11 | U184: 23 | V184: 1 | W184: 54 | X184: 182 | Y184: 67 | Z184: 44 | AA184: 10 | AB184: 3 | AC184: 0 | AD184: 42 | AE184: 4.85 | AF184: 54 | AG184: 7.3 | AH184: 2.3 | AI184: 8.1 | AJ184: 3.1 | AK184: 1.44 | AL184: 0.28 | AM184: 1.36 | AN184: 1.95 | AO184: 0.08 | AP184: 36 | AQ184: 117 | AR184: 17 | AS184: 3 | AT184: 5.78 | AU184: 223 | AV184: 17 | AW184: -0.4 | AX184: LP | AY184: 64.3 | AZ184: 4.46 | BA184: 84 | BB184: 22 | BC184: JP | BD184: 82.7 | BE184: 4.45 | BF184: 92 | BG184: 26 | BH184: 27 | BI184: 5 | BJ184: 4.63 | BK184: 12 | BL184: -0.15 | BM184: 5 | BN184: R | BO184: 56 | BP184: allarko01 | BQ184: 663465 | BR184: Lefty Control Swing Starter | BS184: Brady Basso | BT184: Jordan Wicks | BU184: Cade Povich | BV184: Priced in-line with expectations.
A185: Gray | B185: Josiah | C185: R | D185: 2025 | E185: 27 | F185: WAS | G185: NL | H185: JP | I185: 0.62 | J185: Y | K185: 62.5 | L185: 4 | M185: 12 | N185: 12 | O185: 0 | P185: 0 | Q185: 0 | R185: 0 | S185: 213 | T185: 11 | U185: 28 | V185: 0 | W185: 64 | X185: 199 | Y185: 73 | Z185: 44 | AA185: 23 | AB185: 3 | AC185: 0 | AD185: 28 | AE185: 4.84 | AF185: 68 | AG185: 10.8 | AH185: 2.3 | AI185: 9.9 | AJ185: 4.4 | AK185: 1.69 | AL185: 0.323 | AM185: 1.62 | AN185: 2.38 | AO185: 0.11 | AP185: 61 | AQ185: 117 | AR185: 17 | AS185: 8 | AT185: 4.6 | AU185: 225 | AV185: 18 | AW185: -0.33 | AX185: LP | AY185: 52.6 | AZ185: 4.52 | BA185: 85 | BB185: 19 | BC185: JP | BD185: 72.8 | BE185: 4.51 | BF185: 93 | BG185: 23 | BH185: 8.3 | BI185: 14.04 | BJ185: 5.3 | BK185: 4 | BL185: -9.2 | BM185: 13 | BN185: S | BO185: 64 | BP185: grayjo03 | BQ185: 680686 | BR185: Righty Serious Heat Wild Starter | BS185: Alek Manoah | BT185: Tony Gonsolin | BU185: Cristian Javier | BV185: Expect rebound.
A186: Smith-Shawver | B186: AJ | C186: R | D186: 2025 | E186: 22 | F186: ATL | G186: NL | H186: JP | I186: 0.2 | J186: Y | K186: 73.5 | L186: 3 | M186: 23 | N186: 8 | O186: 0 | P186: 0 | Q186: 0 | R186: 4 | S186: 239 | T186: 9 | U186: 24 | V186: 1 | W186: 50 | X186: 163 | Y186: 60 | Z186: 43 | AA186: 31 | AB186: 3 | AC186: 0 | AD186: 37 | AE186: 4.79 | AF186: 53 | AG186: 9 | AH186: 2.1 | AI186: 8.8 | AJ186: 4 | AK186: 1.6 | AL186: 0.282 | AM186: 1.45 | AN186: 2.22 | AO186: 0.09 | AP186: 40 | AQ186: 116 | AR186: 17 | AS186: 4 | AT186: 4.04 | AU186: 228 | AV186: 19 | AW186: -0.32 | AX186: LP | AY186: 56.2 | AZ186: 4.57 | BA186: 86 | BB186: 19 | BC186: JP | BD186: 76.6 | BE186: 4.47 | BF186: 92 | BG186: 25 | BH186: 4.3 | BI186: 0 | BJ186: 2.88 | BK186: 55 | BL186: 4.79 | BM186: -38 | BN186: O | BO186: 72 | BP186: smithaj01 | BQ186: 700363 | BR186: Young Power Swing Starter | BS186: Quinn Priester | BT186: Chase Silseth | BU186: Connor Phillips | BV186: Truth coming. Breaking out or false hopes?
A187: Chirinos | B187: Yonny | C187: R | D187: 2025 | E187: 31 | F187: MIA | G187: NL | H187: JP | I187: 0.47 | J187: Y | K187: 94.5 | L187: 4 | M187: 24 | N187: 9 | O187: 0 | P187: 0 | Q187: 0 | R187: 3 | S187: 389 | T187: 11 | U187: 25 | V187: 0 | W187: 53 | X187: 199 | Y187: 78 | Z187: 46 | AA187: 28 | AB187: 5 | AC187: 0 | AD187: 52 | AE187: 5.16 | AF187: 65 | AG187: 7.5 | AH187: 2.2 | AI187: 6.2 | AJ187: 2.8 | AK187: 1.27 | AL187: 0.25 | AM187: 1.24 | AN187: 1.73 | AO187: 0.06 | AP187: 8 | AQ187: 125 | AR187: 17 | AS187: 2 | AT187: 9.76 | AU187: 230 | AV187: 20 | AW187: -0.64 | AX187: LP | AY187: 72.1 | AZ187: 4.62 | BA187: 87 | BB187: 21 | BC187: JP | BD187: 87.3 | BE187: 4.52 | BF187: 93 | BG187: 26 | BH187: 30 | BI187: 6.3 | BJ187: 5.72 | BK187: 6 | BL187: -1.14 | BM187: 11 | BN187: S | BO187: 57 | BP187: chiriyo01 | BQ187: 630023 | BR187: Righty Super Control Swing Starter | BS187: Kyle Hendricks | BT187: Jake Woodford | BU187: Kyle Tyler | BV187: In prime. Sleeper pick. Buy at discount.
A188: Kerr | B188: Ray | C188: L | D188: 2025 | E188: 30 | F188: ATL | G188: NL | H188: JP | I188: 0.3 | J188: Y | K188: 40.5 | L188: 2 | M188: 36 | N188: 4 | O188: 0 | P188: 0 | Q188: 0 | R188: 13 | S188: 335 | T188: 9 | U188: 23 | V188: 1 | W188: 56 | X188: 172 | Y188: 36 | Z188: 41 | AA188: 10 | AB188: 3 | AC188: 0 | AD188: 26 | AE188: 4.52 | AF188: 27 | AG188: 3.6 | AH188: 2.5 | AI188: 8 | AJ188: 3 | AK188: 1.2 | AL188: 0.29 | AM188: 1.22 | AN188: 1.67 | AO188: 0.07 | AP188: 45 | AQ188: 109 | AR188: 17 | AS188: 3 | AT188: 2.42 | AU188: 231 | AV188: 21 | AW188: -0.22 | AX188: LP | AY188: 57.1 | AZ188: 4.27 | BA188: 80 | BB188: 24 | BC188: JP | BD188: 86 | BE188: 4.3 | BF188: 89 | BG188: 30 | BH188: 22.3 | BI188: 5.64 | BJ188: 4.21 | BK188: 17 | BL188: -1.12 | BM188: 0 | BN188: R | BO188: 64 | BP188: kerrra01 | BQ188: 678061 | BR188: Lefty Control RP | BS188: Nick Vespi | BT188: Ryan Borucki | BU188: Packy Naughton | BV188: In prime. Priced in-line with expectations.
A189: Tyler | B189: Kyle | C189: R | D189: 2025 | E189: 28 | F189: MIA | G189: NL | H189: JP | I189: 0.33 | J189: Y | K189: 109.1 | L189: 4 | M189: 22 | N189: 10 | O189: 0 | P189: 0 | Q189: 0 | R189: 5 | S189: 477 | T189: 9 | U189: 27 | V189: 1 | W189: 51 | X189: 182 | Y189: 66 | Z189: 47 | AA189: 4 | AB189: 5 | AC189: 0 | AD189: 62 | AE189: 5.18 | AF189: 58 | AG189: 6.1 | AH189: 1.9 | AI189: 5.9 | AJ189: 2.9 | AK189: 0.93 | AL189: 0.219 | AM189: 1.1 | AN189: 1.35 | AO189: 0.04 | AP189: 7 | AQ189: 125 | AR189: 17 | AS189: 3 | AT189: 10.79 | AU189: 233 | AV189: 22 | AW189: -0.86 | AX189: LP | AY189: 81.9 | AZ189: 4.32 | BA189: 81 | BB189: 29 | BC189: JP | BD189: 95.7 | BE189: 4.31 | BF189: 89 | BG189: 32 | BH189: 31.7 | BI189: 5.4 | BJ189: 4.99 | BK189: 10 | BL189: -0.22 | BM189: 7 | BN189: R | BO189: 64 | BP189: tylerky01 | BQ189: 667725 | BR189: Righty Hittable Control Starter | BS189: Cody Poteet | BT189: Richard Fitts | BU189: Matt Manning | BV189: Priced in-line with expectations.
A190: Rutledge | B190: Jackson | C190: R | D190: 2025 | E190: 26 | F190: WAS | G190: NL | H190: JP | I190: 0.21 | J190: Y | K190: 44.8 | L190: 2 | M190: 22 | N190: 8 | O190: 0 | P190: 0 | Q190: 0 | R190: 4 | S190: 233 | T190: 8 | U190: 21 | V190: 1 | W190: 47 | X190: 158 | Y190: 44 | Z190: 41 | AA190: 18 | AB190: 3 | AC190: 0 | AD190: 26 | AE190: 4.54 | AF190: 33 | AG190: 5.7 | AH190: 2.3 | AI190: 8.2 | AJ190: 3.5 | AK190: 1.45 | AL190: 0.318 | AM190: 1.47 | AN190: 2 | AO190: 0.08 | AP190: 38 | AQ190: 110 | AR190: 16 | AS190: 4 | AT190: 0.74 | AU190: 237 | AV190: 23 | AW190: -0.14 | AX190: LP | AY190: 50.2 | AZ190: 4.45 | BA190: 84 | BB190: 20 | BC190: JP | BD190: 76.2 | BE190: 4.4 | BF190: 91 | BG190: 26 | BH190: 8.3 | BI190: 3.24 | BJ190: 3.58 | BK190: 24 | BL190: 1.3 | BM190: -8 | BN190: R | BO190: 68 | BP190: rutleja01 | BQ190: 671131 | BR190: Young Power Swing Starter | BS190: Quinn Priester | BT190: Emmet Sheehan | BU190: Peyton Battenfield | BV190: Priced in-line with expectations.
A191: Thompson | B191: Zack | C191: L | D191: 2025 | E191: 27 | F191: SLN | G191: NL | H191: JP | I191: 0.42 | J191: Y | K191: 52.2 | L191: 3 | M191: 26 | N191: 7 | O191: 0 | P191: 0 | Q191: 0 | R191: 5 | S191: 307 | T191: 10 | U191: 24 | V191: 1 | W191: 61 | X191: 183 | Y191: 46 | Z191: 42 | AA191: 15 | AB191: 2 | AC191: 0 | AD191: 30 | AE191: 4.67 | AF191: 37 | AG191: 5 | AH191: 2.5 | AI191: 8.5 | AJ191: 3.3 | AK191: 1.31 | AL191: 0.297 | AM191: 1.31 | AN191: 1.82 | AO191: 0.08 | AP191: 49 | AQ191: 113 | AR191: 16 | AS191: 3 | AT191: 3.6 | AU191: 238 | AV191: 24 | AW191: -0.27 | AX191: LP | AY191: 57.8 | AZ191: 4.37 | BA191: 82 | BB191: 23 | BC191: JP | BD191: 83.3 | BE191: 4.4 | BF191: 91 | BG191: 27 | BH191: 17 | BI191: 9.53 | BJ191: 6.29 | BK191: 3 | BL191: -4.86 | BM191: 14 | BN191: S | BO191: 66 | BP191: thompza02 | BQ191: 668868 | BR191: Lefty Power Swing Starter | BS191: Angel Zerpa | BT191: Jordan Wicks | BU191: Kyle Muller | BV191: Expect rebound.
A192: Black | B192: Mason | C192: R | D192: 2025 | E192: 25 | F192: SFN | G192: NL | H192: JP | I192: 0.42 | J192: Y | K192: 69.5 | L192: 4 | M192: 21 | N192: 12 | O192: 0 | P192: 0 | Q192: 0 | R192: 3 | S192: 300 | T192: 12 | U192: 27 | V192: 0 | W192: 59 | X192: 199 | Y192: 83 | Z192: 45 | AA192: 1 | AB192: 5 | AC192: 0 | AD192: 48 | AE192: 5.04 | AF192: 68 | AG192: 9.2 | AH192: 2.2 | AI192: 8.2 | AJ192: 3.6 | AK192: 1.56 | AL192: 0.311 | AM192: 1.55 | AN192: 2.14 | AO192: 0.09 | AP192: 29 | AQ192: 122 | AR192: 16 | AS192: 4 | AT192: 4.68 | AU192: 241 | AV192: 25 | AW192: -0.45 | AX192: LP | AY192: 63.2 | AZ192: 4.67 | BA192: 88 | BB192: 19 | BC192: JP | BD192: 83.3 | BE192: 4.59 | BF192: 95 | BG192: 24 | BH192: 36.3 | BI192: 6.44 | BJ192: 5.18 | BK192: 9 | BL192: -1.4 | BM192: 7 | BN192: R | BO192: 47 | BP192: blackma01 | BQ192: 696131 | BR192: Young Power Starter | BS192: Carlos Rodriguez | BT192: Julian Aguiar | BU192: Drew Thorpe | BV192: Priced in-line with expectations.
A193: Zastryzny | B193: Rob | C193: L | D193: 2025 | E193: 33 | F193: MIL | G193: NL | H193: JP | I193: 0.19 | J193: Y | K193: 33.7 | L193: 2 | M193: 30 | N193: 7 | O193: 0 | P193: 0 | Q193: 0 | R193: 9 | S193: 347 | T193: 6 | U193: 21 | V193: 1 | W193: 39 | X193: 145 | Y193: 28 | Z193: 41 | AA193: 12 | AB193: 2 | AC193: 0 | AD193: 24 | AE193: 4.5 | AF193: 21 | AG193: 3 | AH193: 1.9 | AI193: 6.1 | AJ193: 2.9 | AK193: 0.9 | AL193: 0.24 | AM193: 1.11 | AN193: 1.32 | AO193: 0.04 | AP193: 13 | AQ193: 109 | AR193: 16 | AS193: 3 | AT193: 1.11 | AU193: 243 | AV193: 26 | AW193: -0.19 | AX193: JP | AY193: 88.9 | AZ193: 4.32 | BA193: 81 | BB193: 30 | BC193: JP | BD193: 105.6 | BE193: 4.31 | BF193: 89 | BG193: 34 | BH193: 7.7 | BI193: 1.17 | BJ193: 2.82 | BK193: 65 | BL193: 3.33 | BM193: -50 | BN193: O | BO193: 98 | BP193: zastrro01 | BQ193: 642239 | BR193: Lefty Soft Tosser RP | BS193: Andrew Vasquez | BT193: Tim Hill | BU193: Matt Gage | BV193: Needs to prove value. Priced in-line with expectations. Could fetch value in trade.
A194: Diaz | B194: Yilber | C194: R | D194: 2025 | E194: 24 | F194: ARI | G194: NL | H194: JP | I194: 0.36 | J194: Y | K194: 83 | L194: 4 | M194: 21 | N194: 9 | O194: 0 | P194: 0 | Q194: 0 | R194: 4 | S194: 274 | T194: 9 | U194: 26 | V194: 0 | W194: 52 | X194: 189 | Y194: 71 | Z194: 45 | AA194: 2 | AB194: 2 | AC194: 0 | AD194: 39 | AE194: 5.01 | AF194: 64 | AG194: 9.3 | AH194: 2 | AI194: 7.9 | AJ194: 3.8 | AK194: 1.28 | AL194: 0.29 | AM194: 1.46 | AN194: 1.84 | AO194: 0.07 | AP194: 26 | AQ194: 121 | AR194: 16 | AS194: 3 | AT194: 4.9 | AU194: 244 | AV194: 27 | AW194: -0.59 | AX194: LP | AY194: 61.7 | AZ194: 4.44 | BA194: 84 | BB194: 22 | BC194: JP | BD194: 79.2 | BE194: 4.42 | BF194: 91 | BG194: 26 | BH194: 28.3 | BI194: 3.81 | BJ194: 4.52 | BK194: 14 | BL194: 1.2 | BM194: 2 | BN194: R | BO194: 51 | BP194: diazyi01 | BQ194: 700270 | BR194: Young Starter | BS194: Drew Thorpe | BT194: River Ryan | BU194: Richard Fitts | BV194: Priced in-line with expectations.
A195: Woodford | B195: Jake | C195: R | D195: 2025 | E195: 28 | F195: PIT | G195: NL | H195: JP | I195: 0.43 | J195: Y | K195: 70.8 | L195: 3 | M195: 26 | N195: 8 | O195: 0 | P195: 0 | Q195: 0 | R195: 5 | S195: 285 | T195: 9 | U195: 22 | V195: 0 | W195: 50 | X195: 189 | Y195: 75 | Z195: 46 | AA195: 20 | AB195: 4 | AC195: 0 | AD195: 45 | AE195: 5.09 | AF195: 61 | AG195: 8.6 | AH195: 2.3 | AI195: 7.1 | AJ195: 3 | AK195: 1.31 | AL195: 0.286 | AM195: 1.39 | AN195: 1.8 | AO195: 0.07 | AP195: 18 | AQ195: 123 | AR195: 15 | AS195: 2 | AT195: 5.82 | AU195: 246 | AV195: 28 | AW195: -0.66 | AX195: LP | AY195: 60.8 | AZ195: 4.54 | BA195: 85 | BB195: 20 | BC195: JP | BD195: 80.1 | BE195: 4.43 | BF195: 91 | BG195: 26 | BH195: 26.7 | BI195: 7.09 | BJ195: 4.21 | BK195: 18 | BL195: -2 | BM195: -2 | BN195: R | BO195: 53 | BP195: woodfja01 | BQ195: 663765 | BR195: Righty Soft Tosser Swing Starter | BS195: Matt Manning | BT195: Yonny Chirinos | BU195: Graham Ashcraft | BV195: Priced in-line with expectations.
A196: Teheran | B196: Julio | C196: R | D196: 2025 | E196: 34 | F196: NYN | G196: NL | H196: JP | I196: 0.38 | J196: Y | K196: 64.1 | L196: 3 | M196: 20 | N196: 7 | O196: 0 | P196: 0 | Q196: 0 | R196: 3 | S196: 213 | T196: 8 | U196: 16 | V196: 0 | W196: 42 | X196: 151 | Y196: 55 | Z196: 44 | AA196: 28 | AB196: 3 | AC196: 1 | AD196: 30 | AE196: 4.87 | AF196: 45 | AG196: 8.1 | AH196: 2.6 | AI196: 7.5 | AJ196: 2.9 | AK196: 1.44 | AL196: 0.271 | AM196: 1.3 | AN196: 1.93 | AO196: 0.08 | AP196: 26 | AQ196: 118 | AR196: 15 | AS196: 3 | AT196: 4.4 | AU196: 251 | AV196: 29 | AW196: -0.47 | AX196: LP | AY196: 50.5 | AZ196: 4.44 | BA196: 84 | BB196: 20 | BC196: JP | BD196: 70.2 | BE196: 4.41 | BF196: 91 | BG196: 24 | BH196: 2.7 | BI196: 13.5 | BJ196: 6.57 | BK196: 1 | BL196: -8.63 | BM196: 14 | BN196: S | BO196: 68 | BP196: teherju01 | BQ196: 527054 | BR196: Righty Swing Starter | BS196: Kenta Maeda | BT196: Zack Greinke | BU196: Ross Stripling | BV196: Sleeper pick. Buy at discount.
A197: Henry | B197: Tommy | C197: L | D197: 2025 | E197: 27 | F197: ARI | G197: NL | H197: JP | I197: 0.53 | J197: Y | K197: 76.4 | L197: 4 | M197: 24 | N197: 11 | O197: 0 | P197: 0 | Q197: 0 | R197: 4 | S197: 320 | T197: 12 | U197: 30 | V197: 1 | W197: 63 | X197: 223 | Y197: 84 | Z197: 47 | AA197: 22 | AB197: 5 | AC197: 0 | AD197: 45 | AE197: 5.25 | AF197: 73 | AG197: 9 | AH197: 2.1 | AI197: 7.8 | AJ197: 3.7 | AK197: 1.5 | AL197: 0.29 | AM197: 1.47 | AN197: 2.08 | AO197: 0.08 | AP197: 20 | AQ197: 127 | AR197: 15 | AS197: 2 | AT197: 6.81 | AU197: 252 | AV197: 30 | AW197: -0.53 | AX197: LP | AY197: 65.1 | AZ197: 4.79 | BA197: 90 | BB197: 18 | BC197: JP | BD197: 83.1 | BE197: 4.71 | BF197: 97 | BG197: 22 | BH197: 38.3 | BI197: 7.04 | BJ197: 6.06 | BK197: 5 | BL197: -1.8 | BM197: 10 | BN197: R | BO197: 45 | BP197: henryto01 | BQ197: 674072 | BR197: Lefty Swing Starter | BS197: Logan Allen | BT197: Jordan Wicks | BU197: Brandon Williamson | BV197: Priced in-line with expectations.
A198: Wrobleski | B198: Justin | C198: L | D198: 2025 | E198: 24 | F198: LAN | G198: NL | H198: JP | I198: 0.42 | J198: Y | K198: 69.9 | L198: 3 | M198: 21 | N198: 10 | O198: 0 | P198: 0 | Q198: 1 | R198: 4 | S198: 293 | T198: 13 | U198: 28 | V198: 0 | W198: 56 | X198: 202 | Y198: 74 | Z198: 46 | AA198: 2 | AB198: 3 | AC198: 0 | AD198: 47 | AE198: 5.13 | AF198: 62 | AG198: 8.5 | AH198: 2 | AI198: 8 | AJ198: 3.9 | AK198: 1.83 | AL198: 0.278 | AM198: 1.47 | AN198: 2.47 | AO198: 0.1 | AP198: 18 | AQ198: 124 | AR198: 15 | AS198: 3 | AT198: 5.4 | AU198: 255 | AV198: 31 | AW198: -0.26 | AX198: LP | AY198: 61.7 | AZ198: 5.02 | BA198: 94 | BB198: 15 | BC198: JP | BD198: 81.7 | BE198: 4.86 | BF198: 100 | BG198: 20 | BH198: 36.3 | BI198: 5.7 | BJ198: 6.35 | BK198: 4 | BL198: -0.57 | BM198: 11 | BN198: R | BO198: 45 | BP198: wroblju01 | BQ198: 680736 | BR198: Young Lefty Starter | BS198: Blake Walston | BT198: Tommy Henry | BU198: Jordan Wicks | BV198: Priced in-line with expectations.
A199: Gonzales | B199: Marco | C199: L | D199: 2025 | E199: 33 | F199: PIT | G199: NL | H199: JP | I199: 0.56 | J199: Y | K199: 52.8 | L199: 4 | M199: 16 | N199: 11 | O199: 0 | P199: 0 | Q199: 0 | R199: 2 | S199: 171 | T199: 9 | U199: 21 | V199: 0 | W199: 46 | X199: 191 | Y199: 79 | Z199: 45 | AA199: 12 | AB199: 1 | AC199: 0 | AD199: 27 | AE199: 4.98 | AF199: 68 | AG199: 11.9 | AH199: 2.2 | AI199: 7.8 | AJ199: 3.6 | AK199: 1.54 | AL199: 0.341 | AM199: 1.71 | AN199: 2.11 | AO199: 0.09 | AP199: 23 | AQ199: 120 | AR199: 15 | AS199: 5 | AT199: 1.9 | AU199: 259 | AV199: 32 | AW199: -0.42 | AX199: LP | AY199: 49.1 | AZ199: 4.58 | BA199: 86 | BB199: 17 | BC199: JP | BD199: 68.9 | BE199: 4.56 | BF199: 94 | BG199: 22 | BH199: 33.7 | BI199: 4.54 | BJ199: 4.64 | BK199: 14 | BL199: 0.44 | BM199: 1 | BN199: R | BO199: 35 | BP199: gonzama02 | BQ199: 594835 | BR199: Lefty Starter | BS199: Alex Wood | BT199: Madison Bumgarner | BU199: Martin Perez | BV199: Priced in-line with expectations. Trade bait?
A200: Gordon | B200: Tanner | C200: R | D200: 2025 | E200: 27 | F200: COL | G200: NL | H200: JP | I200: 0.41 | J200: Y | K200: 53.3 | L200: 3 | M200: 21 | N200: 12 | O200: 0 | P200: 0 | Q200: 0 | R200: 3 | S200: 285 | T200: 13 | U200: 19 | V200: 0 | W200: 53 | X200: 190 | Y200: 87 | Z200: 46 | AA200: 1 | AB200: 4 | AC200: 0 | AD200: 53 | AE200: 5.13 | AF200: 60 | AG200: 8.4 | AH200: 2.7 | AI200: 7.7 | AJ200: 2.7 | AK200: 1.88 | AL200: 0.318 | AM200: 1.54 | AN200: 2.39 | AO200: 0.11 | AP200: 22 | AQ200: 124 | AR200: 15 | AS200: 3 | AT200: 3.59 | AU200: 260 | AV200: 33 | AW200: -0.45 | AX200: LP | AY200: 59.2 | AZ200: 4.8 | BA200: 90 | BB200: 17 | BC200: JP | BD200: 82.4 | BE200: 4.69 | BF200: 97 | BG200: 22 | BH200: 34.3 | BI200: 8.65 | BJ200: 5.61 | BK200: 7 | BL200: -3.52 | BM200: 8 | BN200: R | BO200: 48 | BP200: gordota01 | BQ200: 685299 | BR200: Righty Super Control Starter | BS200: Max Meyer | BT200: Zebby Matthews | BU200: Valente Bellozo | BV200: Priced in-line with expectations.
... 851 more rows

Sheet BAT2025forecast
A1: http://baseballguru.com | C1: FORECAST AS OF 2/24/2025 | H1: Make Selections by Clicking on Header ARROWS (like pos or league) | K1: Percentage of forecast based on players own stats | L1: eXpected wOBA for someone at his position and playing time | M1: eXpected mGURU for someone at his position and playing time | N1: Played last year | O1: Games | P1: Times at Plate | Q1: At Bats | R1: Runs | S1: Hits | T1: Doubles | U1: Triples | V1: Home runs | W1: Runs batted in | X1: Stolen bases | Y1: Times caught stealing | Z1: Walks | AA1: Strike outs | AB1: Intentional walks | AC1: Hit by pitch | AD1: Sacrifice hits | AE1: Sacrifice flies | AF1: Ground into double play | AG1: Batting average | AH1: On base percentage | AI1: Slugging percentage | AJ1: Rate of performace, like OPS but more accurate. Based on Tom Tango's "The Book" | AK1: Production, like linear weights. It is mWOBA * mTAP | AL1: Batting value, based on weighting between m WOBA and mPRO | AM1: Batting value where mGURU is weighted by positional scarcity | AN1: Dollar value, based on 5x5 Rotisserie: Avg, HR, SB, RBI, R | AO1: Dollar value, based on 5x5: Avg, HR, SB, RBI, R. Weighted by positional scarcity | AP1: Value (runs contributed) Over Replacement Player at same position | AQ1: Position rank | AR1: Rank overall among batters | AS1: Position league rank | AT1: Playing time: Y=Starter, N=Not starter or Inj risk or performance risk, B=Bench | AU1: Difference between forecasted performace rate and last years. Positive numbers are sleepers, mwOBA-wOBA | AV1: Difference between forecast and last years value. Sleepers have high values. | AW1: Draft Value: S=Sleeper, R=Regular, O=Overpriced | AX1: Times at plate last year | AY1: Batting average last year | AZ1: On base percentage last year | BA1: Slugging percentage last year | BB1: Rate of performace, like OPS but more accurate. Based on Tom Tango's "The Book" | BC1: Last years Production, like linear weights. It is wOBA * mTAP | BD1: Batting value last year | BE1: Lahman PlayerID | BF1: MLB ID | BG1: Description of player for predicted season | BH1: Most Similar Player | BI1: Second Most Similar Player | BJ1: Third Most Similar Player | BK1: Words to the wise
A2: nameLast | B2: nameFirst | C2: bats | D2: yearp | E2: age | F2: teamID | G2: lg | H2: pos | I2: pos2 | J2: pos3 | K2: reliability | L2: xWOBA | M2: xGURU | N2: play | O2: mG | P2: mTAP | Q2: mAB | R2: mR | S2: mH | T2: mDB | U2: mTR | V2: mHR | W2: mRBI | X2: mSB | Y2: mCS | Z2: mBB | AA2: mSO | AB2: mIBB | AC2: mHPB | AD2: mSH | AE2: mSF | AF2: mGIDP | AG2: mAVG | AH2: mOBP | AI2: mSLG | AJ2: mWOBA | AK2: mPRO | AL2: mGURU | AM2: mGURUwt | AN2: mROTO | AO2: mROTOwt | AP2: mVORP | AQ2: prank | AR2: rank | AS2: plrank | AT2: mstarter | AU2: wobad | AV2: gurud | AW2: value | AX2: tap_2024 | AY2: avg_2024 | AZ2: obp_2024 | BA2: slg_2024 | BB2: wOBA_2024 | BC2: PRO_2024 | BD2: GURU_2024 | BE2: PlayerID | BF2: MLBAM_ID | BG2: Description | BH2: Match1 | BI2: Match2 | BJ2: Match3 | BK2: Advice
A3: Betts | B3: Mookie | C3: R | D3: 2025 | E3: 32 | F3: LAN | G3: NL | H3: SS | I3: OF | K3: 0.86 | L3: 0.321 | M3: 49 | N3: Y | O3: 113 | P3: 491 | Q3: 431 | R3: 79 | S3: 116 | T3: 23 | U3: 2 | V3: 23 | W3: 68 | X3: 12 | Y3: 2 | Z3: 52 | AA3: 73 | AB3: 2 | AC3: 4 | AD3: 0 | AE3: 3 | AF3: 7 | AG3: 0.272 | AH3: 0.351 | AI3: 0.495 | AJ3: 0.364 | AK3: 179 | AL3: 70 | AM3: 73 | AN3: 26 | AO3: 27 | AP3: 36 | AQ3: 3 | AR3: 8 | AS3: 1 | AT3: Y | AU3: -0.01 | AV3: -10 | AW3: R | AX3: 516 | AY3: 0.289 | AZ3: 0.372 | BA3: 0.491 | BB3: 0.374 | BC3: 193 | BD3: 80 | BE3: bettsmo01 | BF3: 605141 | BG3: Agile Dominant Hitter | BH3: Ketel Marte | BI3: Marcus Semien | BJ3: Corey Seager | BK3: Still In prime. Expected to play regularly. Among elite players.
A4: Lindor | B4: Francisco | C4: B | D4: 2025 | E4: 31 | F4: NYN | G4: NL | H4: SS | K4: 0.87 | L4: 0.321 | M4: 49 | N4: Y | O4: 138 | P4: 542 | Q4: 486 | R4: 79 | S4: 122 | T4: 26 | U4: 2 | V4: 25 | W4: 73 | X4: 20 | Y4: 4 | Z4: 43 | AA4: 102 | AB4: 1 | AC4: 9 | AD4: 0 | AE4: 4 | AF4: 8 | AG4: 0.253 | AH4: 0.321 | AI4: 0.467 | AJ4: 0.34 | AK4: 184 | AL4: 58 | AM4: 61 | AN4: 27 | AO4: 28 | AP4: 26 | AQ4: 5 | AR4: 19 | AS4: 2 | AT4: Y | AU4: -0.02 | AV4: -28 | AW4: O | AX4: 689 | AY4: 0.273 | AZ4: 0.344 | BA4: 0.5 | BB4: 0.363 | BC4: 250 | BD4: 86 | BE4: lindofr01 | BF4: 596019 | BG4: Fantasy Star | BH4: Mookie Betts | BI4: Corey Seager | BJ4: Dansby Swanson | BK4: Limited improvement expected from here. Will have to pay premium to get him. Major star.
A5: De La Cruz | B5: Elly | C5: B | D5: 2025 | E5: 23 | F5: CIN | G5: NL | H5: SS | K5: 0.85 | L5: 0.321 | M5: 49 | N5: Y | O5: 149 | P5: 560 | Q5: 492 | R5: 76 | S5: 113 | T5: 32 | U5: 9 | V5: 18 | W5: 54 | X5: 53 | Y5: 9 | Z5: 61 | AA5: 156 | AB5: 2 | AC5: 4 | AD5: 1 | AE5: 1 | AF5: 10 | AG5: 0.232 | AH5: 0.319 | AI5: 0.442 | AJ5: 0.33 | AK5: 185 | AL5: 53 | AM5: 56 | AN5: 29 | AO5: 31 | AP5: 22 | AQ5: 6 | AR5: 27 | AS5: 3 | AT5: Y | AU5: -0.02 | AV5: -22 | AW5: O | AX5: 696 | AY5: 0.259 | AZ5: 0.339 | BA5: 0.471 | BB5: 0.35 | BC5: 243 | BD5: 76 | BE5: delacel01 | BF5: 682829 | BG5: Young Fantasy Star | BH5: Anthony Volpe | BI5: Pete Crow-Armstrong | BJ5: CJ Abrams | BK5: Developing well. Will have to pay premium to get him. Possible All-star.
A6: Adames | B6: Willy | C6: R | D6: 2025 | E6: 29 | F6: MIL | G6: NL | H6: SS | K6: 0.87 | L6: 0.321 | M6: 49 | N6: Y | O6: 144 | P6: 513 | Q6: 462 | R6: 64 | S6: 106 | T6: 28 | U6: 1 | V6: 26 | W6: 72 | X6: 10 | Y6: 3 | Z6: 45 | AA6: 125 | AB6: 2 | AC6: 3 | AD6: 0 | AE6: 3 | AF6: 11 | AG6: 0.232 | AH6: 0.299 | AI6: 0.463 | AJ6: 0.326 | AK6: 167 | AL6: 48 | AM6: 50 | AN6: 19 | AO6: 20 | AP6: 18 | AQ6: 7 | AR6: 40 | AS6: 4 | AT6: Y | AU6: -0.02 | AV6: -23 | AW6: O | AX6: 688 | AY6: 0.251 | AZ6: 0.331 | BA6: 0.462 | BB6: 0.344 | BC6: 237 | BD6: 71 | BE6: adamewi01 | BF6: 642715 | BG6: Agile Slugger | BH6: Brandon Lowe | BI6: Nolan Gorman | BJ6: Ryan Jeffers | BK6: Limited improvement expected from here. Overpriced in most drafts, be realistic. Outside shot at being an all-star this year.
A7: Turner | B7: Trea | C7: R | D7: 2025 | E7: 32 | F7: PHI | G7: NL | H7: SS | K7: 0.86 | L7: 0.321 | M7: 49 | N7: Y | O7: 117 | P7: 493 | Q7: 458 | R7: 71 | S7: 120 | T7: 22 | U7: 2 | V7: 18 | W7: 57 | X7: 19 | Y7: 2 | Z7: 29 | AA7: 93 | AB7: 1 | AC7: 4 | AD7: 0 | AE7: 2 | AF7: 9 | AG7: 0.263 | AH7: 0.31 | AI7: 0.434 | AJ7: 0.323 | AK7: 159 | AL7: 45 | AM7: 47 | AN7: 23 | AO7: 24 | AP7: 16 | AQ7: 8 | AR7: 61 | AS7: 5 | AT7: Y | AU7: -0.03 | AV7: -19 | AW7: O | AX7: 539 | AY7: 0.295 | AZ7: 0.338 | BA7: 0.469 | BB7: 0.35 | BC7: 189 | BD7: 64 | BE7: turnetr01 | BF7: 607208 | BG7: SB Dominant Hitter | BH7: Thairo Estrada | BI7: Xander Bogaerts | BJ7: Jeremy Pena | BK7: Still In prime. Overpriced in most drafts, be realistic. Talented, but not a likey all-star this year.
A8: Abrams | B8: CJ | C8: L | D8: 2025 | E8: 24 | F8: WAS | G8: NL | H8: SS | K8: 0.84 | L8: 0.321 | M8: 49 | N8: Y | O8: 143 | P8: 509 | Q8: 459 | R8: 64 | S8: 110 | T8: 29 | U8: 5 | V8: 14 | W8: 50 | X8: 31 | Y8: 6 | Z8: 35 | AA8: 98 | AB8: 2 | AC8: 11 | AD8: 2 | AE8: 3 | AF8: 6 | AG8: 0.24 | AH8: 0.306 | AI8: 0.42 | AJ8: 0.315 | AK8: 161 | AL8: 43 | AM8: 44 | AN8: 21 | AO8: 22 | AP8: 13 | AQ8: 10 | AR8: 78 | AS8: 6 | AT8: Y | AU8: -0.01 | AV8: -10 | AW8: R | AX8: 602 | AY8: 0.246 | AZ8: 0.314 | BA8: 0.433 | BB8: 0.324 | BC8: 195 | BD8: 53 | BE8: abramcj01 | BF8: 682928 | BG8: Young SB Capable Hitter | BH8: Anthony Volpe | BI8: Bobby Witt | BJ8: Elly De La Cruz | BK8: Career on the rise. Track his progress to determine upside. Expected to play regularly. Already solid MLB caliber. Long term buy.
A9: Cruz | B9: Oneil | C9: L | D9: 2025 | E9: 26 | F9: PIT | G9: NL | H9: SS | I9: OF | K9: 0.78 | L9: 0.321 | M9: 49 | N9: Y | O9: 125 | P9: 460 | Q9: 413 | R9: 53 | S9: 97 | T9: 26 | U9: 3 | V9: 17 | W9: 54 | X9: 14 | Y9: 2 | Z9: 41 | AA9: 124 | AB9: 3 | AC9: 2 | AD9: 0 | AE9: 3 | AF9: 6 | AG9: 0.234 | AH9: 0.305 | AI9: 0.434 | AJ9: 0.32 | AK9: 147 | AL9: 42 | AM9: 43 | AN9: 16 | AO9: 16 | AP9: 13 | AQ9: 11 | AR9: 88 | AS9: 7 | AT9: Y | AU9: -0.02 | AV9: -17 | AW9: O | AX9: 599 | AY9: 0.259 | AZ9: 0.324 | BA9: 0.449 | BB9: 0.335 | BC9: 201 | BD9: 59 | BE9: cruzon01 | BF9: 665833 | BG9: Fantasy Star | BH9: Zack Gelof | BI9: Ezequiel Tovar | BJ9: Zach Neto | BK9: Truth coming. Breaking out or false hopes?
A10: Tovar | B10: Ezequiel | C10: R | D10: 2025 | E10: 23 | F10: COL | G10: NL | H10: SS | K10: 0.83 | L10: 0.321 | M10: 49 | N10: Y | O10: 147 | P10: 563 | Q10: 523 | R10: 64 | S10: 127 | T10: 41 | U10: 4 | V10: 17 | W10: 59 | X10: 10 | Y10: 4 | Z10: 29 | AA10: 140 | AB10: 1 | AC10: 3 | AD10: 3 | AE10: 4 | AF10: 12 | AG10: 0.241 | AH10: 0.284 | AI10: 0.432 | AJ10: 0.306 | AK10: 172 | AL10: 41 | AM10: 43 | AN10: 17 | AO10: 17 | AP10: 8 | AQ10: 13 | AR10: 89 | AS10: 8 | AT10: Y | AU10: -0.02 | AV10: -15 | AW10: O | AX10: 694 | AY10: 0.269 | AZ10: 0.295 | BA10: 0.469 | BB10: 0.322 | BC10: 223 | BD10: 56 | BE10: tovarez01 | BF10: 678662 | BG10: Young Slugger | BH10: Oneil Cruz | BI10: Casey Schmitt | BJ10: Jordan Westburg | BK10: Career on the rise. Track his progress to determine upside. Truth coming. Breaking out or false hopes? Already solid MLB caliber. Long term buy.
A11: Swanson | B11: Dansby | C11: R | D11: 2025 | E11: 31 | F11: CHN | G11: NL | H11: SS | K11: 0.86 | L11: 0.321 | M11: 49 | N11: Y | O11: 132 | P11: 481 | Q11: 436 | R11: 63 | S11: 103 | T11: 21 | U11: 2 | V11: 17 | W11: 57 | X11: 12 | Y11: 3 | Z11: 40 | AA11: 112 | AB11: 1 | AC11: 3 | AD11: 0 | AE11: 2 | AF11: 8 | AG11: 0.239 | AH11: 0.304 | AI11: 0.412 | AJ11: 0.312 | AK11: 150 | AL11: 40 | AM11: 41 | AN11: 17 | AO11: 17 | AP11: 10 | AQ11: 15 | AR11: 102 | AS11: 9 | AT11: Y | AU11: 0 | AV11: -4 | AW11: R | AX11: 593 | AY11: 0.242 | AZ11: 0.312 | BA11: 0.39 | BB11: 0.31 | BC11: 184 | BD11: 44 | BE11: swansda01 | BF11: 621020 | BG11: Agile Slugger | BH11: Orlando Arcia | BI11: Jonathan India | BJ11: Francisco Lindor | BK11: Peaking. Expected to play regularly.
A12: Winn | B12: Masyn | C12: R | D12: 2025 | E12: 23 | F12: STL | G12: NL | H12: SS | K12: 0.81 | L12: 0.321 | M12: 49 | N12: Y | O12: 139 | P12: 515 | Q12: 464 | R12: 61 | S12: 114 | T12: 28 | U12: 4 | V12: 11 | W12: 46 | X12: 12 | Y12: 4 | Z12: 42 | AA12: 90 | AB12: 1 | AC12: 2 | AD12: 3 | AE12: 4 | AF12: 3 | AG12: 0.248 | AH12: 0.307 | AI12: 0.398 | AJ12: 0.308 | AK12: 159 | AL12: 39 | AM12: 41 | AN12: 15 | AO12: 15 | AP12: 9 | AQ12: 16 | AR12: 101 | AS12: 10 | AT12: Y | AU12: -0.01 | AV12: -10 | AW12: R | AX12: 637 | AY12: 0.267 | AZ12: 0.314 | BA12: 0.416 | BB12: 0.316 | BC12: 202 | BD12: 50 | BE12: winnma01 | BF12: 691026 | BG12: Young Capable Hitter | BH12: Luis Garcia | BI12: Bobby Witt | BJ12: Jeremy Pena | BK12: Career on the rise. Track his progress to determine upside. Expected to play regularly.
A13: Kim | B13: Ha-Seong | C13: R | D13: 2025 | E13: 29 | F13: SDN | G13: NL | H13: SS | K13: 0.85 | L13: 0.321 | M13: 49 | N13: Y | O13: 127 | P13: 448 | Q13: 398 | R13: 55 | S13: 97 | T13: 20 | U13: 2 | V13: 12 | W13: 45 | X13: 19 | Y13: 4 | Z13: 41 | AA13: 82 | AB13: 2 | AC13: 3 | AD13: 3 | AE13: 3 | AF13: 8 | AG13: 0.246 | AH13: 0.316 | AI13: 0.396 | AJ13: 0.313 | AK13: 140 | AL13: 38 | AM13: 39 | AN13: 17 | AO13: 17 | AP13: 10 | AQ13: 18 | AR13: 114 | AS13: 11 | AT13: Y | AU13: 0 | AV13: -1 | AW13: R | AX13: 470 | AY13: 0.233 | AZ13: 0.33 | BA13: 0.37 | BB13: 0.312 | BC13: 147 | BD13: 39 | BE13: kimha01 | BF13: 673490 | BG13: SB Capable Hitter | BH13: Bryson Stott | BI13: Nico Hoerner | BJ13: Andres Gimenez | BK13: Poised for modest break out above last year. Starter, but may sit occassionally.
A14: Arcia | B14: Orlando | C14: R | D14: 2025 | E14: 30 | F14: ATL | G14: NL | H14: SS | K14: 0.83 | L14: 0.321 | M14: 49 | N14: Y | O14: 145 | P14: 468 | Q14: 429 | R14: 49 | S14: 100 | T14: 22 | U14: 0 | V14: 17 | W14: 47 | X14: 3 | Y14: 1 | Z14: 32 | AA14: 95 | AB14: 1 | AC14: 3 | AD14: 1 | AE14: 4 | AF14: 14 | AG14: 0.234 | AH14: 0.288 | AI14: 0.404 | AJ14: 0.3 | AK14: 140 | AL14: 34 | AM14: 35 | AN14: 11 | AO14: 11 | AP14: 4 | AQ14: 21 | AR14: 149 | AS14: 12 | AT14: Y | AU14: 0.03 | AV14: 5 | AW14: S | AX14: 602 | AY14: 0.218 | AZ14: 0.271 | BA14: 0.354 | BB14: 0.274 | BC14: 165 | BD14: 28 | BE14: arciaor01 | BF14: 606115 | BG14: Slugger | BH14: Dansby Swanson | BI14: Gleyber Torres | BJ14: Brandon Drury | BK14: Could improve this year. Expect rebound.
A15: Edwards | B15: Xavier | C15: B | D15: 2025 | E15: 25 | F15: MIA | G15: NL | H15: SS | K15: 0.67 | L15: 0.291 | M15: 18 | N15: Y | O15: 79 | P15: 351 | Q15: 316 | R15: 42 | S15: 88 | T15: 12 | U15: 3 | V15: 2 | W15: 28 | X15: 28 | Y15: 3 | Z15: 28 | AA15: 64 | AB15: 1 | AC15: 2 | AD15: 2 | AE15: 3 | AF15: 2 | AG15: 0.276 | AH15: 0.334 | AI15: 0.359 | AJ15: 0.311 | AK15: 109 | AL15: 32 | AM15: 33 | AN15: 17 | AO15: 19 | AP15: 7 | AQ15: 22 | AR15: 162 | AS15: 13 | AT15: N | AU15: -0.05 | AV15: -20 | AW15: O | AX15: 303 | AY15: 0.328 | AZ15: 0.397 | BA15: 0.423 | BB15: 0.365 | BC15: 110 | BD15: 52 | BE15: edwarxa01 | BF15: 669364 | BG15: Young SB Slap Hitter | BH15: Brice Turang | BI15: Vaughn Grissom | BJ15: Curtis Mead | BK15: Career taking off. Could continue to exceed forecasts. Truth coming. Breaking out or false hopes?
A16: Perdomo | B16: Geraldo | C16: B | D16: 2025 | E16: 25 | F16: ARI | G16: NL | H16: SS | K16: 0.82 | L16: 0.291 | M16: 18 | N16: Y | O16: 108 | P16: 394 | Q16: 338 | R16: 53 | S16: 81 | T16: 17 | U16: 2 | V16: 4 | W16: 36 | X16: 11 | Y16: 2 | Z16: 41 | AA16: 69 | AB16: 0 | AC16: 4 | AD16: 8 | AE16: 3 | AF16: 4 | AG16: 0.239 | AH16: 0.32 | AI16: 0.343 | AJ16: 0.298 | AK16: 117 | AL16: 29 | AM16: 31 | AN16: 11 | AO16: 12 | AP16: 3 | AQ16: 23 | AR16: 179 | AS16: 14 | AT16: N | AU16: -0.02 | AV16: -7 | AW16: R | AX16: 388 | AY16: 0.273 | AZ16: 0.344 | BA16: 0.374 | BB16: 0.316 | BC16: 123 | BD16: 36 | BE16: perdoge01 | BF16: 672695 | BG16: Young Capable Hitter | BH16: Nick Loftin | BI16: Gavin Lux | BJ16: Brooks Lee | BK16: Career taking off. Could continue to exceed forecasts. Risk of injury or playing time.
A17: Fitzgerald | B17: Tyler | C17: R | D17: 2025 | E17: 27 | F17: SFN | G17: NL | H17: SS | K17: 0.67 | L17: 0.291 | M17: 18 | N17: Y | O17: 83 | P17: 312 | Q17: 289 | R17: 40 | S17: 71 | T17: 15 | U17: 2 | V17: 10 | W17: 30 | X17: 12 | Y17: 3 | Z17: 19 | AA17: 84 | AB17: 0 | AC17: 3 | AD17: 0 | AE17: 1 | AF17: 3 | AG17: 0.242 | AH17: 0.296 | AI17: 0.414 | AJ17: 0.308 | AK17: 96 | AL17: 29 | AM17: 30 | AN17: 12 | AO17: 13 | AP17: 5 | AQ17: 24 | AR17: 186 | AS17: 15 | AT17: N | AU17: -0.05 | AV17: -23 | AW17: O | AX17: 341 | AY17: 0.28 | AZ17: 0.334 | BA17: 0.497 | BB17: 0.357 | BC17: 122 | BD17: 51 | BE17: fitzgty01 | BF17: 666149 | BG17: SB Slugger | BH17: Trey Sweeney | BI17: Romy Gonzalez | BJ17: Matt McLain | BK17: Likely to regress a bit. Will be overpriced in most drafts, unless truly healthy.
A18: Acuña | B18: Luisangel | C18: R | D18: 2025 | E18: 23 | F18: NYN | G18: NL | H18: SS | K18: 0.29 | L18: 0.291 | M18: 18 | N18: Y | O18: 53 | P18: 185 | Q18: 171 | R18: 22 | S18: 42 | T18: 8 | U18: 2 | V18: 5 | W18: 20 | X18: 4 | Y18: 2 | Z18: 11 | AA18: 36 | AB18: 0 | AC18: 1 | AD18: 1 | AE18: 1 | AF18: 3 | AG18: 0.248 | AH18: 0.297 | AI18: 0.408 | AJ18: 0.306 | AK18: 57 | AL18: 20 | AM18: 20 | AN18: 6 | AO18: 6 | AP18: 3 | AQ18: 31 | AR18: 291 | AS18: 16 | AT18: N | AU18: -0.09 | AV18: 0 | AW18: R | AX18: 40 | AY18: 0.308 | AZ18: 0.325 | BA18: 0.641 | BB18: 0.4 | BC18: 16 | BD18: 20 | BE18: acunajo01 | BF18: 682668 | BG18: Young Playing Time Risk | BH18: Matt McLain | BI18: Tucupita Marcano | BJ18: Wander Franco | BK18: Needs to establish himself at MLB level. Risk of injury or playing time.
A19: Sosa | B19: Edmundo | C19: R | D19: 2025 | E19: 29 | F19: PHI | G19: NL | H19: SS | I19: 3B | J19: 2B | K19: 0.72 | L19: 0.291 | M19: 18 | N19: Y | O19: 87 | P19: 263 | Q19: 244 | R19: 32 | S19: 57 | T19: 12 | U19: 3 | V19: 6 | W19: 27 | X19: 6 | Y19: 1 | Z19: 10 | AA19: 62 | AB19: 0 | AC19: 7 | AD19: 1 | AE19: 1 | AF19: 6 | AG19: 0.233 | AH19: 0.279 | AI19: 0.381 | AJ19: 0.287 | AK19: 76 | AL19: 20 | AM19: 20 | AN19: 7 | AO19: 7 | AP19: -1 | AQ19: 32 | AR19: 289 | AS19: 17 | AT19: N | AU19: -0.03 | AV19: -10 | AW19: R | AX19: 273 | AY19: 0.257 | AZ19: 0.313 | BA19: 0.422 | BB19: 0.319 | BC19: 87 | BD19: 30 | BE19: sosaed01 | BF19: 624641 | BG19: Agile Line Drives | BH19: Romy Gonzalez | BI19: Zach McKinstry | BJ19: Tucupita Marcano | BK19: Not enough upside to stick with him. Risk of injury or playing time.
A20: Newman | B20: Kevin | C20: R | D20: 2025 | E20: 31 | F20: ARI | G20: NL | H20: SS | I20: 2B | K20: 0.74 | L20: 0.291 | M20: 18 | N20: Y | O20: 79 | P20: 272 | Q20: 251 | R20: 31 | S20: 63 | T20: 12 | U20: 1 | V20: 3 | W20: 25 | X20: 7 | Y20: 1 | Z20: 14 | AA20: 46 | AB20: 0 | AC20: 2 | AD20: 3 | AE20: 2 | AF20: 6 | AG20: 0.251 | AH20: 0.289 | AI20: 0.343 | AJ20: 0.279 | AK20: 76 | AL20: 18 | AM20: 19 | AN20: 8 | AO20: 8 | AP20: -3 | AQ20: 35 | AR20: 317 | AS20: 18 | AT20: N | AU20: -0.02 | AV20: -7 | AW20: R | AX20: 311 | AY20: 0.278 | AZ20: 0.311 | BA20: 0.375 | BB20: 0.297 | BC20: 92 | BD20: 25 | BE20: newmake01 | BF20: 621028 | BG20: Agile Gap Power | BH20: Isiah Kiner-Falefa | BI20: Otto Lopez | BJ20: Christian Arroyo | BK20: Not enough upside to stick with him. Role player, not a keeper.
A21: Rojas | B21: Miguel | C21: R | D21: 2025 | E21: 36 | F21: LAN | G21: NL | H21: SS | K21: 0.8 | L21: 0.291 | M21: 18 | N21: Y | O21: 71 | P21: 242 | Q21: 217 | R21: 26 | S21: 52 | T21: 8 | U21: 0 | V21: 4 | W21: 21 | X21: 5 | Y21: 2 | Z21: 19 | AA21: 32 | AB21: 0 | AC21: 3 | AD21: 1 | AE21: 2 | AF21: 6 | AG21: 0.241 | AH21: 0.302 | AI21: 0.327 | AJ21: 0.284 | AK21: 69 | AL21: 18 | AM21: 18 | AN21: 5 | AO21: 6 | AP21: -2 | AQ21: 36 | AR21: 328 | AS21: 19 | AT21: N | AU21: -0.04 | AV21: -20 | AW21: O | AX21: 337 | AY21: 0.283 | AZ21: 0.337 | BA21: 0.41 | BB21: 0.328 | BC21: 111 | BD21: 38 | BE21: rojasmi02 | BF21: 500743 | BG21: Aging Agile Slap Hitter | BH21: Adam Frazier | BI21: Whit Merrifield | BJ21: Elvis Andrus | BK21: His best has passed. Will be overpriced in most drafts, unless truly healthy.
A22: Alexander | B22: Blaze | C22: R | D22: 2025 | E22: 26 | F22: ARI | G22: NL | H22: SS | K22: 0.65 | L22: 0.291 | M22: 18 | N22: Y | O22: 68 | P22: 220 | Q22: 199 | R22: 22 | S22: 46 | T22: 9 | U22: 0 | V22: 3 | W22: 23 | X22: 4 | Y22: 1 | Z22: 17 | AA22: 53 | AB22: 0 | AC22: 3 | AD22: 1 | AE22: 1 | AF22: 2 | AG22: 0.23 | AH22: 0.299 | AI22: 0.333 | AJ22: 0.285 | AK22: 63 | AL22: 17 | AM22: 17 | AN22: 5 | AO22: 5 | AP22: -1 | AQ22: 38 | AR22: 352 | AS22: 20 | AT22: N | AU22: -0.01 | AV22: -1 | AW22: R | AX22: 185 | AY22: 0.247 | AZ22: 0.321 | BA22: 0.343 | BB22: 0.3 | BC22: 55 | BD22: 19 | BE22: alexabl01 | BF22: 677942 | BG22: Bad Ball Hitter | BH22: Nick Sogard | BI22: Vaughn Grissom | BJ22: Curtis Mead | BK22: Some upside still, but needs to start proving it. Risk of injury or playing time.
A23: Nuñez | B23: Nasim | C23: B | D23: 2025 | E23: 24 | F23: WAS | G23: NL | H23: SS | K23: 0.44 | L23: 0.291 | M23: 18 | N23: Y | O23: 81 | P23: 185 | Q23: 157 | R23: 25 | S23: 37 | T23: 6 | U23: 1 | V23: 2 | W23: 11 | X23: 13 | Y23: 3 | Z23: 21 | AA23: 38 | AB23: 0 | AC23: 1 | AD23: 5 | AE23: 1 | AF23: 3 | AG23: 0.231 | AH23: 0.316 | AI23: 0.31 | AJ23: 0.286 | AK23: 53 | AL23: 16 | AM23: 16 | AN23: 6 | AO23: 7 | AP23: -1 | AQ23: 40 | AR23: 389 | AS23: 21 | AT23: N | AU23: 0 | AV23: 6 | AW23: R | AX23: 78 | AY23: 0.246 | AZ23: 0.37 | BA23: 0.262 | BB23: 0.288 | BC23: 22 | BD23: 9 | BE23: nunezna01 | BF23: 683083 | BG23: Young SB Slap Hitter | BH23: Trey Lipscomb | BI23: Nick Yorke | BJ23: Ronny Mauricio | BK23: Needs to establish himself at MLB level. Risk of injury or playing time.
A24: Anderson | B24: Tim | C24: R | D24: 2025 | E24: 32 | F24: MIA | G24: NL | H24: SS | K24: 0.78 | L24: 0.291 | M24: 18 | N24: Y | O24: 81 | P24: 326 | Q24: 308 | R24: 33 | S24: 72 | T24: 9 | U24: 1 | V24: 3 | W24: 20 | X24: 8 | Y24: 2 | Z24: 15 | AA24: 72 | AB24: 0 | AC24: 2 | AD24: 0 | AE24: 1 | AF24: 8 | AG24: 0.233 | AH24: 0.274 | AI24: 0.296 | AJ24: 0.257 | AK24: 84 | AL24: 15 | AM24: 16 | AN24: 6 | AO24: 6 | AP24: -11 | AQ24: 41 | AR24: 384 | AS24: 22 | AT24: N | AU24: 0.05 | AV24: 9 | AW24: S | AX24: 241 | AY24: 0.214 | AZ24: 0.237 | BA24: 0.226 | BB24: 0.212 | BC24: 51 | BD24: 6 | BE24: anderti01 | BF24: 641313 | BG24: Agile Slap Hitter | BH24: Isiah Kiner-Falefa | BI24: Michael Stefanic | BJ24: Harold Castro | BK24: Still In prime. Sleeper pick. Buy at discount.
A25: Peguero | B25: Liover | C25: R | D25: 2025 | E25: 24 | F25: PIT | G25: NL | H25: SS | K25: 0.43 | L25: 0.291 | M25: 18 | N25: Y | O25: 49 | P25: 166 | Q25: 151 | R25: 17 | S25: 34 | T25: 6 | U25: 1 | V25: 4 | W25: 17 | X25: 5 | Y25: 1 | Z25: 12 | AA25: 43 | AB25: 0 | AC25: 1 | AD25: 1 | AE25: 1 | AF25: 3 | AG25: 0.222 | AH25: 0.281 | AI25: 0.342 | AJ25: 0.276 | AK25: 46 | AL25: 13 | AM25: 13 | AN25: 4 | AO25: 4 | AP25: -2 | AQ25: 45 | AR25: 442 | AS25: 23 | AT25: N | AU25: 0.06 | AV25: 12 | AW25: R | AX25: 10 | AY25: 0.2 | AZ25: 0.2 | BA25: 0.3 | BB25: 0.214 | BC25: 2 | BD25: 1 | BE25: pegueli01 | BF25: 678894 | BG25: Young Bench Warmer | BH25: Jeter Downs | BI25: Luis Vázquez | BJ25: Jacob Amaya | BK25: Young enough to develop a lot from here. Risk of injury or playing time.
A26: Vázquez | B26: Luis | C26: R | D26: 2025 | E26: 25 | F26: CHN | G26: NL | H26: SS | K26: 0.12 | L26: 0.291 | M26: 18 | N26: Y | O26: 49 | P26: 132 | Q26: 119 | R26: 15 | S26: 25 | T26: 5 | U26: 1 | V26: 2 | W26: 12 | X26: 3 | Y26: 1 | Z26: 9 | AA26: 32 | AB26: 0 | AC26: 2 | AD26: 0 | AE26: 2 | AF26: 3 | AG26: 0.214 | AH26: 0.276 | AI26: 0.322 | AJ26: 0.267 | AK26: 35 | AL26: 10 | AM26: 10 | AN26: 2 | AO26: 2 | AP26: -3 | AQ26: 49 | AR26: 504 | AS26: 24 | AT26: N | AU26: 0.15 | AV26: 10 | AW26: R | AX26: 14 | AY26: 0.083 | AZ26: 0.143 | BA26: 0.083 | BB26: 0.118 | BC26: 2 | BD26: 0 | BE26: vazqulu01 | BF26: 676679 | BG26: Young Bench Warmer | BH26: Jeter Downs | BI26: Jacob Amaya | BJ26: Liover Peguero | BK26: Upside remains, but only cautiously optimisitc. Needs to find his groove. Risk of injury or playing time.
A27: Ahmed | B27: Nick | C27: R | D27: 2025 | E27: 35 | F27: SDN | G27: NL | H27: SS | K27: 0.64 | L27: 0.291 | M27: 18 | N27: Y | O27: 56 | P27: 165 | Q27: 150 | R27: 15 | S27: 32 | T27: 5 | U27: 0 | V27: 3 | W27: 14 | X27: 3 | Y27: 1 | Z27: 12 | AA27: 38 | AB27: 0 | AC27: 1 | AD27: 1 | AE27: 1 | AF27: 3 | AG27: 0.212 | AH27: 0.268 | AI27: 0.303 | AJ27: 0.257 | AK27: 42 | AL27: 10 | AM27: 10 | AN27: 2 | AO27: 2 | AP27: -6 | AQ27: 50 | AR27: 506 | AS27: 25 | AT27: N | AU27: 0.01 | AV27: -1 | AW27: R | AX27: 228 | AY27: 0.229 | AZ27: 0.267 | BA27: 0.295 | BB27: 0.249 | BC27: 57 | BD27: 11 | BE27: ahmedni01 | BF27: 605113 | BG27: Aging Bench Warmer | BH27: Jonathan Schoop | BI27: Joey Wendle | BJ27: Johan Camargo | BK27: His best days are past him, but he should perform near projected levels. Role player, not a keeper.
A28: Peterson | B28: Jace | C28: L | D28: 2025 | E28: 35 | F28: ARI | G28: NL | H28: SS | K28: 0.7 | L28: 0.291 | M28: 18 | N28: Y | O28: 32 | P28: 96 | Q28: 83 | R28: 10 | S28: 17 | T28: 2 | U28: 0 | V28: 2 | W28: 9 | X28: 3 | Y28: 0 | Z28: 11 | AA28: 23 | AB28: 0 | AC28: 1 | AD28: 0 | AE28: 1 | AF28: 2 | AG28: 0.202 | AH28: 0.299 | AI28: 0.308 | AJ28: 0.278 | AK28: 27 | AL28: 9 | AM28: 9 | AN28: 2 | AO28: 2 | AP28: -1 | AQ28: 52 | AR28: 523 | AS28: 26 | AT28: N | AU28: 0.16 | AV28: 9 | AW28: R | AX28: 26 | AY28: 0.045 | AZ28: 0.154 | BA28: 0.045 | BB28: 0.118 | BC28: 3 | BD28: 0 | BE28: peterja01 | BF28: 607054 | BG28: Aging Agile Bench Warmer | BH28: Brandon Crawford | BI28: Eddy Alvarez | BJ28: Kolten Wong | BK28: Beginning descent. Role player, not a keeper.
A29: Crawford | B29: Brandon | C29: L | D29: 2025 | E29: 38 | F29: STL | G29: NL | H29: SS | K29: 0.72 | L29: 0.291 | M29: 18 | N29: Y | O29: 26 | P29: 88 | Q29: 75 | R29: 9 | S29: 15 | T29: 2 | U29: 0 | V29: 2 | W29: 9 | X29: 1 | Y29: 0 | Z29: 11 | AA29: 20 | AB29: 0 | AC29: 1 | AD29: 0 | AE29: 1 | AF29: 2 | AG29: 0.197 | AH29: 0.305 | AI29: 0.304 | AJ29: 0.282 | AK29: 25 | AL29: 9 | AM29: 9 | AN29: 1 | AO29: 1 | AP29: -1 | AQ29: 53 | AR29: 524 | AS29: 27 | AT29: N | AU29: 0.03 | AV29: 4 | AW29: R | AX29: 80 | AY29: 0.169 | AZ29: 0.263 | BA29: 0.282 | BB29: 0.251 | BC29: 20 | BD29: 6 | BE29: crawfbr01 | BF29: 543063 | BG29: Aging Bench Warmer | BH29: Jace Peterson | BI29: Curt Casali | BJ29: Omar Narvaez | BK29: Career may be nearing end. Looking for graceful flourish before its over. Role player, not a keeper.
A30: McCoy | B30: Mason | C30: R | D30: 2025 | E30: 30 | F30: SDN | G30: NL | H30: SS | K30: 0.24 | L30: 0.212 | M30: 2 | N30: Y | O30: 46 | P30: 93 | Q30: 84 | R30: 10 | S30: 15 | T30: 3 | U30: 0 | V30: 1 | W30: 5 | X30: 2 | Y30: 0 | Z30: 6 | AA30: 26 | AB30: 0 | AC30: 1 | AD30: 2 | AE30: 0 | AF30: 3 | AG30: 0.174 | AH30: 0.236 | AI30: 0.243 | AJ30: 0.219 | AK30: 20 | AL30: 4 | AM30: 4 | AN30: 0 | AO30: 0 | AP30: -7 | AQ30: 57 | AR30: 643 | AS30: 28 | AT30: N | AU30: -0.01 | AV30: 0 | AW30: R | AX30: 57 | AY30: 0.204 | AZ30: 0.278 | BA30: 0.245 | BB30: 0.233 | BC30: 13 | BD30: 3 | BE30: mccoyma01 | BF30: 669200 | BG30: Agile Wiff King | BH30: Chris Owings | BI30: Isan Diaz | BJ30: Ryan Kreidler | BK30: Not enough upside to stick with him. Risk of injury or playing time.
A31: Schwarber | B31: Kyle | C31: L | D31: 2025 | E31: 32 | F31: PHI | G31: NL | H31: OF | K31: 0.87 | L31: 0.334 | M31: 56 | N31: Y | O31: 133 | P31: 477 | Q31: 396 | R31: 68 | S31: 84 | T31: 16 | U31: 1 | V31: 34 | W31: 65 | X31: 4 | Y31: 2 | Z31: 75 | AA31: 129 | AB31: 3 | AC31: 4 | AD31: 0 | AE31: 3 | AF31: 6 | AG31: 0.215 | AH31: 0.339 | AI31: 0.517 | AJ31: 0.364 | AK31: 174 | AL31: 69 | AM31: 64 | AN31: 18 | AO31: 17 | AP31: 29 | AQ31: 4 | AR31: 16 | AS31: 1 | AT31: Y | AU31: 0 | AV31: -23 | AW31: R | AX31: 692 | AY31: 0.248 | AZ31: 0.366 | BA31: 0.485 | BB31: 0.369 | BC31: 255 | BD31: 92 | BE31: schwaky01 | BF31: 656941 | BG31: Slugger | BH31: Max Muncy | BI31: Rhys Hoskins | BJ31: Aaron Judge | BK31: Still In prime. Expected to play regularly. Star player, must have.
A32: Carroll | B32: Corbin | C32: L | D32: 2025 | E32: 24 | F32: ARI | G32: NL | H32: OF | K32: 0.84 | L32: 0.334 | M32: 56 | N32: Y | O32: 149 | P32: 564 | Q32: 486 | R32: 90 | S32: 119 | T32: 28 | U32: 11 | V32: 19 | W32: 62 | X32: 36 | Y32: 5 | Z32: 62 | AA32: 108 | AB32: 1 | AC32: 9 | AD32: 3 | AE32: 5 | AF32: 5 | AG32: 0.248 | AH32: 0.338 | AI32: 0.469 | AJ32: 0.347 | AK32: 196 | AL32: 65 | AM32: 59 | AN32: 29 | AO32: 27 | AP32: 25 | AQ32: 5 | AR32: 21 | AS32: 2 | AT32: Y | AU32: 0.02 | AV32: 7 | AW32: S | AX32: 684 | AY32: 0.231 | AZ32: 0.322 | BA32: 0.428 | BB32: 0.325 | BC32: 222 | BD32: 57 | BE32: carroco02 | BF32: 682998 | BG32: Young Fantasy Star | BH32: Parker Meadows | BI32: Jonny Deluca | BJ32: Wenceel Pérez | BK32: Best years are still be ahead, even if last year was less than expected. Will outperform last year, assuming regular playing time. Future superstar in the making.
A33: Steer | B33: Spencer | C33: R | D33: 2025 | E33: 27 | F33: CIN | G33: NL | H33: OF | I33: 1B | K33: 0.84 | L33: 0.334 | M33: 56 | N33: Y | O33: 148 | P33: 536 | Q33: 468 | R33: 59 | S33: 112 | T33: 33 | U33: 3 | V33: 19 | W33: 68 | X33: 14 | Y33: 2 | Z33: 58 | AA33: 110 | AB33: 1 | AC33: 7 | AD33: 0 | AE33: 2 | AF33: 7 | AG33: 0.241 | AH33: 0.331 | AI33: 0.445 | AJ33: 0.339 | AK33: 182 | AL33: 57 | AM33: 52 | AN33: 19 | AO33: 17 | AP33: 19 | AQ33: 7 | AR33: 34 | AS33: 3 | AT33: Y | AU33: 0.02 | AV33: 5 | AW33: R | AX33: 656 | AY33: 0.225 | AZ33: 0.319 | BA33: 0.402 | BB33: 0.319 | BC33: 209 | BD33: 52 | BE33: steersp01 | BF33: 668715 | BG33: Fantasy Star | BH33: Ian Happ | BI33: JJ Bleday | BJ33: Jesus Sanchez | BK33: Best years may still be ahead, even if last year was a little disappointing. Expected to play regularly. All-star.
A34: Merrill | B34: Jackson | C34: L | D34: 2025 | E34: 22 | F34: SDN | G34: NL | H34: OF | K34: 0.86 | L34: 0.334 | M34: 56 | N34: Y | O34: 142 | P34: 547 | Q34: 503 | R34: 67 | S34: 137 | T34: 32 | U34: 6 | V34: 18 | W34: 77 | X34: 18 | Y34: 2 | Z34: 35 | AA34: 92 | AB34: 1 | AC34: 2 | AD34: 3 | AE34: 4 | AF34: 3 | AG34: 0.272 | AH34: 0.317 | AI34: 0.465 | AJ34: 0.335 | AK34: 183 | AL34: 55 | AM34: 51 | AN34: 26 | AO34: 24 | AP34: 17 | AQ34: 9 | AR34: 38 | AS34: 4 | AT34: Y | AU34: -0.01 | AV34: -13 | AW34: R | AX34: 593 | AY34: 0.292 | AZ34: 0.326 | BA34: 0.5 | BB34: 0.349 | BC34: 207 | BD34: 68 | BE34: merrija01 | BF34: 701538 | BG34: Young Slugger | BH34: Michael Harris | BI34: Jackson Chourio | BJ34: Leody Taveras | BK34: Career on the rise. Track his progress to determine upside. Expected to play regularly. All-star.
A35: Suzuki | B35: Seiya | C35: R | D35: 2025 | E35: 30 | F35: CHN | G35: NL | H35: OF | K35: 0.85 | L35: 0.334 | M35: 56 | N35: Y | O35: 130 | P35: 520 | Q35: 467 | R35: 63 | S35: 120 | T35: 25 | U35: 4 | V35: 19 | W35: 61 | X35: 10 | Y35: 5 | Z35: 45 | AA35: 123 | AB35: 3 | AC35: 4 | AD35: 0 | AE35: 4 | AF35: 8 | AG35: 0.256 | AH35: 0.324 | AI35: 0.45 | AJ35: 0.335 | AK35: 174 | AL35: 54 | AM35: 49 | AN35: 20 | AO35: 18 | AP35: 17 | AQ35: 12 | AR35: 42 | AS35: 5 | AT35: Y | AU35: -0.03 | AV35: -28 | AW35: O | AX35: 585 | AY35: 0.283 | AZ35: 0.366 | BA35: 0.482 | BB35: 0.368 | BC35: 216 | BD35: 82 | BE35: suzukse01 | BF35: 673548 | BG35: Dominant Hitter | BH35: Bryan Reynolds | BI35: Jake Cronenworth | BJ35: Kerry Carpenter | BK35: Limited improvement expected from here. Overpriced in most drafts, be realistic. Hits, with outside all-star hopes.
A36: Reynolds | B36: Bryan | C36: B | D36: 2025 | E36: 30 | F36: PIT | G36: NL | H36: OF | K36: 0.87 | L36: 0.334 | M36: 56 | N36: Y | O36: 141 | P36: 553 | Q36: 500 | R36: 64 | S36: 126 | T36: 24 | U36: 3 | V36: 23 | W36: 66 | X36: 8 | Y36: 2 | Z36: 41 | AA36: 120 | AB36: 3 | AC36: 8 | AD36: 0 | AE36: 3 | AF36: 10 | AG36: 0.252 | AH36: 0.317 | AI36: 0.448 | AJ36: 0.331 | AK36: 183 | AL36: 54 | AM36: 49 | AN36: 20 | AO36: 18 | AP36: 16 | AQ36: 13 | AR36: 44 | AS36: 6 | AT36: Y | AU36: -0.01 | AV36: -19 | AW36: R | AX36: 692 | AY36: 0.275 | AZ36: 0.344 | BA36: 0.447 | BB36: 0.346 | BC36: 239 | BD36: 73 | BE36: reynobr01 | BF36: 668804 | BG36: Dominant Hitter | BH36: Seiya Suzuki | BI36: Cody Bellinger | BJ36: Yordan Alvarez | BK36: Poised for strong production realtive to skills. Expected to play regularly. Hits, but not a likey all-star this year.
A37: Happ | B37: Ian | C37: B | D37: 2025 | E37: 30 | F37: CHN | G37: NL | H37: OF | K37: 0.87 | L37: 0.334 | M37: 56 | N37: Y | O37: 141 | P37: 519 | Q37: 456 | R37: 64 | S37: 109 | T37: 30 | U37: 2 | V37: 20 | W37: 63 | X37: 10 | Y37: 2 | Z37: 55 | AA37: 119 | AB37: 2 | AC37: 5 | AD37: 0 | AE37: 3 | AF37: 9 | AG37: 0.24 | AH37: 0.325 | AI37: 0.443 | AJ37: 0.334 | AK37: 173 | AL37: 53 | AM37: 49 | AN37: 18 | AO37: 16 | AP37: 16 | AQ37: 15 | AR37: 47 | AS37: 7 | AT37: Y | AU37: -0.01 | AV37: -15 | AW37: R | AX37: 657 | AY37: 0.243 | AZ37: 0.341 | BA37: 0.441 | BB37: 0.343 | BC37: 225 | BD37: 68 | BE37: happia01 | BF37: 664023 | BG37: Agile Slugger | BH37: Spencer Steer | BI37: JJ Bleday | BJ37: Spencer Torkelson | BK37: In prime. Expected to play regularly. Hits, but not a likey all-star this year.
A38: Chourio | B38: Jackson | C38: R | D38: 2025 | E38: 21 | F38: MIL | G38: NL | H38: OF | K38: 0.85 | L38: 0.334 | M38: 56 | N38: Y | O38: 140 | P38: 527 | Q38: 475 | R38: 68 | S38: 121 | T38: 31 | U38: 4 | V38: 16 | W38: 67 | X38: 24 | Y38: 5 | Z38: 47 | AA38: 105 | AB38: 3 | AC38: 3 | AD38: 1 | AE38: 2 | AF38: 7 | AG38: 0.256 | AH38: 0.324 | AI38: 0.441 | AJ38: 0.333 | AK38: 175 | AL38: 53 | AM38: 49 | AN38: 24 | AO38: 22 | AP38: 16 | AQ38: 16 | AR38: 52 | AS38: 8 | AT38: Y | AU38: -0.01 | AV38: -8 | AW38: R | AX38: 573 | AY38: 0.275 | AZ38: 0.327 | BA38: 0.464 | BB38: 0.341 | BC38: 195 | BD38: 61 | BE38: chourja01 | BF38: 694192 | BG38: Young SB Dominant Hitter | BH38: Wyatt Langford | BI38: Leody Taveras | BJ38: Jackson Merrill | BK38: Career on the rise. Track his progress to determine upside. Expected to play regularly. Hits, but not a likey all-star this year.
A39: Acuna | B39: Ronald | C39: R | D39: 2025 | E39: 27 | F39: ATL | G39: NL | H39: OF | K39: 0.82 | L39: 0.303 | M39: 24 | N39: Y | O39: 78 | P39: 410 | Q39: 366 | R39: 67 | S39: 102 | T39: 16 | U39: 1 | V39: 13 | W39: 46 | X39: 28 | Y39: 6 | Z39: 37 | AA39: 73 | AB39: 1 | AC39: 6 | AD39: 0 | AE39: 2 | AF39: 6 | AG39: 0.273 | AH39: 0.352 | AI39: 0.438 | AJ39: 0.348 | AK39: 142 | AL39: 53 | AM39: 49 | AN39: 25 | AO39: 23 | AP39: 18 | AQ39: 17 | AR39: 53 | AS39: 9 | AT39: N | AU39: 0.02 | AV39: 24 | AW39: S | AX39: 222 | AY39: 0.25 | AZ39: 0.351 | BA39: 0.365 | BB39: 0.326 | BC39: 72 | BD39: 28 | BE39: acunaro01 | BF39: 660670 | BG39: SB Dominant Hitter | BH39: Jake Fraley | BI39: Richie Palacios | BJ39: Tyler Freeman | BK39: Best years may still be ahead, even if last year was a little disappointing. Will outperform last year, assuming regular playing time. Hits, but not a likey all-star this year.
A40: Nimmo | B40: Brandon | C40: L | D40: 2025 | E40: 32 | F40: NYN | G40: NL | H40: OF | K40: 0.87 | L40: 0.334 | M40: 56 | N40: Y | O40: 131 | P40: 503 | Q40: 436 | R40: 66 | S40: 104 | T40: 21 | U40: 3 | V40: 19 | W40: 56 | X40: 6 | Y40: 1 | Z40: 55 | AA40: 105 | AB40: 1 | AC40: 9 | AD40: 1 | AE40: 3 | AF40: 7 | AG40: 0.241 | AH40: 0.334 | AI40: 0.429 | AJ40: 0.335 | AK40: 168 | AL40: 53 | AM40: 48 | AN40: 16 | AO40: 15 | AP40: 16 | AQ40: 18 | AR40: 54 | AS40: 10 | AT40: Y | AU40: 0.01 | AV40: -2 | AW40: R | AX40: 663 | AY40: 0.224 | AZ40: 0.327 | BA40: 0.399 | BB40: 0.323 | BC40: 214 | BD40: 55 | BE40: nimmobr01 | BF40: 607043 | BG40: Dominant Hitter | BH40: Josh Bell | BI40: Jake Cronenworth | BJ40: Will Smith | BK40: Still In prime. Expected to play regularly. Hits, but not a likey all-star this year.
A41: Tatis Jr. | B41: Fernando | C41: R | D41: 2025 | E41: 26 | F41: SDN | G41: NL | H41: OF | K41: 0.84 | L41: 0.334 | M41: 56 | N41: Y | O41: 116 | P41: 477 | Q41: 431 | R41: 65 | S41: 109 | T41: 26 | U41: 1 | V41: 20 | W41: 54 | X41: 15 | Y41: 3 | Z41: 40 | AA41: 100 | AB41: 0 | AC41: 5 | AD41: 0 | AE41: 2 | AF41: 11 | AG41: 0.252 | AH41: 0.321 | AI41: 0.458 | AJ41: 0.337 | AK41: 161 | AL41: 52 | AM41: 48 | AN41: 21 | AO41: 19 | AP41: 16 | AQ41: 21 | AR41: 58 | AS41: 11 | AT41: Y | AU41: -0.02 | AV41: -10 | AW41: R | AX41: 438 | AY41: 0.276 | AZ41: 0.34 | BA41: 0.492 | BB41: 0.359 | BC41: 157 | BD41: 62 | BE41: tatisfe02 | BF41: 665487 | BG41: Fantasy Star | BH41: Josh Naylor | BI41: Randy Arozarena | BJ41: Lawrence Butler | BK41: Career taking off. Could continue to exceed forecasts. Expected to play regularly. Hits, but not a likey all-star this year.
A42: Profar | B42: Jurickson | C42: B | D42: 2025 | E42: 32 | F42: SDN | G42: NL | H42: OF | K42: 0.86 | L42: 0.334 | M42: 56 | N42: Y | O42: 133 | P42: 500 | Q42: 434 | R42: 63 | S42: 107 | T42: 23 | U42: 1 | V42: 16 | W42: 54 | X42: 5 | Y42: 1 | Z42: 53 | AA42: 83 | AB42: 2 | AC42: 8 | AD42: 2 | AE42: 4 | AF42: 11 | AG42: 0.251 | AH42: 0.336 | AI42: 0.415 | AJ42: 0.332 | AK42: 166 | AL42: 51 | AM42: 46 | AN42: 16 | AO42: 14 | AP42: 14 | AQ42: 22 | AR42: 63 | AS42: 12 | AT42: Y | AU42: -0.04 | AV42: -38 | AW42: O | AX42: 668 | AY42: 0.28 | AZ42: 0.38 | BA42: 0.459 | BB42: 0.367 | BC42: 245 | BD42: 88 | BE42: profaju01 | BF42: 595777 | BG42: Dominant Hitter | BH42: Freddie Freeman | BI42: Josh Bell | BJ42: Yandy Diaz | BK42: Still In prime. Overpriced in most drafts, be realistic. Hits, but not a likey all-star this year.
A43: Soler | B43: Jorge | C43: R | D43: 2025 | E43: 33 | F43: ATL | G43: NL | H43: OF | K43: 0.84 | L43: 0.334 | M43: 56 | N43: Y | O43: 123 | P43: 430 | Q43: 371 | R43: 55 | S43: 83 | T43: 20 | U43: 0 | V43: 23 | W43: 49 | X43: 2 | Y43: 1 | Z43: 52 | AA43: 103 | AB43: 2 | AC43: 4 | AD43: 0 | AE43: 3 | AF43: 12 | AG43: 0.227 | AH43: 0.324 | AI43: 0.463 | AJ43: 0.34 | AK43: 146 | AL43: 50 | AM43: 46 | AN43: 13 | AO43: 12 | AP43: 16 | AQ43: 23 | AR43: 66 | AS43: 13 | AT43: N | AU43: 0 | AV43: -11 | AW43: R | AX43: 571 | AY43: 0.241 | AZ43: 0.338 | BA43: 0.442 | BB43: 0.341 | BC43: 195 | BD43: 61 | BE43: solerjo01 | BF43: 624585 | BG43: Lead Footed Slugger | BH43: Michael Conforto | BI43: Matt Olson | BJ43: Christian Walker | BK43: His best days are past him, but he should perform near projected levels. If only he were on the field more. Hits, but not a likey all-star this year.
A44: Donovan | B44: Brendan | C44: L | D44: 2025 | E44: 28 | F44: STL | G44: NL | H44: OF | I44: 2B | K44: 0.84 | L44: 0.334 | M44: 56 | N44: Y | O44: 136 | P44: 518 | Q44: 468 | R44: 61 | S44: 126 | T44: 24 | U44: 2 | V44: 12 | W44: 55 | X44: 5 | Y44: 3 | Z44: 35 | AA44: 77 | AB44: 1 | AC44: 11 | AD44: 1 | AE44: 3 | AF44: 6 | AG44: 0.27 | AH44: 0.333 | AI44: 0.408 | AJ44: 0.328 | AK44: 170 | AL44: 49 | AM44: 45 | AN44: 17 | AO44: 16 | AP44: 13 | AQ44: 25 | AR44: 69 | AS44: 14 | AT44: Y | AU44: -0.01 | AV44: -13 | AW44: R | AX44: 652 | AY44: 0.278 | AZ44: 0.342 | BA44: 0.417 | BB44: 0.335 | BC44: 219 | BD44: 62 | BE44: donovbr01 | BF44: 680977 | BG44: Capable Hitter | BH44: Luis Arraez | BI44: Andrew Benintendi | BJ44: Masataka Yoshida | BK44: Poised for modest break out above last year. Expected to play regularly. Hits, but not a likey all-star this year.
A45: Nootbaar | B45: Lars | C45: L | D45: 2025 | E45: 27 | F45: STL | G45: NL | H45: OF | K45: 0.81 | L45: 0.303 | M45: 24 | N45: Y | O45: 126 | P45: 430 | Q45: 368 | R45: 53 | S45: 88 | T45: 22 | U45: 3 | V45: 14 | W45: 44 | X45: 7 | Y45: 2 | Z45: 56 | AA45: 86 | AB45: 2 | AC45: 2 | AD45: 1 | AE45: 3 | AF45: 8 | AG45: 0.24 | AH45: 0.341 | AI45: 0.429 | AJ45: 0.338 | AK45: 145 | AL45: 49 | AM45: 45 | AN45: 13 | AO45: 12 | AP45: 15 | AQ45: 26 | AR45: 72 | AS45: 15 | AT45: N | AU45: 0 | AV45: 4 | AW45: R | AX45: 405 | AY45: 0.244 | AZ45: 0.342 | BA45: 0.417 | BB45: 0.334 | BC45: 135 | BD45: 45 | BE45: nootbla01 | BF45: 663457 | BG45: Dominant Hitter | BH45: Juan Soto | BI45: Spencer Steer | BJ45: Austin Wells | BK45: Best years may still be ahead, even if last year was a little disappointing. Risk of injury or playing time. Consider platooning.
A46: Chisholm | B46: Jazz | C46: L | D46: 2025 | E46: 27 | F46: MIA | G46: NL | H46: OF | I46: 3B | K46: 0.82 | L46: 0.334 | M46: 56 | N46: Y | O46: 135 | P46: 489 | Q46: 442 | R46: 59 | S46: 106 | T46: 20 | U46: 4 | V46: 22 | W46: 60 | X46: 24 | Y46: 6 | Z46: 41 | AA46: 121 | AB46: 2 | AC46: 4 | AD46: 0 | AE46: 2 | AF46: 5 | AG46: 0.241 | AH46: 0.307 | AI46: 0.453 | AJ46: 0.327 | AK46: 160 | AL46: 47 | AM46: 44 | AN46: 22 | AO46: 21 | AP46: 12 | AQ46: 27 | AR46: 80 | AS46: 16 | AT46: Y | AU46: 0 | AV46: -10 | AW46: R | AX46: 621 | AY46: 0.256 | AZ46: 0.324 | BA46: 0.436 | BB46: 0.331 | BC46: 206 | BD46: 58 | BE46: chishja01 | BF46: 665862 | BG46: Fantasy Star | BH46: Brenton Doyle | BI46: Shohei Ohtani | BJ46: Cedric Mullins | BK46: Should perform close to forecast. Expected to play regularly.
A47: Hernandez | B47: Teoscar | C47: R | D47: 2025 | E47: 32 | F47: LAN | G47: NL | H47: OF | K47: 0.86 | L47: 0.334 | M47: 56 | N47: Y | O47: 136 | P47: 511 | Q47: 467 | R47: 58 | S47: 112 | T47: 24 | U47: 1 | V47: 25 | W47: 68 | X47: 7 | Y47: 2 | Z47: 36 | AA47: 137 | AB47: 2 | AC47: 5 | AD47: 0 | AE47: 2 | AF47: 9 | AG47: 0.24 | AH47: 0.299 | AI47: 0.456 | AJ47: 0.324 | AK47: 166 | AL47: 47 | AM47: 43 | AN47: 18 | AO47: 17 | AP47: 11 | AQ47: 28 | AR47: 81 | AS47: 17 | AT47: Y | AU47: -0.04 | AV47: -34 | AW47: O | AX47: 651 | AY47: 0.272 | AZ47: 0.339 | BA47: 0.501 | BB47: 0.361 | BC47: 235 | BD47: 81 | BE47: hernate01 | BF47: 606192 | BG47: Slugger | BH47: Jake Burger | BI47: Brent Rooker | BJ47: Adolis Garcia | BK47: Still In prime. Overpriced in most drafts, be realistic.
A48: Harris | B48: Michael | C48: L | D48: 2025 | E48: 24 | F48: ATL | G48: NL | H48: OF | K48: 0.83 | L48: 0.334 | M48: 56 | N48: Y | O48: 125 | P48: 496 | Q48: 459 | R48: 65 | S48: 121 | T48: 27 | U48: 3 | V48: 16 | W48: 54 | X48: 17 | Y48: 4 | Z48: 30 | AA48: 98 | AB48: 1 | AC48: 4 | AD48: 1 | AE48: 2 | AF48: 7 | AG48: 0.262 | AH48: 0.313 | AI48: 0.44 | AJ48: 0.326 | AK48: 161 | AL48: 47 | AM48: 43 | AN48: 21 | AO48: 20 | AP48: 11 | AQ48: 29 | AR48: 83 | AS48: 18 | AT48: Y | AU48: 0.01 | AV48: 7 | AW48: S | AX48: 470 | AY48: 0.264 | AZ48: 0.304 | BA48: 0.418 | BB48: 0.314 | BC48: 148 | BD48: 40 | BE48: harrimi04 | BF48: 671739 | BG48: Young Slugger | BH48: Jackson Merrill | BI48: Leody Taveras | BJ48: Jackson Chourio | BK48: Best years are still be ahead, even if last year was less than expected. Will outperform last year, assuming regular playing time.
A49: Bellinger | B49: Cody | C49: L | D49: 2025 | E49: 29 | F49: CHN | G49: NL | H49: OF | I49: 1B | K49: 0.85 | L49: 0.334 | M49: 56 | N49: Y | O49: 132 | P49: 503 | Q49: 461 | R49: 69 | S49: 117 | T49: 25 | U49: 2 | V49: 20 | W49: 71 | X49: 12 | Y49: 3 | Z49: 32 | AA49: 94 | AB49: 4 | AC49: 3 | AD49: 0 | AE49: 6 | AF49: 8 | AG49: 0.256 | AH49: 0.304 | AI49: 0.45 | AJ49: 0.323 | AK49: 163 | AL49: 46 | AM49: 43 | AN49: 22 | AO49: 20 | AP49: 10 | AQ49: 31 | AR49: 90 | AS49: 19 | AT49: Y | AU49: 0 | AV49: -6 | AW49: R | AX49: 569 | AY49: 0.266 | AZ49: 0.325 | BA49: 0.426 | BB49: 0.328 | BC49: 187 | BD49: 53 | BE49: bellico01 | BF49: 641355 | BG49: Agile Slugger | BH49: Josh Naylor | BI49: Bryan Reynolds | BJ49: Lourdes Gurriel Jr. | BK49: Poised for modest break out above last year. Expected to play regularly.
A50: Marsh | B50: Brandon | C50: L | D50: 2025 | E50: 27 | F50: PHI | G50: NL | H50: OF | K50: 0.82 | L50: 0.334 | M50: 56 | N50: Y | O50: 140 | P50: 467 | Q50: 413 | R50: 51 | S50: 98 | T50: 22 | U50: 4 | V50: 15 | W50: 53 | X50: 12 | Y50: 3 | Z50: 46 | AA50: 132 | AB50: 1 | AC50: 3 | AD50: 1 | AE50: 4 | AF50: 4 | AG50: 0.236 | AH50: 0.316 | AI50: 0.419 | AJ50: 0.321 | AK50: 150 | AL50: 43 | AM50: 39 | AN50: 15 | AO50: 14 | AP50: 8 | AQ50: 37 | AR50: 109 | AS50: 20 | AT50: Y | AU50: -0.01 | AV50: -4 | AW50: R | AX50: 476 | AY50: 0.249 | AZ50: 0.328 | BA50: 0.419 | BB50: 0.327 | BC50: 156 | BD50: 47 | BE50: marshbr02 | BF50: 669016 | BG50: Agile Dominant Hitter | BH50: Riley Greene | BI50: Garrett Mitchell | BJ50: Jarred Kelenic | BK50: Should perform close to forecast. Starter, but may sit occassionally.
A51: Gurriel Jr. | B51: Lourdes | C51: R | D51: 2025 | E51: 31 | F51: ARI | G51: NL | H51: OF | K51: 0.85 | L51: 0.334 | M51: 56 | N51: Y | O51: 128 | P51: 491 | Q51: 456 | R51: 57 | S51: 118 | T51: 24 | U51: 1 | V51: 16 | W51: 62 | X51: 5 | Y51: 1 | Z51: 28 | AA51: 88 | AB51: 1 | AC51: 5 | AD51: 0 | AE51: 3 | AF51: 15 | AG51: 0.259 | AH51: 0.307 | AI51: 0.425 | AJ51: 0.318 | AK51: 156 | AL51: 43 | AM51: 39 | AN51: 17 | AO51: 16 | AP51: 7 | AQ51: 38 | AR51: 110 | AS51: 21 | AT51: Y | AU51: -0.01 | AV51: -9 | AW51: R | AX51: 553 | AY51: 0.279 | AZ51: 0.322 | BA51: 0.435 | BB51: 0.329 | BC51: 182 | BD51: 52 | BE51: gurrilo01 | BF51: 666971 | BG51: Slugger | BH51: Ty France | BI51: Masataka Yoshida | BJ51: Alec Bohm | BK51: This is the time to shine. Expected to play regularly.
A52: Burleson | B52: Alec | C52: L | D52: 2025 | E52: 26 | F52: STL | G52: NL | H52: OF | K52: 0.79 | L52: 0.334 | M52: 56 | N52: Y | O52: 146 | P52: 489 | Q52: 445 | R52: 55 | S52: 113 | T52: 23 | U52: 1 | V52: 16 | W52: 58 | X52: 7 | Y52: 2 | Z52: 35 | AA52: 74 | AB52: 0 | AC52: 4 | AD52: 1 | AE52: 4 | AF52: 11 | AG52: 0.254 | AH52: 0.311 | AI52: 0.417 | AJ52: 0.317 | AK52: 155 | AL52: 42 | AM52: 39 | AN52: 16 | AO52: 15 | AP52: 7 | AQ52: 40 | AR52: 116 | AS52: 22 | AT52: Y | AU52: 0 | AV52: -7 | AW52: R | AX52: 593 | AY52: 0.269 | AZ52: 0.314 | BA52: 0.42 | BB52: 0.319 | BC52: 189 | BD52: 49 | BE52: burleal01 | BF52: 676475 | BG52: Slugger | BH52: Keibert Ruiz | BI52: Vladimir Guerrero Jr. | BJ52: Vinnie Pasquantino | BK52: Expected to play regularly.
A53: Yelich | B53: Christian | C53: L | D53: 2025 | E53: 33 | F53: MIL | G53: NL | H53: OF | K53: 0.84 | L53: 0.303 | M53: 24 | N53: Y | O53: 85 | P53: 392 | Q53: 344 | R53: 57 | S53: 87 | T53: 13 | U53: 1 | V53: 10 | W53: 43 | X53: 16 | Y53: 2 | Z53: 44 | AA53: 84 | AB53: 3 | AC53: 3 | AD53: 1 | AE53: 1 | AF53: 6 | AG53: 0.252 | AH53: 0.339 | AI53: 0.39 | AJ53: 0.326 | AK53: 128 | AL53: 41 | AM53: 37 | AN53: 17 | AO53: 15 | AP53: 9 | AQ53: 43 | AR53: 122 | AS53: 23 | AT53: N | AU53: -0.07 | AV53: -31 | AW53: O | AX53: 314 | AY53: 0.315 | AZ53: 0.406 | BA53: 0.504 | BB53: 0.396 | BC53: 124 | BD53: 72 | BE53: yelicch01 | BF53: 592885 | BG53: Agile Capable Hitter | BH53: Mark Canha | BI53: Mike Tauchman | BJ53: Alex Call | BK53: Career has peaked, limited upside. Will be overpriced in most drafts, unless truly healthy. Consider platooning.
A54: Sanchez | B54: Jesus | C54: L | D54: 2025 | E54: 27 | F54: MIA | G54: NL | H54: OF | K54: 0.82 | L54: 0.334 | M54: 56 | N54: Y | O54: 144 | P54: 445 | Q54: 401 | R54: 47 | S54: 93 | T54: 24 | U54: 2 | V54: 17 | W54: 50 | X54: 8 | Y54: 1 | Z54: 38 | AA54: 110 | AB54: 1 | AC54: 3 | AD54: 1 | AE54: 2 | AF54: 11 | AG54: 0.233 | AH54: 0.303 | AI54: 0.431 | AJ54: 0.318 | AK54: 141 | AL54: 40 | AM54: 37 | AN54: 13 | AO54: 12 | AP54: 7 | AQ54: 45 | AR54: 128 | AS54: 24 | AT54: Y | AU54: 0 | AV54: -6 | AW54: R | AX54: 537 | AY54: 0.252 | AZ54: 0.313 | BA54: 0.417 | BB54: 0.319 | BC54: 171 | BD54: 46 | BE54: sanchje02 | BF54: 660821 | BG54: Agile Slugger | BH54: Spencer Torkelson | BI54: Colton Cowser | BJ54: MJ Melendez | BK54: Should perform close to forecast. Starter, but may sit occassionally.
A55: Castellanos | B55: Nick | C55: R | D55: 2025 | E55: 33 | F55: PHI | G55: NL | H55: OF | K55: 0.86 | L55: 0.334 | M55: 56 | N55: Y | O55: 134 | P55: 493 | Q55: 454 | R55: 55 | S55: 109 | T55: 22 | U55: 1 | V55: 19 | W55: 64 | X55: 6 | Y55: 1 | Z55: 32 | AA55: 112 | AB55: 1 | AC55: 5 | AD55: 0 | AE55: 3 | AF55: 13 | AG55: 0.243 | AH55: 0.296 | AI55: 0.424 | AJ55: 0.312 | AK55: 154 | AL55: 40 | AM55: 37 | AN55: 16 | AO55: 15 | AP55: 4 | AQ55: 46 | AR55: 129 | AS55: 25 | AT55: Y | AU55: -0.01 | AV55: -14 | AW55: R | AX55: 659 | AY55: 0.254 | AZ55: 0.311 | BA55: 0.431 | BB55: 0.323 | BC55: 213 | BD55: 55 | BE55: casteni01 | BF55: 592206 | BG55: Slugger | BH55: Jonah Heim | BI55: Teoscar Hernandez | BJ55: Gavin Sheets | BK55: His best days are past him, but he should perform near projected levels. Expected to play regularly. Trade him for two part timers who can platoon.
A56: Conforto | B56: Michael | C56: L | D56: 2025 | E56: 32 | F56: SFN | G56: NL | H56: OF | K56: 0.83 | L56: 0.334 | M56: 56 | N56: Y | O56: 123 | P56: 404 | Q56: 356 | R56: 47 | S56: 81 | T56: 18 | U56: 1 | V56: 17 | W56: 51 | X56: 3 | Y56: 1 | Z56: 40 | AA56: 91 | AB56: 2 | AC56: 5 | AD56: 0 | AE56: 3 | AF56: 13 | AG56: 0.228 | AH56: 0.311 | AI56: 0.429 | AJ56: 0.322 | AK56: 130 | AL56: 40 | AM56: 36 | AN56: 11 | AO56: 11 | AP56: 8 | AQ56: 48 | AR56: 133 | AS56: 26 | AT56: N | AU56: -0.01 | AV56: -8 | AW56: R | AX56: 488 | AY56: 0.237 | AZ56: 0.309 | BA56: 0.45 | BB56: 0.327 | BC56: 160 | BD56: 47 | BE56: confomi01 | BF56: 624424 | BG56: Slugger | BH56: Matt Olson | BI56: Jorge Soler | BJ56: Christian Walker | BK56: Still In prime. Risk of injury or playing time.
A57: Thomas | B57: Lane | C57: R | D57: 2025 | E57: 30 | F57: WAS | G57: NL | H57: OF | K57: 0.85 | L57: 0.334 | M57: 56 | N57: Y | O57: 130 | P57: 468 | Q57: 427 | R57: 59 | S57: 101 | T57: 25 | U57: 2 | V57: 18 | W57: 53 | X57: 16 | Y57: 6 | Z57: 31 | AA57: 113 | AB57: 1 | AC57: 6 | AD57: 0 | AE57: 4 | AF57: 6 | AG57: 0.237 | AH57: 0.294 | AI57: 0.432 | AJ57: 0.313 | AK57: 146 | AL57: 39 | AM57: 36 | AN57: 18 | AO57: 16 | AP57: 4 | AQ57: 50 | AR57: 138 | AS57: 27 | AT57: Y | AU57: 0 | AV57: -3 | AW57: R | AX57: 528 | AY57: 0.237 | AZ57: 0.309 | BA57: 0.4 | BB57: 0.311 | BC57: 164 | BD57: 41 | BE57: thomala02 | BF57: 657041 | BG57: Agile Slugger | BH57: Luis Robert | BI57: Randy Arozarena | BJ57: Tyrone Taylor | BK57: Peaking. Starter, but may sit occassionally. Trade him for two part timers who can platoon.
A58: McCutchen | B58: Andrew | C58: R | D58: 2025 | E58: 38 | F58: PIT | G58: NL | H58: OF | K58: 0.84 | L58: 0.334 | M58: 56 | N58: Y | O58: 84 | P58: 347 | Q58: 286 | R58: 40 | S58: 62 | T58: 9 | U58: 0 | V58: 11 | W58: 34 | X58: 5 | Y58: 2 | Z58: 56 | AA58: 75 | AB58: 1 | AC58: 3 | AD58: 0 | AE58: 2 | AF58: 6 | AG58: 0.221 | AH58: 0.351 | AI58: 0.371 | AJ58: 0.329 | AK58: 114 | AL58: 39 | AM58: 36 | AN58: 8 | AO58: 7 | AP58: 9 | AQ58: 51 | AR58: 140 | AS58: 28 | AT58: N | AU58: 0 | AV58: -10 | AW58: R | AX58: 515 | AY58: 0.232 | AZ58: 0.328 | BA58: 0.411 | BB58: 0.327 | BC58: 168 | BD58: 49 | BE58: mccutan01 | BF58: 457705 | BG58: Aging Slugger | BH58: Carlos Santana | BI58: Yasmani Grandal | BJ58: Justin Turner | BK58: His best days are past him, but he should perform near projected levels. Risk of injury or playing time.
A59: Wood | B59: James | C59: L | D59: 2025 | E59: 22 | F59: WAS | G59: NL | H59: OF | K59: 0.77 | L59: 0.303 | M59: 24 | N59: Y | O59: 82 | P59: 354 | Q59: 309 | R59: 41 | S59: 74 | T59: 15 | U59: 4 | V59: 7 | W59: 39 | X59: 16 | Y59: 6 | Z59: 42 | AA59: 91 | AB59: 1 | AC59: 2 | AD59: 0 | AE59: 0 | AF59: 2 | AG59: 0.237 | AH59: 0.333 | AI59: 0.381 | AJ59: 0.32 | AK59: 113 | AL59: 36 | AM59: 33 | AN59: 12 | AO59: 11 | AP59: 6 | AQ59: 59 | AR59: 165 | AS59: 29 | AT59: N | AU59: -0.03 | AV59: -10 | AW59: R | AX59: 336 | AY59: 0.264 | AZ59: 0.354 | BA59: 0.427 | BB59: 0.346 | BC59: 116 | BD59: 46 | BE59: woodja03 | BF59: 695578 | BG59: Young Bad Ball Hitter | BH59: Parker Meadows | BI59: Garrett Mitchell | BJ59: Evan Carter | BK59: Career taking off. Could continue to exceed forecasts. Risk of injury or playing time. Consider platooning.
A60: Friedl | B60: TJ | C60: L | D60: 2025 | E60: 29 | F60: CIN | G60: NL | H60: OF | K60: 0.8 | L60: 0.303 | M60: 24 | N60: Y | O60: 101 | P60: 398 | Q60: 357 | R60: 48 | S60: 88 | T60: 13 | U60: 4 | V60: 13 | W60: 51 | X60: 14 | Y60: 3 | Z60: 25 | AA60: 69 | AB60: 0 | AC60: 9 | AD60: 3 | AE60: 4 | AF60: 2 | AG60: 0.246 | AH60: 0.308 | AI60: 0.413 | AJ60: 0.314 | AK60: 125 | AL60: 36 | AM60: 33 | AN60: 16 | AO60: 15 | AP60: 4 | AQ60: 60 | AR60: 166 | AS60: 30 | AT60: N | AU60: 0.01 | AV60: 6 | AW60: S | AX60: 341 | AY60: 0.226 | AZ60: 0.31 | BA60: 0.38 | BB60: 0.305 | BC60: 104 | BD60: 29 | BE60: friedtj01 | BF60: 670770 | BG60: Agile Slugger | BH60: Jake McCarthy | BI60: Luis Rengifo | BJ60: Tommy Edman | BK60: Poised for modest break out above last year. Expect rebound. Consider platooning.
A61: Ramos | B61: Heliot | C61: R | D61: 2025 | E61: 25 | F61: SFN | G61: NL | H61: OF | K61: 0.71 | L61: 0.334 | M61: 56 | N61: Y | O61: 101 | P61: 420 | Q61: 383 | R61: 44 | S61: 93 | T61: 19 | U61: 2 | V61: 14 | W61: 50 | X61: 6 | Y61: 1 | Z61: 32 | AA61: 102 | AB61: 1 | AC61: 2 | AD61: 0 | AE61: 3 | AF61: 8 | AG61: 0.241 | AH61: 0.301 | AI61: 0.411 | AJ61: 0.31 | AK61: 130 | AL61: 35 | AM61: 33 | AN61: 12 | AO61: 11 | AP61: 3 | AQ61: 61 | AR61: 168 | AS61: 31 | AT61: N | AU61: -0.03 | AV61: -21 | AW61: O | AX61: 518 | AY61: 0.269 | AZ61: 0.322 | BA61: 0.469 | BB61: 0.34 | BC61: 176 | BD61: 57 | BE61: ramoshe02 | BF61: 671218 | BG61: Young Slugger | BH61: Andy Pages | BI61: Seiya Suzuki | BJ61: Kerry Carpenter | BK61: Career taking off. Could continue to exceed forecasts. Truth coming. Breaking out or false hopes?
A62: Doyle | B62: Brenton | C62: R | D62: 2025 | E62: 27 | F62: COL | G62: NL | H62: OF | K62: 0.84 | L62: 0.334 | M62: 56 | N62: Y | O62: 142 | P62: 465 | Q62: 420 | R62: 56 | S62: 96 | T62: 22 | U62: 4 | V62: 17 | W62: 51 | X62: 20 | Y62: 4 | Z62: 35 | AA62: 123 | AB62: 1 | AC62: 3 | AD62: 3 | AE62: 4 | AF62: 11 | AG62: 0.228 | AH62: 0.287 | AI62: 0.422 | AJ62: 0.304 | AK62: 142 | AL62: 35 | AM62: 32 | AN62: 17 | AO62: 15 | AP62: 1 | AQ62: 62 | AR62: 169 | AS62: 32 | AT62: Y | AU62: -0.02 | AV62: -19 | AW62: O | AX62: 603 | AY62: 0.26 | AZ62: 0.317 | BA62: 0.446 | BB62: 0.327 | BC62: 197 | BD62: 54 | BE62: doylebr02 | BF62: 686668 | BG62: SB Slugger | BH62: Jazz Chisholm | BI62: Ceddanne Rafaela | BJ62: Daulton Varsho | BK62: Should perform close to forecast. Starter, but may sit occassionally.
A63: De La Cruz | B63: Bryan | C63: R | D63: 2025 | E63: 28 | F63: PIT | G63: NL | H63: OF | K63: 0.85 | L63: 0.334 | M63: 56 | N63: Y | O63: 150 | P63: 507 | Q63: 475 | R63: 51 | S63: 112 | T63: 27 | U63: 0 | V63: 20 | W63: 58 | X63: 5 | Y63: 1 | Z63: 25 | AA63: 122 | AB63: 1 | AC63: 2 | AD63: 0 | AE63: 4 | AF63: 12 | AG63: 0.235 | AH63: 0.276 | AI63: 0.419 | AJ63: 0.298 | AK63: 151 | AL63: 35 | AM63: 32 | AN63: 14 | AO63: 13 | AP63: -2 | AQ63: 65 | AR63: 175 | AS63: 33 | AT63: Y | AU63: 0.01 | AV63: 2 | AW63: R | AX63: 621 | AY63: 0.233 | AZ63: 0.271 | BA63: 0.384 | BB63: 0.284 | BC63: 176 | BD63: 33 | BE63: delacbr01 | BF63: 650559 | BG63: Slugger | BH63: Ryan Mountcastle | BI63: Connor Wong | BJ63: Tyler Stephenson | BK63: Poised for modest break out above last year. Expected to play regularly.
A64: McCarthy | B64: Jake | C64: L | D64: 2025 | E64: 27 | F64: ARI | G64: NL | H64: OF | K64: 0.8 | L64: 0.334 | M64: 56 | N64: Y | O64: 113 | P64: 429 | Q64: 388 | R64: 55 | S64: 100 | T64: 13 | U64: 5 | V64: 7 | W64: 43 | X64: 22 | Y64: 4 | Z64: 28 | AA64: 81 | AB64: 1 | AC64: 8 | AD64: 4 | AE64: 2 | AF64: 4 | AG64: 0.258 | AH64: 0.318 | AI64: 0.37 | AJ64: 0.306 | AK64: 131 | AL64: 34 | AM64: 31 | AN64: 18 | AO64: 16 | AP64: 1 | AQ64: 66 | AR64: 177 | AS64: 34 | AT64: N | AU64: -0.02 | AV64: -16 | AW64: O | AX64: 495 | AY64: 0.285 | AZ64: 0.349 | BA64: 0.4 | BB64: 0.331 | BC64: 164 | BD64: 50 | BE64: mccarja02 | BF64: 664983 | BG64: SB Capable Hitter | BH64: Xavier Edwards | BI64: TJ Friedl | BJ64: Sal Frelick | BK64: Risk of injury or playing time.
A65: Frelick | B65: Sal | C65: L | D65: 2025 | E65: 25 | F65: MIL | G65: NL | H65: OF | K65: 0.8 | L65: 0.334 | M65: 56 | N65: Y | O65: 113 | P65: 437 | Q65: 392 | R65: 55 | S65: 98 | T65: 19 | U65: 3 | V65: 5 | W65: 36 | X65: 15 | Y65: 2 | Z65: 38 | AA65: 73 | AB65: 0 | AC65: 3 | AD65: 1 | AE65: 2 | AF65: 6 | AG65: 0.25 | AH65: 0.319 | AI65: 0.347 | AJ65: 0.3 | AK65: 131 | AL65: 32 | AM65: 30 | AN65: 13 | AO65: 12 | AP65: -1 | AQ65: 69 | AR65: 188 | AS65: 35 | AT65: Y | AU65: 0 | AV65: -2 | AW65: R | AX65: 521 | AY65: 0.259 | AZ65: 0.32 | BA65: 0.335 | BB65: 0.296 | BC65: 154 | BD65: 34 | BE65: frelisa01 | BF65: 686217 | BG65: Young Capable Hitter | BH65: Steven Kwan | BI65: Maikel Garcia | BJ65: Tyler Freeman | BK65: Best still to come, even if last year was a set back. Starter, but may sit occassionally.
A66: Grichuk | B66: Randal | C66: R | D66: 2025 | E66: 33 | F66: ARI | G66: NL | H66: OF | K66: 0.8 | L66: 0.303 | M66: 24 | N66: Y | O66: 94 | P66: 350 | Q66: 323 | R66: 44 | S66: 80 | T66: 15 | U66: 1 | V66: 12 | W66: 43 | X66: 2 | Y66: 1 | Z66: 22 | AA66: 71 | AB66: 1 | AC66: 4 | AD66: 0 | AE66: 2 | AF66: 7 | AG66: 0.249 | AH66: 0.302 | AI66: 0.413 | AJ66: 0.311 | AK66: 109 | AL66: 32 | AM66: 29 | AN66: 11 | AO66: 10 | AP66: 3 | AQ66: 71 | AR66: 192 | AS66: 36 | AT66: N | AU66: -0.06 | AV66: -21 | AW66: O | AX66: 279 | AY66: 0.291 | AZ66: 0.348 | BA66: 0.528 | BB66: 0.373 | BC66: 104 | BD66: 53 | BE66: grichra01 | BF66: 545341 | BG66: Slugger | BH66: Lourdes Gurriel Jr. | BI66: Ryan O'Hearn | BJ66: Max Kepler | BK66: Career has peaked, limited upside. Will be overpriced in most drafts, unless truly healthy.
A67: Jones | B67: Nolan | C67: L | D67: 2025 | E67: 27 | F67: COL | G67: NL | H67: OF | K67: 0.74 | L67: 0.303 | M67: 24 | N67: Y | O67: 82 | P67: 319 | Q67: 283 | R67: 36 | S67: 67 | T67: 15 | U67: 2 | V67: 8 | W67: 36 | X67: 8 | Y67: 3 | Z67: 32 | AA67: 87 | AB67: 2 | AC67: 2 | AD67: 1 | AE67: 2 | AF67: 4 | AG67: 0.235 | AH67: 0.318 | AI67: 0.391 | AJ67: 0.314 | AK67: 100 | AL67: 31 | AM67: 29 | AN67: 10 | AO67: 9 | AP67: 4 | AQ67: 73 | AR67: 198 | AS67: 37 | AT67: N | AU67: 0.02 | AV67: 8 | AW67: S | AX67: 297 | AY67: 0.227 | AZ67: 0.321 | BA67: 0.32 | BB67: 0.293 | BC67: 87 | BD67: 23 | BE67: jonesno01 | BF67: 666134 | BG67: Agile Bad Ball Hitter | BH67: Brandon Marsh | BI67: James Wood | BJ67: Dylan Carlson | BK67: Running out of time to prove himself. This year could establish who he is. Will outperform last year, assuming regular playing time. Consider platooning.
A68: Suwinski | B68: Jack | C68: L | D68: 2025 | E68: 26 | F68: PIT | G68: NL | H68: OF | K68: 0.79 | L68: 0.303 | M68: 24 | N68: Y | O68: 99 | P68: 313 | Q68: 270 | R68: 35 | S68: 55 | T68: 13 | U68: 1 | V68: 14 | W68: 35 | X68: 6 | Y68: 1 | Z68: 38 | AA68: 87 | AB68: 1 | AC68: 3 | AD68: 0 | AE68: 2 | AF68: 3 | AG68: 0.204 | AH68: 0.306 | AI68: 0.41 | AJ68: 0.314 | AK68: 98 | AL68: 31 | AM68: 28 | AN68: 8 | AO68: 7 | AP68: 3 | AQ68: 74 | AR68: 200 | AS68: 38 | AT68: N | AU68: 0.05 | AV68: 16 | AW68: S | AX68: 277 | AY68: 0.182 | AZ68: 0.264 | BA68: 0.324 | BB68: 0.263 | BC68: 73 | BD68: 15 | BE68: suwinja01 | BF68: 669261 | BG68: Slugger | BH68: Bo Naylor | BI68: Ben Rice | BJ68: Kyle Schwarber | BK68: Some upside still, but needs to start proving it. Will outperform last year, assuming regular playing time. Consider platooning.
A69: Winker | B69: Jesse | C69: L | D69: 2025 | E69: 31 | F69: NYN | G69: NL | H69: OF | K69: 0.81 | L69: 0.334 | M69: 56 | N69: Y | O69: 95 | P69: 332 | Q69: 287 | R69: 37 | S69: 65 | T69: 12 | U69: 0 | V69: 9 | W69: 37 | X69: 5 | Y69: 1 | Z69: 38 | AA69: 71 | AB69: 1 | AC69: 5 | AD69: 1 | AE69: 2 | AF69: 6 | AG69: 0.229 | AH69: 0.325 | AI69: 0.363 | AJ69: 0.31 | AK69: 103 | AL69: 31 | AM69: 28 | AN69: 8 | AO69: 7 | AP69: 3 | AQ69: 76 | AR69: 202 | AS69: 39 | AT69: N | AU69: -0.03 | AV69: -26 | AW69: O | AX69: 508 | AY69: 0.253 | AZ69: 0.36 | BA69: 0.405 | BB69: 0.341 | BC69: 173 | BD69: 57 | BE69: winkeje01 | BF69: 608385 | BG69: On Base | BH69: LaMonte Wade Jr | BI69: Mike Tauchman | BJ69: Mark Canha | BK69: Limited improvement expected from here. Role player, not a keeper.
A70: Blackmon | B70: Charlie | C70: L | D70: 2025 | E70: 38 | F70: COL | G70: NL | H70: OF | K70: 0.83 | L70: 0.334 | M70: 56 | N70: Y | O70: 74 | P70: 311 | Q70: 270 | R70: 36 | S70: 64 | T70: 9 | U70: 1 | V70: 8 | W70: 34 | X70: 4 | Y70: 1 | Z70: 34 | AA70: 54 | AB70: 1 | AC70: 5 | AD70: 1 | AE70: 2 | AF70: 4 | AG70: 0.241 | AH70: 0.33 | AI70: 0.364 | AJ70: 0.313 | AK70: 97 | AL70: 30 | AM70: 28 | AN70: 8 | AO70: 7 | AP70: 3 | AQ70: 81 | AR70: 208 | AS70: 40 | AT70: N | AU70: -0.01 | AV70: -17 | AW70: R | AX70: 499 | AY70: 0.256 | AZ70: 0.329 | BA70: 0.412 | BB70: 0.327 | BC70: 163 | BD70: 48 | BE70: blackch02 | BF70: 453568 | BG70: Aging Contact Hitter | BH70: DJ LeMahieu | BI70: Justin Turner | BJ70: Jose Abreu | BK70: His best days are past him, but he should perform near projected levels. Role player, not a keeper.
A71: Pages | B71: Andy | C71: R | D71: 2025 | E71: 24 | F71: LAN | G71: NL | H71: OF | K71: 0.82 | L71: 0.334 | M71: 56 | N71: Y | O71: 94 | P71: 375 | Q71: 340 | R71: 51 | S71: 81 | T71: 20 | U71: 1 | V71: 10 | W71: 39 | X71: 2 | Y71: 2 | Z71: 28 | AA71: 86 | AB71: 0 | AC71: 5 | AD71: 0 | AE71: 3 | AF71: 6 | AG71: 0.236 | AH71: 0.301 | AI71: 0.389 | AJ71: 0.303 | AK71: 114 | AL71: 30 | AM71: 28 | AN71: 10 | AO71: 9 | AP71: 0 | AQ71: 82 | AR71: 209 | AS71: 41 | AT71: N | AU71: -0.01 | AV71: -7 | AW71: R | AX71: 442 | AY71: 0.248 | AZ71: 0.305 | BA71: 0.407 | BB71: 0.311 | BC71: 138 | BD71: 37 | BE71: pagesan01 | BF71: 681624 | BG71: Young Lead Footed Capable Hitter | BH71: Patrick Bailey | BI71: Wilyer Abreu | BJ71: Andrew Vaughn | BK71: Career on the rise. Track his progress to determine upside. Risk of injury or playing time.
A72: Fraley | B72: Jake | C72: L | D72: 2025 | E72: 29 | F72: CIN | G72: NL | H72: OF | K72: 0.78 | L72: 0.303 | M72: 24 | N72: Y | O72: 95 | P72: 338 | Q72: 310 | R72: 39 | S72: 77 | T72: 14 | U72: 1 | V72: 9 | W72: 38 | X72: 14 | Y72: 3 | Z72: 22 | AA72: 68 | AB72: 1 | AC72: 4 | AD72: 0 | AE72: 2 | AF72: 4 | AG72: 0.249 | AH72: 0.305 | AI72: 0.39 | AJ72: 0.305 | AK72: 103 | AL72: 29 | AM72: 27 | AN72: 13 | AO72: 12 | AP72: 1 | AQ72: 83 | AR72: 219 | AS72: 42 | AT72: N | AU72: -0.01 | AV72: -7 | AW72: R | AX72: 382 | AY72: 0.277 | AZ72: 0.33 | BA72: 0.386 | BB72: 0.318 | BC72: 121 | BD72: 36 | BE72: fraleja01 | BF72: 641584 | BG72: SB Contact Hitter | BH72: Ronald Acuna | BI72: Tommy Edman | BJ72: Victor Robles | BK72: Poised for modest break out above last year. Risk of injury or playing time. Consider platooning.
A73: Hays | B73: Austin | C73: R | D73: 2025 | E73: 29 | F73: PHI | G73: NL | H73: OF | K73: 0.81 | L73: 0.303 | M73: 24 | N73: Y | O73: 94 | P73: 369 | Q73: 343 | R73: 43 | S73: 85 | T73: 20 | U73: 1 | V73: 10 | W73: 39 | X73: 3 | Y73: 2 | Z73: 18 | AA73: 82 | AB73: 1 | AC73: 5 | AD73: 0 | AE73: 3 | AF73: 6 | AG73: 0.245 | AH73: 0.293 | AI73: 0.396 | AJ73: 0.3 | AK73: 111 | AL73: 29 | AM73: 27 | AN73: 10 | AO73: 9 | AP73: -1 | AQ73: 85 | AR73: 221 | AS73: 43 | AT73: N | AU73: 0 | AV73: 5 | AW73: R | AX73: 255 | AY73: 0.255 | AZ73: 0.303 | BA73: 0.396 | BB73: 0.305 | BC73: 78 | BD73: 24 | BE73: haysau01 | BF73: 669720 | BG73: Capable Hitter | BH73: Connor Wong | BI73: Ryan Mountcastle | BJ73: Alec Bohm | BK73: Poised for modest break out above last year. Risk of injury or playing time.
A74: Yastrzemski | B74: Mike | C74: L | D74: 2025 | E74: 35 | F74: SFN | G74: NL | H74: OF | K74: 0.82 | L74: 0.334 | M74: 56 | N74: Y | O74: 87 | P74: 291 | Q74: 252 | R74: 37 | S74: 53 | T74: 11 | U74: 2 | V74: 11 | W74: 32 | X74: 3 | Y74: 1 | Z74: 33 | AA74: 71 | AB74: 1 | AC74: 3 | AD74: 1 | AE74: 1 | AF74: 4 | AG74: 0.213 | AH74: 0.308 | AI74: 0.4 | AJ74: 0.312 | AK74: 91 | AL74: 29 | AM74: 26 | AN74: 7 | AO74: 6 | AP74: 3 | AQ74: 86 | AR74: 222 | AS74: 44 | AT74: N | AU74: -0.01 | AV74: -14 | AW74: R | AX74: 474 | AY74: 0.231 | AZ74: 0.302 | BA74: 0.437 | BB74: 0.319 | BC74: 151 | BD74: 42 | BE74: yastrmi01 | BF74: 573262 | BG74: Aging Slugger | BH74: Max Muncy | BI74: Mitch Garver | BJ74: Giancarlo Stanton | BK74: His best days are past him, but he should perform near projected levels. Role player, not a keeper.
A75: Kelenic | B75: Jarred | C75: L | D75: 2025 | E75: 25 | F75: ATL | G75: NL | H75: OF | K75: 0.79 | L75: 0.334 | M75: 56 | N75: Y | O75: 111 | P75: 384 | Q75: 346 | R75: 40 | S75: 75 | T75: 19 | U75: 2 | V75: 12 | W75: 39 | X75: 9 | Y75: 3 | Z75: 34 | AA75: 106 | AB75: 2 | AC75: 2 | AD75: 0 | AE75: 2 | AF75: 5 | AG75: 0.217 | AH75: 0.289 | AI75: 0.385 | AJ75: 0.295 | AK75: 113 | AL75: 28 | AM75: 26 | AN75: 9 | AO75: 8 | AP75: -3 | AQ75: 87 | AR75: 225 | AS75: 45 | AT75: N | AU75: 0 | AV75: -3 | AW75: R | AX75: 449 | AY75: 0.231 | AZ75: 0.286 | BA75: 0.393 | BB75: 0.295 | BC75: 132 | BD75: 31 | BE75: kelenja01 | BF75: 672284 | BG75: Young Slugger | BH75: Colton Cowser | BI75: Davis Schneider | BJ75: Jesus Sanchez | BK75: Best still to come, even if last year was a set back. Risk of injury or playing time.
A76: Young | B76: Jacob | C76: R | D76: 2025 | E76: 25 | F76: WAS | G76: NL | H76: OF | K76: 0.77 | L76: 0.334 | M76: 56 | N76: Y | O76: 113 | P76: 426 | Q76: 382 | R76: 54 | S76: 94 | T76: 20 | U76: 1 | V76: 4 | W76: 35 | X76: 28 | Y76: 5 | Z76: 29 | AA76: 83 | AB76: 0 | AC76: 8 | AD76: 6 | AE76: 2 | AF76: 8 | AG76: 0.245 | AH76: 0.306 | AI76: 0.341 | AJ76: 0.29 | AK76: 123 | AL76: 28 | AM76: 26 | AN76: 16 | AO76: 15 | AP76: -6 | AQ76: 88 | AR76: 226 | AS76: 46 | AT76: N | AU76: 0 | AV76: -3 | AW76: R | AX76: 521 | AY76: 0.256 | AZ76: 0.316 | BA76: 0.331 | BB76: 0.289 | BC76: 151 | BD76: 31 | BE76: youngja03 | BF76: 696285 | BG76: Young SB Capable Hitter | BH76: Victor Robles | BI76: Johan Rojas | BJ76: Esteury Ruiz | BK76: Best still to come, even if last year was a set back. Risk of injury or playing time.
A77: Benson | B77: Will | C77: L | D77: 2025 | E77: 27 | F77: CIN | G77: NL | H77: OF | K77: 0.74 | L77: 0.303 | M77: 24 | N77: Y | O77: 111 | P77: 317 | Q77: 281 | R77: 37 | S77: 59 | T77: 16 | U77: 4 | V77: 10 | W77: 31 | X77: 11 | Y77: 3 | Z77: 32 | AA77: 98 | AB77: 0 | AC77: 2 | AD77: 1 | AE77: 1 | AF77: 4 | AG77: 0.206 | AH77: 0.292 | AI77: 0.401 | AJ77: 0.303 | AK77: 96 | AL77: 27 | AM77: 25 | AN77: 8 | AO77: 8 | AP77: 0 | AQ77: 93 | AR77: 236 | AS77: 47 | AT77: N | AU77: 0.02 | AV77: 2 | AW77: R | AX77: 388 | AY77: 0.187 | AZ77: 0.274 | BA77: 0.376 | BB77: 0.284 | BC77: 110 | BD77: 25 | BE77: bensowi01 | BF77: 666181 | BG77: SB Slugger | BH77: Estevan Florial | BI77: Canaan Smith-Njigba | BJ77: Garrett Mitchell | BK77: Running out of time to prove himself. This year could establish who he is. Risk of injury or playing time.
A78: Tauchman | B78: Mike | C78: L | D78: 2025 | E78: 34 | F78: CHN | G78: NL | H78: OF | K78: 0.79 | L78: 0.303 | M78: 24 | N78: Y | O78: 78 | P78: 262 | Q78: 223 | R78: 37 | S78: 51 | T78: 8 | U78: 0 | V78: 6 | W78: 26 | X78: 5 | Y78: 1 | Z78: 34 | AA78: 55 | AB78: 0 | AC78: 3 | AD78: 0 | AE78: 1 | AF78: 4 | AG78: 0.231 | AH78: 0.338 | AI78: 0.346 | AJ78: 0.313 | AK78: 82 | AL78: 27 | AM78: 25 | AN78: 7 | AO78: 6 | AP78: 3 | AQ78: 94 | AR78: 238 | AS78: 48 | AT78: N | AU78: -0.02 | AV78: -13 | AW78: R | AX78: 350 | AY78: 0.248 | AZ78: 0.357 | BA78: 0.366 | BB78: 0.33 | BC78: 116 | BD78: 40 | BE78: tauchmi01 | BF78: 643565 | BG78: Aging Contact Hitter | BH78: DJ LeMahieu | BI78: Justin Turner | BJ78: Mark Canha | BK78: His best days are past him, but he should perform near projected levels. Role player, not a keeper. Consider platooning.
A79: Outman | B79: James | C79: L | D79: 2025 | E79: 28 | F79: LAN | G79: NL | H79: OF | K79: 0.72 | L79: 0.303 | M79: 24 | N79: Y | O79: 83 | P79: 286 | Q79: 255 | R79: 37 | S79: 56 | T79: 10 | U79: 1 | V79: 11 | W79: 32 | X79: 6 | Y79: 1 | Z79: 24 | AA79: 83 | AB79: 1 | AC79: 5 | AD79: 0 | AE79: 2 | AF79: 3 | AG79: 0.215 | AH79: 0.3 | AI79: 0.397 | AJ79: 0.306 | AK79: 88 | AL79: 26 | AM79: 24 | AN79: 8 | AO79: 8 | AP79: 1 | AQ79: 96 | AR79: 241 | AS79: 49 | AT79: N | AU79: 0.06 | AV79: 19 | AW79: S | AX79: 156 | AY79: 0.147 | AZ79: 0.256 | BA79: 0.265 | BB79: 0.244 | BC79: 38 | BD79: 8 | BE79: outmaja01 | BF79: 681546 | BG79: Agile Slugger | BH79: Tyler O'Neill | BI79: Jake Bauers | BJ79: Matt Mervis | BK79: Career needs a jump start. Further decline could signal shorter mlb tenure than once expected. Sleeper pick for a good reason. Use caution. Consider platooning.
A80: Walker | B80: Jordan | C80: R | D80: 2025 | E80: 23 | F80: STL | G80: NL | H80: OF | K80: 0.75 | L80: 0.303 | M80: 24 | N80: Y | O80: 66 | P80: 267 | Q80: 240 | R80: 28 | S80: 57 | T80: 13 | U80: 1 | V80: 7 | W80: 29 | X80: 4 | Y80: 1 | Z80: 22 | AA80: 60 | AB80: 0 | AC80: 3 | AD80: 0 | AE80: 2 | AF80: 5 | AG80: 0.235 | AH80: 0.309 | AI80: 0.391 | AJ80: 0.309 | AK80: 82 | AL80: 26 | AM80: 24 | AN80: 7 | AO80: 6 | AP80: 2 | AQ80: 97 | AR80: 246 | AS80: 50 | AT80: N | AU80: 0.04 | AV80: 14 | AW80: S | AX80: 178 | AY80: 0.201 | AZ80: 0.253 | BA80: 0.366 | BB80: 0.268 | BC80: 48 | BD80: 12 | BE80: walkejo02 | BF80: 691023 | BG80: Young Gap Power | BH80: Junior Caminero | BI80: Jackson Chourio | BJ80: Andy Pages | BK80: Young enough to develop a lot from here. Will put up better numbers with full season.
A81: Mitchell | B81: Garrett | C81: L | D81: 2025 | E81: 26 | F81: MIL | G81: NL | H81: OF | K81: 0.57 | L81: 0.303 | M81: 24 | N81: Y | O81: 74 | P81: 251 | Q81: 224 | R81: 31 | S81: 52 | T81: 11 | U81: 2 | V81: 7 | W81: 24 | X81: 9 | Y81: 2 | Z81: 23 | AA81: 70 | AB81: 0 | AC81: 2 | AD81: 1 | AE81: 1 | AF81: 2 | AG81: 0.229 | AH81: 0.305 | AI81: 0.399 | AJ81: 0.309 | AK81: 77 | AL81: 25 | AM81: 23 | AN81: 8 | AO81: 7 | AP81: 1 | AQ81: 102 | AR81: 256 | AS81: 51 | AT81: N | AU81: -0.04 | AV81: -11 | AW81: R | AX81: 224 | AY81: 0.255 | AZ81: 0.342 | BA81: 0.469 | BB81: 0.349 | BC81: 78 | BD81: 36 | BE81: mitchga01 | BF81: 669003 | BG81: On Base | BH81: Drew Waters | BI81: Alexander Canario | BJ81: Canaan Smith-Njigba | BK81: Some upside still, but needs to start proving it. Risk of injury or playing time. Consider platooning.
A82: Call | B82: Alex | C82: R | D82: 2025 | E82: 30 | F82: WAS | G82: NL | H82: OF | K82: 0.69 | L82: 0.303 | M82: 24 | N82: Y | O82: 76 | P82: 260 | Q82: 231 | R82: 30 | S82: 54 | T82: 10 | U82: 1 | V82: 7 | W82: 27 | X82: 6 | Y82: 4 | Z82: 24 | AA82: 52 | AB82: 0 | AC82: 4 | AD82: 1 | AE82: 1 | AF82: 3 | AG82: 0.232 | AH82: 0.313 | AI82: 0.374 | AJ82: 0.306 | AK82: 80 | AL82: 25 | AM82: 23 | AN82: 7 | AO82: 7 | AP82: 1 | AQ82: 103 | AR82: 260 | AS82: 52 | AT82: N | AU82: -0.11 | AV82: -19 | AW82: O | AX82: 113 | AY82: 0.343 | AZ82: 0.425 | BA82: 0.525 | BB82: 0.415 | BC82: 47 | BD82: 44 | BE82: callal02 | BF82: 669743 | BG82: Agile Playing Time Risk | BH82: Freddie Freeman | BI82: Yandy Diaz | BJ82: Jurickson Profar | BK82: Limited improvement expected from here. Will be overpriced in most drafts, unless truly healthy.
A83: Edman | B83: Tommy | C83: B | D83: 2025 | E83: 30 | F83: LAN | G83: NL | H83: OF | K83: 0.8 | L83: 0.303 | M83: 24 | N83: Y | O83: 74 | P83: 302 | Q83: 279 | R83: 41 | S83: 69 | T83: 12 | U83: 2 | V83: 8 | W83: 30 | X83: 14 | Y83: 2 | Z83: 18 | AA83: 54 | AB83: 1 | AC83: 3 | AD83: 1 | AE83: 2 | AF83: 5 | AG83: 0.244 | AH83: 0.296 | AI83: 0.384 | AJ83: 0.298 | AK83: 90 | AL83: 25 | AM83: 23 | AN83: 12 | AO83: 11 | AP83: -2 | AQ83: 105 | AR83: 262 | AS83: 53 | AT83: N | AU83: -0.01 | AV83: 7 | AW83: S | AX83: 153 | AY83: 0.237 | AZ83: 0.294 | BA83: 0.417 | BB83: 0.307 | BC83: 47 | BD83: 18 | BE83: edmanto01 | BF83: 669242 | BG83: SB Contact Hitter | BH83: Harrison Bader | BI83: Jake Fraley | BJ83: Victor Robles | BK83: In prime. Expect rebound.
A84: Hinds | B84: Rece | C84: R | D84: 2025 | E84: 24 | F84: CIN | G84: NL | H84: OF | K84: 0.34 | L84: 0.303 | M84: 24 | N84: Y | O84: 58 | P84: 171 | Q84: 154 | R84: 22 | S84: 35 | T84: 10 | U84: 2 | V84: 7 | W84: 23 | X84: 5 | Y84: 1 | Z84: 15 | AA84: 43 | AB84: 0 | AC84: 2 | AD84: 0 | AE84: 1 | AF84: 2 | AG84: 0.225 | AH84: 0.305 | AI84: 0.457 | AJ84: 0.327 | AK84: 56 | AL84: 24 | AM84: 22 | AN84: 7 | AO84: 6 | AP84: 4 | AQ84: 106 | AR84: 267 | AS84: 54 | AT84: N | AU84: -0.1 | AV84: -5 | AW84: R | AX84: 51 | AY84: 0.261 | AZ84: 0.333 | BA84: 0.717 | BB84: 0.425 | BC84: 22 | BD84: 29 | BE84: hindsre01 | BF84: 677956 | BG84: Young SB Power off Bench | BH84: Hunter Goodman | BI84: Daulton Varsho | BJ84: Evan Carter | BK84: Needs to establish himself at MLB level. Risk of injury or playing time.
A85: Crow-Armstrong | B85: Pete | C85: L | D85: 2025 | E85: 23 | F85: CHN | G85: NL | H85: OF | K85: 0.7 | L85: 0.303 | M85: 24 | N85: Y | O85: 111 | P85: 347 | Q85: 309 | R85: 38 | S85: 69 | T85: 14 | U85: 4 | V85: 8 | W85: 37 | X85: 23 | Y85: 3 | Z85: 25 | AA85: 81 | AB85: 1 | AC85: 4 | AD85: 5 | AE85: 2 | AF85: 4 | AG85: 0.221 | AH85: 0.284 | AI85: 0.368 | AJ85: 0.285 | AK85: 99 | AL85: 23 | AM85: 21 | AN85: 12 | AO85: 11 | AP85: -6 | AQ85: 111 | AR85: 280 | AS85: 55 | AT85: N | AU85: 0 | AV85: -3 | AW85: R | AX85: 410 | AY85: 0.237 | AZ85: 0.286 | BA85: 0.384 | BB85: 0.287 | BC85: 118 | BD85: 26 | BE85: crowape01 | BF85: 691718 | BG85: Young SB | BH85: Jonny Deluca | BI85: Elly De La Cruz | BJ85: Johan Rojas | BK85: Needs to establish himself at MLB level. Risk of injury or playing time.
A86: Carlson | B86: Dylan | C86: B | D86: 2025 | E86: 26 | F86: STL | G86: NL | H86: OF | K86: 0.76 | L86: 0.303 | M86: 24 | N86: Y | O86: 84 | P86: 268 | Q86: 236 | R86: 27 | S86: 52 | T86: 12 | U86: 1 | V86: 5 | W86: 26 | X86: 3 | Y86: 1 | Z86: 25 | AA86: 59 | AB86: 0 | AC86: 5 | AD86: 0 | AE86: 2 | AF86: 4 | AG86: 0.219 | AH86: 0.306 | AI86: 0.348 | AJ86: 0.294 | AK86: 79 | AL86: 22 | AM86: 20 | AN86: 4 | AO86: 4 | AP86: -2 | AQ86: 115 | AR86: 290 | AS86: 56 | AT86: N | AU86: 0.03 | AV86: 8 | AW86: S | AX86: 265 | AY86: 0.209 | AZ86: 0.287 | BA86: 0.277 | BB86: 0.261 | BC86: 69 | BD86: 14 | BE86: carlsdy01 | BF86: 666185 | BG86: Gap Power | BH86: Joey Ortiz | BI86: Riley Greene | BJ86: Jordan Walker | BK86: Some upside still, but needs to start proving it. Will outperform last year, assuming regular playing time.
A87: Ramirez | B87: Harold | C87: R | D87: 2025 | E87: 31 | F87: WAS | G87: NL | H87: OF | K87: 0.78 | L87: 0.303 | M87: 24 | N87: Y | O87: 70 | P87: 275 | Q87: 258 | R87: 32 | S87: 68 | T87: 9 | U87: 1 | V87: 5 | W87: 35 | X87: 4 | Y87: 2 | Z87: 11 | AA87: 53 | AB87: 0 | AC87: 4 | AD87: 0 | AE87: 2 | AF87: 3 | AG87: 0.261 | AH87: 0.3 | AI87: 0.359 | AJ87: 0.292 | AK87: 80 | AL87: 22 | AM87: 20 | AN87: 9 | AO87: 8 | AP87: -3 | AQ87: 116 | AR87: 292 | AS87: 57 | AT87: N | AU87: 0.02 | AV87: 7 | AW87: S | AX87: 246 | AY87: 0.261 | AZ87: 0.28 | BA87: 0.324 | BB87: 0.268 | BC87: 66 | BD87: 15 | BE87: ramirha02 | BF87: 623912 | BG87: Contact Hitter | BH87: Miguel Andujar | BI87: Freddy Fermin | BJ87: Giovanny Urshela | BK87: May do better, but doubful of return to past. Sleeper pick for a good reason. Use caution.
A88: Marte | B88: Starling | C88: R | D88: 2025 | E88: 36 | F88: NYN | G88: NL | H88: OF | K88: 0.8 | L88: 0.303 | M88: 24 | N88: Y | O88: 64 | P88: 262 | Q88: 236 | R88: 32 | S88: 56 | T88: 6 | U88: 1 | V88: 6 | W88: 27 | X88: 12 | Y88: 2 | Z88: 20 | AA88: 54 | AB88: 1 | AC88: 4 | AD88: 1 | AE88: 1 | AF88: 6 | AG88: 0.24 | AH88: 0.307 | AI88: 0.348 | AJ88: 0.294 | AK88: 77 | AL88: 22 | AM88: 20 | AN88: 9 | AO88: 8 | AP88: -2 | AQ88: 117 | AR88: 293 | AS88: 58 | AT88: N | AU88: -0.02 | AV88: -13 | AW88: R | AX88: 370 | AY88: 0.269 | AZ88: 0.327 | BA88: 0.388 | BB88: 0.315 | BC88: 116 | BD88: 34 | BE88: martest01 | BF88: 516782 | BG88: Aging SB Contact Hitter | BH88: Jon Berti | BI88: Jean Segura | BJ88: Travis Jankowski | BK88: His best days are past him, but he should perform near projected levels. Role player, not a keeper.
A89: Robles | B89: Victor | C89: R | D89: 2025 | E89: 28 | F89: WAS | G89: NL | H89: OF | K89: 0.73 | L89: 0.303 | M89: 24 | N89: Y | O89: 81 | P89: 283 | Q89: 254 | R89: 34 | S89: 64 | T89: 12 | U89: 1 | V89: 4 | W89: 25 | X89: 17 | Y89: 2 | Z89: 14 | AA89: 60 | AB89: 0 | AC89: 7 | AD89: 5 | AE89: 2 | AF89: 3 | AG89: 0.25 | AH89: 0.301 | AI89: 0.355 | AJ89: 0.29 | AK89: 82 | AL89: 22 | AM89: 20 | AN89: 11 | AO89: 10 | AP89: -4 | AQ89: 118 | AR89: 294 | AS89: 59 | AT89: N | AU89: -0.06 | AV89: -24 | AW89: O | AX89: 295 | AY89: 0.307 | AZ89: 0.381 | BA89: 0.433 | BB89: 0.354 | BC89: 105 | BD89: 46 | BE89: roblevi01 | BF89: 645302 | BG89: SB Slap Hitter | BH89: Jacob Young | BI89: Esteury Ruiz | BJ89: Johan Rojas | BK89: Career still on the rise, but nearing peak. Will be overpriced in most drafts, unless truly healthy.
A90: Taylor | B90: Tyrone | C90: R | D90: 2025 | E90: 30 | F90: NYN | G90: NL | H90: OF | K90: 0.77 | L90: 0.303 | M90: 24 | N90: Y | O90: 93 | P90: 274 | Q90: 255 | R90: 35 | S90: 58 | T90: 15 | U90: 2 | V90: 9 | W90: 31 | X90: 7 | Y90: 1 | Z90: 13 | AA90: 64 | AB90: 0 | AC90: 4 | AD90: 0 | AE90: 1 | AF90: 6 | AG90: 0.227 | AH90: 0.274 | AI90: 0.4 | AJ90: 0.291 | AK90: 80 | AL90: 21 | AM90: 20 | AN90: 8 | AO90: 7 | AP90: -3 | AQ90: 120 | AR90: 298 | AS90: 60 | AT90: N | AU90: -0.01 | AV90: -8 | AW90: R | AX90: 345 | AY90: 0.248 | AZ90: 0.299 | BA90: 0.401 | BB90: 0.305 | BC90: 105 | BD90: 29 | BE90: tayloty01 | BF90: 621438 | BG90: Agile Slugger | BH90: Ramon Laureano | BI90: Jarren Duran | BJ90: Nick Gordon | BK90: In prime. Risk of injury or playing time.
